Workbook

Sheet Overview
B1: PRA Disclosure Statement
C2: PRA Disclosure Statement - The 1115 PMDA application offers a source of high quality and timely data to improve the Center for Medicaid & CHIP Services (CMCS) ability to monitor demonstrations for the achievement of desired outcomes and projected cost savings. The states will upload and submit their budget neutrality workbook to CMCS via PMDA. Eventually PMDA will also be integrated into the Medicaid and CHIP Program (MACPro) System, which currently allows CMS and states to collaborate online to process State Plan Amendments (SPA), 1915 waivers, Quality Measures reports, advance planning documents, and other initiatives. The goal of the PMDA application is to: Collect programmatic quality and other performance metrics, related reports and other information associated with selected 1115 demonstrations; Validate and track performance-based incentive payments for 1115 demonstrations that include them; Provide electronic reports that support CMCS oversight, monitoring and evaluation of 1115 demonstration performance, particularly on quality and other performance metrics, and on related incentive payments (if any); Produce analytic files to support demonstration evaluation. An agency may not conduct or sponsor, and a person is not required to respond to, a collection of information unless it displays a currently valid Office of Management and Budget (OMB) control number. The OMB control number for this project is 0938-1148 CMS-10398 #56. Public burden for all of the collection of information requirements under this control number is estimated to take about 7.5 hours per response. Send comments regarding this burden estimate or any other aspect of this collection of information, including suggestions for reducing this burden, to CMS, 7500 Security Boulevard, Attn: Paperwork Reduction Act Reports Clearance Officer, Mail Stop C4-26-05, Baltimore, Maryland 21244-1850.
C4: Budget neutrality is a Federal policy that governs the Federal expenditures for1115 demonstrations. It is assured by placing an upper limit on the amount of Federal Financial Participation (FFP) the state can receive during the demonstration. The upper limit represents what the state could have received in the absence of the 1115 demonstration. The Budget Neutrality workbook will assist in collecting standardized data in order to determine financial performance for the demonstration in terms of budget neutrality. The workbook has two major groups of tabs: the first group collects and calculates Without Waiver (WOW) numbers, and the second group calculates With Waiver (WW) numbers. Data is collected per each demonstration Medicaid Eligibility Group (MEG), by demonstration year (DY). A Medicaid section 1115 demonstration is considered budget neutral if the Federal title XIX match, or funding received by the state (i.e., “with waiver” expenditures) do not exceed what the state would have (or could have) received without the demonstration (i.e., “without waiver” expenditures). The workbook provides the ability to evaluate any variance between WW and WOW calculations. The workbook consists of 15 tabs which contain different types of data and calculations. The following color schema is applied to the tabs:
B5: Blue | C5: Information populated in the Budget Neutrality workbook template based on the demonstration’s approved STC
B6: Red | C6: Information populated by states on a quarterly basis or per the reporting requirements defined in the STC
B7: Green | C7: Information automatically populated based on the input from other worksheets
B9: Note: Overview and Dropdowns tabs are read-only, no data entry is required. The Dropdowns tab displays the values used to build the dropdowns menus thoroughout the workbook,
B10: including the list of active waivers for the demonstration.
B12: Data Entry | C12: Within the tabs where a State User populates information (C Report, Total Adjustments, WW Spending Projected, MemMon Actual, MemMon Projected, and Summary TC tabs), yellow highlighted cells denote where data entry may be needed (depending on DY being updated).
B14: Pre-populated values in the downloaded Budget Neutrality workbook template
C15: The original workbook entries are based on the STCs and other demonstration approval documentation. These entries are made on the DY Def, MEG Def, WOW PMPM & Agg, Program Spending Limits, and Summary TC tab (Phase-Down Percentage and Cumulative Target Percentage fields). The MEG Def tab defines MEGs as Medicaid populations (core demonstration populations), Hypothetical populations (when a demonstration has separate budget neutrality agreements) and Tracking Only populations (for example, "pass-through" populations). The MEG Def tab also defines how expenditure numbers are calculated for a MEG (Per Capita vs. Aggregate) and the applicable scenarios (WOW, WW, or both). Also, the tab contains indicators defining MEG characteristics such as expenditure caps or applicability of savings phase-down calculations.
B17: Calculating With Waiver (WW) numbers
C18: WW numbers for each active DY of a demonstration are calculated based on a combination of actual WW expenditures, projected future expenditures, and any adjustments entered by a State User. The actual WW expenditures are copied from the Schedule C of the MBES CMS-64 report to the workbook (C Report tab). These numbers are automatically transferred to the C Report Grouper tab, where waiver expenditures are grouped by MEGs. The numbers are also transferred to the WW Spending Actual tab, which factors in adjustments entered on the Total Adjustments tab to calculate total actual WW expenditures. The WW Spending Total tab displays the actual WW expenditures plus future projected expenditures (transferred from the WW Spending Projected tab). Finally, the total WW actual and projected numbers are transferred to the Summary TC (Total Computable) tab (into the With-Waiver Total Expenditures section).
B20: Calculating Without Waiver (WOW) numbers
C21: WOW numbers can be obtained either one of two ways: using Aggregate or Per Capita calculations. If total projected expenditures for a MEG is known and the expenditure calculation type is defined as 'Aggregate' on the MEG Def tab, the total projected expenditure amount is entered for each active DY. However, if the expenditure calculation type is defined as 'Per Capita', total projected expenditures are derived by multiplying per member per month (PMPM) costs by the actual number of member months. Both Aggregate and PMPM numbers are populated on the WOW PMPM & Agg tab. The number of actual member months (number of beneficiaries times the number of months enrolled) are entered by a State User on the MemMon Actual tab for each DY. On the MemMon Projected tab, State User enters projected numbers. The totals for actual and projected member months are calculated on the MemMon Total tab. WOW aggregate, PMPM and member month data is then moved to the the Without-Waiver Total Expenditures section of the Summary TC tab, where final calculations are performed. Based on information from all tabs, the WW and WOW numbers are compared to determine the budget neutrality status of the demonstration.
B23: Below are the definitions for the tabs of the workbook which require data entries from State User.
B25: On top of the C Report tab, enter data in the following highlighted cells:
C27: ‘Data Pulled On:’ - enter the date the source file used to enter data on this tab was pulled
C28: ‘For the Time Period Through :’ - enter the date through which the source file data was pulled
C29: Reporting DY' - enter the Demonstration Year (DY) for which data is being reported. Entered DY value must align with DYs from the DY Def tab.
C30: Reporting Quarter' - enter a number of the quarter (values 1 through 4) for which data is being reported.
C32: Notes:
C33: - Dates must be entered in the following format: mm/dd/yyyy
C34: - Reporting DY and Reporting Quarter entries affect which portion of the 'Medicaid Aggregate' and 'Medicaid Aggregate - WOW only' amounts for a DY will be calculated as Actuals, and which will be calculated as Projected
C35: - Entry for each of these four fields is required for the workbook submission. If any field is not populated, you will receive an error and the document will not be uploaded to the system.
B37: State User enters information on the following tabs:
B39: C Report Tab
C41: Open Schedule C of the CMS 64 Expenditure Report. Under your state, locate expenditure data for the specific demonstration. From this location on the CMS 64 Expenditure Report, copy expenditure data cells for all DYs (active and non-active). On the C Report tab, paste the data into the correct cell/row. Repeat the copy and paste process for MAP Waivers section (Total Computable and Federal Share) and ADM Waivers section (if applicable). Verify that the pasted numbers are correctly aligned with the Waiver Name values.
B43: Total Adjustments tab
C45: When adjustments are relevant for a demonstration, enter the actual numbers of total contributions to the reported expenditures, per each MEG, for the reporting quarter. Add new reported adjustments to any existing numbers for previous quarters for the reported DY. Note: Any adjustments that reduce expenditures must be entered as negative numbers (for example, -$10,000).
B47: WW Spending Projected tab
C49: Enter projected annual expenditures for each MEG for the active DYs of a demonstration. For each reporting quarter, update the projected numbers so they reflect only future quarter projections. Please see the example for the MemMon Projected tab.
B51: MemMonth Actual tab
C53: For each MEG, calculate the actual number of member months for the reported quarter and add this number to the previously entered number for the same DY. For example, for Q3 reporting period, add Q3 member months to the existing number for the same MEG and DY and enter the result into the same cell.
B56: MemMonth Projected tab
C58: For each MEG, enter projected (future) annual member months for all active DYs of the demonstration. Adjust future DY numbers as needed. For the current DY, enter only the number that reflects future quarters. For example, for Q3 reporting, only enter the projected number for Q4. There should be no projected numbers for completed (actual) DYs.
B60: Summary TC tab
C61: In the Net Variance section, for each DY, enter estimated numbers in row '1115A Dual Demonstration Savings (state preliminary estimate)'.
C62: In the next row, '1115A Dual Demonstration Savings (OACT certified)' enter certified numbers.
C63: Both estimated and certified numbers must be negative, as dual demonstration savings numbers reduce the Net Variance amount.

Sheet DY Def
A3: Demonstration Years Definitions
A5: DY | B5: 1 | C5: 2 | D5: 3 | E5: 4 | F5: 5 | G5: 6 | H5: 7 | I5: 8 | J5: 9 | K5: 10 | L5: 11 | M5: 12 | N5: 13 | O5: 14 | P5: 15 | Q5: 16 | R5: 17 | S5: 18 | T5: 19 | U5: 20 | V5: 21 | W5: 22 | X5: 23 | Y5: 24 | Z5: 25 | AA5: 26 | AB5: 27 | AC5: 28 | AD5: 29 | AE5: 30 | AF5: 31
A6: Start Date | B6: 1997-07-01 | C6: 1998-07-01 | D6: 1999-07-01 | E6: 2000-07-01 | F6: 2001-07-01 | G6: 2002-07-01 | H6: 2003-07-01 | I6: 2004-07-01 | J6: 2005-07-01 | K6: 2006-07-01 | L6: 2007-07-01 | M6: 2008-07-01 | N6: 2009-07-01 | O6: 2010-07-01 | P6: 2011-07-01 | Q6: 2012-07-01 | R6: 2013-07-01 | S6: 2014-07-01 | T6: 2015-07-01 | U6: 2017-01-01 | V6: 2017-07-01 | W6: 2018-07-01 | X6: 2019-07-01 | Y6: 2020-07-01 | Z6: 2021-07-01 | AA6: 2022-01-01 | AB6: 2022-07-01 | AC6: 2023-07-01 | AD6: 2024-07-01 | AE6: 2025-07-01 | AF6: 2026-07-01
A7: End Date | B7: 1998-06-30 | C7: 1999-06-30 | D7: 2000-06-30 | E7: 2001-06-30 | F7: 2002-06-30 | G7: 2003-06-30 | H7: 2004-06-30 | I7: 2005-06-30 | J7: 2006-06-30 | K7: 2007-06-30 | L7: 2008-06-30 | M7: 2009-06-30 | N7: 2010-06-30 | O7: 2011-06-30 | P7: 2012-06-30 | Q7: 2013-06-30 | R7: 2014-06-30 | S7: 2015-06-30 | T7: 2016-06-30 | U7: 2017-06-30 | V7: 2018-06-30 | W7: 2019-06-30 | X7: 2020-06-30 | Y7: 2021-06-30 | Z7: 2021-12-31 | AA7: 2022-06-30 | AB7: 2023-06-30 | AC7: 2024-06-30 | AD7: 2025-06-30 | AE7: 2026-06-30 | AF7: 2026-12-31

Sheet MEG Def
H1: Enter any general comments / notes:
B3: MEG Definitions
B5: MEG Name | C5: MEG Description | E5: WOW | F5: WW | G5: Per Capita or Aggregate | H5: Savings Phase-Down | I5: Expenditures Subject to Cap? | J5: Hypothetical Populations Included in Calculations? | K5: Start DY | L5: Start Date | M5: End DY | N5: End Date
B6: Medicaid Per Capita
A7: 1 | B7: TANF Adults 0-123 | C7: Families with dependent children and foster children with incomes less than 123 percent of the FPL, including individuals with incomes below the pre-July 1, 2008, TANF income thresholds. | E7: Yes | F7: Yes | G7: Per Capita | H7: No Phase-Down | I7: No | J7: N/A | K7: 1 | L7: =IF(K7<>"",(LOOKUP(K7,'DY Def'!$A$5:$AE$5,'DY Def'!$A$6:$AE$6)),"") -> 1997-07-01 | M7: 31 | N7: =IF(M7<>"",(LOOKUP(M7,'DY Def'!$A$5:$AF$5,'DY Def'!$A$7:$AF$7)),"") -> 2026-12-31
A8: 2 | B8: Medicaid Children | C8: Children up to 21 years of age. | E8: Yes | F8: Yes | G8: Per Capita | H8: No Phase-Down | I8: No | J8: N/A | K8: 1 | L8: =IF(K8<>"",(LOOKUP(K8,'DY Def'!$A$5:$AE$5,'DY Def'!$A$6:$AE$6)),"") -> 1997-07-01 | M8: 31 | N8: =IF(M8<>"",(LOOKUP(M8,'DY Def'!$A$5:$AF$5,'DY Def'!$A$7:$AF$7)),"") -> 2026-12-31
A9: 3 | B9: Medically Needy Adults | C9: Families with dependent children, or foster children, whose gross income and resources exceed 116 percent of the FPL but who incur medical expenses such that their income is equal to or less than 116 percent FPL. | E9: Yes | F9: Yes | G9: Per Capita | H9: No Phase-Down | I9: No | J9: N/A | K9: 1 | L9: =IF(K9<>"",(LOOKUP(K9,'DY Def'!$A$5:$AE$5,'DY Def'!$A$6:$AE$6)),"") -> 1997-07-01 | M9: 31 | N9: =IF(M9<>"",(LOOKUP(M9,'DY Def'!$A$5:$AF$5,'DY Def'!$A$7:$AF$7)),"") -> 2026-12-31
A10: 4 | B10: Medically Needy Children | C10: Families with dependent children, or foster children, whose gross income and resources exceed 116 percent of the FPL but who incur medical expenses such that their income is equal to or less than 116 percent FPL. | E10: Yes | F10: Yes | G10: Per Capita | H10: No Phase-Down | I10: No | J10: N/A | K10: 1 | L10: =IF(K10<>"",(LOOKUP(K10,'DY Def'!$A$5:$AE$5,'DY Def'!$A$6:$AE$6)),"") -> 1997-07-01 | M10: 31 | N10: =IF(M10<>"",(LOOKUP(M10,'DY Def'!$A$5:$AF$5,'DY Def'!$A$7:$AF$7)),"") -> 2026-12-31
A11: 5 | B11: SOBRA Adults | C11: Pregnant women with incomes above the pre-July 1, 2008, standard up to and including 250 of the FPL who are not enrolled in the TANF group. | E11: Yes | F11: Yes | G11: Per Capita | H11: No Phase-Down | I11: No | J11: N/A | K11: 1 | L11: =IF(K11<>"",(LOOKUP(K11,'DY Def'!$A$5:$AE$5,'DY Def'!$A$6:$AE$6)),"") -> 1997-07-01 | M11: 31 | N11: =IF(M11<>"",(LOOKUP(M11,'DY Def'!$A$5:$AF$5,'DY Def'!$A$7:$AF$7)),"") -> 2026-12-31
A12: 6 | B12: SSI/BD Adults | C12: Individuals whose Medicaid eligibility derives from their status as blind or disabled and who are not entitled to Medicare. | E12: Yes | F12: Yes | G12: Per Capita | H12: No Phase-Down | I12: No | J12: N/A | K12: 1 | L12: =IF(K12<>"",(LOOKUP(K12,'DY Def'!$A$5:$AE$5,'DY Def'!$A$6:$AE$6)),"") -> 1997-07-01 | M12: 31 | N12: =IF(M12<>"",(LOOKUP(M12,'DY Def'!$A$5:$AF$5,'DY Def'!$A$7:$AF$7)),"") -> 2026-12-31
A13: 7 | B13: SSI/BD Children | C13: Individuals whose Medicaid eligibility derives from their status as blind or disabled and who are not entitled to Medicare. | E13: Yes | F13: Yes | G13: Per Capita | H13: No Phase-Down | I13: No | J13: N/A | K13: 1 | L13: =IF(K13<>"",(LOOKUP(K13,'DY Def'!$A$5:$AE$5,'DY Def'!$A$6:$AE$6)),"") -> 1997-07-01 | M13: 31 | N13: =IF(M13<>"",(LOOKUP(M13,'DY Def'!$A$5:$AF$5,'DY Def'!$A$7:$AF$7)),"") -> 2026-12-31
M14: 31 | N14: =IF(M14<>"",(LOOKUP(M14,'DY Def'!$A$5:$AF$5,'DY Def'!$A$7:$AF$7)),"") -> 2026-12-31
B15: Medicaid Per Capita - WOW only | M15: 31 | N15: =IF(M15<>"",(LOOKUP(M15,'DY Def'!$A$5:$AF$5,'DY Def'!$A$7:$AF$7)),"") -> 2026-12-31
H16: N/A | J16: N/A | L16: =IF(K16<>"",(LOOKUP(K16,'DY Def'!$A$5:$AE$5,'DY Def'!$A$6:$AE$6)),"") ->  | M16: 31 | N16: =IF(M16<>"",(LOOKUP(M16,'DY Def'!$A$5:$AF$5,'DY Def'!$A$7:$AF$7)),"") -> 2026-12-31
H17: N/A | J17: N/A | L17: =IF(K17<>"",(LOOKUP(K17,'DY Def'!$A$5:$AE$5,'DY Def'!$A$6:$AE$6)),"") ->  | M17: 31 | N17: =IF(M17<>"",(LOOKUP(M17,'DY Def'!$A$5:$AF$5,'DY Def'!$A$7:$AF$7)),"") -> 2026-12-31
H18: N/A | J18: N/A | L18: =IF(K18<>"",(LOOKUP(K18,'DY Def'!$A$5:$AE$5,'DY Def'!$A$6:$AE$6)),"") ->  | M18: 31 | N18: =IF(M18<>"",(LOOKUP(M18,'DY Def'!$A$5:$AF$5,'DY Def'!$A$7:$AF$7)),"") -> 2026-12-31
H19: N/A | J19: N/A | L19: =IF(K19<>"",(LOOKUP(K19,'DY Def'!$A$5:$AE$5,'DY Def'!$A$6:$AE$6)),"") ->  | M19: 31 | N19: =IF(M19<>"",(LOOKUP(M19,'DY Def'!$A$5:$AF$5,'DY Def'!$A$7:$AF$7)),"") -> 2026-12-31
H20: N/A | J20: N/A | L20: =IF(K20<>"",(LOOKUP(K20,'DY Def'!$A$5:$AE$5,'DY Def'!$A$6:$AE$6)),"") ->  | M20: 31 | N20: =IF(M20<>"",(LOOKUP(M20,'DY Def'!$A$5:$AF$5,'DY Def'!$A$7:$AF$7)),"") -> 2026-12-31
M21: 31 | N21: =IF(M21<>"",(LOOKUP(M21,'DY Def'!$A$5:$AF$5,'DY Def'!$A$7:$AF$7)),"") -> 2026-12-31
B22: Medicaid Aggregate | M22: 31 | N22: =IF(M22<>"",(LOOKUP(M22,'DY Def'!$A$5:$AF$5,'DY Def'!$A$7:$AF$7)),"") -> 2026-12-31
H23: N/A | J23: N/A | L23: =IF(K23<>"",(LOOKUP(K23,'DY Def'!$A$5:$AE$5,'DY Def'!$A$6:$AE$6)),"") ->  | M23: 31 | N23: =IF(M23<>"",(LOOKUP(M23,'DY Def'!$A$5:$AF$5,'DY Def'!$A$7:$AF$7)),"") -> 2026-12-31
H24: N/A | J24: N/A | L24: =IF(K24<>"",(LOOKUP(K24,'DY Def'!$A$5:$AE$5,'DY Def'!$A$6:$AE$6)),"") ->  | M24: 31 | N24: =IF(M24<>"",(LOOKUP(M24,'DY Def'!$A$5:$AF$5,'DY Def'!$A$7:$AF$7)),"") -> 2026-12-31
H25: N/A | J25: N/A | L25: =IF(K25<>"",(LOOKUP(K25,'DY Def'!$A$5:$AE$5,'DY Def'!$A$6:$AE$6)),"") ->  | M25: 31 | N25: =IF(M25<>"",(LOOKUP(M25,'DY Def'!$A$5:$AF$5,'DY Def'!$A$7:$AF$7)),"") -> 2026-12-31
H26: N/A | J26: N/A | L26: =IF(K26<>"",(LOOKUP(K26,'DY Def'!$A$5:$AE$5,'DY Def'!$A$6:$AE$6)),"") ->  | M26: 31 | N26: =IF(M26<>"",(LOOKUP(M26,'DY Def'!$A$5:$AF$5,'DY Def'!$A$7:$AF$7)),"") -> 2026-12-31
H27: N/A | J27: N/A | L27: =IF(K27<>"",(LOOKUP(K27,'DY Def'!$A$5:$AE$5,'DY Def'!$A$6:$AE$6)),"") ->  | M27: 31 | N27: =IF(M27<>"",(LOOKUP(M27,'DY Def'!$A$5:$AF$5,'DY Def'!$A$7:$AF$7)),"") -> 2026-12-31
M28: 31 | N28: =IF(M28<>"",(LOOKUP(M28,'DY Def'!$A$5:$AF$5,'DY Def'!$A$7:$AF$7)),"") -> 2026-12-31
B29: Medicaid Aggregate - WOW only | M29: 31 | N29: =IF(M29<>"",(LOOKUP(M29,'DY Def'!$A$5:$AF$5,'DY Def'!$A$7:$AF$7)),"") -> 2026-12-31
H30: N/A | J30: N/A | L30: =IF(K30<>"",(LOOKUP(K30,'DY Def'!$A$5:$AE$5,'DY Def'!$A$6:$AE$6)),"") ->  | M30: 31 | N30: =IF(M30<>"",(LOOKUP(M30,'DY Def'!$A$5:$AF$5,'DY Def'!$A$7:$AF$7)),"") -> 2026-12-31
H31: N/A | J31: N/A | L31: =IF(K31<>"",(LOOKUP(K31,'DY Def'!$A$5:$AE$5,'DY Def'!$A$6:$AE$6)),"") ->  | M31: 31 | N31: =IF(M31<>"",(LOOKUP(M31,'DY Def'!$A$5:$AF$5,'DY Def'!$A$7:$AF$7)),"") -> 2026-12-31
H32: N/A | J32: N/A | L32: =IF(K32<>"",(LOOKUP(K32,'DY Def'!$A$5:$AE$5,'DY Def'!$A$6:$AE$6)),"") ->  | M32: 31 | N32: =IF(M32<>"",(LOOKUP(M32,'DY Def'!$A$5:$AF$5,'DY Def'!$A$7:$AF$7)),"") -> 2026-12-31
H33: N/A | J33: N/A | L33: =IF(K33<>"",(LOOKUP(K33,'DY Def'!$A$5:$AE$5,'DY Def'!$A$6:$AE$6)),"") ->  | M33: 31 | N33: =IF(M33<>"",(LOOKUP(M33,'DY Def'!$A$5:$AF$5,'DY Def'!$A$7:$AF$7)),"") -> 2026-12-31
H34: N/A | J34: N/A | L34: =IF(K34<>"",(LOOKUP(K34,'DY Def'!$A$5:$AE$5,'DY Def'!$A$6:$AE$6)),"") ->  | M34: 31 | N34: =IF(M34<>"",(LOOKUP(M34,'DY Def'!$A$5:$AF$5,'DY Def'!$A$7:$AF$7)),"") -> 2026-12-31
M35: 31 | N35: =IF(M35<>"",(LOOKUP(M35,'DY Def'!$A$5:$AF$5,'DY Def'!$A$7:$AF$7)),"") -> 2026-12-31
B36: Medicaid Aggregate - WW only | M36: 31 | N36: =IF(M36<>"",(LOOKUP(M36,'DY Def'!$A$5:$AF$5,'DY Def'!$A$7:$AF$7)),"") -> 2026-12-31
A37: 1 | B37: HealthChoice Diabetes Prevention Program (DPP) Pilot Program | C37: Expenditures for a National Diabetes Prevention Program for individuals 18-64 who have prediabetes or are at high risk of developing type 2 diabetes. | E37: No | F37: Yes | G37: Aggregate | H37: N/A | I37: No | J37: N/A | K37: 23 | L37: =IF(K37<>"",(LOOKUP(K37,'DY Def'!$A$5:$AE$5,'DY Def'!$A$6:$AE$6)),"") -> 2019-07-01 | M37: 31 | N37: =IF(M37<>"",(LOOKUP(M37,'DY Def'!$A$5:$AF$5,'DY Def'!$A$7:$AF$7)),"") -> 2026-12-31
A38: 2 | B38: Adult Dental Program | C38: Expenditures for a limited dental benefit for full dually eligible adults (21-64) | E38: No | F38: Yes | G38: Aggregate | H38: N/A | I38: No | J38: N/A | K38: 21 | L38: 2019-04-01 | M38: 31 | N38: =IF(M38<>"",(LOOKUP(M38,'DY Def'!$A$5:$AF$5,'DY Def'!$A$7:$AF$7)),"") -> 2026-12-31
A39: 3 | B39: Increased Community Services (ICS) | C39: Medicaid eligible individuals over the age of 18 residing in a nursing home at the time initially determined eligible for ICS, with an income level at or below 300 percent of the Social Security Income Federal Benefit Rate (SSI FBR). | E39: No | F39: Yes | G39: Aggregate | H39: N/A | I39: No | J39: N/A | K39: 21 | L39: =IF(K39<>"",(LOOKUP(K39,'DY Def'!$A$5:$AE$5,'DY Def'!$A$6:$AE$6)),"") -> 2017-07-01 | M39: 31 | N39: =IF(M39<>"",(LOOKUP(M39,'DY Def'!$A$5:$AF$5,'DY Def'!$A$7:$AF$7)),"") -> 2026-12-31
A40: 4 | B40: Breast and Cervical Cancer Treatment Program (BCCTP) | C40: Demonstration Population 13 [Women with Breast and Cervical Cancer]. Expenditures for women with breast and cervical cancer, with incomes above 133 percent and up to 250 percent of the FPL who were enrolled in the Breast and Cervical Cancer Treatment Act Program as of December 31, 2013. | E40: No | F40: Yes | G40: Aggregate | H40: N/A | I40: No | J40: N/A | K40: 21 | L40: 2014-01-01 | M40: 31 | N40: =IF(M40<>"",(LOOKUP(M40,'DY Def'!$A$5:$AF$5,'DY Def'!$A$7:$AF$7)),"") -> 2026-12-31
A41: 5 | B41: Presumptive Eligibility for Pregnant Women (PEPW) | C41: Presumptively eligible pregnant women with incomes up to 250 percent of the FPL who receive full Medicaid state plan benefits through this demonstration. | E41: No | F41: Yes | G41: Aggregate | H41: N/A | I41: No | J41: N/A | K41: 21 | L41: =IF(K41<>"",(LOOKUP(K41,'DY Def'!$A$5:$AE$5,'DY Def'!$A$6:$AE$6)),"") -> 2017-07-01 | M41: 31 | N41: =IF(M41<>"",(LOOKUP(M41,'DY Def'!$A$5:$AF$5,'DY Def'!$A$7:$AF$7)),"") -> 2026-12-31
A42: 6 | B42: Home Visiting Services Pilot Program | C42: Expenditures for evidence-based home visiting services to promote enhanced health outcomes, whole person care, and community integration for highrisk pregnant women and children up to 3 years old. | E42: No | F42: Yes | G42: Aggregate | H42: N/A | I42: No | J42: N/A | K42: 21 | L42: =IF(K42<>"",(LOOKUP(K42,'DY Def'!$A$5:$AE$5,'DY Def'!$A$6:$AE$6)),"") -> 2017-07-01 | M42: 31 | N42: =IF(M42<>"",(LOOKUP(M42,'DY Def'!$A$5:$AF$5,'DY Def'!$A$7:$AF$7)),"") -> 2026-12-31
A43: 7 | B43: Assistance in Community Integration Services (ACIS) Pilot Program | C43: Expenditures for the Assistance in Community Integration Services (ACIS) Pilot Program | E43: No | F43: Yes | G43: Aggregate | H43: N/A | I43: No | J43: N/A | K43: 21 | L43: =IF(K43<>"",(LOOKUP(K43,'DY Def'!$A$5:$AE$5,'DY Def'!$A$6:$AE$6)),"") -> 2017-07-01 | M43: 29 | N43: 2025-01-12
A44: 8 | B44: Maternal Opioid Misuse (MOM) Model pilot program | C44: Expenditures to establish a MOM care coordination model. | E44: No | F44: Yes | G44: Aggregate | H44: N/A | I44: No | J44: N/A | K44: 27 | L44: =IF(K44<>"",(LOOKUP(K44,'DY Def'!$A$5:$AE$5,'DY Def'!$A$6:$AE$6)),"") -> 2022-07-01 | M44: 31 | N44: =IF(M44<>"",(LOOKUP(M44,'DY Def'!$A$5:$AF$5,'DY Def'!$A$7:$AF$7)),"") -> 2026-12-31
A45: 9 | B45: Collaborative Care Model (CoCM) Pilot Program | C45: Expenditures to establish and implement a Collaborative Care Model (CoCM) pilot program that integrates primary and behavioral health services for a limited number of HealthChoice beneficiaries. | E45: No | F45: Yes | G45: Aggregate | H45: N/A | I45: No | J45: N/A | K45: 24 | L45: =IF(K45<>"",(LOOKUP(K45,'DY Def'!$A$5:$AE$5,'DY Def'!$A$6:$AE$6)),"") -> 2020-07-01 | M45: 31 | N45: =IF(M45<>"",(LOOKUP(M45,'DY Def'!$A$5:$AF$5,'DY Def'!$A$7:$AF$7)),"") -> 2026-12-31
A46: 10 | B46: Medicaid Alternative Destination Transport Pilot Program | C46: Medicaid beneficiaries who receive emergency ground transportation (EMS) to an alternative destination (AD). | E46: No | F46: Yes | G46: Aggregate | H46: N/A | I46: No | J46: N/A | K46: 26 | L46: =IF(K46<>"",(LOOKUP(K46,'DY Def'!$A$5:$AE$5,'DY Def'!$A$6:$AE$6)),"") -> 2022-01-01 | M46: 31 | N46: =IF(M46<>"",(LOOKUP(M46,'DY Def'!$A$5:$AF$5,'DY Def'!$A$7:$AF$7)),"") -> 2026-12-31
N47: =IF(M47<>"",(LOOKUP(M47,'DY Def'!$A$5:$AF$5,'DY Def'!$A$7:$AF$7)),"") -> 
B48: Hypothetical 1 Per Capita | J48: Hypothetical Test 1 | N48: =IF(M48<>"",(LOOKUP(M48,'DY Def'!$A$5:$AF$5,'DY Def'!$A$7:$AF$7)),"") -> 
A49: 1 | B49: Residential Treatment for Individuals with Serious Mental Illness | C49: Expenditures for SMI treatment in IMDs | E49: Yes | F49: Yes | G49: Per Capita | H49: N/A | I49: No | J49: Yes | K49: 26 | L49: =IF(K49<>"",(LOOKUP(K49,'DY Def'!$A$5:$AE$5,'DY Def'!$A$6:$AE$6)),"") -> 2022-01-01 | M49: 31 | N49: =IF(M49<>"",(LOOKUP(M49,'DY Def'!$A$5:$AF$5,'DY Def'!$A$7:$AF$7)),"") -> 2026-12-31
H50: N/A | L50: =IF(K50<>"",(LOOKUP(K50,'DY Def'!$A$5:$AE$5,'DY Def'!$A$6:$AE$6)),"") ->  | N50: =IF(M50<>"",(LOOKUP(M50,'DY Def'!$A$5:$AF$5,'DY Def'!$A$7:$AF$7)),"") -> 
H51: N/A | L51: =IF(K51<>"",(LOOKUP(K51,'DY Def'!$A$5:$AE$5,'DY Def'!$A$6:$AE$6)),"") ->  | N51: =IF(M51<>"",(LOOKUP(M51,'DY Def'!$A$5:$AF$5,'DY Def'!$A$7:$AF$7)),"") -> 
N52: =IF(M52<>"",(LOOKUP(M52,'DY Def'!$A$5:$AF$5,'DY Def'!$A$7:$AF$7)),"") -> 
B53: Hypothetical 1 Aggregate | N53: =IF(M53<>"",(LOOKUP(M53,'DY Def'!$A$5:$AF$5,'DY Def'!$A$7:$AF$7)),"") -> 
H54: N/A | L54: =IF(K54<>"",(LOOKUP(K54,'DY Def'!$A$5:$AE$5,'DY Def'!$A$6:$AE$6)),"") ->  | N54: =IF(M54<>"",(LOOKUP(M54,'DY Def'!$A$5:$AF$5,'DY Def'!$A$7:$AF$7)),"") -> 
H55: N/A | L55: =IF(K55<>"",(LOOKUP(K55,'DY Def'!$A$5:$AE$5,'DY Def'!$A$6:$AE$6)),"") ->  | N55: =IF(M55<>"",(LOOKUP(M55,'DY Def'!$A$5:$AF$5,'DY Def'!$A$7:$AF$7)),"") -> 
H56: N/A | L56: =IF(K56<>"",(LOOKUP(K56,'DY Def'!$A$5:$AE$5,'DY Def'!$A$6:$AE$6)),"") ->  | N56: =IF(M56<>"",(LOOKUP(M56,'DY Def'!$A$5:$AF$5,'DY Def'!$A$7:$AF$7)),"") -> 
N57: =IF(M57<>"",(LOOKUP(M57,'DY Def'!$A$5:$AF$5,'DY Def'!$A$7:$AF$7)),"") -> 
B58: Hypothetical 2 Per Capita | J58: Hypothetical Test 2 | N58: =IF(M58<>"",(LOOKUP(M58,'DY Def'!$A$5:$AF$5,'DY Def'!$A$7:$AF$7)),"") -> 
A59: 1 | B59: New Adult Group | C59: Childless adults and non-custodial parents ages 19-64 with income up to 133 percent of the FPL as defined in section 1902(a)(10)(A)(i)(VIII) of the Act and 42 CFR 435.119, pursuant to the approved state plan | E59: Yes | F59: Yes | G59: Per Capita | H59: N/A | I59: No | J59: Yes | K59: 1 | L59: =IF(K59<>"",(LOOKUP(K59,'DY Def'!$A$5:$AE$5,'DY Def'!$A$6:$AE$6)),"") -> 1997-07-01 | M59: 31 | N59: =IF(M59<>"",(LOOKUP(M59,'DY Def'!$A$5:$AF$5,'DY Def'!$A$7:$AF$7)),"") -> 2026-12-31
H60: N/A | L60: =IF(K60<>"",(LOOKUP(K60,'DY Def'!$A$5:$AE$5,'DY Def'!$A$6:$AE$6)),"") ->  | N60: =IF(M60<>"",(LOOKUP(M60,'DY Def'!$A$5:$AF$5,'DY Def'!$A$7:$AF$7)),"") -> 
H61: N/A | L61: =IF(K61<>"",(LOOKUP(K61,'DY Def'!$A$5:$AE$5,'DY Def'!$A$6:$AE$6)),"") ->  | N61: =IF(M61<>"",(LOOKUP(M61,'DY Def'!$A$5:$AF$5,'DY Def'!$A$7:$AF$7)),"") -> 
N62: =IF(M62<>"",(LOOKUP(M62,'DY Def'!$A$5:$AF$5,'DY Def'!$A$7:$AF$7)),"") -> 
B63: Hypothetical 2 Aggregate | N63: =IF(M63<>"",(LOOKUP(M63,'DY Def'!$A$5:$AF$5,'DY Def'!$A$7:$AF$7)),"") -> 
H64: N/A | L64: =IF(K64<>"",(LOOKUP(K64,'DY Def'!$A$5:$AE$5,'DY Def'!$A$6:$AE$6)),"") ->  | N64: =IF(M64<>"",(LOOKUP(M64,'DY Def'!$A$5:$AF$5,'DY Def'!$A$7:$AF$7)),"") -> 
H65: N/A | L65: =IF(K65<>"",(LOOKUP(K65,'DY Def'!$A$5:$AE$5,'DY Def'!$A$6:$AE$6)),"") ->  | N65: =IF(M65<>"",(LOOKUP(M65,'DY Def'!$A$5:$AF$5,'DY Def'!$A$7:$AF$7)),"") -> 
H66: N/A | L66: =IF(K66<>"",(LOOKUP(K66,'DY Def'!$A$5:$AE$5,'DY Def'!$A$6:$AE$6)),"") ->  | N66: =IF(M66<>"",(LOOKUP(M66,'DY Def'!$A$5:$AF$5,'DY Def'!$A$7:$AF$7)),"") -> 
N67: =IF(M67<>"",(LOOKUP(M67,'DY Def'!$A$5:$AF$5,'DY Def'!$A$7:$AF$7)),"") -> 
B68: Hypothetical 3 Per Capita | J68: Hypothetical Test 3 | N68: =IF(M68<>"",(LOOKUP(M68,'DY Def'!$A$5:$AF$5,'DY Def'!$A$7:$AF$7)),"") -> 
A69: 1 | B69: Residential Treatment for Individuals w/ SUD | C69: Expenditures for SUD treatment in IMDs. | E69: Yes | F69: Yes | G69: Per Capita | H69: N/A | I69: No | J69: Yes | K69: 21 | L69: =IF(K69<>"",(LOOKUP(K69,'DY Def'!$A$5:$AE$5,'DY Def'!$A$6:$AE$6)),"") -> 2017-07-01 | M69: 31 | N69: =IF(M69<>"",(LOOKUP(M69,'DY Def'!$A$5:$AF$5,'DY Def'!$A$7:$AF$7)),"") -> 2026-12-31
H70: N/A | L70: =IF(K70<>"",(LOOKUP(K70,'DY Def'!$A$5:$AE$5,'DY Def'!$A$6:$AE$6)),"") ->  | N70: =IF(M70<>"",(LOOKUP(M70,'DY Def'!$A$5:$AF$5,'DY Def'!$A$7:$AF$7)),"") -> 
H71: N/A | L71: =IF(K71<>"",(LOOKUP(K71,'DY Def'!$A$5:$AE$5,'DY Def'!$A$6:$AE$6)),"") ->  | N71: =IF(M71<>"",(LOOKUP(M71,'DY Def'!$A$5:$AF$5,'DY Def'!$A$7:$AF$7)),"") -> 
N72: =IF(M72<>"",(LOOKUP(M72,'DY Def'!$A$5:$AF$5,'DY Def'!$A$7:$AF$7)),"") -> 
B73: Hypothetical 3 Aggregate | N73: =IF(M73<>"",(LOOKUP(M73,'DY Def'!$A$5:$AF$5,'DY Def'!$A$7:$AF$7)),"") -> 
H74: N/A | L74: =IF(K74<>"",(LOOKUP(K74,'DY Def'!$A$5:$AE$5,'DY Def'!$A$6:$AE$6)),"") ->  | N74: =IF(M74<>"",(LOOKUP(M74,'DY Def'!$A$5:$AF$5,'DY Def'!$A$7:$AF$7)),"") -> 
H75: N/A | L75: =IF(K75<>"",(LOOKUP(K75,'DY Def'!$A$5:$AE$5,'DY Def'!$A$6:$AE$6)),"") ->  | N75: =IF(M75<>"",(LOOKUP(M75,'DY Def'!$A$5:$AF$5,'DY Def'!$A$7:$AF$7)),"") -> 
H76: N/A | L76: =IF(K76<>"",(LOOKUP(K76,'DY Def'!$A$5:$AE$5,'DY Def'!$A$6:$AE$6)),"") ->  | N76: =IF(M76<>"",(LOOKUP(M76,'DY Def'!$A$5:$AF$5,'DY Def'!$A$7:$AF$7)),"") -> 
N77: =IF(M77<>"",(LOOKUP(M77,'DY Def'!$A$5:$AF$5,'DY Def'!$A$7:$AF$7)),"") -> 
B78: Hypothetical 4 Per Capita | J78: Hypothetical Test 4 | N78: =IF(M78<>"",(LOOKUP(M78,'DY Def'!$A$5:$AF$5,'DY Def'!$A$7:$AF$7)),"") -> 
A79: 1 | B79: Dental for Former Foster Care Youth | C79: Expenditures for enhanced dental services for former foster care youth up to 26 years old. | E79: Yes | F79: Yes | G79: Per Capita | H79: N/A | I79: No | J79: Yes | K79: 20 | L79: =IF(K79<>"",(LOOKUP(K79,'DY Def'!$A$5:$AE$5,'DY Def'!$A$6:$AE$6)),"") -> 2017-01-01 | M79: 31 | N79: =IF(M79<>"",(LOOKUP(M79,'DY Def'!$A$5:$AF$5,'DY Def'!$A$7:$AF$7)),"") -> 2026-12-31
H80: N/A | L80: =IF(K80<>"",(LOOKUP(K80,'DY Def'!$A$5:$AE$5,'DY Def'!$A$6:$AE$6)),"") ->  | N80: =IF(M80<>"",(LOOKUP(M80,'DY Def'!$A$5:$AF$5,'DY Def'!$A$7:$AF$7)),"") -> 
H81: N/A | L81: =IF(K81<>"",(LOOKUP(K81,'DY Def'!$A$5:$AE$5,'DY Def'!$A$6:$AE$6)),"") ->  | N81: =IF(M81<>"",(LOOKUP(M81,'DY Def'!$A$5:$AF$5,'DY Def'!$A$7:$AF$7)),"") -> 
L82: =IF(K82<>"",(LOOKUP(K82,'DY Def'!$A$5:$AE$5,'DY Def'!$A$6:$AE$6)),"") ->  | N82: =IF(M82<>"",(LOOKUP(M82,'DY Def'!$A$5:$AF$5,'DY Def'!$A$7:$AF$7)),"") -> 
B83: Hypothetical 4 Aggregate | L83: =IF(K83<>"",(LOOKUP(K83,'DY Def'!$A$5:$AE$5,'DY Def'!$A$6:$AE$6)),"") ->  | N83: =IF(M83<>"",(LOOKUP(M83,'DY Def'!$A$5:$AF$5,'DY Def'!$A$7:$AF$7)),"") -> 
H84: N/A | L84: =IF(K84<>"",(LOOKUP(K84,'DY Def'!$A$5:$AE$5,'DY Def'!$A$6:$AE$6)),"") ->  | N84: =IF(M84<>"",(LOOKUP(M84,'DY Def'!$A$5:$AF$5,'DY Def'!$A$7:$AF$7)),"") -> 
H85: N/A | L85: =IF(K85<>"",(LOOKUP(K85,'DY Def'!$A$5:$AE$5,'DY Def'!$A$6:$AE$6)),"") ->  | N85: =IF(M85<>"",(LOOKUP(M85,'DY Def'!$A$5:$AF$5,'DY Def'!$A$7:$AF$7)),"") -> 
H86: N/A | L86: =IF(K86<>"",(LOOKUP(K86,'DY Def'!$A$5:$AE$5,'DY Def'!$A$6:$AE$6)),"") ->  | N86: =IF(M86<>"",(LOOKUP(M86,'DY Def'!$A$5:$AF$5,'DY Def'!$A$7:$AF$7)),"") -> 
L87: =IF(K87<>"",(LOOKUP(K87,'DY Def'!$A$5:$AE$5,'DY Def'!$A$6:$AE$6)),"") ->  | N87: =IF(M87<>"",(LOOKUP(M87,'DY Def'!$A$5:$AF$5,'DY Def'!$A$7:$AF$7)),"") -> 
B88: Hypothetical 5 Per Capita | L88: =IF(K88<>"",(LOOKUP(K88,'DY Def'!$A$5:$AE$5,'DY Def'!$A$6:$AE$6)),"") ->  | N88: =IF(M88<>"",(LOOKUP(M88,'DY Def'!$A$5:$AF$5,'DY Def'!$A$7:$AF$7)),"") -> 
A89: 1 | B89: ACIS Hypothetical | C89: Expenditures for theACIS Pilot as described in STC 4.9. Individuals who met the needs-based criteria for a set of HCBS services. | E89: Yes | F89: Yes | G89: Per Capita | H89: N/A | I89: No | J89: Yes | K89: 29 | L89: 2025-01-13 | M89: 31 | N89: =IF(M89<>"",(LOOKUP(M89,'DY Def'!$A$5:$AF$5,'DY Def'!$A$7:$AF$7)),"") -> 2026-12-31
L90: =IF(K90<>"",(LOOKUP(K90,'DY Def'!$A$5:$AE$5,'DY Def'!$A$6:$AE$6)),"") ->  | N90: =IF(M90<>"",(LOOKUP(M90,'DY Def'!$A$5:$AF$5,'DY Def'!$A$7:$AF$7)),"") -> 
L91: =IF(K91<>"",(LOOKUP(K91,'DY Def'!$A$5:$AE$5,'DY Def'!$A$6:$AE$6)),"") ->  | N91: =IF(M91<>"",(LOOKUP(M91,'DY Def'!$A$5:$AF$5,'DY Def'!$A$7:$AF$7)),"") -> 
L92: =IF(K92<>"",(LOOKUP(K92,'DY Def'!$A$5:$AE$5,'DY Def'!$A$6:$AE$6)),"") ->  | N92: =IF(M92<>"",(LOOKUP(M92,'DY Def'!$A$5:$AF$5,'DY Def'!$A$7:$AF$7)),"") -> 
B93: Hypothetical 5 Aggregate | L93: =IF(K93<>"",(LOOKUP(K93,'DY Def'!$A$5:$AE$5,'DY Def'!$A$6:$AE$6)),"") ->  | N93: =IF(M93<>"",(LOOKUP(M93,'DY Def'!$A$5:$AF$5,'DY Def'!$A$7:$AF$7)),"") -> 
L94: =IF(K94<>"",(LOOKUP(K94,'DY Def'!$A$5:$AE$5,'DY Def'!$A$6:$AE$6)),"") ->  | N94: =IF(M94<>"",(LOOKUP(M94,'DY Def'!$A$5:$AF$5,'DY Def'!$A$7:$AF$7)),"") -> 
L95: =IF(K95<>"",(LOOKUP(K95,'DY Def'!$A$5:$AE$5,'DY Def'!$A$6:$AE$6)),"") ->  | N95: =IF(M95<>"",(LOOKUP(M95,'DY Def'!$A$5:$AF$5,'DY Def'!$A$7:$AF$7)),"") -> 
L96: =IF(K96<>"",(LOOKUP(K96,'DY Def'!$A$5:$AE$5,'DY Def'!$A$6:$AE$6)),"") ->  | N96: =IF(M96<>"",(LOOKUP(M96,'DY Def'!$A$5:$AF$5,'DY Def'!$A$7:$AF$7)),"") -> 
L97: =IF(K97<>"",(LOOKUP(K97,'DY Def'!$A$5:$AE$5,'DY Def'!$A$6:$AE$6)),"") ->  | N97: =IF(M97<>"",(LOOKUP(M97,'DY Def'!$A$5:$AF$5,'DY Def'!$A$7:$AF$7)),"") -> 
B98: Hypothetical 6 Per Capita | L98: =IF(K98<>"",(LOOKUP(K98,'DY Def'!$A$5:$AE$5,'DY Def'!$A$6:$AE$6)),"") ->  | N98: =IF(M98<>"",(LOOKUP(M98,'DY Def'!$A$5:$AF$5,'DY Def'!$A$7:$AF$7)),"") -> 
A99: 1 | B99: Reentry | C99: Expenditures for reentry services that are otherwise covered under Medicaid provided to qualifying beneficiaries for up to 90 days immediately prior to release from participating facilities. | E99: Yes | F99: Yes | G99: Per Capita | H99: N/A | I99: Yes | J99: Yes | K99: 29 | L99: 2025-01-13 | M99: 31 | N99: =IF(M99<>"",(LOOKUP(M99,'DY Def'!$A$5:$AF$5,'DY Def'!$A$7:$AF$7)),"") -> 2026-12-31
L100: =IF(K100<>"",(LOOKUP(K100,'DY Def'!$A$5:$AE$5,'DY Def'!$A$6:$AE$6)),"") ->  | N100: =IF(M100<>"",(LOOKUP(M100,'DY Def'!$A$5:$AF$5,'DY Def'!$A$7:$AF$7)),"") -> 
L101: =IF(K101<>"",(LOOKUP(K101,'DY Def'!$A$5:$AE$5,'DY Def'!$A$6:$AE$6)),"") ->  | N101: =IF(M101<>"",(LOOKUP(M101,'DY Def'!$A$5:$AF$5,'DY Def'!$A$7:$AF$7)),"") -> 
L102: =IF(K102<>"",(LOOKUP(K102,'DY Def'!$A$5:$AE$5,'DY Def'!$A$6:$AE$6)),"") ->  | N102: =IF(M102<>"",(LOOKUP(M102,'DY Def'!$A$5:$AF$5,'DY Def'!$A$7:$AF$7)),"") -> 
B103: Hypothetical 6 Aggregate | L103: =IF(K103<>"",(LOOKUP(K103,'DY Def'!$A$5:$AE$5,'DY Def'!$A$6:$AE$6)),"") ->  | N103: =IF(M103<>"",(LOOKUP(M103,'DY Def'!$A$5:$AF$5,'DY Def'!$A$7:$AF$7)),"") -> 
A104: 1 | B104: Reentry Non-Services | C104: Expenditures for allowable planning and non-services for the reentry demonstration initiative. | E104: Yes | F104: Yes | G104: Aggregate | H104: N/A | I104: Yes | J104: Yes | K104: 29 | L104: 2025-01-13 | M104: 31 | N104: =IF(M104<>"",(LOOKUP(M104,'DY Def'!$A$5:$AF$5,'DY Def'!$A$7:$AF$7)),"") -> 2026-12-31
L105: =IF(K105<>"",(LOOKUP(K105,'DY Def'!$A$5:$AE$5,'DY Def'!$A$6:$AE$6)),"") ->  | N105: =IF(M105<>"",(LOOKUP(M105,'DY Def'!$A$5:$AF$5,'DY Def'!$A$7:$AF$7)),"") -> 
L106: =IF(K106<>"",(LOOKUP(K106,'DY Def'!$A$5:$AE$5,'DY Def'!$A$6:$AE$6)),"") ->  | N106: =IF(M106<>"",(LOOKUP(M106,'DY Def'!$A$5:$AF$5,'DY Def'!$A$7:$AF$7)),"") -> 
L107: =IF(K107<>"",(LOOKUP(K107,'DY Def'!$A$5:$AE$5,'DY Def'!$A$6:$AE$6)),"") ->  | N107: =IF(M107<>"",(LOOKUP(M107,'DY Def'!$A$5:$AF$5,'DY Def'!$A$7:$AF$7)),"") -> 
L108: =IF(K108<>"",(LOOKUP(K108,'DY Def'!$A$5:$AE$5,'DY Def'!$A$6:$AE$6)),"") ->  | N108: =IF(M108<>"",(LOOKUP(M108,'DY Def'!$A$5:$AF$5,'DY Def'!$A$7:$AF$7)),"") -> 
L109: =IF(K109<>"",(LOOKUP(K109,'DY Def'!$A$5:$AE$5,'DY Def'!$A$6:$AE$6)),"") ->  | N109: =IF(M109<>"",(LOOKUP(M109,'DY Def'!$A$5:$AF$5,'DY Def'!$A$7:$AF$7)),"") -> 
B110: Tracking Only | L110: =IF(K110<>"",(LOOKUP(K110,'DY Def'!$A$5:$AE$5,'DY Def'!$A$6:$AE$6)),"") ->  | N110: =IF(M110<>"",(LOOKUP(M110,'DY Def'!$A$5:$AF$5,'DY Def'!$A$7:$AF$7)),"") -> 
N111: =IF(M111<>"",(LOOKUP(M111,'DY Def'!$A$5:$AF$5,'DY Def'!$A$7:$AF$7)),"") -> 
N112: =IF(M112<>"",(LOOKUP(M112,'DY Def'!$A$5:$AE$5,'DY Def'!$A$7:$AE$7)),"") -> 
N113: =IF(M113<>"",(LOOKUP(M113,'DY Def'!$A$5:$AE$5,'DY Def'!$A$7:$AE$7)),"") -> 
N114: =IF(M114<>"",(LOOKUP(M114,'DY Def'!$A$5:$AE$5,'DY Def'!$A$7:$AE$7)),"") -> 
N115: =IF(M115<>"",(LOOKUP(M115,'DY Def'!$A$5:$AE$5,'DY Def'!$A$7:$AE$7)),"") -> 
N116: =IF(M116<>"",(LOOKUP(M116,'DY Def'!$A$5:$AE$5,'DY Def'!$A$7:$AE$7)),"") -> 
N117: =IF(M117<>"",(LOOKUP(M117,'DY Def'!$A$5:$AE$5,'DY Def'!$A$7:$AE$7)),"") -> 
N118: =IF(M118<>"",(LOOKUP(M118,'DY Def'!$A$5:$AE$5,'DY Def'!$A$7:$AE$7)),"") -> 
N119: =IF(M119<>"",(LOOKUP(M119,'DY Def'!$A$5:$AE$5,'DY Def'!$A$7:$AE$7)),"") -> 
N120: =IF(M120<>"",(LOOKUP(M120,'DY Def'!$A$5:$AE$5,'DY Def'!$A$7:$AE$7)),"") -> 
N121: =IF(M121<>"",(LOOKUP(M121,'DY Def'!$A$5:$AE$5,'DY Def'!$A$7:$AE$7)),"") -> 
N122: =IF(M122<>"",(LOOKUP(M122,'DY Def'!$A$5:$AE$5,'DY Def'!$A$7:$AE$7)),"") -> 
N123: =IF(M123<>"",(LOOKUP(M123,'DY Def'!$A$5:$AE$5,'DY Def'!$A$7:$AE$7)),"") -> 
N124: =IF(M124<>"",(LOOKUP(M124,'DY Def'!$A$5:$AE$5,'DY Def'!$A$7:$AE$7)),"") -> 
N125: =IF(M125<>"",(LOOKUP(M125,'DY Def'!$A$5:$AE$5,'DY Def'!$A$7:$AE$7)),"") -> 
N126: =IF(M126<>"",(LOOKUP(M126,'DY Def'!$A$5:$AE$5,'DY Def'!$A$7:$AE$7)),"") -> 
N127: =IF(M127<>"",(LOOKUP(M127,'DY Def'!$A$5:$AE$5,'DY Def'!$A$7:$AE$7)),"") -> 
N128: =IF(M128<>"",(LOOKUP(M128,'DY Def'!$A$5:$AE$5,'DY Def'!$A$7:$AE$7)),"") -> 
N129: =IF(M129<>"",(LOOKUP(M129,'DY Def'!$A$5:$AE$5,'DY Def'!$A$7:$AE$7)),"") -> 
N130: =IF(M130<>"",(LOOKUP(M130,'DY Def'!$A$5:$AE$5,'DY Def'!$A$7:$AE$7)),"") -> 
N131: =IF(M131<>"",(LOOKUP(M131,'DY Def'!$A$5:$AE$5,'DY Def'!$A$7:$AE$7)),"") -> 
N132: =IF(M132<>"",(LOOKUP(M132,'DY Def'!$A$5:$AE$5,'DY Def'!$A$7:$AE$7)),"") -> 
N133: =IF(M133<>"",(LOOKUP(M133,'DY Def'!$A$5:$AE$5,'DY Def'!$A$7:$AE$7)),"") -> 
N134: =IF(M134<>"",(LOOKUP(M134,'DY Def'!$A$5:$AE$5,'DY Def'!$A$7:$AE$7)),"") -> 
N135: =IF(M135<>"",(LOOKUP(M135,'DY Def'!$A$5:$AE$5,'DY Def'!$A$7:$AE$7)),"") -> 
N136: =IF(M136<>"",(LOOKUP(M136,'DY Def'!$A$5:$AE$5,'DY Def'!$A$7:$AE$7)),"") -> 
N137: =IF(M137<>"",(LOOKUP(M137,'DY Def'!$A$5:$AE$5,'DY Def'!$A$7:$AE$7)),"") -> 
N138: =IF(M138<>"",(LOOKUP(M138,'DY Def'!$A$5:$AE$5,'DY Def'!$A$7:$AE$7)),"") -> 
N139: =IF(M139<>"",(LOOKUP(M139,'DY Def'!$A$5:$AE$5,'DY Def'!$A$7:$AE$7)),"") -> 
N140: =IF(M140<>"",(LOOKUP(M140,'DY Def'!$A$5:$AE$5,'DY Def'!$A$7:$AE$7)),"") -> 
N141: =IF(M141<>"",(LOOKUP(M141,'DY Def'!$A$5:$AE$5,'DY Def'!$A$7:$AE$7)),"") -> 
N142: =IF(M142<>"",(LOOKUP(M142,'DY Def'!$A$5:$AE$5,'DY Def'!$A$7:$AE$7)),"") -> 
N143: =IF(M143<>"",(LOOKUP(M143,'DY Def'!$A$5:$AE$5,'DY Def'!$A$7:$AE$7)),"") -> 
N144: =IF(M144<>"",(LOOKUP(M144,'DY Def'!$A$5:$AE$5,'DY Def'!$A$7:$AE$7)),"") -> 
N145: =IF(M145<>"",(LOOKUP(M145,'DY Def'!$A$5:$AE$5,'DY Def'!$A$7:$AE$7)),"") -> 
N146: =IF(M146<>"",(LOOKUP(M146,'DY Def'!$A$5:$AE$5,'DY Def'!$A$7:$AE$7)),"") -> 
L150: =IF(K150<>"",(LOOKUP(K150,'DY Def'!$A$5:$AE$5,'DY Def'!$A$6:$AE$6)),"") -> 

Sheet WOW PMPM & Agg
B3: WOW PMPMs and Aggregates
D6: DEMONSTRATION YEARS (DY)
D7: ='[1]DY Def'!B$5 -> 1 | E7: ='[1]DY Def'!C$5 -> 2 | F7: ='[1]DY Def'!D$5 -> 3 | G7: ='[1]DY Def'!E$5 -> 4 | H7: ='[1]DY Def'!F$5 -> 5 | I7: ='[1]DY Def'!G$5 -> 6 | J7: ='[1]DY Def'!H$5 -> 7 | K7: ='[1]DY Def'!I$5 -> 8 | L7: ='[1]DY Def'!J$5 -> 9 | M7: ='[1]DY Def'!K$5 -> 10 | N7: ='[1]DY Def'!L$5 -> 11 | O7: ='[1]DY Def'!M$5 -> 12 | P7: ='[1]DY Def'!N$5 -> 13 | Q7: ='[1]DY Def'!O$5 -> 14 | R7: ='[1]DY Def'!P$5 -> 15 | S7: ='[1]DY Def'!Q$5 -> 16 | T7: ='[1]DY Def'!R$5 -> 17 | U7: ='[1]DY Def'!S$5 -> 18 | V7: ='[1]DY Def'!T$5 -> 19 | W7: ='[1]DY Def'!U$5 -> 20 | X7: ='[1]DY Def'!V$5 -> 21 | Y7: ='[1]DY Def'!W$5 -> 22 | Z7: ='[1]DY Def'!X$5 -> 23 | AA7: ='[1]DY Def'!Y$5 -> 24 | AB7: ='[1]DY Def'!Z$5 -> 25 | AC7: ='DY Def'!AA$5 -> 26 | AD7: ='DY Def'!AB$5 -> 27 | AE7: ='DY Def'!AC$5 -> 28 | AF7: ='DY Def'!AD$5 -> 29 | AG7: ='DY Def'!AE$5 -> 30 | AH7: ='DY Def'!AF$5 -> 31
B9: Medicaid Per Capita
B10: =IFERROR(VLOOKUP(C10,'MEG Def'!$A$7:$B$13,2),"") -> TANF Adults 0-123 | C10: 1 | W10: 979.91 | X10: 1027.92 | Y10: 1078.29 | Z10: 1131.13 | AA10: 1186.55 | AB10: 1244.69 | AC10: 697.91 | AD10: 723.4 | AE10: 758.85 | AF10: 796.03 | AG10: 835.04 | AH10: 865.54
B11: =IFERROR(VLOOKUP(C11,'MEG Def'!$A$7:$B$13,2),"") -> Medicaid Children | C11: 2 | W11: 530.22 | X11: 553.55 | Y11: 577.91 | Z11: 603.34 | AA11: 629.88 | AB11: 657.6 | AC11: 305.38 | AD11: 316.54 | AE11: 321.6 | AF11: 326.75 | AG11: 331.98 | AH11: 335.96
B12: =IFERROR(VLOOKUP(C12,'MEG Def'!$A$7:$B$13,2),"") -> Medically Needy Adults | C12: 3 | W12: 5602.84 | X12: 5826.95 | Y12: 6060.03 | Z12: 6303.43 | AA12: 6554.53 | AB12: 6816.71 | AC12: 1280.31 | AD12: 1327.08 | AE12: 1327.08 | AF12: 1327.08 | AG12: 1327.08 | AH12: 1327.08
B13: =IFERROR(VLOOKUP(C13,'MEG Def'!$A$7:$B$13,2),"") -> Medically Needy Children | C13: 4 | W13: 2562.44 | X13: 2664.93 | Y13: 2771.53 | Z13: 2882.39 | AA13: 2997.69 | AB13: 3117.59 | AC13: 1608.55 | AD13: 1667.31 | AE13: 1765.68 | AF13: 1869.86 | AG13: 1980.18 | AH13: 2067.17
B14: =IFERROR(VLOOKUP(C14,'MEG Def'!$A$7:$B$13,2),"") -> SOBRA Adults | C14: 5 | W14: 4456.21 | X14: 4683.47 | Y14: 4922.33 | Z14: 5173.37 | AA14: 5437.21 | AB14: 5714.51 | AC14: 2137.73 | AD14: 2215.82 | AE14: 2249.28 | AF14: 2283.24 | AG14: 2317.72 | AH14: 2343.92
B15: =IFERROR(VLOOKUP(C15,'MEG Def'!$A$7:$B$13,2),"") -> SSI/BD Adults | C15: 6 | W15: 2305.65 | X15: 2397.87 | Y15: 2493.79 | Z15: 2593.54 | AA15: 2697.28 | AB15: 2805.17 | AC15: 1935.65 | AD15: 2006.36 | AE15: 2052.91 | AF15: 2100.54 | AG15: 2149.27 | AH15: 2186.56
B16: =IFERROR(VLOOKUP(C16,'MEG Def'!$A$7:$B$13,2),"") -> SSI/BD Children | C16: 7 | W16: 2089.58 | X16: 2173.16 | Y16: 2260.09 | Z16: 2350.49 | AA16: 2444.51 | AB16: 2542.29 | AC16: 1641.64 | AD16: 1701.61 | AE16: 1715.22 | AF16: 1728.94 | AG16: 1742.78 | AH16: 1753.22
B18: Medicaid Per Capita - WOW only
B19: =IFERROR(VLOOKUP(C19,'MEG Def'!$A$16:$B$21,2),0) -> 0
B20: =IFERROR(VLOOKUP(C20,'MEG Def'!$A$16:$B$21,2),0) -> 0
B21: =IFERROR(VLOOKUP(C21,'MEG Def'!$A$16:$B$21,2),0) -> 0
B22: =IFERROR(VLOOKUP(C22,'MEG Def'!$A$16:$B$21,2),0) -> 0
B23: =IFERROR(VLOOKUP(C23,'MEG Def'!$A$16:$B$21,2),0) -> 0
B25: Medicaid Aggregate
B26: =IFERROR(VLOOKUP(C26,'MEG Def'!$A$23:$B$28,2),"") -> 
B27: =IFERROR(VLOOKUP(C27,'MEG Def'!$A$23:$B$28,2),"") -> 
B28: =IFERROR(VLOOKUP(C28,'MEG Def'!$A$23:$B$28,2),"") -> 
B29: =IFERROR(VLOOKUP(C29,'MEG Def'!$A$23:$B$28,2),"") -> 
B30: =IFERROR(VLOOKUP(C30,'MEG Def'!$A$23:$B$28,2),"") -> 
B32: Medicaid Aggregate - WOW only
B33: =IFERROR(VLOOKUP(C33,'MEG Def'!$A$30:$B$35,2),0) -> 0
B34: =IFERROR(VLOOKUP(C34,'MEG Def'!$A$30:$B$35,2),0) -> 0
B35: =IFERROR(VLOOKUP(C35,'MEG Def'!$A$30:$B$35,2),0) -> 0
B36: =IFERROR(VLOOKUP(C36,'MEG Def'!$A$30:$B$35,2),0) -> 0
B37: =IFERROR(VLOOKUP(C37,'MEG Def'!$A$30:$B$35,2),0) -> 0
D40: DEMONSTRATION YEARS (DY)
D41: ='[1]DY Def'!B$5 -> 1 | E41: ='[1]DY Def'!C$5 -> 2 | F41: ='[1]DY Def'!D$5 -> 3 | G41: ='[1]DY Def'!E$5 -> 4 | H41: ='[1]DY Def'!F$5 -> 5 | I41: ='[1]DY Def'!G$5 -> 6 | J41: ='[1]DY Def'!H$5 -> 7 | K41: ='[1]DY Def'!I$5 -> 8 | L41: ='[1]DY Def'!J$5 -> 9 | M41: ='[1]DY Def'!K$5 -> 10 | N41: ='[1]DY Def'!L$5 -> 11 | O41: ='[1]DY Def'!M$5 -> 12 | P41: ='[1]DY Def'!N$5 -> 13 | Q41: ='[1]DY Def'!O$5 -> 14 | R41: ='[1]DY Def'!P$5 -> 15 | S41: ='[1]DY Def'!Q$5 -> 16 | T41: ='[1]DY Def'!R$5 -> 17 | U41: ='[1]DY Def'!S$5 -> 18 | V41: ='[1]DY Def'!T$5 -> 19 | W41: ='[1]DY Def'!U$5 -> 20 | X41: ='[1]DY Def'!V$5 -> 21 | Y41: ='[1]DY Def'!W$5 -> 22 | Z41: ='[1]DY Def'!X$5 -> 23 | AA41: ='[1]DY Def'!Y$5 -> 24 | AB41: ='[1]DY Def'!Z$5 -> 25 | AC41: ='DY Def'!AA$5 -> 26 | AD41: ='DY Def'!AB$5 -> 27 | AE41: ='DY Def'!AC$5 -> 28 | AF41: ='DY Def'!AD$5 -> 29 | AG41: ='DY Def'!AE$5 -> 30 | AH41: 31
B43: Hypothetical 1 Per Capita
B44: =IFERROR(VLOOKUP(C44,'MEG Def'!$A$49:$B$52,2),0) -> Residential Treatment for Individuals with Serious Mental Illness | C44: 1 | W44: 54.69 | X44: 57.54 | Y44: 60.53 | Z44: 63.68 | AA44: 65.73 | AC44: 15370 | AD44: 16169 | AE44: 17010 | AF44: 17895 | AG44: 18825 | AH44: 19804
B45: =IFERROR(VLOOKUP(C45,'MEG Def'!$A$49:$B$52,2),0) -> 0
B46: =IFERROR(VLOOKUP(C46,'MEG Def'!$A$49:$B$52,2),0) -> 0
B48: Hypothetical 1 Aggregate
B49: =IFERROR(VLOOKUP(C49,'MEG Def'!$A$54:$B$57,2),0) -> 0
B50: =IFERROR(VLOOKUP(C50,'MEG Def'!$A$54:$B$57,2),0) -> 0
B51: =IFERROR(VLOOKUP(C51,'MEG Def'!$A$54:$B$57,2),0) -> 0
D54: DEMONSTRATION YEARS (DY)
D55: ='[1]DY Def'!B$5 -> 1 | E55: ='[1]DY Def'!C$5 -> 2 | F55: ='[1]DY Def'!D$5 -> 3 | G55: ='[1]DY Def'!E$5 -> 4 | H55: ='[1]DY Def'!F$5 -> 5 | I55: ='[1]DY Def'!G$5 -> 6 | J55: ='[1]DY Def'!H$5 -> 7 | K55: ='[1]DY Def'!I$5 -> 8 | L55: ='[1]DY Def'!J$5 -> 9 | M55: ='[1]DY Def'!K$5 -> 10 | N55: ='[1]DY Def'!L$5 -> 11 | O55: ='[1]DY Def'!M$5 -> 12 | P55: ='[1]DY Def'!N$5 -> 13 | Q55: ='[1]DY Def'!O$5 -> 14 | R55: ='[1]DY Def'!P$5 -> 15 | S55: ='[1]DY Def'!Q$5 -> 16 | T55: ='[1]DY Def'!R$5 -> 17 | U55: ='[1]DY Def'!S$5 -> 18 | V55: ='[1]DY Def'!T$5 -> 19 | W55: ='[1]DY Def'!U$5 -> 20 | X55: ='[1]DY Def'!V$5 -> 21 | Y55: ='[1]DY Def'!W$5 -> 22 | Z55: ='[1]DY Def'!X$5 -> 23 | AA55: ='[1]DY Def'!Y$5 -> 24 | AB55: ='[1]DY Def'!Z$5 -> 25 | AC55: ='DY Def'!AA$5 -> 26 | AD55: ='DY Def'!AB$5 -> 27 | AE55: ='DY Def'!AC$5 -> 28 | AF55: ='DY Def'!AD$5 -> 29 | AG55: ='DY Def'!AE$5 -> 30 | AH55: 31
B57: Hypothetical 2 Per Capita
B58: =IFERROR(VLOOKUP(C58,'MEG Def'!$A$59:$B$62,2),0) -> New Adult Group | C58: 1 | W58: 907.68 | X58: 950.34 | Y58: 995.01 | Z58: 1041.77 | AA58: 1090.74 | AB58: 1142 | AC58: 747.51 | AD58: 774.82 | AE58: 819.76 | AF58: 867.31 | AG58: 917.61 | AH58: 957.24
B59: =IFERROR(VLOOKUP(C59,'MEG Def'!$A$59:$B$62,2),0) -> 0
B60: =IFERROR(VLOOKUP(C60,'MEG Def'!$A$59:$B$62,2),0) -> 0
B62: Hypothetical 2 Aggregate
B63: =IFERROR(VLOOKUP(C63,'MEG Def'!$A$64:$B$67,2),0) -> 0
B64: =IFERROR(VLOOKUP(C64,'MEG Def'!$A$64:$B$67,2),0) -> 0
B65: =IFERROR(VLOOKUP(C65,'MEG Def'!$A$64:$B$67,2),0) -> 0
D68: DEMONSTRATION YEARS (DY)
D69: ='[1]DY Def'!B$5 -> 1 | E69: ='[1]DY Def'!C$5 -> 2 | F69: ='[1]DY Def'!D$5 -> 3 | G69: ='[1]DY Def'!E$5 -> 4 | H69: ='[1]DY Def'!F$5 -> 5 | I69: ='[1]DY Def'!G$5 -> 6 | J69: ='[1]DY Def'!H$5 -> 7 | K69: ='[1]DY Def'!I$5 -> 8 | L69: ='[1]DY Def'!J$5 -> 9 | M69: ='[1]DY Def'!K$5 -> 10 | N69: ='[1]DY Def'!L$5 -> 11 | O69: ='[1]DY Def'!M$5 -> 12 | P69: ='[1]DY Def'!N$5 -> 13 | Q69: ='[1]DY Def'!O$5 -> 14 | R69: ='[1]DY Def'!P$5 -> 15 | S69: ='[1]DY Def'!Q$5 -> 16 | T69: ='[1]DY Def'!R$5 -> 17 | U69: ='[1]DY Def'!S$5 -> 18 | V69: ='[1]DY Def'!T$5 -> 19 | W69: ='[1]DY Def'!U$5 -> 20 | X69: ='[1]DY Def'!V$5 -> 21 | Y69: ='[1]DY Def'!W$5 -> 22 | Z69: ='[1]DY Def'!X$5 -> 23 | AA69: ='[1]DY Def'!Y$5 -> 24 | AB69: ='[1]DY Def'!Z$5 -> 25 | AC69: ='DY Def'!AA$5 -> 26 | AD69: ='DY Def'!AB$5 -> 27 | AE69: ='DY Def'!AC$5 -> 28 | AF69: ='DY Def'!AD$5 -> 29 | AG69: ='DY Def'!AE$5 -> 30 | AH69: 31
B71: Hypothetical 3 Per Capita
B72: =IFERROR(VLOOKUP(C72,'MEG Def'!$A$69:$B$72,2),0) -> Residential Treatment for Individuals w/ SUD | C72: 1 | X72: 5750.4 | Y72: 6049.42 | Z72: 6363.99 | AA72: 6694.92 | AB72: 7043.05 | AC72: 7413.69 | AD72: 7684.51 | AE72: 8084.1 | AF72: 8504.48 | AG72: 8946.71 | AH72: 9293.41
B73: =IFERROR(VLOOKUP(C73,'MEG Def'!$A$69:$B$72,2),0) -> 0
B74: =IFERROR(VLOOKUP(C74,'MEG Def'!$A$69:$B$72,2),0) -> 0
B76: Hypothetical 3 Aggregate
B77: =IFERROR(VLOOKUP(C77,'MEG Def'!$A$74:$B$77,2),0) -> 0
B78: =IFERROR(VLOOKUP(C78,'MEG Def'!$A$74:$B$77,2),0) -> 0
B79: =IFERROR(VLOOKUP(C79,'MEG Def'!$A$74:$B$77,2),0) -> 0
D82: DEMONSTRATION YEARS (DY)
D83: ='[1]DY Def'!B$5 -> 1 | E83: ='[1]DY Def'!C$5 -> 2 | F83: ='[1]DY Def'!D$5 -> 3 | G83: ='[1]DY Def'!E$5 -> 4 | H83: ='[1]DY Def'!F$5 -> 5 | I83: ='[1]DY Def'!G$5 -> 6 | J83: ='[1]DY Def'!H$5 -> 7 | K83: ='[1]DY Def'!I$5 -> 8 | L83: ='[1]DY Def'!J$5 -> 9 | M83: ='[1]DY Def'!K$5 -> 10 | N83: ='[1]DY Def'!L$5 -> 11 | O83: ='[1]DY Def'!M$5 -> 12 | P83: ='[1]DY Def'!N$5 -> 13 | Q83: ='[1]DY Def'!O$5 -> 14 | R83: ='[1]DY Def'!P$5 -> 15 | S83: ='[1]DY Def'!Q$5 -> 16 | T83: ='[1]DY Def'!R$5 -> 17 | U83: ='[1]DY Def'!S$5 -> 18 | V83: ='[1]DY Def'!T$5 -> 19 | W83: ='[1]DY Def'!U$5 -> 20 | X83: ='[1]DY Def'!V$5 -> 21 | Y83: ='[1]DY Def'!W$5 -> 22 | Z83: ='[1]DY Def'!X$5 -> 23 | AA83: ='[1]DY Def'!Y$5 -> 24 | AB83: ='[1]DY Def'!Z$5 -> 25 | AC83: ='DY Def'!AA$5 -> 26 | AD83: ='DY Def'!AB$5 -> 27 | AE83: ='DY Def'!AC$5 -> 28 | AF83: ='DY Def'!AD$5 -> 29 | AG83: ='DY Def'!AE$5 -> 30 | AH83: 31
B85: Hypothetical 4 Per Capita
B86: =IFERROR(VLOOKUP(C86,'MEG Def'!$A$79:$B$82,2),0) -> Dental for Former Foster Care Youth | C86: 1 | W86: 22.01 | X86: 23.15 | Y86: 24.36 | Z86: 25.63 | AA86: 26.96 | AB86: 28.36 | AC86: 29.46 | AD86: 30.54 | AE86: 32.13 | AF86: 33.8 | AG86: 35.56 | AH86: 36.93
B87: =IFERROR(VLOOKUP(C87,'MEG Def'!$A$79:$B$82,2),0) -> 0
B88: =IFERROR(VLOOKUP(C88,'MEG Def'!$A$79:$B$82,2),0) -> 0
B90: Hypothetical 4 Aggregate
B91: =IFERROR(VLOOKUP(C91,'MEG Def'!$A$84:$B$107,2),0) -> 0
B92: =IFERROR(VLOOKUP(C92,'MEG Def'!$A$84:$B$107,2),0) -> 0
B93: =IFERROR(VLOOKUP(C93,'MEG Def'!$A$84:$B$107,2),0) -> 0
D96: DEMONSTRATION YEARS (DY)
D97: ='[1]DY Def'!B$5 -> 1 | E97: ='[1]DY Def'!C$5 -> 2 | F97: ='[1]DY Def'!D$5 -> 3 | G97: ='[1]DY Def'!E$5 -> 4 | H97: ='[1]DY Def'!F$5 -> 5 | I97: ='[1]DY Def'!G$5 -> 6 | J97: ='[1]DY Def'!H$5 -> 7 | K97: ='[1]DY Def'!I$5 -> 8 | L97: ='[1]DY Def'!J$5 -> 9 | M97: ='[1]DY Def'!K$5 -> 10 | N97: ='[1]DY Def'!L$5 -> 11 | O97: ='[1]DY Def'!M$5 -> 12 | P97: ='[1]DY Def'!N$5 -> 13 | Q97: ='[1]DY Def'!O$5 -> 14 | R97: ='[1]DY Def'!P$5 -> 15 | S97: ='[1]DY Def'!Q$5 -> 16 | T97: ='[1]DY Def'!R$5 -> 17 | U97: ='[1]DY Def'!S$5 -> 18 | V97: ='[1]DY Def'!T$5 -> 19 | W97: ='[1]DY Def'!U$5 -> 20 | X97: ='[1]DY Def'!V$5 -> 21 | Y97: ='[1]DY Def'!W$5 -> 22 | Z97: ='[1]DY Def'!X$5 -> 23 | AA97: ='[1]DY Def'!Y$5 -> 24 | AB97: ='[1]DY Def'!Z$5 -> 25 | AC97: ='DY Def'!AA$5 -> 26 | AD97: ='DY Def'!AB$5 -> 27 | AE97: ='DY Def'!AC$5 -> 28 | AF97: ='DY Def'!AD$5 -> 29 | AG97: ='DY Def'!AE$5 -> 30 | AH97: 31
B99: Hypothetical 5 Per Capita
B100: =IFERROR(VLOOKUP(C100,'MEG Def'!$A$89:$B$92,2),0) -> ACIS Hypothetical | C100: 1 | W100: 22.01 | X100: 23.15 | Y100: 24.36 | Z100: 25.63 | AA100: 26.96 | AB100: 28.36 | AF100: 503.67 | AG100: 521.32 | AH100: 539.59
B101: =IFERROR(VLOOKUP(C101,'MEG Def'!$A$89:$B$92,2),0) -> 0
B102: =IFERROR(VLOOKUP(C102,'MEG Def'!$A$89:$B$92,2),0) -> 0
B103: =IFERROR(VLOOKUP(C103,'MEG Def'!$A$89:$B$92,2),0) -> 0
B104: Hypothetical 5 Aggregate
B105: =IFERROR(VLOOKUP(C105,'MEG Def'!$A$44:$B$97,2),0) -> 0
B106: =IFERROR(VLOOKUP(C106,'MEG Def'!$A$44:$B$97,2),0) -> 0
B107: =IFERROR(VLOOKUP(C107,'MEG Def'!$A$44:$B$97,2),0) -> 0
D110: DEMONSTRATION YEARS (DY)
D111: ='[1]DY Def'!B$5 -> 1 | E111: ='[1]DY Def'!C$5 -> 2 | F111: ='[1]DY Def'!D$5 -> 3 | G111: ='[1]DY Def'!E$5 -> 4 | H111: ='[1]DY Def'!F$5 -> 5 | I111: ='[1]DY Def'!G$5 -> 6 | J111: ='[1]DY Def'!H$5 -> 7 | K111: ='[1]DY Def'!I$5 -> 8 | L111: ='[1]DY Def'!J$5 -> 9 | M111: ='[1]DY Def'!K$5 -> 10 | N111: ='[1]DY Def'!L$5 -> 11 | O111: ='[1]DY Def'!M$5 -> 12 | P111: ='[1]DY Def'!N$5 -> 13 | Q111: ='[1]DY Def'!O$5 -> 14 | R111: ='[1]DY Def'!P$5 -> 15 | S111: ='[1]DY Def'!Q$5 -> 16 | T111: ='[1]DY Def'!R$5 -> 17 | U111: ='[1]DY Def'!S$5 -> 18 | V111: ='[1]DY Def'!T$5 -> 19 | W111: ='[1]DY Def'!U$5 -> 20 | X111: ='[1]DY Def'!V$5 -> 21 | Y111: ='[1]DY Def'!W$5 -> 22 | Z111: ='[1]DY Def'!X$5 -> 23 | AA111: ='[1]DY Def'!Y$5 -> 24 | AB111: ='[1]DY Def'!Z$5 -> 25 | AC111: ='DY Def'!AA$5 -> 26 | AD111: ='DY Def'!AB$5 -> 27 | AE111: ='DY Def'!AC$5 -> 28 | AF111: ='DY Def'!AD$5 -> 29 | AG111: ='DY Def'!AE$5 -> 30 | AH111: 31
B113: Hypothetical 6 Per Capita
B114: =IFERROR(VLOOKUP(C114,'MEG Def'!$A$99:$B$102,2),0) -> Reentry | C114: 1 | W114: 22.01 | X114: 23.15 | Y114: 24.36 | Z114: 25.63 | AA114: 26.96 | AB114: 28.36 | AE114: 0 | AG114: 1678.98 | AH114: 1775.04
B115: =IFERROR(VLOOKUP(C115,'MEG Def'!$A$99:$B$102,2),0) -> 0
B116: =IFERROR(VLOOKUP(C116,'MEG Def'!$A$99:$B$102,2),0) -> 0
B117: =IFERROR(VLOOKUP(C117,'MEG Def'!$A$99:$B$102,2),0) -> 0
B118: Hypothetical 6 Aggregate
B119: =IFERROR(VLOOKUP(C119,'MEG Def'!$A$104:$B$107,2),0) -> Reentry Non-Services | C119: 1 | AE119: 0 | AG119: 10000000 | AH119: 5000000
B120: =IFERROR(VLOOKUP(C120,'MEG Def'!$A$104:$B$107,2),0) -> 0
B121: =IFERROR(VLOOKUP(C121,'MEG Def'!$A$104:$B$107,2),0) -> 0

Sheet Program Spending Limits
B3: Program Spending Limits
C6: Cap Amounts per Demonstration Year | AH6: TOTAL
B7: Program Name and Associated MEGs | C7: ='DY Def'!B$5 -> 1 | D7: ='DY Def'!C$5 -> 2 | E7: ='DY Def'!D$5 -> 3 | F7: ='DY Def'!E$5 -> 4 | G7: ='DY Def'!F$5 -> 5 | H7: ='DY Def'!G$5 -> 6 | I7: ='DY Def'!H$5 -> 7 | J7: ='DY Def'!I$5 -> 8 | K7: ='DY Def'!J$5 -> 9 | L7: ='DY Def'!K$5 -> 10 | M7: ='DY Def'!L$5 -> 11 | N7: ='DY Def'!M$5 -> 12 | O7: ='DY Def'!N$5 -> 13 | P7: ='DY Def'!O$5 -> 14 | Q7: ='DY Def'!P$5 -> 15 | R7: ='DY Def'!Q$5 -> 16 | S7: ='DY Def'!R$5 -> 17 | T7: ='DY Def'!S$5 -> 18 | U7: ='DY Def'!T$5 -> 19 | V7: ='DY Def'!U$5 -> 20 | W7: ='DY Def'!V$5 -> 21 | X7: ='DY Def'!W$5 -> 22 | Y7: ='DY Def'!X$5 -> 23 | Z7: ='DY Def'!Y$5 -> 24 | AA7: ='DY Def'!Z$5 -> 25 | AB7: ='DY Def'!AA$5 -> 26 | AC7: ='DY Def'!AB$5 -> 27 | AD7: ='DY Def'!AC$5 -> 28 | AE7: ='DY Def'!AD$5 -> 29 | AF7: ='DY Def'!AE$5 -> 30 | AG7: 31
B8: Spending Cap | AH8: =SUM(C8:AF8) -> 0
AH10: =SUM(C10:AG10) -> 0
B11: Expenditures Subject to Cap
C13: =SUMIF('WW Spending Actual'!$B$10:$B$56,'Program Spending Limits'!$B13,'WW Spending Actual'!D$10:D$56) -> 0 | D13: =SUMIF('WW Spending Actual'!$B$10:$B$56,'Program Spending Limits'!$B13,'WW Spending Actual'!E$10:E$56) -> 0 | E13: =SUMIF('WW Spending Actual'!$B$10:$B$56,'Program Spending Limits'!$B13,'WW Spending Actual'!F$10:F$56) -> 0 | F13: =SUMIF('WW Spending Actual'!$B$10:$B$56,'Program Spending Limits'!$B13,'WW Spending Actual'!G$10:G$56) -> 0 | G13: =SUMIF('WW Spending Actual'!$B$10:$B$56,'Program Spending Limits'!$B13,'WW Spending Actual'!H$10:H$56) -> 0 | H13: =SUMIF('WW Spending Actual'!$B$10:$B$56,'Program Spending Limits'!$B13,'WW Spending Actual'!I$10:I$56) -> 0 | I13: =SUMIF('WW Spending Actual'!$B$10:$B$56,'Program Spending Limits'!$B13,'WW Spending Actual'!J$10:J$56) -> 0 | J13: =SUMIF('WW Spending Actual'!$B$10:$B$56,'Program Spending Limits'!$B13,'WW Spending Actual'!K$10:K$56) -> 0 | K13: =SUMIF('WW Spending Actual'!$B$10:$B$56,'Program Spending Limits'!$B13,'WW Spending Actual'!L$10:L$56) -> 0 | L13: =SUMIF('WW Spending Actual'!$B$10:$B$56,'Program Spending Limits'!$B13,'WW Spending Actual'!M$10:M$56) -> 0 | M13: =SUMIF('WW Spending Actual'!$B$10:$B$56,'Program Spending Limits'!$B13,'WW Spending Actual'!N$10:N$56) -> 0 | N13: =SUMIF('WW Spending Actual'!$B$10:$B$56,'Program Spending Limits'!$B13,'WW Spending Actual'!O$10:O$56) -> 0 | O13: =SUMIF('WW Spending Actual'!$B$10:$B$56,'Program Spending Limits'!$B13,'WW Spending Actual'!P$10:P$56) -> 0 | P13: =SUMIF('WW Spending Actual'!$B$10:$B$56,'Program Spending Limits'!$B13,'WW Spending Actual'!Q$10:Q$56) -> 0 | Q13: =SUMIF('WW Spending Actual'!$B$10:$B$56,'Program Spending Limits'!$B13,'WW Spending Actual'!R$10:R$56) -> 0 | R13: =SUMIF('WW Spending Actual'!$B$10:$B$56,'Program Spending Limits'!$B13,'WW Spending Actual'!S$10:S$56) -> 0 | S13: =SUMIF('WW Spending Actual'!$B$10:$B$56,'Program Spending Limits'!$B13,'WW Spending Actual'!T$10:T$56) -> 0 | T13: =SUMIF('WW Spending Actual'!$B$10:$B$56,'Program Spending Limits'!$B13,'WW Spending Actual'!U$10:U$56) -> 0 | U13: =SUMIF('WW Spending Actual'!$B$10:$B$56,'Program Spending Limits'!$B13,'WW Spending Actual'!V$10:V$56) -> 0 | V13: =SUMIF('WW Spending Actual'!$B$10:$B$56,'Program Spending Limits'!$B13,'WW Spending Actual'!W$10:W$56) -> 0 | W13: =SUMIF('WW Spending Actual'!$B$10:$B$56,'Program Spending Limits'!$B13,'WW Spending Actual'!X$10:X$56) -> 0 | X13: =SUMIF('WW Spending Actual'!$B$10:$B$56,'Program Spending Limits'!$B13,'WW Spending Actual'!Y$10:Y$56) -> 0 | Y13: =SUMIF('WW Spending Actual'!$B$10:$B$56,'Program Spending Limits'!$B13,'WW Spending Actual'!Z$10:Z$56) -> 0 | Z13: =SUMIF('WW Spending Actual'!$B$10:$B$56,'Program Spending Limits'!$B13,'WW Spending Actual'!AA$10:AA$56) -> 0 | AA13: =SUMIF('WW Spending Actual'!$B$10:$B$56,'Program Spending Limits'!$B13,'WW Spending Actual'!AB$10:AB$56) -> 0 | AB13: =SUMIF('WW Spending Actual'!$B$10:$B$56,'Program Spending Limits'!$B13,'WW Spending Actual'!AC$10:AC$56) -> 0 | AC13: =SUMIF('WW Spending Actual'!$B$10:$B$56,'Program Spending Limits'!$B13,'WW Spending Actual'!AD$10:AD$56) -> 0 | AD13: =SUMIF('WW Spending Actual'!$B$10:$B$56,'Program Spending Limits'!$B13,'WW Spending Actual'!AE$10:AE$56) -> 0 | AE13: =SUMIF('WW Spending Actual'!$B$10:$B$56,'Program Spending Limits'!$B13,'WW Spending Actual'!AF$10:AF$56) -> 0 | AF13: =SUMIF('WW Spending Actual'!$B$10:$B$56,'Program Spending Limits'!$B13,'WW Spending Actual'!AG$10:AG$56) -> 0
C14: =SUMIF('WW Spending Actual'!$B$10:$B$56,'Program Spending Limits'!$B14,'WW Spending Actual'!D$10:D$56) -> 0 | D14: =SUMIF('WW Spending Actual'!$B$10:$B$56,'Program Spending Limits'!$B14,'WW Spending Actual'!E$10:E$56) -> 0 | E14: =SUMIF('WW Spending Actual'!$B$10:$B$56,'Program Spending Limits'!$B14,'WW Spending Actual'!F$10:F$56) -> 0 | F14: =SUMIF('WW Spending Actual'!$B$10:$B$56,'Program Spending Limits'!$B14,'WW Spending Actual'!G$10:G$56) -> 0 | G14: =SUMIF('WW Spending Actual'!$B$10:$B$56,'Program Spending Limits'!$B14,'WW Spending Actual'!H$10:H$56) -> 0 | H14: =SUMIF('WW Spending Actual'!$B$10:$B$56,'Program Spending Limits'!$B14,'WW Spending Actual'!I$10:I$56) -> 0 | I14: =SUMIF('WW Spending Actual'!$B$10:$B$56,'Program Spending Limits'!$B14,'WW Spending Actual'!J$10:J$56) -> 0 | J14: =SUMIF('WW Spending Actual'!$B$10:$B$56,'Program Spending Limits'!$B14,'WW Spending Actual'!K$10:K$56) -> 0 | K14: =SUMIF('WW Spending Actual'!$B$10:$B$56,'Program Spending Limits'!$B14,'WW Spending Actual'!L$10:L$56) -> 0 | L14: =SUMIF('WW Spending Actual'!$B$10:$B$56,'Program Spending Limits'!$B14,'WW Spending Actual'!M$10:M$56) -> 0 | M14: =SUMIF('WW Spending Actual'!$B$10:$B$56,'Program Spending Limits'!$B14,'WW Spending Actual'!N$10:N$56) -> 0 | N14: =SUMIF('WW Spending Actual'!$B$10:$B$56,'Program Spending Limits'!$B14,'WW Spending Actual'!O$10:O$56) -> 0 | O14: =SUMIF('WW Spending Actual'!$B$10:$B$56,'Program Spending Limits'!$B14,'WW Spending Actual'!P$10:P$56) -> 0 | P14: =SUMIF('WW Spending Actual'!$B$10:$B$56,'Program Spending Limits'!$B14,'WW Spending Actual'!Q$10:Q$56) -> 0 | Q14: =SUMIF('WW Spending Actual'!$B$10:$B$56,'Program Spending Limits'!$B14,'WW Spending Actual'!R$10:R$56) -> 0 | R14: =SUMIF('WW Spending Actual'!$B$10:$B$56,'Program Spending Limits'!$B14,'WW Spending Actual'!S$10:S$56) -> 0 | S14: =SUMIF('WW Spending Actual'!$B$10:$B$56,'Program Spending Limits'!$B14,'WW Spending Actual'!T$10:T$56) -> 0 | T14: =SUMIF('WW Spending Actual'!$B$10:$B$56,'Program Spending Limits'!$B14,'WW Spending Actual'!U$10:U$56) -> 0 | U14: =SUMIF('WW Spending Actual'!$B$10:$B$56,'Program Spending Limits'!$B14,'WW Spending Actual'!V$10:V$56) -> 0 | V14: =SUMIF('WW Spending Actual'!$B$10:$B$56,'Program Spending Limits'!$B14,'WW Spending Actual'!W$10:W$56) -> 0 | W14: =SUMIF('WW Spending Actual'!$B$10:$B$56,'Program Spending Limits'!$B14,'WW Spending Actual'!X$10:X$56) -> 0 | X14: =SUMIF('WW Spending Actual'!$B$10:$B$56,'Program Spending Limits'!$B14,'WW Spending Actual'!Y$10:Y$56) -> 0 | Y14: =SUMIF('WW Spending Actual'!$B$10:$B$56,'Program Spending Limits'!$B14,'WW Spending Actual'!Z$10:Z$56) -> 0 | Z14: =SUMIF('WW Spending Actual'!$B$10:$B$56,'Program Spending Limits'!$B14,'WW Spending Actual'!AA$10:AA$56) -> 0 | AA14: =SUMIF('WW Spending Actual'!$B$10:$B$56,'Program Spending Limits'!$B14,'WW Spending Actual'!AB$10:AB$56) -> 0
B15: Variance | C15: =C10-C13 -> 0 | D15: =D10-D13 -> 0 | E15: 0 | F15: 0 | G15: 0 | H15: 0 | I15: 0 | J15: 0 | K15: 0 | L15: 0 | M15: 0 | N15: 0 | O15: 0 | P15: 0 | Q15: 0 | R15: 0 | S15: 0 | T15: 0 | U15: 0 | V15: 0 | W15: 0 | X15: 0 | Y15: 0 | Z15: 0 | AA15: 0 | AB15: 0 | AC15: 0 | AD15: 0 | AE15: 0 | AF15: 0 | AG15: 0 | AH15: =SUM(C15:AG15) -> 0
B16: Over or Under | C16: =IF(C15<0,"Over",".") -> . | D16: . | E16: . | F16: . | G16: . | H16: . | I16: . | J16: . | K16: . | L16: . | M16: . | N16: . | O16: . | P16: . | Q16: . | R16: . | S16: . | T16: . | U16: . | V16: . | W16: . | X16: . | Y16: . | Z16: . | AA16: . | AB16: . | AC16: . | AD16: . | AE16: . | AF16: . | AH16: =IF(AH15<0,"Over",".") -> .

Sheet C Report
G2: Data Pulled On: | H2: 2025-08-19 | J2: Reporting DY | K2: 27
G3: For the Time Period Through: | H3: 2022-12-31 | J3: Reporting Quarter | K3: 2
A5: Paste all information related to the demonstration from Schedule C of the CMS 64 Waiver Expenditure Report.
A6: 1. On the Schedule C Report, locate rows relevant to all expenditures for a specific demonstration.
A7: 2. Complete two rounds of copy/paste starting from the cell in column A (Waiver Name).
A8: · MAP Waivers/ Total Computable section – into cell A100
A9: · MAP Waivers/ Federal Share section – into cell A200
A10: 3. If ADM waivers are applicable to the demonstration, complete two more rounds of copy/paste starting
A11: from the cell in column A (Waiver Name).
A12: · ADM Waivers/ Total Computable section – cell A300
A13: · ADM Waivers/ Federal Share section – cell A400
A97: MAP Waivers
A99: Total Computable
A100: Waiver Name | B100: A | C100: 01 | D100: 02 | E100: 03 | F100: 04 | G100: 05 | H100: 06 | I100: 07 | J100: 08 | K100: 09 | L100: 10 | M100: 11 | N100: 12 | O100: 13 | P100: 14 | Q100: 15 | R100: 16 | S100: 17 | T100: 18 | U100: 19 | V100: 20 | W100: 21 | X100: 22 | Y100: 23 | Z100: 24 | AA100: 25 | AB100: 26 | AC100: 27 | AD100: 28 | AE100: 29 | AF100: 30 | AG100: 31 | AH100: 32 | AI100: 33 | AJ100: 34 | AK100: 35 | AL100: 36 | AM100: 37 | AN100: 38 | AO100: 39 | AP100: 40 | AQ100: Total | AR100: Total Less Non-Adds
A101: Adult Dental Pilot Program | B101: 0 | C101: 0 | D101: 0 | E101: 0 | F101: 0 | G101: 0 | H101: 0 | I101: 0 | J101: 0 | K101: 0 | L101: 0 | M101: 0 | N101: 0 | O101: 0 | P101: 0 | Q101: 0 | R101: 0 | S101: 0 | T101: 0 | U101: 0 | V101: 0 | W101: 0 | X101: 1340 | Y101: 696692 | Z101: =-3854+1411665 -> 1407811 | AA101: =1164293+233031 -> 1397324 | AB101: 574002 | AC101: 0 | AD101: 0 | AE101: 0 | AF101: 0 | AG101: 0 | AH101: 0 | AI101: 0 | AJ101: 0 | AK101: 0 | AL101: 0 | AM101: 0 | AN101: 0 | AO101: 0 | AP101: 0 | AQ101: =SUM(B101:AP101) -> 4077169 | AR101: =AQ101 -> 4077169
A102: Buy In | B102: 0 | C102: 0 | D102: 0 | E102: 0 | F102: 0 | G102: 0 | H102: 0 | I102: 0 | J102: 0 | K102: 0 | L102: 0 | M102: 0 | N102: 0 | O102: 0 | P102: 0 | Q102: 0 | R102: 0 | S102: 0 | T102: 0 | U102: 0 | V102: 0 | W102: 0 | X102: 0 | Y102: 0 | Z102: 0 | AA102: 0 | AB102: 0 | AC102: 0 | AD102: 0 | AE102: 0 | AF102: 0 | AG102: 0 | AH102: 0 | AI102: 0 | AJ102: 0 | AK102: 0 | AL102: 0 | AM102: 0 | AN102: 0 | AO102: 0 | AP102: 0 | AQ102: =SUM(B102:AP102) -> 0 | AR102: =AQ102 -> 0
A103: EID | B103: 0 | C103: 0 | D103: 0 | E103: 0 | F103: 0 | G103: 0 | H103: 0 | I103: 0 | J103: 0 | K103: 0 | L103: 0 | M103: 0 | N103: 1744647 | O103: 357322 | P103: 57737 | Q103: 54659 | R103: 63172 | S103: 32385 | T103: 0 | U103: 0 | V103: 0 | W103: 0 | X103: 0 | Y103: 0 | Z103: 0 | AA103: 0 | AB103: 0 | AC103: 0 | AD103: 0 | AE103: 0 | AF103: 0 | AG103: 0 | AH103: 0 | AI103: 0 | AJ103: 0 | AK103: 0 | AL103: 0 | AM103: 0 | AN103: 0 | AO103: 0 | AP103: 0 | AQ103: 2309922 | AR103: 2309922
A104: Family Planning | B104: 0 | C104: 0 | D104: 0 | E104: 0 | F104: 0 | G104: 0 | H104: 0 | I104: 0 | J104: 0 | K104: 0 | L104: 0 | M104: 0 | N104: 362697 | O104: -825401 | P104: -3392903 | Q104: -2950077 | R104: -2171112 | S104: -885400 | T104: 0 | U104: 0 | V104: 0 | W104: 0 | X104: 0 | Y104: 0 | Z104: 0 | AA104: 0 | AB104: 0 | AC104: 0 | AD104: 0 | AE104: 0 | AF104: 0 | AG104: 0 | AH104: 0 | AI104: 0 | AJ104: 0 | AK104: 0 | AL104: 0 | AM104: 0 | AN104: 0 | AO104: 0 | AP104: 0 | AQ104: -9862196 | AR104: -9862196
A105: Former Foster Dental | B105: 0 | C105: 0 | D105: 0 | E105: 0 | F105: 0 | G105: 0 | H105: 0 | I105: 0 | J105: 0 | K105: 0 | L105: 0 | M105: 0 | N105: 0 | O105: 0 | P105: 0 | Q105: 0 | R105: 0 | S105: 0 | T105: 0 | U105: 0 | V105: 1218 | W105: 53504 | X105: 0 | Y105: 0 | Z105: 0 | AA105: 0 | AB105: 11455 | AC105: 17773 | AD105: 0 | AE105: 0 | AF105: 0 | AG105: 0 | AH105: 0 | AI105: 0 | AJ105: 0 | AK105: 0 | AL105: 0 | AM105: 0 | AN105: 0 | AO105: 0 | AP105: 0 | AQ105: 83950 | AR105: 83950
A106: ICS | B106: 0 | C106: 0 | D106: 0 | E106: 0 | F106: 0 | G106: 0 | H106: 0 | I106: 0 | J106: 0 | K106: 0 | L106: 0 | M106: 0 | N106: 0 | O106: 0 | P106: 0 | Q106: 0 | R106: 0 | S106: 24 | T106: 0 | U106: 0 | V106: 0 | W106: 0 | X106: 0 | Y106: 0 | Z106: 0 | AA106: 0 | AB106: 0 | AC106: 0 | AD106: 0 | AE106: 0 | AF106: 0 | AG106: 0 | AH106: 0 | AI106: 0 | AJ106: 0 | AK106: 0 | AL106: 0 | AM106: 0 | AN106: 0 | AO106: 0 | AP106: 0 | AQ106: 24 | AR106: 24
A107: MCO Capitation Payments | B107: 0 | C107: 666411494 | D107: 813625810 | E107: 843934386 | F107: 910452670 | G107: 960975440 | H107: 1129880821 | I107: 1256141436 | J107: 1495299714 | K107: -8933606 | L107: 0 | M107: 0 | N107: 0 | O107: 0 | P107: -620 | Q107: 0 | R107: -85 | S107: 0 | T107: 0 | U107: 0 | V107: 52807244 | W107: 0 | X107: 0 | Y107: 0 | Z107: 0 | AA107: 0 | AB107: 0 | AC107: 0 | AD107: 0 | AE107: 0 | AF107: 0 | AG107: 0 | AH107: 0 | AI107: 0 | AJ107: 0 | AK107: 0 | AL107: 0 | AM107: 0 | AN107: 0 | AO107: 0 | AP107: 0 | AQ107: 8120594704 | AR107: 8120594704
A108: Medicaid Children | B108: 0 | C108: 0 | D108: 0 | E108: 0 | F108: 0 | G108: 0 | H108: 0 | I108: 0 | J108: 0 | K108: 0 | L108: 0 | M108: 0 | N108: 0 | O108: 0 | P108: 0 | Q108: 0 | R108: 0 | S108: 685052651 | T108: 1543747666 | U108: 1405417988 | V108: 1526252196 | W108: 1544855613 | X108: 1555942497 | Y108: 1326509598 | Z108: 1701622337 | AA108: 1717438492 | AB108: 958168034 | AC108: 0 | AD108: 0 | AE108: 0 | AF108: 0 | AG108: 0 | AH108: 0 | AI108: 0 | AJ108: 0 | AK108: 0 | AL108: 0 | AM108: 0 | AN108: 0 | AO108: 0 | AP108: 0 | AQ108: 13965007072 | AR108: 13965007072
A109: Medically Needy | B109: 0 | C109: 14403805 | D109: 1575908 | E109: 158821 | F109: 34073716 | G109: -673131 | H109: 21285 | I109: -11250886 | J109: 48917554 | K109: 428912265 | L109: 375527230 | M109: 373945587 | N109: -57 | O109: -22 | P109: -113 | Q109: 4108193 | R109: -8386 | S109: 405269 | T109: 351219 | U109: 7905139 | V109: 37086386 | W109: 62124159 | X109: 127904558 | Y109: 165466259 | Z109: 54121851 | AA109: 0 | AB109: 0 | AC109: 0 | AD109: 0 | AE109: 0 | AF109: 0 | AG109: 0 | AH109: 0 | AI109: 0 | AJ109: 0 | AK109: 0 | AL109: 0 | AM109: 0 | AN109: 0 | AO109: 0 | AP109: 0 | AQ109: 1725076609 | AR109: 1725076609
A110: MN Adults | B110: 0 | C110: 0 | D110: 0 | E110: 0 | F110: 0 | G110: 0 | H110: 0 | I110: 0 | J110: 0 | K110: 0 | L110: 0 | M110: 0 | N110: 221648573 | O110: 243066832 | P110: 238883559 | Q110: 164960804 | R110: 124658494 | S110: 134283831 | T110: 133340386 | U110: 47506980 | V110: 18616528 | W110: 14084836 | X110: 14889403 | Y110: 16059692 | Z110: -261953966 | AA110: 74661979 | AB110: 7994871 | AC110: 0 | AD110: 0 | AE110: 0 | AF110: 0 | AG110: 0 | AH110: 0 | AI110: 0 | AJ110: 0 | AK110: 0 | AL110: 0 | AM110: 0 | AN110: 0 | AO110: 0 | AP110: 0 | AQ110: 1192702802 | AR110: 1192702802
A111: MN Chldrn | B111: 0 | C111: 0 | D111: 0 | E111: 0 | F111: 0 | G111: 0 | H111: 0 | I111: 0 | J111: 0 | K111: 0 | L111: 0 | M111: 0 | N111: 16994126 | O111: 470769 | P111: 1031770 | Q111: 776153 | R111: 955903 | S111: 420527 | T111: 837408 | U111: 2598821 | V111: 3464750 | W111: 6313752 | X111: 8471381 | Y111: 8640304 | Z111: 17944160 | AA111: 13516171 | AB111: 2764565 | AC111: 0 | AD111: 0 | AE111: 0 | AF111: 0 | AG111: 0 | AH111: 0 | AI111: 0 | AJ111: 0 | AK111: 0 | AL111: 0 | AM111: 0 | AN111: 0 | AO111: 0 | AP111: 0 | AQ111: 85200560 | AR111: 85200560
A112: New Adult Group | B112: 0 | C112: 0 | D112: 0 | E112: 0 | F112: 0 | G112: 0 | H112: 0 | I112: 0 | J112: 0 | K112: 0 | L112: 0 | M112: 0 | N112: 0 | O112: 0 | P112: 0 | Q112: 0 | R112: 0 | S112: 259957518 | T112: 1835778954 | U112: 2276183216 | V112: 2744042817 | W112: 2877336529 | X112: 2677401890 | Y112: 3038893686 | Z112: 3243021782 | AA112: 3278448898 | AB112: 2063688935 | AC112: 0 | AD112: 0 | AE112: 0 | AF112: 0 | AG112: 0 | AH112: 0 | AI112: 0 | AJ112: 0 | AK112: 0 | AL112: 0 | AM112: 0 | AN112: 0 | AO112: 0 | AP112: 0 | AQ112: 24294754225 | AR112: 24294754225
A113: PAC | B113: 0 | C113: 0 | D113: 0 | E113: 0 | F113: 0 | G113: 0 | H113: 0 | I113: 0 | J113: 0 | K113: 0 | L113: 0 | M113: 0 | N113: 0 | O113: 0 | P113: 0 | Q113: 0 | R113: 0 | S113: 0 | T113: 0 | U113: 0 | V113: 0 | W113: 0 | X113: 0 | Y113: 0 | Z113: 0 | AA113: 0 | AB113: 0 | AC113: 0 | AD113: 0 | AE113: 0 | AF113: 0 | AG113: 0 | AH113: 0 | AI113: 0 | AJ113: 0 | AK113: 0 | AL113: 0 | AM113: 0 | AN113: 0 | AO113: 0 | AP113: 0 | AQ113: 0 | AR113: 0
A114: Presumptive Eligibility Pregnant Women | B114: 0 | C114: 0 | D114: 0 | E114: 0 | F114: 0 | G114: 0 | H114: 0 | I114: 0 | J114: 0 | K114: 0 | L114: 0 | M114: 0 | N114: 0 | O114: 0 | P114: 0 | Q114: 0 | R114: 0 | S114: 0 | T114: -21458 | U114: 0 | V114: 4675 | W114: 0 | X114: 0 | Y114: 0 | Z114: 0 | AA114: 0 | AB114: 0 | AC114: 0 | AD114: 0 | AE114: 0 | AF114: 0 | AG114: 0 | AH114: 0 | AI114: 0 | AJ114: 0 | AK114: 0 | AL114: 0 | AM114: 0 | AN114: 0 | AO114: 0 | AP114: 0 | AQ114: -16783 | AR114: -16783
A115: Primary Adult Care | B115: 0 | C115: 0 | D115: 0 | E115: 0 | F115: 0 | G115: 0 | H115: 0 | I115: 0 | J115: 0 | K115: 0 | L115: 0 | M115: 0 | N115: 58234769 | O115: 0 | P115: 0 | Q115: 0 | R115: 0 | S115: 0 | T115: 0 | U115: 0 | V115: 0 | W115: 0 | X115: 0 | Y115: 0 | Z115: 0 | AA115: 0 | AB115: 0 | AC115: 0 | AD115: 0 | AE115: 0 | AF115: 0 | AG115: 0 | AH115: 0 | AI115: 0 | AJ115: 0 | AK115: 0 | AL115: 0 | AM115: 0 | AN115: 0 | AO115: 0 | AP115: 0 | AQ115: 58234769 | AR115: 58234769
A116: SOBRA | B116: 0 | C116: 0 | D116: 0 | E116: 0 | F116: 0 | G116: 0 | H116: 0 | I116: 0 | J116: 0 | K116: 782597453 | L116: 783658816 | M116: 852056319 | N116: -7 | O116: 0 | P116: 0 | Q116: 0 | R116: 0 | S116: 0 | T116: 0 | U116: 0 | V116: 0 | W116: 0 | X116: 0 | Y116: 0 | Z116: 0 | AA116: 0 | AB116: 0 | AC116: 0 | AD116: 0 | AE116: 0 | AF116: 0 | AG116: 0 | AH116: 0 | AI116: 0 | AJ116: 0 | AK116: 0 | AL116: 0 | AM116: 0 | AN116: 0 | AO116: 0 | AP116: 0 | AQ116: 2418312581 | AR116: 2418312581
A117: SOBRA Adult | B117: 0 | C117: 0 | D117: 0 | E117: 0 | F117: 0 | G117: 0 | H117: 0 | I117: 0 | J117: 0 | K117: 0 | L117: 0 | M117: 0 | N117: 258855828 | O117: 217791676 | P117: 258824902 | Q117: 249413715 | R117: 224693918 | S117: 240396271 | T117: 222269739 | U117: 160236962 | V117: 177085029 | W117: 201313767 | X117: 259611353 | Y117: 297950924 | Z117: 221956539 | AA117: 250489318 | AB117: 142217013 | AC117: 0 | AD117: 0 | AE117: 0 | AF117: 0 | AG117: 0 | AH117: 0 | AI117: 0 | AJ117: 0 | AK117: 0 | AL117: 0 | AM117: 0 | AN117: 0 | AO117: 0 | AP117: 0 | AQ117: 3383106954 | AR117: 3383106954
A118: SOBRA Chldrn | B118: 0 | C118: 0 | D118: 0 | E118: 0 | F118: 0 | G118: 0 | H118: 0 | I118: 0 | J118: 0 | K118: -74 | L118: -163 | M118: 0 | N118: 508614787 | O118: 426192078 | P118: 371386910 | Q118: 337525032 | R118: 343459624 | S118: 193788570 | T118: 0 | U118: 0 | V118: 0 | W118: 0 | X118: 0 | Y118: 0 | Z118: 0 | AA118: 0 | AB118: 0 | AC118: 0 | AD118: 0 | AE118: 0 | AF118: 0 | AG118: 0 | AH118: 0 | AI118: 0 | AJ118: 0 | AK118: 0 | AL118: 0 | AM118: 0 | AN118: 0 | AO118: 0 | AP118: 0 | AQ118: 2180966764 | AR118: 2180966764
A119: SSI/BD | B119: 0 | C119: 0 | D119: 0 | E119: 0 | F119: 0 | G119: 0 | H119: 0 | I119: 0 | J119: 0 | K119: 996842086 | L119: 982579177 | M119: 1062905479 | N119: -8 | O119: 0 | P119: -5 | Q119: 0 | R119: 0 | S119: 0 | T119: 0 | U119: 0 | V119: 0 | W119: 0 | X119: 0 | Y119: 0 | Z119: 0 | AA119: 0 | AB119: 0 | AC119: 0 | AD119: 0 | AE119: 0 | AF119: 0 | AG119: 0 | AH119: 0 | AI119: 0 | AJ119: 0 | AK119: 0 | AL119: 0 | AM119: 0 | AN119: 0 | AO119: 0 | AP119: 0 | AQ119: 3042326729 | AR119: 3042326729
A120: SSI/BD Adults | B120: 0 | C120: 0 | D120: 0 | E120: 0 | F120: 0 | G120: 0 | H120: 0 | I120: 0 | J120: 0 | K120: -62275 | L120: -125272 | M120: -114390 | N120: 828765469 | O120: 860547469 | P120: 954507205 | Q120: 1010291248 | R120: 994296747 | S120: 1088295074 | T120: 1152277187 | U120: 1165715465 | V120: 1245584081 | W120: 1309271463 | X120: 1302024690 | Y120: 1119453211 | Z120: 1393253088 | AA120: 1288546060 | AB120: 762802335 | AC120: 0 | AD120: 0 | AE120: 0 | AF120: 0 | AG120: 0 | AH120: 0 | AI120: 0 | AJ120: 0 | AK120: 0 | AL120: 0 | AM120: 0 | AN120: 0 | AO120: 0 | AP120: 0 | AQ120: 16475328855 | AR120: 16475328855
A121: SSI/BD Chldrn | B121: 0 | C121: 0 | D121: 0 | E121: 0 | F121: 0 | G121: 0 | H121: 0 | I121: 0 | J121: 0 | K121: -16192 | L121: -25537 | M121: -24860 | N121: 307065189 | O121: 311433085 | P121: 332737686 | Q121: 342108927 | R121: 339639498 | S121: 365388025 | T121: 389687077 | U121: 405228449 | V121: 429115801 | W121: 448239523 | X121: 426582361 | Y121: 359252359 | Z121: 433453672 | AA121: 355499370 | AB121: 178390520 | AC121: 0 | AD121: 0 | AE121: 0 | AF121: 0 | AG121: 0 | AH121: 0 | AI121: 0 | AJ121: 0 | AK121: 0 | AL121: 0 | AM121: 0 | AN121: 0 | AO121: 0 | AP121: 0 | AQ121: 5423754953 | AR121: 5423754953
A122: SUD IMD | B122: 0 | C122: 0 | D122: 0 | E122: 0 | F122: 0 | G122: 0 | H122: 0 | I122: 0 | J122: 0 | K122: 0 | L122: 0 | M122: 0 | N122: 0 | O122: 0 | P122: 0 | Q122: 0 | R122: 0 | S122: 0 | T122: 0 | U122: 0 | V122: 0 | W122: 38340926 | X122: 67849206 | Y122: 78293634 | Z122: 96279478 | AA122: 38914026 | AB122: 40692724 | AC122: 0 | AD122: 0 | AE122: 0 | AF122: 0 | AG122: 0 | AH122: 0 | AI122: 0 | AJ122: 0 | AK122: 0 | AL122: 0 | AM122: 0 | AN122: 0 | AO122: 0 | AP122: 0 | AQ122: 360369994 | AR122: 360369994
A123: TANF | B123: 0 | C123: 0 | D123: 0 | E123: 0 | F123: 0 | G123: 0 | H123: 0 | I123: 0 | J123: 0 | K123: 493781407 | L123: 452547745 | M123: 478050731 | N123: -11 | O123: 0 | P123: 0 | Q123: 0 | R123: 0 | S123: 0 | T123: 0 | U123: 0 | V123: 0 | W123: 0 | X123: 0 | Y123: 0 | Z123: 0 | AA123: 0 | AB123: 0 | AC123: 0 | AD123: 0 | AE123: 0 | AF123: 0 | AG123: 0 | AH123: 0 | AI123: 0 | AJ123: 0 | AK123: 0 | AL123: 0 | AM123: 0 | AN123: 0 | AO123: 0 | AP123: 0 | AQ123: 1424379872 | AR123: 1424379872
A124: TANF Adult 0-123 | B124: 0 | C124: 0 | D124: 0 | E124: 0 | F124: 0 | G124: 0 | H124: 0 | I124: 0 | J124: 0 | K124: 0 | L124: 0 | M124: 0 | N124: 0 | O124: 0 | P124: 0 | Q124: -138117 | R124: 0 | S124: 641394689 | T124: 1417316989 | U124: 1274672736 | V124: 1400895525 | W124: 1472107734 | X124: 1443897544 | Y124: 1181667778 | Z124: 1858005700 | AA124: 1870665623 | AB124: 1056772853 | AC124: 0 | AD124: 0 | AE124: 0 | AF124: 0 | AG124: 0 | AH124: 0 | AI124: 0 | AJ124: 0 | AK124: 0 | AL124: 0 | AM124: 0 | AN124: 0 | AO124: 0 | AP124: 0 | AQ124: 13617259054 | AR124: 13617259054
A125: TANF Adults 31-116 | B125: 0 | C125: 0 | D125: 0 | E125: 0 | F125: 0 | G125: 0 | H125: 0 | I125: 0 | J125: 0 | K125: 0 | L125: 0 | M125: 0 | N125: 135170562 | O125: 332902285 | P125: 476717302 | Q125: 548540960 | R125: 589505159 | S125: 355195641 | T125: 0 | U125: 0 | V125: 0 | W125: 0 | X125: 0 | Y125: 0 | Z125: 0 | AA125: 0 | AB125: 0 | AC125: 0 | AD125: 0 | AE125: 0 | AF125: 0 | AG125: 0 | AH125: 0 | AI125: 0 | AJ125: 0 | AK125: 0 | AL125: 0 | AM125: 0 | AN125: 0 | AO125: 0 | AP125: 0 | AQ125: 2438031909 | AR125: 2438031909
A126: TANF Adults thru 30 | B126: 0 | C126: 0 | D126: 0 | E126: 0 | F126: 0 | G126: 0 | H126: 0 | I126: 0 | J126: 0 | K126: 0 | L126: 0 | M126: 0 | N126: 322560402 | O126: 458560658 | P126: 594744887 | Q126: 646232301 | R126: 623703418 | S126: 364470586 | T126: 0 | U126: 0 | V126: 0 | W126: 0 | X126: 0 | Y126: 0 | Z126: 139181488 | AA126: 0 | AB126: 0 | AC126: 0 | AD126: 0 | AE126: 0 | AF126: 0 | AG126: 0 | AH126: 0 | AI126: 0 | AJ126: 0 | AK126: 0 | AL126: 0 | AM126: 0 | AN126: 0 | AO126: 0 | AP126: 0 | AQ126: 3149453740 | AR126: 3149453740
A127: TANF Chldrn 31-116 | B127: 0 | C127: 0 | D127: 0 | E127: 0 | F127: 0 | G127: 0 | H127: 0 | I127: 0 | J127: 0 | K127: 0 | L127: 0 | M127: 0 | N127: 84899890 | O127: 212726098 | P127: 296443272 | Q127: 341049609 | R127: 376557732 | S127: 234439927 | T127: 0 | U127: 0 | V127: 0 | W127: 0 | X127: 0 | Y127: 0 | Z127: 0 | AA127: 0 | AB127: 0 | AC127: 0 | AD127: 0 | AE127: 0 | AF127: 0 | AG127: 0 | AH127: 0 | AI127: 0 | AJ127: 0 | AK127: 0 | AL127: 0 | AM127: 0 | AN127: 0 | AO127: 0 | AP127: 0 | AQ127: 1546116528 | AR127: 1546116528
A128: TANF Chldrn thru 30 | B128: 0 | C128: 0 | D128: 0 | E128: 0 | F128: 0 | G128: 0 | H128: 0 | I128: 0 | J128: 0 | K128: 0 | L128: 0 | M128: 598 | N128: 380765876 | O128: 479163230 | P128: 533514882 | Q128: 547440592 | R128: 557198731 | S128: 324230705 | T128: 0 | U128: 0 | V128: 6407319 | W128: 0 | X128: 0 | Y128: 0 | Z128: 0 | AA128: 0 | AB128: 0 | AC128: 0 | AD128: 0 | AE128: 0 | AF128: 0 | AG128: 0 | AH128: 0 | AI128: 0 | AJ128: 0 | AK128: 0 | AL128: 0 | AM128: 0 | AN128: 0 | AO128: 0 | AP128: 0 | AQ128: 2828721933 | AR128: 2828721933
A129: Waiver Eligibles | B129: 0 | C129: 347137724 | D129: 166705894 | E129: 158271143 | F129: 151573385 | G129: 156970853 | H129: 172194416 | I129: 188077578 | J129: 199160581 | K129: 0 | L129: 0 | M129: 0 | N129: 0 | O129: 0 | P129: 0 | Q129: 0 | R129: 0 | S129: 0 | T129: 0 | U129: 0 | V129: 0 | W129: 0 | X129: 0 | Y129: 0 | Z129: 0 | AA129: 0 | AB129: 0 | AC129: 0 | AD129: 0 | AE129: 0 | AF129: 0 | AG129: 0 | AH129: 0 | AI129: 0 | AJ129: 0 | AK129: 0 | AL129: 0 | AM129: 0 | AN129: 0 | AO129: 0 | AP129: 0 | AQ129: 1540091574 | AR129: 1540091574
A130: Womens Breast Cancer | B130: 0 | C130: 0 | D130: 0 | E130: 0 | F130: 0 | G130: 0 | H130: 0 | I130: 0 | J130: 0 | K130: 0 | L130: 0 | M130: 0 | N130: 0 | O130: 0 | P130: 0 | Q130: 0 | R130: 0 | S130: 72828 | T130: 4887633 | U130: 3865053 | V130: 1167165 | W130: 167667 | X130: 1196039 | Y130: 1090905 | Z130: 441692 | AA130: 386960 | AB130: 195425 | AC130: 0 | AD130: 0 | AE130: 0 | AF130: 0 | AG130: 0 | AH130: 0 | AI130: 0 | AJ130: 0 | AK130: 0 | AL130: 0 | AM130: 0 | AN130: 0 | AO130: 0 | AP130: 0 | AQ130: 13471367 | AR130: 13471367
A131: Wraparound | B131: 0 | C131: 189366976 | D131: 318254264 | E131: 330825348 | F131: 374040180 | G131: 436776677 | H131: 567939671 | I131: 649933023 | J131: 525977844 | K131: 0 | L131: 0 | M131: 0 | N131: 0 | O131: 0 | P131: 0 | Q131: 0 | R131: 0 | S131: 0 | T131: 0 | U131: 0 | V131: 0 | W131: 0 | X131: 0 | Y131: 0 | Z131: 0 | AA131: 0 | AB131: 0 | AC131: 0 | AD131: 0 | AE131: 0 | AF131: 0 | AG131: 0 | AH131: 0 | AI131: 0 | AJ131: 0 | AK131: 0 | AL131: 0 | AM131: 0 | AN131: 0 | AO131: 0 | AP131: 0 | AQ131: 3393113983 | AR131: 3393113983
A132: Presumptive Eligibility Pregnant Women | AQ132: =SUM(B132:AP132) -> 0 | AR132: =AQ132 -> 0
A133: ACIS | AB133: 1230487 | AC133: 1485662 | AQ133: 2716149 | AR133: 2716149
A134: Maternal Opioid Misuse (MOM) | AB134: 1663 | AC134: 3118 | AQ134: 4781 | AR134: 4781
A135: Collaborative Care Model (CoCM) Pilot Program | AB135: 121906.04 | AC135: 131807 | AQ135: 253713.04 | AR135: 253713.04
A136: Residential Treatment for Individuals w/SMI | AB136: 52912839 | AC136: 55214679 | AQ136: 108127518 | AR136: 108127518
A137: Total | B137: =SUM(B101:B136) -> 0 | C137: =SUM(C101:C136) -> 1217319999 | D137: 1300161876 | E137: 1333189698 | F137: 1470139951 | G137: 1554049839 | H137: 1870036193 | I137: 2082901151 | J137: 2269355693 | K137: 2693121064 | L137: 2594161996 | M137: 2766819464 | N137: 3125682732 | O137: 3542386079 | P137: 4055456471 | Q137: 4189413999 | R137: 4172552813 | S137: 4886939121 | T137: 6700472800 | U137: 6749330809 | V137: 7642530734 | W137: 7974209473 | X137: 7885772262 | Y137: 7593975042 | Z137: 8898735632 | AA137: 8889964221 | AB137: 5268539627 | AC137: 56853039 | AD137: 0 | AE137: 0 | AF137: 0 | AG137: 0 | AH137: 0 | AI137: 0 | AJ137: 0 | AK137: 0 | AL137: 0 | AM137: 0 | AN137: 0 | AO137: 0 | AP137: 0 | AQ137: 1.127840718e+11 | AR137: 1.127840718e+11
A199: Federal Share
A200: Waiver Name | B200: A | C200: 01 | D200: 02 | E200: 03 | F200: 04 | G200: 05 | H200: 06 | I200: 07 | J200: 08 | K200: 09 | L200: 10 | M200: 11 | N200: 12 | O200: 13 | P200: 14 | Q200: 15 | R200: 16 | S200: 17 | T200: 18 | U200: 19 | V200: 20 | W200: 21 | X200: 22 | Y200: 23 | Z200: 24 | AA200: 25 | AB200: 26 | AC200: 27 | AD200: 28 | AE200: 29 | AF200: 30 | AG200: 31 | AH200: 32 | AI200: 33 | AJ200: 34 | AK200: 35 | AL200: 36 | AM200: 37 | AN200: 38 | AO200: 39 | AP200: 40 | AQ200: Total | AR200: Total Less Non-Adds
A201: Adult Dental Pilot Program | B201: 0 | C201: 0 | D201: 0 | E201: 0 | F201: 0 | G201: 0 | H201: 0 | I201: 0 | J201: 0 | K201: 0 | L201: 0 | M201: 0 | N201: 0 | O201: 0 | P201: 0 | Q201: 0 | R201: 0 | S201: 0 | T201: 0 | U201: 0 | V201: 0 | W201: 0 | X201: 788 | Y201: 394189 | Z201: =-2165+793355 -> 791190 | AA201: =654334+130963 -> 785297 | AB201: 322589 | AC201: 0 | AD201: 0 | AE201: 0 | AF201: 0 | AG201: 0 | AH201: 0 | AI201: 0 | AJ201: 0 | AK201: 0 | AL201: 0 | AM201: 0 | AN201: 0 | AO201: 0 | AP201: 0 | AQ201: =SUM(B201:AP201) -> 2294053 | AR201: =AQ201 -> 2294053
A202: Buy In | B202: 0 | C202: 0 | D202: 0 | E202: 0 | F202: 0 | G202: 0 | H202: 0 | I202: 0 | J202: 0 | K202: 0 | L202: 0 | M202: 0 | N202: 0 | O202: 0 | P202: 0 | Q202: 0 | R202: 0 | S202: 0 | T202: 0 | U202: 0 | V202: 0 | W202: 0 | X202: 0 | Y202: 0 | Z202: 0 | AA202: 0 | AB202: 0 | AC202: 0 | AD202: 0 | AE202: 0 | AF202: 0 | AG202: 0 | AH202: 0 | AI202: 0 | AJ202: 0 | AK202: 0 | AL202: 0 | AM202: 0 | AN202: 0 | AO202: 0 | AP202: 0 | AQ202: =SUM(B202:AP202) -> 0 | AR202: =AQ202 -> 0
A203: EID | B203: 0 | C203: 0 | D203: 0 | E203: 0 | F203: 0 | G203: 0 | H203: 0 | I203: 0 | J203: 0 | K203: 0 | L203: 0 | M203: 0 | N203: 1045394 | O203: 222006 | P203: 34466 | Q203: 27498 | R203: 32080 | S203: 16227 | T203: 0 | U203: 0 | V203: 0 | W203: 0 | X203: 0 | Y203: 0 | Z203: 0 | AA203: 0 | AB203: 0 | AC203: 0 | AD203: 0 | AE203: 0 | AF203: 0 | AG203: 0 | AH203: 0 | AI203: 0 | AJ203: 0 | AK203: 0 | AL203: 0 | AM203: 0 | AN203: 0 | AO203: 0 | AP203: 0 | AQ203: 1377671 | AR203: 1377671
A204: Family Planning | B204: 0 | C204: 0 | D204: 0 | E204: 0 | F204: 0 | G204: 0 | H204: 0 | I204: 0 | J204: 0 | K204: 0 | L204: 0 | M204: 0 | N204: 1259646 | O204: 672076 | P204: -1089286 | Q204: -938236 | R204: -305650 | S204: -53704 | T204: 0 | U204: 0 | V204: 0 | W204: 0 | X204: 0 | Y204: 0 | Z204: 0 | AA204: 0 | AB204: 0 | AC204: 0 | AD204: 0 | AE204: 0 | AF204: 0 | AG204: 0 | AH204: 0 | AI204: 0 | AJ204: 0 | AK204: 0 | AL204: 0 | AM204: 0 | AN204: 0 | AO204: 0 | AP204: 0 | AQ204: -455154 | AR204: -455154
A205: Former Foster Dental | B205: 0 | C205: 0 | D205: 0 | E205: 0 | F205: 0 | G205: 0 | H205: 0 | I205: 0 | J205: 0 | K205: 0 | L205: 0 | M205: 0 | N205: 0 | O205: 0 | P205: 0 | Q205: 0 | R205: 0 | S205: 0 | T205: 0 | U205: 0 | V205: 610 | W205: 26753 | X205: 0 | Y205: 0 | Z205: 0 | AA205: 0 | AB205: 0 | AC205: 0 | AD205: 0 | AE205: 0 | AF205: 0 | AG205: 0 | AH205: 0 | AI205: 0 | AJ205: 0 | AK205: 0 | AL205: 0 | AM205: 0 | AN205: 0 | AO205: 0 | AP205: 0 | AQ205: 27363 | AR205: 27363
A206: ICS | B206: 0 | C206: 0 | D206: 0 | E206: 0 | F206: 0 | G206: 0 | H206: 0 | I206: 0 | J206: 0 | K206: 0 | L206: 0 | M206: 0 | N206: 0 | O206: 0 | P206: 0 | Q206: 0 | R206: 0 | S206: 12 | T206: 0 | U206: 0 | V206: 0 | W206: 0 | X206: 0 | Y206: 0 | Z206: 0 | AA206: 0 | AB206: 0 | AC206: 0 | AD206: 0 | AE206: 0 | AF206: 0 | AG206: 0 | AH206: 0 | AI206: 0 | AJ206: 0 | AK206: 0 | AL206: 0 | AM206: 0 | AN206: 0 | AO206: 0 | AP206: 0 | AQ206: 12 | AR206: 12
A207: MCO Capitation Payments | B207: 0 | C207: 333211341 | D207: 408389000 | E207: 424951299 | F207: 466674946 | G207: 485080599 | H207: 585218091 | I207: 659955839 | J207: 761838484 | K207: -4466803 | L207: 0 | M207: 0 | N207: 0 | O207: 0 | P207: -620 | Q207: 0 | R207: -85 | S207: 0 | T207: 0 | U207: 0 | V207: 52807244 | W207: 0 | X207: 0 | Y207: 0 | Z207: 0 | AA207: 0 | AB207: 0 | AC207: 0 | AD207: 0 | AE207: 0 | AF207: 0 | AG207: 0 | AH207: 0 | AI207: 0 | AJ207: 0 | AK207: 0 | AL207: 0 | AM207: 0 | AN207: 0 | AO207: 0 | AP207: 0 | AQ207: 4173659335 | AR207: 4173659335
A208: Medicaid Children | B208: 0 | C208: 0 | D208: 0 | E208: 0 | F208: 0 | G208: 0 | H208: 0 | I208: 0 | J208: 0 | K208: 0 | L208: 0 | M208: 0 | N208: 0 | O208: 0 | P208: 0 | Q208: 0 | R208: 0 | S208: 343597504 | T208: 773117605 | U208: 703005892 | V208: 763119048 | W208: 772416675 | X208: 778360299 | Y208: 694821684 | Z208: 956313880 | AA208: 965203377 | AB208: 538491501 | AC208: 0 | AD208: 0 | AE208: 0 | AF208: 0 | AG208: 0 | AH208: 0 | AI208: 0 | AJ208: 0 | AK208: 0 | AL208: 0 | AM208: 0 | AN208: 0 | AO208: 0 | AP208: 0 | AQ208: 7288447465 | AR208: 7288447465
A209: Medically Needy | B209: 0 | C209: -9392951 | D209: -69345 | E209: 79438 | F209: 17041727 | G209: -336570 | H209: 10579 | I209: -5625888 | J209: 24157341 | K209: 214617082 | L209: 188560769 | M209: 189017476 | N209: -39 | O209: -12 | P209: -57 | Q209: 2154045 | R209: -4193 | S209: 203826 | T209: 171460 | U209: 4046931 | V209: 18765617 | W209: 31427377 | X209: 64214935 | Y209: 82788360 | Z209: 27091874 | AA209: 0 | AB209: 0 | AC209: 0 | AD209: 0 | AE209: 0 | AF209: 0 | AG209: 0 | AH209: 0 | AI209: 0 | AJ209: 0 | AK209: 0 | AL209: 0 | AM209: 0 | AN209: 0 | AO209: 0 | AP209: 0 | AQ209: 848919782 | AR209: 848919782
A210: MN Adults | B210: 0 | C210: 0 | D210: 0 | E210: 0 | F210: 0 | G210: 0 | H210: 0 | I210: 0 | J210: 0 | K210: 0 | L210: 0 | M210: 0 | N210: 128620639 | O210: 151107286 | P210: 141981701 | Q210: 83259595 | R210: 62409111 | S210: 67235583 | T210: 66815062 | U210: 23767942 | V210: 9308581 | W210: 7044287 | X210: 7445397 | Y210: 8491022 | Z210: -160411437 | AA210: 56246643 | AB210: 4493185 | AC210: 0 | AD210: 0 | AE210: 0 | AF210: 0 | AG210: 0 | AH210: 0 | AI210: 0 | AJ210: 0 | AK210: 0 | AL210: 0 | AM210: 0 | AN210: 0 | AO210: 0 | AP210: 0 | AQ210: 657814597 | AR210: 657814597
A211: MN Chldrn | B211: 0 | C211: 0 | D211: 0 | E211: 0 | F211: 0 | G211: 0 | H211: 0 | I211: 0 | J211: 0 | K211: 0 | L211: 0 | M211: 0 | N211: 9191158 | O211: 326966 | P211: 634720 | Q211: 393741 | R211: 479357 | S211: 210967 | T211: 419893 | U211: 1301152 | V211: 1732394 | W211: 3157118 | X211: 4238422 | Y211: 4560228 | Z211: 11133836 | AA211: 7924760 | AB211: 1553686 | AC211: 0 | AD211: 0 | AE211: 0 | AF211: 0 | AG211: 0 | AH211: 0 | AI211: 0 | AJ211: 0 | AK211: 0 | AL211: 0 | AM211: 0 | AN211: 0 | AO211: 0 | AP211: 0 | AQ211: 47258398 | AR211: 47258398
A212: New Adult Group | B212: 0 | C212: 0 | D212: 0 | E212: 0 | F212: 0 | G212: 0 | H212: 0 | I212: 0 | J212: 0 | K212: 0 | L212: 0 | M212: 0 | N212: 0 | O212: 0 | P212: 0 | Q212: 0 | R212: 0 | S212: 259956414 | T212: 1835580183 | U212: 2274728347 | V212: 2675522182 | W212: 2719361576 | X212: 2502821299 | Y212: 2784264195 | Z212: 2921080269 | AA212: 2958697611 | AB212: 1857320047 | AC212: 0 | AD212: 0 | AE212: 0 | AF212: 0 | AG212: 0 | AH212: 0 | AI212: 0 | AJ212: 0 | AK212: 0 | AL212: 0 | AM212: 0 | AN212: 0 | AO212: 0 | AP212: 0 | AQ212: 22789332123 | AR212: 22789332123
A213: PAC | B213: 0 | C213: 0 | D213: 0 | E213: 0 | F213: 0 | G213: 0 | H213: 0 | I213: 0 | J213: 0 | K213: 0 | L213: 0 | M213: 0 | N213: 16602688 | O213: 71237155 | P213: 97096508 | Q213: 100302478 | R213: 118794277 | S213: 71068917 | T213: 0 | U213: 0 | V213: 0 | W213: 0 | X213: 0 | Y213: 0 | Z213: 0 | AA213: 0 | AB213: 0 | AC213: 0 | AD213: 0 | AE213: 0 | AF213: 0 | AG213: 0 | AH213: 0 | AI213: 0 | AJ213: 0 | AK213: 0 | AL213: 0 | AM213: 0 | AN213: 0 | AO213: 0 | AP213: 0 | AQ213: 475102023 | AR213: 475102023
A214: Presumptive Eligibility Pregnant Women | B214: 0 | C214: 0 | D214: 0 | E214: 0 | F214: 0 | G214: 0 | H214: 0 | I214: 0 | J214: 0 | K214: 0 | L214: 0 | M214: 0 | N214: 0 | O214: 0 | P214: 0 | Q214: 0 | R214: 0 | S214: 0 | T214: -10729 | U214: 0 | V214: 2338 | W214: 0 | X214: 0 | Y214: 0 | Z214: 0 | AA214: 0 | AB214: 0 | AC214: 0 | AD214: 0 | AE214: 0 | AF214: 0 | AG214: 0 | AH214: 0 | AI214: 0 | AJ214: 0 | AK214: 0 | AL214: 0 | AM214: 0 | AN214: 0 | AO214: 0 | AP214: 0 | AQ214: -8391 | AR214: -8391
A215: Primary Adult Care | B215: 0 | C215: 0 | D215: 0 | E215: 0 | F215: 0 | G215: 0 | H215: 0 | I215: 0 | J215: 0 | K215: 0 | L215: 0 | M215: 0 | N215: 32778424 | O215: 0 | P215: 0 | Q215: 0 | R215: 0 | S215: 0 | T215: 0 | U215: 0 | V215: 0 | W215: 0 | X215: 0 | Y215: 0 | Z215: 0 | AA215: 0 | AB215: 0 | AC215: 0 | AD215: 0 | AE215: 0 | AF215: 0 | AG215: 0 | AH215: 0 | AI215: 0 | AJ215: 0 | AK215: 0 | AL215: 0 | AM215: 0 | AN215: 0 | AO215: 0 | AP215: 0 | AQ215: 32778424 | AR215: 32778424
A216: SOBRA | B216: 0 | C216: 0 | D216: 0 | E216: 0 | F216: 0 | G216: 0 | H216: 0 | I216: 0 | J216: 0 | K216: 400137895 | L216: 400599049 | M216: 437812710 | N216: -4 | O216: 0 | P216: 0 | Q216: 0 | R216: 0 | S216: 0 | T216: 0 | U216: 0 | V216: 0 | W216: 0 | X216: 0 | Y216: 0 | Z216: 0 | AA216: 0 | AB216: 0 | AC216: 0 | AD216: 0 | AE216: 0 | AF216: 0 | AG216: 0 | AH216: 0 | AI216: 0 | AJ216: 0 | AK216: 0 | AL216: 0 | AM216: 0 | AN216: 0 | AO216: 0 | AP216: 0 | AQ216: 1238549650 | AR216: 1238549650
A217: SOBRA Adult | B217: 0 | C217: 0 | D217: 0 | E217: 0 | F217: 0 | G217: 0 | H217: 0 | I217: 0 | J217: 0 | K217: 0 | L217: 0 | M217: 0 | N217: 157442172 | O217: 140885367 | P217: 161400241 | Q217: 140245412 | R217: 127601560 | S217: 141952739 | T217: 123052078 | U217: 95897379 | V217: 101654897 | W217: 114471799 | X217: 144730997 | Y217: 172889912 | Z217: 140919027 | AA217: 157532749 | AB217: 87796793 | AC217: 0 | AD217: 0 | AE217: 0 | AF217: 0 | AG217: 0 | AH217: 0 | AI217: 0 | AJ217: 0 | AK217: 0 | AL217: 0 | AM217: 0 | AN217: 0 | AO217: 0 | AP217: 0 | AQ217: 2008473122 | AR217: 2008473122
A218: SOBRA Chldrn | B218: 0 | C218: 0 | D218: 0 | E218: 0 | F218: 0 | G218: 0 | H218: 0 | I218: 0 | J218: 0 | K218: -42 | L218: -82 | M218: 0 | N218: 290674816 | O218: 263299024 | P218: 221371351 | Q218: 169999235 | R218: 171947667 | S218: 97010354 | T218: 0 | U218: 0 | V218: 0 | W218: 0 | X218: 0 | Y218: 0 | Z218: 0 | AA218: 0 | AB218: 0 | AC218: 0 | AD218: 0 | AE218: 0 | AF218: 0 | AG218: 0 | AH218: 0 | AI218: 0 | AJ218: 0 | AK218: 0 | AL218: 0 | AM218: 0 | AN218: 0 | AO218: 0 | AP218: 0 | AQ218: 1214302323 | AR218: 1214302323
A219: SSI/BD | B219: 0 | C219: 0 | D219: 0 | E219: 0 | F219: 0 | G219: 0 | H219: 0 | I219: 0 | J219: 2 | K219: 498603948 | L219: 492131646 | M219: 536111234 | N219: -4 | O219: 0 | P219: -3 | Q219: 0 | R219: 0 | S219: 0 | T219: 0 | U219: 0 | V219: 0 | W219: 0 | X219: 0 | Y219: 0 | Z219: 0 | AA219: 0 | AB219: 0 | AC219: 0 | AD219: 0 | AE219: 0 | AF219: 0 | AG219: 0 | AH219: 0 | AI219: 0 | AJ219: 0 | AK219: 0 | AL219: 0 | AM219: 0 | AN219: 0 | AO219: 0 | AP219: 0 | AQ219: 1526846823 | AR219: 1526846823
A220: SSI/BD Adults | B220: 0 | C220: 0 | D220: 0 | E220: 0 | F220: 0 | G220: 0 | H220: 0 | I220: 0 | J220: 0 | K220: -31138 | L220: -62636 | M220: -57196 | N220: 477240092 | O220: 532890402 | P220: 570760272 | Q220: 509401943 | R220: 499273533 | S220: 546667509 | T220: 579153695 | U220: 583342166 | V220: 622823822 | W220: 654671686 | X220: 651156830 | Y220: 585088482 | Z220: 783189203 | AA220: 724521958 | AB220: 428703635 | AC220: 0 | AD220: 0 | AE220: 0 | AF220: 0 | AG220: 0 | AH220: 0 | AI220: 0 | AJ220: 0 | AK220: 0 | AL220: 0 | AM220: 0 | AN220: 0 | AO220: 0 | AP220: 0 | AQ220: 8748734258 | AR220: 8748734258
A221: SSI/BD Chldrn | B221: 0 | C221: 0 | D221: 0 | E221: 0 | F221: 0 | G221: 0 | H221: 0 | I221: 0 | J221: 0 | K221: -8096 | L221: -12771 | M221: -12436 | N221: 177496863 | O221: 192811042 | P221: 197619328 | Q221: 172164003 | R221: 170781279 | S221: 183725090 | T221: 196206854 | U221: 202888285 | V221: 214557944 | W221: 224135053 | X221: 213377050 | Y221: 188454229 | Z221: 243607531 | AA221: 199796672 | AB221: 100269662 | AC221: 0 | AD221: 0 | AE221: 0 | AF221: 0 | AG221: 0 | AH221: 0 | AI221: 0 | AJ221: 0 | AK221: 0 | AL221: 0 | AM221: 0 | AN221: 0 | AO221: 0 | AP221: 0 | AQ221: 2877857582 | AR221: 2877857582
A222: SUD IMD | B222: 0 | C222: 0 | D222: 0 | E222: 0 | F222: 0 | G222: 0 | H222: 0 | I222: 0 | J222: 0 | K222: 0 | L222: 0 | M222: 0 | N222: 0 | O222: 0 | P222: 0 | Q222: 0 | R222: 0 | S222: 0 | T222: 0 | U222: 0 | V222: 0 | W222: 31146864 | X222: 57080795 | Y222: 62576050 | Z222: 77763897 | AA222: 32305850 | AB222: 32445677 | AC222: 0 | AD222: 0 | AE222: 0 | AF222: 0 | AG222: 0 | AH222: 0 | AI222: 0 | AJ222: 0 | AK222: 0 | AL222: 0 | AM222: 0 | AN222: 0 | AO222: 0 | AP222: 0 | AQ222: 293319133 | AR222: 293319133
A223: TANF | B223: 0 | C223: 0 | D223: 0 | E223: 0 | F223: 0 | G223: 0 | H223: 0 | I223: 0 | J223: 0 | K223: 247123056 | L223: 226804938 | M223: 241789805 | N223: -10 | O223: 0 | P223: 0 | Q223: 0 | R223: 0 | S223: 0 | T223: 0 | U223: 0 | V223: 0 | W223: 0 | X223: 0 | Y223: 0 | Z223: 0 | AA223: 0 | AB223: 0 | AC223: 0 | AD223: 0 | AE223: 0 | AF223: 0 | AG223: 0 | AH223: 0 | AI223: 0 | AJ223: 0 | AK223: 0 | AL223: 0 | AM223: 0 | AN223: 0 | AO223: 0 | AP223: 0 | AQ223: 715717789 | AR223: 715717789
A224: TANF Adult 0-123 | B224: 0 | C224: 0 | D224: 0 | E224: 0 | F224: 0 | G224: 0 | H224: 0 | I224: 0 | J224: 0 | K224: 0 | L224: 0 | M224: 0 | N224: 0 | O224: 0 | P224: 0 | Q224: -69060 | R224: 0 | S224: 321105469 | T224: 708601666 | U224: 637476247 | V224: 700446716 | W224: 736050269 | X224: 722018140 | Y224: 616714647 | Z224: 1114887887 | AA224: 1084004585 | AB224: 593906909 | AC224: 0 | AD224: 0 | AE224: 0 | AF224: 0 | AG224: 0 | AH224: 0 | AI224: 0 | AJ224: 0 | AK224: 0 | AL224: 0 | AM224: 0 | AN224: 0 | AO224: 0 | AP224: 0 | AQ224: 7235143475 | AR224: 7235143475
A225: TANF Adults 31-116 | B225: 0 | C225: 0 | D225: 0 | E225: 0 | F225: 0 | G225: 0 | H225: 0 | I225: 0 | J225: 0 | K225: 0 | L225: 0 | M225: 0 | N225: 79770950 | O225: 205714356 | P225: 285371417 | Q225: 276724844 | R225: 295048298 | S225: 177752419 | T225: 0 | U225: 0 | V225: 0 | W225: 0 | X225: 0 | Y225: 0 | Z225: 0 | AA225: 0 | AB225: 0 | AC225: 0 | AD225: 0 | AE225: 0 | AF225: 0 | AG225: 0 | AH225: 0 | AI225: 0 | AJ225: 0 | AK225: 0 | AL225: 0 | AM225: 0 | AN225: 0 | AO225: 0 | AP225: 0 | AQ225: 1320382284 | AR225: 1320382284
A226: TANF Adults thru 30 | B226: 0 | C226: 0 | D226: 0 | E226: 0 | F226: 0 | G226: 0 | H226: 0 | I226: 0 | J226: 0 | K226: 0 | L226: 0 | M226: 0 | N226: 187677649 | O226: 283489949 | P226: 355450530 | Q226: 325846531 | R226: 312419289 | S226: 182546001 | T226: 0 | U226: 0 | V226: 0 | W226: 0 | X226: 0 | Y226: 0 | Z226: 98539857 | AA226: 0 | AB226: 0 | AC226: 0 | AD226: 0 | AE226: 0 | AF226: 0 | AG226: 0 | AH226: 0 | AI226: 0 | AJ226: 0 | AK226: 0 | AL226: 0 | AM226: 0 | AN226: 0 | AO226: 0 | AP226: 0 | AQ226: 1745969806 | AR226: 1745969806
A227: TANF Chldrn 31-116 | B227: 0 | C227: 0 | D227: 0 | E227: 0 | F227: 0 | G227: 0 | H227: 0 | I227: 0 | J227: 0 | K227: 0 | L227: 0 | M227: 0 | N227: 50143986 | O227: 131728772 | P227: 176667205 | Q227: 171775087 | R227: 188745777 | S227: 117475912 | T227: 0 | U227: 0 | V227: 0 | W227: 0 | X227: 0 | Y227: 0 | Z227: 0 | AA227: 0 | AB227: 0 | AC227: 0 | AD227: 0 | AE227: 0 | AF227: 0 | AG227: 0 | AH227: 0 | AI227: 0 | AJ227: 0 | AK227: 0 | AL227: 0 | AM227: 0 | AN227: 0 | AO227: 0 | AP227: 0 | AQ227: 836536739 | AR227: 836536739
A228: TANF Chldrn thru 30 | B228: 0 | C228: 0 | D228: 0 | E228: 0 | F228: 0 | G228: 0 | H228: 0 | I228: 0 | J228: 0 | K228: 0 | L228: 0 | M228: 299 | N228: 222402436 | O228: 296865315 | P228: 317407038 | Q228: 275523262 | R228: 279594868 | S228: 162644211 | T228: 0 | U228: 0 | V228: 3203663 | W228: 0 | X228: 0 | Y228: 0 | Z228: 0 | AA228: 0 | AB228: 0 | AC228: 0 | AD228: 0 | AE228: 0 | AF228: 0 | AG228: 0 | AH228: 0 | AI228: 0 | AJ228: 0 | AK228: 0 | AL228: 0 | AM228: 0 | AN228: 0 | AO228: 0 | AP228: 0 | AQ228: 1557641092 | AR228: 1557641092
A229: Waiver Eligibles | B229: 0 | C229: 174143417 | D229: 83944569 | E229: 79883489 | F229: 77044659 | G229: 78989354 | H229: 89785113 | I229: 98666747 | J229: 99695877 | K229: 0 | L229: 0 | M229: 0 | N229: 0 | O229: 0 | P229: 0 | Q229: 0 | R229: 0 | S229: 0 | T229: 0 | U229: 0 | V229: 0 | W229: 0 | X229: 0 | Y229: 0 | Z229: 0 | AA229: 0 | AB229: 0 | AC229: 0 | AD229: 0 | AE229: 0 | AF229: 0 | AG229: 0 | AH229: 0 | AI229: 0 | AJ229: 0 | AK229: 0 | AL229: 0 | AM229: 0 | AN229: 0 | AO229: 0 | AP229: 0 | AQ229: 782153225 | AR229: 782153225
A230: Womens Breast Cancer | B230: 0 | C230: 0 | D230: 0 | E230: 0 | F230: 0 | G230: 0 | H230: 0 | I230: 0 | J230: 0 | K230: 0 | L230: 0 | M230: 0 | N230: 0 | O230: 0 | P230: 0 | Q230: 0 | R230: 0 | S230: 47497 | T230: 3176621 | U230: 2512100 | V230: 758644 | W230: 108928 | X230: 775890 | Y230: 727062 | Z230: 306273 | AA230: 268318 | AB230: 135509 | AC230: 0 | AD230: 0 | AE230: 0 | AF230: 0 | AG230: 0 | AH230: 0 | AI230: 0 | AJ230: 0 | AK230: 0 | AL230: 0 | AM230: 0 | AN230: 0 | AO230: 0 | AP230: 0 | AQ230: 8816842 | AR230: 8816842
A231: Wraparound | B231: 0 | C231: 94684428 | D231: 159546730 | E231: 166738684 | F231: 191736143 | G231: 219361324 | H231: 290798969 | I231: 339568971 | J231: 263010083 | K231: 0 | L231: 0 | M231: 0 | N231: 0 | O231: 0 | P231: 0 | Q231: 0 | R231: 0 | S231: 0 | T231: 0 | U231: 0 | V231: 0 | W231: 0 | X231: 0 | Y231: 0 | Z231: 0 | AA231: 0 | AB231: 0 | AC231: 0 | AD231: 0 | AE231: 0 | AF231: 0 | AG231: 0 | AH231: 0 | AI231: 0 | AJ231: 0 | AK231: 0 | AL231: 0 | AM231: 0 | AN231: 0 | AO231: 0 | AP231: 0 | AQ231: 1725445332 | AR231: 1725445332
A232: Presumptive Eligibility Pregnant Women | AQ232: =SUM(B232:AP232) -> 0 | AR232: =AQ232 -> 0
A233: ACIS | AB233: 615243.5 | AC233: 742831 | AQ233: 1358074.5 | AR233: 1358074.5
A234: Maternal Opioid Misuse (MOM) | AB234: 831.5 | AC234: 1559 | AQ234: 2390.5 | AR234: 2390.5
A235: Collaborative Care Model (CoCM) Pilot Program | AB235: 60953.02 | AC235: 65903.5 | AQ235: 126856.52 | AR235: 126856.52
A236: Residential Treatment for Individuals w/SMI | AQ236: 0 | AR236: 0
A237: Total | B237: =SUM(B201:B236) -> 0 | C237: =SUM(C201:C236) -> 592646235 | D237: 651810954 | E237: 671652910 | F237: 752497475 | G237: 783094707 | H237: 965812752 | I237: 1092565669 | J237: 1148701787 | K237: 1355975902 | L237: 1308020913 | M237: 1404661892 | N237: 1832346856 | O237: 2271249704 | P237: 2524704811 | Q237: 2226810378 | R237: 2226817168 | S237: 2673162947 | T237: 4286284388 | U237: 4528966441 | V237: 5164703700 | W237: 5294018385 | X237: 5146220842 | Y237: 5201770060 | Z237: 6215213287 | AA237: 6187287820 | AB237: 3646116221 | AC237: 810293.5 | AD237: 0 | AE237: 0 | AF237: 0 | AG237: 0 | AH237: 0 | AI237: 0 | AJ237: 0 | AK237: 0 | AL237: 0 | AM237: 0 | AN237: 0 | AO237: 0 | AP237: 0 | AQ237: 7.01539245e+10 | AR237: 7.01539245e+10
A297: ADM Waivers
A299: Total Computable
A300: Waiver Name | B300: A | C300: 01 | D300: 02 | E300: 03 | F300: 04 | G300: 05 | H300: 06 | I300: 07 | J300: 08 | K300: 09 | L300: 10 | M300: 11 | N300: 12 | O300: 13 | P300: 14 | Q300: 15 | R300: 16 | S300: 17 | T300: 18 | U300: 19 | V300: 20 | W300: 21 | X300: 22 | Y300: 23 | Z300: 24 | AA300: 25 | AB300: 26 | AC300: 27 | AD300: 28 | AE300: 29 | AF300: 30 | AG300: 31 | AH300: 32 | AI300: 33 | AJ300: 34 | AK300: 35 | AL300: 36 | AM300: 37 | AN300: 38 | AO300: 39 | AP300: 40 | AQ300: Total | AR300: Total Less Non-Adds
A301: Family Planning | B301: 0 | C301: 0 | D301: 0 | E301: 0 | F301: 0 | G301: 0 | H301: 0 | I301: 0 | J301: 0 | K301: 0 | L301: 0 | M301: 0 | N301: 0 | O301: 0 | P301: 0 | Q301: 0 | R301: 0 | S301: 0 | T301: 0 | U301: 0 | V301: 0 | W301: 0 | X301: 0 | Y301: 0 | Z301: 0 | AA301: 0 | AB301: 0 | AC301: 0 | AD301: 0 | AE301: 0 | AF301: 0 | AG301: 0 | AH301: 0 | AI301: 0 | AJ301: 0 | AK301: 0 | AL301: 0 | AM301: 0 | AN301: 0 | AO301: 0 | AP301: 0 | AQ301: 0 | AR301: 0
A302: ICS | B302: 0 | C302: 0 | D302: 0 | E302: 0 | F302: 0 | G302: 0 | H302: 0 | I302: 0 | J302: 0 | K302: 0 | L302: 0 | M302: 0 | N302: 0 | O302: 0 | P302: 0 | Q302: 0 | R302: 0 | S302: 0 | T302: 0 | U302: 0 | V302: 0 | W302: 0 | X302: 2785 | Y302: 12289 | Z302: 16060 | AA302: 33455 | AB302: 39824 | AC302: 0 | AD302: 0 | AE302: 0 | AF302: 0 | AG302: 0 | AH302: 0 | AI302: 0 | AJ302: 0 | AK302: 0 | AL302: 0 | AM302: 0 | AN302: 0 | AO302: 0 | AP302: 0 | AQ302: 104413 | AR302: 104413
A303: MCO Capitation Payments | B303: 0 | C303: 0 | D303: 0 | E303: 0 | F303: 0 | G303: 0 | H303: 0 | I303: 0 | J303: 1416552 | K303: 1894978 | L303: 3322414 | M303: 3171409 | N303: 3979053 | O303: 2834984 | P303: 7160204 | Q303: 17771839 | R303: 7058212 | S303: 0 | T303: 0 | U303: 0 | V303: 0 | W303: 3138641 | X303: 132138 | Y303: 0 | Z303: 0 | AA303: 0 | AB303: 0 | AC303: 0 | AD303: 0 | AE303: 0 | AF303: 0 | AG303: 0 | AH303: 0 | AI303: 0 | AJ303: 0 | AK303: 0 | AL303: 0 | AM303: 0 | AN303: 0 | AO303: 0 | AP303: 0 | AQ303: 51880424 | AR303: 51880424
A304: Medicaid Children | B304: 0 | C304: 0 | D304: 0 | E304: 0 | F304: 0 | G304: 0 | H304: 0 | I304: 0 | J304: 0 | K304: 0 | L304: 0 | M304: 0 | N304: 0 | O304: 0 | P304: 0 | Q304: 0 | R304: 0 | S304: 0 | T304: 0 | U304: 0 | V304: 0 | W304: 0 | X304: 45479545 | Y304: 29322794 | Z304: 33114436 | AA304: 45895601 | AB304: 12891225 | AC304: 0 | AD304: 0 | AE304: 0 | AF304: 0 | AG304: 0 | AH304: 0 | AI304: 0 | AJ304: 0 | AK304: 0 | AL304: 0 | AM304: 0 | AN304: 0 | AO304: 0 | AP304: 0 | AQ304: 166703601 | AR304: 166703601
A305: MN Adults | B305: 0 | C305: 0 | D305: 0 | E305: 0 | F305: 0 | G305: 0 | H305: 0 | I305: 0 | J305: 0 | K305: 0 | L305: 0 | M305: 0 | N305: 0 | O305: 0 | P305: 0 | Q305: 0 | R305: 0 | S305: 0 | T305: 0 | U305: 0 | V305: 0 | W305: 0 | X305: 465823 | Y305: 377887 | Z305: 435436 | AA305: 430165 | AB305: 106430 | AC305: 0 | AD305: 0 | AE305: 0 | AF305: 0 | AG305: 0 | AH305: 0 | AI305: 0 | AJ305: 0 | AK305: 0 | AL305: 0 | AM305: 0 | AN305: 0 | AO305: 0 | AP305: 0 | AQ305: 1815741 | AR305: 1815741
A306: MN Chldrn | B306: 0 | C306: 0 | D306: 0 | E306: 0 | F306: 0 | G306: 0 | H306: 0 | I306: 0 | J306: 0 | K306: 0 | L306: 0 | M306: 0 | N306: 0 | O306: 0 | P306: 0 | Q306: 0 | R306: 0 | S306: 0 | T306: 0 | U306: 0 | V306: 0 | W306: 0 | X306: 261394 | Y306: 218501 | Z306: 202032 | AA306: 184725 | AB306: 35361 | AC306: 0 | AD306: 0 | AE306: 0 | AF306: 0 | AG306: 0 | AH306: 0 | AI306: 0 | AJ306: 0 | AK306: 0 | AL306: 0 | AM306: 0 | AN306: 0 | AO306: 0 | AP306: 0 | AQ306: 902013 | AR306: 902013
A307: New Adult Group | B307: 0 | C307: 0 | D307: 0 | E307: 0 | F307: 0 | G307: 0 | H307: 0 | I307: 0 | J307: 0 | K307: 0 | L307: 0 | M307: 0 | N307: 0 | O307: 0 | P307: 0 | Q307: 0 | R307: 0 | S307: 0 | T307: 0 | U307: 0 | V307: 0 | W307: 0 | X307: 79452471 | Y307: 76362219 | Z307: 60845407 | AA307: 88452599 | AB307: 26486668 | AC307: 0 | AD307: 0 | AE307: 0 | AF307: 0 | AG307: 0 | AH307: 0 | AI307: 0 | AJ307: 0 | AK307: 0 | AL307: 0 | AM307: 0 | AN307: 0 | AO307: 0 | AP307: 0 | AQ307: 331599364 | AR307: 331599364
A308: SOBRA Adult | B308: 0 | C308: 0 | D308: 0 | E308: 0 | F308: 0 | G308: 0 | H308: 0 | I308: 0 | J308: 0 | K308: 0 | L308: 0 | M308: 0 | N308: 0 | O308: 0 | P308: 0 | Q308: 0 | R308: 0 | S308: 0 | T308: 0 | U308: 0 | V308: 0 | W308: 0 | X308: 7990445 | Y308: 5722940 | Z308: 4480286 | AA308: 5742578 | AB308: 1909391 | AC308: 0 | AD308: 0 | AE308: 0 | AF308: 0 | AG308: 0 | AH308: 0 | AI308: 0 | AJ308: 0 | AK308: 0 | AL308: 0 | AM308: 0 | AN308: 0 | AO308: 0 | AP308: 0 | AQ308: 25845640 | AR308: 25845640
A309: SSI/BD Adults | B309: 0 | C309: 0 | D309: 0 | E309: 0 | F309: 0 | G309: 0 | H309: 0 | I309: 0 | J309: 0 | K309: 0 | L309: 0 | M309: 0 | N309: 0 | O309: 0 | P309: 0 | Q309: 0 | R309: 0 | S309: 0 | T309: 0 | U309: 0 | V309: 0 | W309: 0 | X309: 37297274 | Y309: 23512414 | Z309: 27398964 | AA309: 36242613 | AB309: 9657627 | AC309: 0 | AD309: 0 | AE309: 0 | AF309: 0 | AG309: 0 | AH309: 0 | AI309: 0 | AJ309: 0 | AK309: 0 | AL309: 0 | AM309: 0 | AN309: 0 | AO309: 0 | AP309: 0 | AQ309: 134108892 | AR309: 134108892
A310: SSI/BD Chldrn | B310: 0 | C310: 0 | D310: 0 | E310: 0 | F310: 0 | G310: 0 | H310: 0 | I310: 0 | J310: 0 | K310: 0 | L310: 0 | M310: 0 | N310: 0 | O310: 0 | P310: 0 | Q310: 0 | R310: 0 | S310: 0 | T310: 0 | U310: 0 | V310: 0 | W310: 0 | X310: 12193080 | Y310: 7973531 | Z310: 8327452 | AA310: 9934403 | AB310: 2493756 | AC310: 0 | AD310: 0 | AE310: 0 | AF310: 0 | AG310: 0 | AH310: 0 | AI310: 0 | AJ310: 0 | AK310: 0 | AL310: 0 | AM310: 0 | AN310: 0 | AO310: 0 | AP310: 0 | AQ310: 40922222 | AR310: 40922222
A311: SUD IMD | B311: 0 | C311: 0 | D311: 0 | E311: 0 | F311: 0 | G311: 0 | H311: 0 | I311: 0 | J311: 0 | K311: 0 | L311: 0 | M311: 0 | N311: 0 | O311: 0 | P311: 0 | Q311: 0 | R311: 0 | S311: 0 | T311: 0 | U311: 0 | V311: 0 | W311: 0 | X311: 1726681 | Y311: 1609022 | Z311: 2021554 | AA311: 1277670 | AB311: 538438 | AC311: 0 | AD311: 0 | AE311: 0 | AF311: 0 | AG311: 0 | AH311: 0 | AI311: 0 | AJ311: 0 | AK311: 0 | AL311: 0 | AM311: 0 | AN311: 0 | AO311: 0 | AP311: 0 | AQ311: 7173365 | AR311: 7173365
A312: TANF Adult 0-123 | B312: 0 | C312: 0 | D312: 0 | E312: 0 | F312: 0 | G312: 0 | H312: 0 | I312: 0 | J312: 0 | K312: 0 | L312: 0 | M312: 0 | N312: 0 | O312: 0 | P312: 0 | Q312: 0 | R312: 0 | S312: 0 | T312: 0 | U312: 0 | V312: 0 | W312: 0 | X312: 41038375 | Y312: 26025140 | Z312: 39242906 | AA312: 37171920 | AB312: 13144652 | AC312: 0 | AD312: 0 | AE312: 0 | AF312: 0 | AG312: 0 | AH312: 0 | AI312: 0 | AJ312: 0 | AK312: 0 | AL312: 0 | AM312: 0 | AN312: 0 | AO312: 0 | AP312: 0 | AQ312: 156622993 | AR312: 156622993
A313: Waiver Eligibles | B313: 0 | C313: 1395908 | D313: 0 | E313: 0 | F313: 0 | G313: 0 | H313: 0 | I313: 0 | J313: 0 | K313: 0 | L313: 0 | M313: 0 | N313: 0 | O313: 0 | P313: 0 | Q313: 0 | R313: 0 | S313: 0 | T313: 0 | U313: 0 | V313: 0 | W313: 0 | X313: 0 | Y313: 0 | Z313: 0 | AA313: 0 | AB313: 0 | AC313: 0 | AD313: 0 | AE313: 0 | AF313: 0 | AG313: 0 | AH313: 0 | AI313: 0 | AJ313: 0 | AK313: 0 | AL313: 0 | AM313: 0 | AN313: 0 | AO313: 0 | AP313: 0 | AQ313: 1395908 | AR313: 1395908
A314: Womens Breast Cancer | B314: 0 | C314: 0 | D314: 0 | E314: 0 | F314: 0 | G314: 0 | H314: 0 | I314: 0 | J314: 0 | K314: 0 | L314: 0 | M314: 0 | N314: 0 | O314: 0 | P314: 0 | Q314: 0 | R314: 0 | S314: 0 | T314: 0 | U314: 0 | V314: 0 | W314: 0 | X314: 36009 | Y314: 23111 | Z314: 8513 | AA314: 7628 | AB314: 4764 | AC314: 0 | AD314: 0 | AE314: 0 | AF314: 0 | AG314: 0 | AH314: 0 | AI314: 0 | AJ314: 0 | AK314: 0 | AL314: 0 | AM314: 0 | AN314: 0 | AO314: 0 | AP314: 0 | AQ314: 80025 | AR314: 80025
A315: Total | B315: 0 | C315: 1395908 | D315: 0 | E315: 0 | F315: 0 | G315: 0 | H315: 0 | I315: 0 | J315: 1416552 | K315: 1894978 | L315: 3322414 | M315: 3171409 | N315: 3979053 | O315: 2834984 | P315: 7160204 | Q315: 17771839 | R315: 7058212 | S315: 0 | T315: 0 | U315: 0 | V315: 0 | W315: 3138641 | X315: 226076020 | Y315: 171159848 | Z315: 176093046 | AA315: 225373357 | AB315: 67308136 | AC315: 0 | AD315: 0 | AE315: 0 | AF315: 0 | AG315: 0 | AH315: 0 | AI315: 0 | AJ315: 0 | AK315: 0 | AL315: 0 | AM315: 0 | AN315: 0 | AO315: 0 | AP315: 0 | AQ315: 919154601 | AR315: 919154601
A399: Federal Share
A400: Waiver Name | B400: A | C400: 01 | D400: 02 | E400: 03 | F400: 04 | G400: 05 | H400: 06 | I400: 07 | J400: 08 | K400: 09 | L400: 10 | M400: 11 | N400: 12 | O400: 13 | P400: 14 | Q400: 15 | R400: 16 | S400: 17 | T400: 18 | U400: 19 | V400: 20 | W400: 21 | X400: 22 | Y400: 23 | Z400: 24 | AA400: 25 | AB400: 26 | AC400: 27 | AD400: 28 | AE400: 29 | AF400: 30 | AG400: 31 | AH400: 32 | AI400: 33 | AJ400: 34 | AK400: 35 | AL400: 36 | AM400: 37 | AN400: 38 | AO400: 39 | AP400: 40 | AQ400: Total | AR400: Total Less Non-Adds
A401: Family Planning | B401: 0 | C401: 0 | D401: 0 | E401: 0 | F401: 0 | G401: 0 | H401: 0 | I401: 0 | J401: 0 | K401: 0 | L401: 0 | M401: 0 | N401: 0 | O401: 0 | P401: 0 | Q401: 0 | R401: 0 | S401: 0 | T401: 0 | U401: 0 | V401: 0 | W401: 0 | X401: 0 | Y401: 0 | Z401: 0 | AA401: 0 | AB401: 0 | AC401: 0 | AD401: 0 | AE401: 0 | AF401: 0 | AG401: 0 | AH401: 0 | AI401: 0 | AJ401: 0 | AK401: 0 | AL401: 0 | AM401: 0 | AN401: 0 | AO401: 0 | AP401: 0 | AQ401: 0 | AR401: 0
A402: ICS | B402: 0 | C402: 0 | D402: 0 | E402: 0 | F402: 0 | G402: 0 | H402: 0 | I402: 0 | J402: 0 | K402: 0 | L402: 0 | M402: 0 | N402: 0 | O402: 0 | P402: 0 | Q402: 0 | R402: 0 | S402: 0 | T402: 0 | U402: 0 | V402: 0 | W402: 0 | X402: 1893 | Y402: 7655 | Z402: 10133 | AA402: 19952 | AB402: 23934 | AC402: 0 | AD402: 0 | AE402: 0 | AF402: 0 | AG402: 0 | AH402: 0 | AI402: 0 | AJ402: 0 | AK402: 0 | AL402: 0 | AM402: 0 | AN402: 0 | AO402: 0 | AP402: 0 | AQ402: 63567 | AR402: 63567
A403: MCO Capitation Payments | B403: 0 | C403: 0 | D403: 0 | E403: 0 | F403: 0 | G403: 0 | H403: 0 | I403: 0 | J403: 708276 | K403: 947489 | L403: 1857113 | M403: 1773697 | N403: 2098595 | O403: 1563787 | P403: 3871562 | Q403: 9600031 | R403: 4056443 | S403: 0 | T403: 0 | U403: 0 | V403: 0 | W403: 1660987 | X403: 66069 | Y403: 0 | Z403: 0 | AA403: 0 | AB403: 0 | AC403: 0 | AD403: 0 | AE403: 0 | AF403: 0 | AG403: 0 | AH403: 0 | AI403: 0 | AJ403: 0 | AK403: 0 | AL403: 0 | AM403: 0 | AN403: 0 | AO403: 0 | AP403: 0 | AQ403: 28204049 | AR403: 28204049
A404: Medicaid Children | B404: 0 | C404: 0 | D404: 0 | E404: 0 | F404: 0 | G404: 0 | H404: 0 | I404: 0 | J404: 0 | K404: 0 | L404: 0 | M404: 0 | N404: 0 | O404: 0 | P404: 0 | Q404: 0 | R404: 0 | S404: 0 | T404: 0 | U404: 0 | V404: 0 | W404: 0 | X404: 30371021 | Y404: 18232733 | Z404: 20967635 | AA404: 27896275 | AB404: 7751615 | AC404: 0 | AD404: 0 | AE404: 0 | AF404: 0 | AG404: 0 | AH404: 0 | AI404: 0 | AJ404: 0 | AK404: 0 | AL404: 0 | AM404: 0 | AN404: 0 | AO404: 0 | AP404: 0 | AQ404: 105219279 | AR404: 105219279
A405: MN Adults | B405: 0 | C405: 0 | D405: 0 | E405: 0 | F405: 0 | G405: 0 | H405: 0 | I405: 0 | J405: 0 | K405: 0 | L405: 0 | M405: 0 | N405: 0 | O405: 0 | P405: 0 | Q405: 0 | R405: 0 | S405: 0 | T405: 0 | U405: 0 | V405: 0 | W405: 0 | X405: 311260 | Y405: 235065 | Z405: 275773 | AA405: 261749 | AB405: 64162 | AC405: 0 | AD405: 0 | AE405: 0 | AF405: 0 | AG405: 0 | AH405: 0 | AI405: 0 | AJ405: 0 | AK405: 0 | AL405: 0 | AM405: 0 | AN405: 0 | AO405: 0 | AP405: 0 | AQ405: 1148009 | AR405: 1148009
A406: MN Chldrn | B406: 0 | C406: 0 | D406: 0 | E406: 0 | F406: 0 | G406: 0 | H406: 0 | I406: 0 | J406: 0 | K406: 0 | L406: 0 | M406: 0 | N406: 0 | O406: 0 | P406: 0 | Q406: 0 | R406: 0 | S406: 0 | T406: 0 | U406: 0 | V406: 0 | W406: 0 | X406: 174755 | Y406: 135909 | Z406: 127954 | AA406: 112601 | AB406: 21176 | AC406: 0 | AD406: 0 | AE406: 0 | AF406: 0 | AG406: 0 | AH406: 0 | AI406: 0 | AJ406: 0 | AK406: 0 | AL406: 0 | AM406: 0 | AN406: 0 | AO406: 0 | AP406: 0 | AQ406: 572395 | AR406: 572395
A407: New Adult Group | B407: 0 | C407: 0 | D407: 0 | E407: 0 | F407: 0 | G407: 0 | H407: 0 | I407: 0 | J407: 0 | K407: 0 | L407: 0 | M407: 0 | N407: 0 | O407: 0 | P407: 0 | Q407: 0 | R407: 0 | S407: 0 | T407: 0 | U407: 0 | V407: 0 | W407: 0 | X407: 53044009 | Y407: 47156735 | Z407: 38523789 | AA407: 53768314 | AB407: 15945251 | AC407: 0 | AD407: 0 | AE407: 0 | AF407: 0 | AG407: 0 | AH407: 0 | AI407: 0 | AJ407: 0 | AK407: 0 | AL407: 0 | AM407: 0 | AN407: 0 | AO407: 0 | AP407: 0 | AQ407: 208438098 | AR407: 208438098
A408: SOBRA Adult | B408: 0 | C408: 0 | D408: 0 | E408: 0 | F408: 0 | G408: 0 | H408: 0 | I408: 0 | J408: 0 | K408: 0 | L408: 0 | M408: 0 | N408: 0 | O408: 0 | P408: 0 | Q408: 0 | R408: 0 | S408: 0 | T408: 0 | U408: 0 | V408: 0 | W408: 0 | X408: 5345124 | Y408: 3558471 | Z408: 2838178 | AA408: 3482510 | AB408: 1152864 | AC408: 0 | AD408: 0 | AE408: 0 | AF408: 0 | AG408: 0 | AH408: 0 | AI408: 0 | AJ408: 0 | AK408: 0 | AL408: 0 | AM408: 0 | AN408: 0 | AO408: 0 | AP408: 0 | AQ408: 16377147 | AR408: 16377147
A409: SSI/BD Adults | B409: 0 | C409: 0 | D409: 0 | E409: 0 | F409: 0 | G409: 0 | H409: 0 | I409: 0 | J409: 0 | K409: 0 | L409: 0 | M409: 0 | N409: 0 | O409: 0 | P409: 0 | Q409: 0 | R409: 0 | S409: 0 | T409: 0 | U409: 0 | V409: 0 | W409: 0 | X409: 24904260 | Y409: 14619228 | Z409: 17346047 | AA409: 22050597 | AB409: 5802985 | AC409: 0 | AD409: 0 | AE409: 0 | AF409: 0 | AG409: 0 | AH409: 0 | AI409: 0 | AJ409: 0 | AK409: 0 | AL409: 0 | AM409: 0 | AN409: 0 | AO409: 0 | AP409: 0 | AQ409: 84723117 | AR409: 84723117
A410: SSI/BD Chldrn | B410: 0 | C410: 0 | D410: 0 | E410: 0 | F410: 0 | G410: 0 | H410: 0 | I410: 0 | J410: 0 | K410: 0 | L410: 0 | M410: 0 | N410: 0 | O410: 0 | P410: 0 | Q410: 0 | R410: 0 | S410: 0 | T410: 0 | U410: 0 | V410: 0 | W410: 0 | X410: 8144012 | Y410: 4957879 | Z410: 5273352 | AA410: 6046357 | AB410: 1493824 | AC410: 0 | AD410: 0 | AE410: 0 | AF410: 0 | AG410: 0 | AH410: 0 | AI410: 0 | AJ410: 0 | AK410: 0 | AL410: 0 | AM410: 0 | AN410: 0 | AO410: 0 | AP410: 0 | AQ410: 25915424 | AR410: 25915424
A411: SUD IMD | B411: 0 | C411: 0 | D411: 0 | E411: 0 | F411: 0 | G411: 0 | H411: 0 | I411: 0 | J411: 0 | K411: 0 | L411: 0 | M411: 0 | N411: 0 | O411: 0 | P411: 0 | Q411: 0 | R411: 0 | S411: 0 | T411: 0 | U411: 0 | V411: 0 | W411: 0 | X411: 1153645 | Y411: 999576 | Z411: 1277903 | AA411: 775392 | AB411: 324119 | AC411: 0 | AD411: 0 | AE411: 0 | AF411: 0 | AG411: 0 | AH411: 0 | AI411: 0 | AJ411: 0 | AK411: 0 | AL411: 0 | AM411: 0 | AN411: 0 | AO411: 0 | AP411: 0 | AQ411: 4530635 | AR411: 4530635
A412: TANF Adult 0-123 | B412: 0 | C412: 0 | D412: 0 | E412: 0 | F412: 0 | G412: 0 | H412: 0 | I412: 0 | J412: 0 | K412: 0 | L412: 0 | M412: 0 | N412: 0 | O412: 0 | P412: 0 | Q412: 0 | R412: 0 | S412: 0 | T412: 0 | U412: 0 | V412: 0 | W412: 0 | X412: 27382677 | Y412: 16184521 | Z412: 24733438 | AA412: 22506393 | AB412: 7915369 | AC412: 0 | AD412: 0 | AE412: 0 | AF412: 0 | AG412: 0 | AH412: 0 | AI412: 0 | AJ412: 0 | AK412: 0 | AL412: 0 | AM412: 0 | AN412: 0 | AO412: 0 | AP412: 0 | AQ412: 98722398 | AR412: 98722398
A413: Waiver Eligibles | B413: 0 | C413: 1256317 | D413: 0 | E413: 0 | F413: 0 | G413: 0 | H413: 0 | I413: 0 | J413: 0 | K413: 0 | L413: 0 | M413: 0 | N413: 0 | O413: 0 | P413: 0 | Q413: 0 | R413: 0 | S413: 0 | T413: 0 | U413: 0 | V413: 0 | W413: 0 | X413: 0 | Y413: 0 | Z413: 0 | AA413: 0 | AB413: 0 | AC413: 0 | AD413: 0 | AE413: 0 | AF413: 0 | AG413: 0 | AH413: 0 | AI413: 0 | AJ413: 0 | AK413: 0 | AL413: 0 | AM413: 0 | AN413: 0 | AO413: 0 | AP413: 0 | AQ413: 1256317 | AR413: 1256317
A414: Womens Breast Cancer | B414: 0 | C414: 0 | D414: 0 | E414: 0 | F414: 0 | G414: 0 | H414: 0 | I414: 0 | J414: 0 | K414: 0 | L414: 0 | M414: 0 | N414: 0 | O414: 0 | P414: 0 | Q414: 0 | R414: 0 | S414: 0 | T414: 0 | U414: 0 | V414: 0 | W414: 0 | X414: 24130 | Y414: 14361 | Z414: 5389 | AA414: 4591 | AB414: 2884 | AC414: 0 | AD414: 0 | AE414: 0 | AF414: 0 | AG414: 0 | AH414: 0 | AI414: 0 | AJ414: 0 | AK414: 0 | AL414: 0 | AM414: 0 | AN414: 0 | AO414: 0 | AP414: 0 | AQ414: 51355 | AR414: 51355
A415: Total | B415: 0 | C415: 1256317 | D415: 0 | E415: 0 | F415: 0 | G415: 0 | H415: 0 | I415: 0 | J415: 708276 | K415: 947489 | L415: 1857113 | M415: 1773697 | N415: 2098595 | O415: 1563787 | P415: 3871562 | Q415: 9600031 | R415: 4056443 | S415: 0 | T415: 0 | U415: 0 | V415: 0 | W415: 1660987 | X415: 150922855 | Y415: 106102133 | Z415: 111379591 | AA415: 136924731 | AB415: 40498183 | AC415: 0 | AD415: 0 | AE415: 0 | AF415: 0 | AG415: 0 | AH415: 0 | AI415: 0 | AJ415: 0 | AK415: 0 | AL415: 0 | AM415: 0 | AN415: 0 | AO415: 0 | AP415: 0 | AQ415: 575221790 | AR415: 575221790

Sheet C Report Grouper
B3: C Report Grouper
D4: MAP Waivers Only
B6: Total Computable
B7: MEG Names | D7: C Report Waiver Names | E7: DEMONSTRATION YEARS (DY)
E8: ='DY Def'!B$5 -> 1 | F8: ='DY Def'!C$5 -> 2 | G8: ='DY Def'!D$5 -> 3 | H8: ='DY Def'!E$5 -> 4 | I8: ='DY Def'!F$5 -> 5 | J8: ='DY Def'!G$5 -> 6 | K8: ='DY Def'!H$5 -> 7 | L8: ='DY Def'!I$5 -> 8 | M8: ='DY Def'!J$5 -> 9 | N8: ='DY Def'!K$5 -> 10 | O8: ='DY Def'!L$5 -> 11 | P8: ='DY Def'!M$5 -> 12 | Q8: ='DY Def'!N$5 -> 13 | R8: ='DY Def'!O$5 -> 14 | S8: ='DY Def'!P$5 -> 15 | T8: ='DY Def'!Q$5 -> 16 | U8: ='DY Def'!R$5 -> 17 | V8: ='DY Def'!S$5 -> 18 | W8: ='DY Def'!T$5 -> 19 | X8: ='DY Def'!U$5 -> 20 | Y8: ='DY Def'!V$5 -> 21 | Z8: ='DY Def'!W$5 -> 22 | AA8: ='DY Def'!X$5 -> 23 | AB8: ='DY Def'!Y$5 -> 24 | AC8: ='DY Def'!Z$5 -> 25 | AD8: ='DY Def'!AA$5 -> 26 | AE8: ='DY Def'!AB$5 -> 27 | AF8: ='DY Def'!AC$5 -> 28 | AG8: ='DY Def'!AD$5 -> 29 | AH8: ='DY Def'!AE$5 -> 30 | AI8: ='DY Def'!AF$5 -> 31
B9: Medicaid Per Capita
B10: =IFERROR(VLOOKUP(C10,'MEG Def'!$A$7:$B$13,2),"") -> TANF Adults 0-123 | C10: 1 | D10: TANF Adult 0-123 | E10: =IF($D$4="MAP+ADM Waivers",SUMIF('C Report'!$A$100:$A$199,'C Report Grouper'!$D10,'C Report'!C$100:C$199)+SUMIF('C Report'!$A$300:$A$399,'C Report Grouper'!$D10,'C Report'!C$300:C$399),SUMIF('C Report'!$A$100:$A$199,'C Report Grouper'!$D10,'C Report'!C$100:C$199)) -> 0 | F10: =IF($D$4="MAP+ADM Waivers",SUMIF('C Report'!$A$100:$A$199,'C Report Grouper'!$D10,'C Report'!D$100:D$199)+SUMIF('C Report'!$A$300:$A$399,'C Report Grouper'!$D10,'C Report'!D$300:D$399),SUMIF('C Report'!$A$100:$A$199,'C Report Grouper'!$D10,'C Report'!D$100:D$199)) -> 0 | G10: =IF($D$4="MAP+ADM Waivers",SUMIF('C Report'!$A$100:$A$199,'C Report Grouper'!$D10,'C Report'!E$100:E$199)+SUMIF('C Report'!$A$300:$A$399,'C Report Grouper'!$D10,'C Report'!E$300:E$399),SUMIF('C Report'!$A$100:$A$199,'C Report Grouper'!$D10,'C Report'!E$100:E$199)) -> 0 | H10: =IF($D$4="MAP+ADM Waivers",SUMIF('C Report'!$A$100:$A$199,'C Report Grouper'!$D10,'C Report'!F$100:F$199)+SUMIF('C Report'!$A$300:$A$399,'C Report Grouper'!$D10,'C Report'!F$300:F$399),SUMIF('C Report'!$A$100:$A$199,'C Report Grouper'!$D10,'C Report'!F$100:F$199)) -> 0 | I10: =IF($D$4="MAP+ADM Waivers",SUMIF('C Report'!$A$100:$A$199,'C Report Grouper'!$D10,'C Report'!G$100:G$199)+SUMIF('C Report'!$A$300:$A$399,'C Report Grouper'!$D10,'C Report'!G$300:G$399),SUMIF('C Report'!$A$100:$A$199,'C Report Grouper'!$D10,'C Report'!G$100:G$199)) -> 0 | J10: =IF($D$4="MAP+ADM Waivers",SUMIF('C Report'!$A$100:$A$199,'C Report Grouper'!$D10,'C Report'!H$100:H$199)+SUMIF('C Report'!$A$300:$A$399,'C Report Grouper'!$D10,'C Report'!H$300:H$399),SUMIF('C Report'!$A$100:$A$199,'C Report Grouper'!$D10,'C Report'!H$100:H$199)) -> 0 | K10: =IF($D$4="MAP+ADM Waivers",SUMIF('C Report'!$A$100:$A$199,'C Report Grouper'!$D10,'C Report'!I$100:I$199)+SUMIF('C Report'!$A$300:$A$399,'C Report Grouper'!$D10,'C Report'!I$300:I$399),SUMIF('C Report'!$A$100:$A$199,'C Report Grouper'!$D10,'C Report'!I$100:I$199)) -> 0 | L10: =IF($D$4="MAP+ADM Waivers",SUMIF('C Report'!$A$100:$A$199,'C Report Grouper'!$D10,'C Report'!J$100:J$199)+SUMIF('C Report'!$A$300:$A$399,'C Report Grouper'!$D10,'C Report'!J$300:J$399),SUMIF('C Report'!$A$100:$A$199,'C Report Grouper'!$D10,'C Report'!J$100:J$199)) -> 0 | M10: =IF($D$4="MAP+ADM Waivers",SUMIF('C Report'!$A$100:$A$199,'C Report Grouper'!$D10,'C Report'!K$100:K$199)+SUMIF('C Report'!$A$300:$A$399,'C Report Grouper'!$D10,'C Report'!K$300:K$399),SUMIF('C Report'!$A$100:$A$199,'C Report Grouper'!$D10,'C Report'!K$100:K$199)) -> 0 | N10: =IF($D$4="MAP+ADM Waivers",SUMIF('C Report'!$A$100:$A$199,'C Report Grouper'!$D10,'C Report'!L$100:L$199)+SUMIF('C Report'!$A$300:$A$399,'C Report Grouper'!$D10,'C Report'!L$300:L$399),SUMIF('C Report'!$A$100:$A$199,'C Report Grouper'!$D10,'C Report'!L$100:L$199)) -> 0 | O10: =IF($D$4="MAP+ADM Waivers",SUMIF('C Report'!$A$100:$A$199,'C Report Grouper'!$D10,'C Report'!M$100:M$199)+SUMIF('C Report'!$A$300:$A$399,'C Report Grouper'!$D10,'C Report'!M$300:M$399),SUMIF('C Report'!$A$100:$A$199,'C Report Grouper'!$D10,'C Report'!M$100:M$199)) -> 0 | P10: =IF($D$4="MAP+ADM Waivers",SUMIF('C Report'!$A$100:$A$199,'C Report Grouper'!$D10,'C Report'!N$100:N$199)+SUMIF('C Report'!$A$300:$A$399,'C Report Grouper'!$D10,'C Report'!N$300:N$399),SUMIF('C Report'!$A$100:$A$199,'C Report Grouper'!$D10,'C Report'!N$100:N$199)) -> 0 | Q10: =IF($D$4="MAP+ADM Waivers",SUMIF('C Report'!$A$100:$A$199,'C Report Grouper'!$D10,'C Report'!O$100:O$199)+SUMIF('C Report'!$A$300:$A$399,'C Report Grouper'!$D10,'C Report'!O$300:O$399),SUMIF('C Report'!$A$100:$A$199,'C Report Grouper'!$D10,'C Report'!O$100:O$199)) -> 0 | R10: =IF($D$4="MAP+ADM Waivers",SUMIF('C Report'!$A$100:$A$199,'C Report Grouper'!$D10,'C Report'!P$100:P$199)+SUMIF('C Report'!$A$300:$A$399,'C Report Grouper'!$D10,'C Report'!P$300:P$399),SUMIF('C Report'!$A$100:$A$199,'C Report Grouper'!$D10,'C Report'!P$100:P$199)) -> 0 | S10: =IF($D$4="MAP+ADM Waivers",SUMIF('C Report'!$A$100:$A$199,'C Report Grouper'!$D10,'C Report'!Q$100:Q$199)+SUMIF('C Report'!$A$300:$A$399,'C Report Grouper'!$D10,'C Report'!Q$300:Q$399),SUMIF('C Report'!$A$100:$A$199,'C Report Grouper'!$D10,'C Report'!Q$100:Q$199)) -> -138117 | T10: =IF($D$4="MAP+ADM Waivers",SUMIF('C Report'!$A$100:$A$199,'C Report Grouper'!$D10,'C Report'!R$100:R$199)+SUMIF('C Report'!$A$300:$A$399,'C Report Grouper'!$D10,'C Report'!R$300:R$399),SUMIF('C Report'!$A$100:$A$199,'C Report Grouper'!$D10,'C Report'!R$100:R$199)) -> 0 | U10: =IF($D$4="MAP+ADM Waivers",SUMIF('C Report'!$A$100:$A$199,'C Report Grouper'!$D10,'C Report'!S$100:S$199)+SUMIF('C Report'!$A$300:$A$399,'C Report Grouper'!$D10,'C Report'!S$300:S$399),SUMIF('C Report'!$A$100:$A$199,'C Report Grouper'!$D10,'C Report'!S$100:S$199)) -> 641394689 | V10: =IF($D$4="MAP+ADM Waivers",SUMIF('C Report'!$A$100:$A$199,'C Report Grouper'!$D10,'C Report'!T$100:T$199)+SUMIF('C Report'!$A$300:$A$399,'C Report Grouper'!$D10,'C Report'!T$300:T$399),SUMIF('C Report'!$A$100:$A$199,'C Report Grouper'!$D10,'C Report'!T$100:T$199)) -> 1417316989 | W10: =IF($D$4="MAP+ADM Waivers",SUMIF('C Report'!$A$100:$A$199,'C Report Grouper'!$D10,'C Report'!U$100:U$199)+SUMIF('C Report'!$A$300:$A$399,'C Report Grouper'!$D10,'C Report'!U$300:U$399),SUMIF('C Report'!$A$100:$A$199,'C Report Grouper'!$D10,'C Report'!U$100:U$199)) -> 1274672736 | X10: =IF($D$4="MAP+ADM Waivers",SUMIF('C Report'!$A$100:$A$199,'C Report Grouper'!$D10,'C Report'!V$100:V$199)+SUMIF('C Report'!$A$300:$A$399,'C Report Grouper'!$D10,'C Report'!V$300:V$399),SUMIF('C Report'!$A$100:$A$199,'C Report Grouper'!$D10,'C Report'!V$100:V$199)) -> 1400895525 | Y10: =IF($D$4="MAP+ADM Waivers",SUMIF('C Report'!$A$100:$A$199,'C Report Grouper'!$D10,'C Report'!W$100:W$199)+SUMIF('C Report'!$A$300:$A$399,'C Report Grouper'!$D10,'C Report'!W$300:W$399),SUMIF('C Report'!$A$100:$A$199,'C Report Grouper'!$D10,'C Report'!W$100:W$199)) -> 1472107734 | Z10: =IF($D$4="MAP+ADM Waivers",SUMIF('C Report'!$A$100:$A$199,'C Report Grouper'!$D10,'C Report'!X$100:X$199)+SUMIF('C Report'!$A$300:$A$399,'C Report Grouper'!$D10,'C Report'!X$300:X$399),SUMIF('C Report'!$A$100:$A$199,'C Report Grouper'!$D10,'C Report'!X$100:X$199)) -> 1443897544 | AA10: =IF($D$4="MAP+ADM Waivers",SUMIF('C Report'!$A$100:$A$199,'C Report Grouper'!$D10,'C Report'!Y$100:Y$199)+SUMIF('C Report'!$A$300:$A$399,'C Report Grouper'!$D10,'C Report'!Y$300:Y$399),SUMIF('C Report'!$A$100:$A$199,'C Report Grouper'!$D10,'C Report'!Y$100:Y$199)) -> 1181667778 | AB10: =IF($D$4="MAP+ADM Waivers",SUMIF('C Report'!$A$100:$A$199,'C Report Grouper'!$D10,'C Report'!Z$100:Z$199)+SUMIF('C Report'!$A$300:$A$399,'C Report Grouper'!$D10,'C Report'!Z$300:Z$399),SUMIF('C Report'!$A$100:$A$199,'C Report Grouper'!$D10,'C Report'!Z$100:Z$199)) -> 1858005700 | AC10: =IF($D$4="MAP+ADM Waivers",SUMIF('C Report'!$A$100:$A$199,'C Report Grouper'!$D10,'C Report'!AA$100:AA$199)+SUMIF('C Report'!$A$300:$A$399,'C Report Grouper'!$D10,'C Report'!AA$300:AA$399),SUMIF('C Report'!$A$100:$A$199,'C Report Grouper'!$D10,'C Report'!AA$100:AA$199)) -> 1870665623 | AD10: =IF($D$4="MAP+ADM Waivers",SUMIF('C Report'!$A$100:$A$199,'C Report Grouper'!$D10,'C Report'!AB$100:AB$199)+SUMIF('C Report'!$A$300:$A$399,'C Report Grouper'!$D10,'C Report'!AB$300:AB$399),SUMIF('C Report'!$A$100:$A$199,'C Report Grouper'!$D10,'C Report'!AB$100:AB$199)) -> 1056772853 | AE10: =IF($D$4="MAP+ADM Waivers",SUMIF('C Report'!$A$100:$A$199,'C Report Grouper'!$D10,'C Report'!AC$100:AC$199)+SUMIF('C Report'!$A$300:$A$399,'C Report Grouper'!$D10,'C Report'!AC$300:AC$399),SUMIF('C Report'!$A$100:$A$199,'C Report Grouper'!$D10,'C Report'!AC$100:AC$199)) -> 0 | AF10: =IF($D$4="MAP+ADM Waivers",SUMIF('C Report'!$A$100:$A$199,'C Report Grouper'!$D10,'C Report'!AD$100:AD$199)+SUMIF('C Report'!$A$300:$A$399,'C Report Grouper'!$D10,'C Report'!AD$300:AD$399),SUMIF('C Report'!$A$100:$A$199,'C Report Grouper'!$D10,'C Report'!AD$100:AD$199)) -> 0 | AG10: =IF($D$4="MAP+ADM Waivers",SUMIF('C Report'!$A$100:$A$199,'C Report Grouper'!$D10,'C Report'!AE$100:AE$199)+SUMIF('C Report'!$A$300:$A$399,'C Report Grouper'!$D10,'C Report'!AE$300:AE$399),SUMIF('C Report'!$A$100:$A$199,'C Report Grouper'!$D10,'C Report'!AE$100:AE$199)) -> 0 | AH10: =IF($D$4="MAP+ADM Waivers",SUMIF('C Report'!$A$100:$A$199,'C Report Grouper'!$D10,'C Report'!AF$100:AF$199)+SUMIF('C Report'!$A$300:$A$399,'C Report Grouper'!$D10,'C Report'!AF$300:AF$399),SUMIF('C Report'!$A$100:$A$199,'C Report Grouper'!$D10,'C Report'!AF$100:AF$199)) -> 0 | AI10: =IF($D$4="MAP+ADM Waivers",SUMIF('C Report'!$A$100:$A$199,'C Report Grouper'!$D10,'C Report'!AG$100:AG$199)+SUMIF('C Report'!$A$300:$A$399,'C Report Grouper'!$D10,'C Report'!AG$300:AG$399),SUMIF('C Report'!$A$100:$A$199,'C Report Grouper'!$D10,'C Report'!AG$100:AG$199)) -> 0
B11: =IFERROR(VLOOKUP(C11,'MEG Def'!$A$7:$B$13,2),"") -> Medicaid Children | C11: 2 | D11: Medicaid Children | E11: =IF($D$4="MAP+ADM Waivers",SUMIF('C Report'!$A$100:$A$199,'C Report Grouper'!$D11,'C Report'!C$100:C$199)+SUMIF('C Report'!$A$300:$A$399,'C Report Grouper'!$D11,'C Report'!C$300:C$399),SUMIF('C Report'!$A$100:$A$199,'C Report Grouper'!$D11,'C Report'!C$100:C$199)) -> 0 | F11: =IF($D$4="MAP+ADM Waivers",SUMIF('C Report'!$A$100:$A$199,'C Report Grouper'!$D11,'C Report'!D$100:D$199)+SUMIF('C Report'!$A$300:$A$399,'C Report Grouper'!$D11,'C Report'!D$300:D$399),SUMIF('C Report'!$A$100:$A$199,'C Report Grouper'!$D11,'C Report'!D$100:D$199)) -> 0 | G11: =IF($D$4="MAP+ADM Waivers",SUMIF('C Report'!$A$100:$A$199,'C Report Grouper'!$D11,'C Report'!E$100:E$199)+SUMIF('C Report'!$A$300:$A$399,'C Report Grouper'!$D11,'C Report'!E$300:E$399),SUMIF('C Report'!$A$100:$A$199,'C Report Grouper'!$D11,'C Report'!E$100:E$199)) -> 0 | H11: =IF($D$4="MAP+ADM Waivers",SUMIF('C Report'!$A$100:$A$199,'C Report Grouper'!$D11,'C Report'!F$100:F$199)+SUMIF('C Report'!$A$300:$A$399,'C Report Grouper'!$D11,'C Report'!F$300:F$399),SUMIF('C Report'!$A$100:$A$199,'C Report Grouper'!$D11,'C Report'!F$100:F$199)) -> 0 | I11: =IF($D$4="MAP+ADM Waivers",SUMIF('C Report'!$A$100:$A$199,'C Report Grouper'!$D11,'C Report'!G$100:G$199)+SUMIF('C Report'!$A$300:$A$399,'C Report Grouper'!$D11,'C Report'!G$300:G$399),SUMIF('C Report'!$A$100:$A$199,'C Report Grouper'!$D11,'C Report'!G$100:G$199)) -> 0 | J11: =IF($D$4="MAP+ADM Waivers",SUMIF('C Report'!$A$100:$A$199,'C Report Grouper'!$D11,'C Report'!H$100:H$199)+SUMIF('C Report'!$A$300:$A$399,'C Report Grouper'!$D11,'C Report'!H$300:H$399),SUMIF('C Report'!$A$100:$A$199,'C Report Grouper'!$D11,'C Report'!H$100:H$199)) -> 0 | K11: =IF($D$4="MAP+ADM Waivers",SUMIF('C Report'!$A$100:$A$199,'C Report Grouper'!$D11,'C Report'!I$100:I$199)+SUMIF('C Report'!$A$300:$A$399,'C Report Grouper'!$D11,'C Report'!I$300:I$399),SUMIF('C Report'!$A$100:$A$199,'C Report Grouper'!$D11,'C Report'!I$100:I$199)) -> 0 | L11: =IF($D$4="MAP+ADM Waivers",SUMIF('C Report'!$A$100:$A$199,'C Report Grouper'!$D11,'C Report'!J$100:J$199)+SUMIF('C Report'!$A$300:$A$399,'C Report Grouper'!$D11,'C Report'!J$300:J$399),SUMIF('C Report'!$A$100:$A$199,'C Report Grouper'!$D11,'C Report'!J$100:J$199)) -> 0 | M11: =IF($D$4="MAP+ADM Waivers",SUMIF('C Report'!$A$100:$A$199,'C Report Grouper'!$D11,'C Report'!K$100:K$199)+SUMIF('C Report'!$A$300:$A$399,'C Report Grouper'!$D11,'C Report'!K$300:K$399),SUMIF('C Report'!$A$100:$A$199,'C Report Grouper'!$D11,'C Report'!K$100:K$199)) -> 0 | N11: =IF($D$4="MAP+ADM Waivers",SUMIF('C Report'!$A$100:$A$199,'C Report Grouper'!$D11,'C Report'!L$100:L$199)+SUMIF('C Report'!$A$300:$A$399,'C Report Grouper'!$D11,'C Report'!L$300:L$399),SUMIF('C Report'!$A$100:$A$199,'C Report Grouper'!$D11,'C Report'!L$100:L$199)) -> 0 | O11: =IF($D$4="MAP+ADM Waivers",SUMIF('C Report'!$A$100:$A$199,'C Report Grouper'!$D11,'C Report'!M$100:M$199)+SUMIF('C Report'!$A$300:$A$399,'C Report Grouper'!$D11,'C Report'!M$300:M$399),SUMIF('C Report'!$A$100:$A$199,'C Report Grouper'!$D11,'C Report'!M$100:M$199)) -> 0 | P11: =IF($D$4="MAP+ADM Waivers",SUMIF('C Report'!$A$100:$A$199,'C Report Grouper'!$D11,'C Report'!N$100:N$199)+SUMIF('C Report'!$A$300:$A$399,'C Report Grouper'!$D11,'C Report'!N$300:N$399),SUMIF('C Report'!$A$100:$A$199,'C Report Grouper'!$D11,'C Report'!N$100:N$199)) -> 0 | Q11: =IF($D$4="MAP+ADM Waivers",SUMIF('C Report'!$A$100:$A$199,'C Report Grouper'!$D11,'C Report'!O$100:O$199)+SUMIF('C Report'!$A$300:$A$399,'C Report Grouper'!$D11,'C Report'!O$300:O$399),SUMIF('C Report'!$A$100:$A$199,'C Report Grouper'!$D11,'C Report'!O$100:O$199)) -> 0 | R11: =IF($D$4="MAP+ADM Waivers",SUMIF('C Report'!$A$100:$A$199,'C Report Grouper'!$D11,'C Report'!P$100:P$199)+SUMIF('C Report'!$A$300:$A$399,'C Report Grouper'!$D11,'C Report'!P$300:P$399),SUMIF('C Report'!$A$100:$A$199,'C Report Grouper'!$D11,'C Report'!P$100:P$199)) -> 0 | S11: =IF($D$4="MAP+ADM Waivers",SUMIF('C Report'!$A$100:$A$199,'C Report Grouper'!$D11,'C Report'!Q$100:Q$199)+SUMIF('C Report'!$A$300:$A$399,'C Report Grouper'!$D11,'C Report'!Q$300:Q$399),SUMIF('C Report'!$A$100:$A$199,'C Report Grouper'!$D11,'C Report'!Q$100:Q$199)) -> 0 | T11: =IF($D$4="MAP+ADM Waivers",SUMIF('C Report'!$A$100:$A$199,'C Report Grouper'!$D11,'C Report'!R$100:R$199)+SUMIF('C Report'!$A$300:$A$399,'C Report Grouper'!$D11,'C Report'!R$300:R$399),SUMIF('C Report'!$A$100:$A$199,'C Report Grouper'!$D11,'C Report'!R$100:R$199)) -> 0 | U11: =IF($D$4="MAP+ADM Waivers",SUMIF('C Report'!$A$100:$A$199,'C Report Grouper'!$D11,'C Report'!S$100:S$199)+SUMIF('C Report'!$A$300:$A$399,'C Report Grouper'!$D11,'C Report'!S$300:S$399),SUMIF('C Report'!$A$100:$A$199,'C Report Grouper'!$D11,'C Report'!S$100:S$199)) -> 685052651 | V11: =IF($D$4="MAP+ADM Waivers",SUMIF('C Report'!$A$100:$A$199,'C Report Grouper'!$D11,'C Report'!T$100:T$199)+SUMIF('C Report'!$A$300:$A$399,'C Report Grouper'!$D11,'C Report'!T$300:T$399),SUMIF('C Report'!$A$100:$A$199,'C Report Grouper'!$D11,'C Report'!T$100:T$199)) -> 1543747666 | W11: =IF($D$4="MAP+ADM Waivers",SUMIF('C Report'!$A$100:$A$199,'C Report Grouper'!$D11,'C Report'!U$100:U$199)+SUMIF('C Report'!$A$300:$A$399,'C Report Grouper'!$D11,'C Report'!U$300:U$399),SUMIF('C Report'!$A$100:$A$199,'C Report Grouper'!$D11,'C Report'!U$100:U$199)) -> 1405417988 | X11: =IF($D$4="MAP+ADM Waivers",SUMIF('C Report'!$A$100:$A$199,'C Report Grouper'!$D11,'C Report'!V$100:V$199)+SUMIF('C Report'!$A$300:$A$399,'C Report Grouper'!$D11,'C Report'!V$300:V$399),SUMIF('C Report'!$A$100:$A$199,'C Report Grouper'!$D11,'C Report'!V$100:V$199)) -> 1526252196 | Y11: =IF($D$4="MAP+ADM Waivers",SUMIF('C Report'!$A$100:$A$199,'C Report Grouper'!$D11,'C Report'!W$100:W$199)+SUMIF('C Report'!$A$300:$A$399,'C Report Grouper'!$D11,'C Report'!W$300:W$399),SUMIF('C Report'!$A$100:$A$199,'C Report Grouper'!$D11,'C Report'!W$100:W$199)) -> 1544855613 | Z11: =IF($D$4="MAP+ADM Waivers",SUMIF('C Report'!$A$100:$A$199,'C Report Grouper'!$D11,'C Report'!X$100:X$199)+SUMIF('C Report'!$A$300:$A$399,'C Report Grouper'!$D11,'C Report'!X$300:X$399),SUMIF('C Report'!$A$100:$A$199,'C Report Grouper'!$D11,'C Report'!X$100:X$199)) -> 1555942497 | AA11: =IF($D$4="MAP+ADM Waivers",SUMIF('C Report'!$A$100:$A$199,'C Report Grouper'!$D11,'C Report'!Y$100:Y$199)+SUMIF('C Report'!$A$300:$A$399,'C Report Grouper'!$D11,'C Report'!Y$300:Y$399),SUMIF('C Report'!$A$100:$A$199,'C Report Grouper'!$D11,'C Report'!Y$100:Y$199)) -> 1326509598 | AB11: =IF($D$4="MAP+ADM Waivers",SUMIF('C Report'!$A$100:$A$199,'C Report Grouper'!$D11,'C Report'!Z$100:Z$199)+SUMIF('C Report'!$A$300:$A$399,'C Report Grouper'!$D11,'C Report'!Z$300:Z$399),SUMIF('C Report'!$A$100:$A$199,'C Report Grouper'!$D11,'C Report'!Z$100:Z$199)) -> 1701622337 | AC11: =IF($D$4="MAP+ADM Waivers",SUMIF('C Report'!$A$100:$A$199,'C Report Grouper'!$D11,'C Report'!AA$100:AA$199)+SUMIF('C Report'!$A$300:$A$399,'C Report Grouper'!$D11,'C Report'!AA$300:AA$399),SUMIF('C Report'!$A$100:$A$199,'C Report Grouper'!$D11,'C Report'!AA$100:AA$199)) -> 1717438492 | AD11: =IF($D$4="MAP+ADM Waivers",SUMIF('C Report'!$A$100:$A$199,'C Report Grouper'!$D11,'C Report'!AB$100:AB$199)+SUMIF('C Report'!$A$300:$A$399,'C Report Grouper'!$D11,'C Report'!AB$300:AB$399),SUMIF('C Report'!$A$100:$A$199,'C Report Grouper'!$D11,'C Report'!AB$100:AB$199)) -> 958168034 | AE11: =IF($D$4="MAP+ADM Waivers",SUMIF('C Report'!$A$100:$A$199,'C Report Grouper'!$D11,'C Report'!AC$100:AC$199)+SUMIF('C Report'!$A$300:$A$399,'C Report Grouper'!$D11,'C Report'!AC$300:AC$399),SUMIF('C Report'!$A$100:$A$199,'C Report Grouper'!$D11,'C Report'!AC$100:AC$199)) -> 0 | AF11: =IF($D$4="MAP+ADM Waivers",SUMIF('C Report'!$A$100:$A$199,'C Report Grouper'!$D11,'C Report'!AD$100:AD$199)+SUMIF('C Report'!$A$300:$A$399,'C Report Grouper'!$D11,'C Report'!AD$300:AD$399),SUMIF('C Report'!$A$100:$A$199,'C Report Grouper'!$D11,'C Report'!AD$100:AD$199)) -> 0 | AG11: =IF($D$4="MAP+ADM Waivers",SUMIF('C Report'!$A$100:$A$199,'C Report Grouper'!$D11,'C Report'!AE$100:AE$199)+SUMIF('C Report'!$A$300:$A$399,'C Report Grouper'!$D11,'C Report'!AE$300:AE$399),SUMIF('C Report'!$A$100:$A$199,'C Report Grouper'!$D11,'C Report'!AE$100:AE$199)) -> 0 | AH11: =IF($D$4="MAP+ADM Waivers",SUMIF('C Report'!$A$100:$A$199,'C Report Grouper'!$D11,'C Report'!AF$100:AF$199)+SUMIF('C Report'!$A$300:$A$399,'C Report Grouper'!$D11,'C Report'!AF$300:AF$399),SUMIF('C Report'!$A$100:$A$199,'C Report Grouper'!$D11,'C Report'!AF$100:AF$199)) -> 0 | AI11: =IF($D$4="MAP+ADM Waivers",SUMIF('C Report'!$A$100:$A$199,'C Report Grouper'!$D11,'C Report'!AG$100:AG$199)+SUMIF('C Report'!$A$300:$A$399,'C Report Grouper'!$D11,'C Report'!AG$300:AG$399),SUMIF('C Report'!$A$100:$A$199,'C Report Grouper'!$D11,'C Report'!AG$100:AG$199)) -> 0
B12: =IFERROR(VLOOKUP(C12,'MEG Def'!$A$7:$B$13,2),"") -> Medically Needy Adults | C12: 3 | D12: MN Adults | E12: =IF($D$4="MAP+ADM Waivers",SUMIF('C Report'!$A$100:$A$199,'C Report Grouper'!$D12,'C Report'!C$100:C$199)+SUMIF('C Report'!$A$300:$A$399,'C Report Grouper'!$D12,'C Report'!C$300:C$399),SUMIF('C Report'!$A$100:$A$199,'C Report Grouper'!$D12,'C Report'!C$100:C$199)) -> 0 | F12: =IF($D$4="MAP+ADM Waivers",SUMIF('C Report'!$A$100:$A$199,'C Report Grouper'!$D12,'C Report'!D$100:D$199)+SUMIF('C Report'!$A$300:$A$399,'C Report Grouper'!$D12,'C Report'!D$300:D$399),SUMIF('C Report'!$A$100:$A$199,'C Report Grouper'!$D12,'C Report'!D$100:D$199)) -> 0 | G12: =IF($D$4="MAP+ADM Waivers",SUMIF('C Report'!$A$100:$A$199,'C Report Grouper'!$D12,'C Report'!E$100:E$199)+SUMIF('C Report'!$A$300:$A$399,'C Report Grouper'!$D12,'C Report'!E$300:E$399),SUMIF('C Report'!$A$100:$A$199,'C Report Grouper'!$D12,'C Report'!E$100:E$199)) -> 0 | H12: =IF($D$4="MAP+ADM Waivers",SUMIF('C Report'!$A$100:$A$199,'C Report Grouper'!$D12,'C Report'!F$100:F$199)+SUMIF('C Report'!$A$300:$A$399,'C Report Grouper'!$D12,'C Report'!F$300:F$399),SUMIF('C Report'!$A$100:$A$199,'C Report Grouper'!$D12,'C Report'!F$100:F$199)) -> 0 | I12: =IF($D$4="MAP+ADM Waivers",SUMIF('C Report'!$A$100:$A$199,'C Report Grouper'!$D12,'C Report'!G$100:G$199)+SUMIF('C Report'!$A$300:$A$399,'C Report Grouper'!$D12,'C Report'!G$300:G$399),SUMIF('C Report'!$A$100:$A$199,'C Report Grouper'!$D12,'C Report'!G$100:G$199)) -> 0 | J12: =IF($D$4="MAP+ADM Waivers",SUMIF('C Report'!$A$100:$A$199,'C Report Grouper'!$D12,'C Report'!H$100:H$199)+SUMIF('C Report'!$A$300:$A$399,'C Report Grouper'!$D12,'C Report'!H$300:H$399),SUMIF('C Report'!$A$100:$A$199,'C Report Grouper'!$D12,'C Report'!H$100:H$199)) -> 0 | K12: =IF($D$4="MAP+ADM Waivers",SUMIF('C Report'!$A$100:$A$199,'C Report Grouper'!$D12,'C Report'!I$100:I$199)+SUMIF('C Report'!$A$300:$A$399,'C Report Grouper'!$D12,'C Report'!I$300:I$399),SUMIF('C Report'!$A$100:$A$199,'C Report Grouper'!$D12,'C Report'!I$100:I$199)) -> 0 | L12: =IF($D$4="MAP+ADM Waivers",SUMIF('C Report'!$A$100:$A$199,'C Report Grouper'!$D12,'C Report'!J$100:J$199)+SUMIF('C Report'!$A$300:$A$399,'C Report Grouper'!$D12,'C Report'!J$300:J$399),SUMIF('C Report'!$A$100:$A$199,'C Report Grouper'!$D12,'C Report'!J$100:J$199)) -> 0 | M12: =IF($D$4="MAP+ADM Waivers",SUMIF('C Report'!$A$100:$A$199,'C Report Grouper'!$D12,'C Report'!K$100:K$199)+SUMIF('C Report'!$A$300:$A$399,'C Report Grouper'!$D12,'C Report'!K$300:K$399),SUMIF('C Report'!$A$100:$A$199,'C Report Grouper'!$D12,'C Report'!K$100:K$199)) -> 0 | N12: =IF($D$4="MAP+ADM Waivers",SUMIF('C Report'!$A$100:$A$199,'C Report Grouper'!$D12,'C Report'!L$100:L$199)+SUMIF('C Report'!$A$300:$A$399,'C Report Grouper'!$D12,'C Report'!L$300:L$399),SUMIF('C Report'!$A$100:$A$199,'C Report Grouper'!$D12,'C Report'!L$100:L$199)) -> 0 | O12: =IF($D$4="MAP+ADM Waivers",SUMIF('C Report'!$A$100:$A$199,'C Report Grouper'!$D12,'C Report'!M$100:M$199)+SUMIF('C Report'!$A$300:$A$399,'C Report Grouper'!$D12,'C Report'!M$300:M$399),SUMIF('C Report'!$A$100:$A$199,'C Report Grouper'!$D12,'C Report'!M$100:M$199)) -> 0 | P12: =IF($D$4="MAP+ADM Waivers",SUMIF('C Report'!$A$100:$A$199,'C Report Grouper'!$D12,'C Report'!N$100:N$199)+SUMIF('C Report'!$A$300:$A$399,'C Report Grouper'!$D12,'C Report'!N$300:N$399),SUMIF('C Report'!$A$100:$A$199,'C Report Grouper'!$D12,'C Report'!N$100:N$199)) -> 221648573 | Q12: =IF($D$4="MAP+ADM Waivers",SUMIF('C Report'!$A$100:$A$199,'C Report Grouper'!$D12,'C Report'!O$100:O$199)+SUMIF('C Report'!$A$300:$A$399,'C Report Grouper'!$D12,'C Report'!O$300:O$399),SUMIF('C Report'!$A$100:$A$199,'C Report Grouper'!$D12,'C Report'!O$100:O$199)) -> 243066832 | R12: =IF($D$4="MAP+ADM Waivers",SUMIF('C Report'!$A$100:$A$199,'C Report Grouper'!$D12,'C Report'!P$100:P$199)+SUMIF('C Report'!$A$300:$A$399,'C Report Grouper'!$D12,'C Report'!P$300:P$399),SUMIF('C Report'!$A$100:$A$199,'C Report Grouper'!$D12,'C Report'!P$100:P$199)) -> 238883559 | S12: =IF($D$4="MAP+ADM Waivers",SUMIF('C Report'!$A$100:$A$199,'C Report Grouper'!$D12,'C Report'!Q$100:Q$199)+SUMIF('C Report'!$A$300:$A$399,'C Report Grouper'!$D12,'C Report'!Q$300:Q$399),SUMIF('C Report'!$A$100:$A$199,'C Report Grouper'!$D12,'C Report'!Q$100:Q$199)) -> 164960804 | T12: =IF($D$4="MAP+ADM Waivers",SUMIF('C Report'!$A$100:$A$199,'C Report Grouper'!$D12,'C Report'!R$100:R$199)+SUMIF('C Report'!$A$300:$A$399,'C Report Grouper'!$D12,'C Report'!R$300:R$399),SUMIF('C Report'!$A$100:$A$199,'C Report Grouper'!$D12,'C Report'!R$100:R$199)) -> 124658494 | U12: =IF($D$4="MAP+ADM Waivers",SUMIF('C Report'!$A$100:$A$199,'C Report Grouper'!$D12,'C Report'!S$100:S$199)+SUMIF('C Report'!$A$300:$A$399,'C Report Grouper'!$D12,'C Report'!S$300:S$399),SUMIF('C Report'!$A$100:$A$199,'C Report Grouper'!$D12,'C Report'!S$100:S$199)) -> 134283831 | V12: =IF($D$4="MAP+ADM Waivers",SUMIF('C Report'!$A$100:$A$199,'C Report Grouper'!$D12,'C Report'!T$100:T$199)+SUMIF('C Report'!$A$300:$A$399,'C Report Grouper'!$D12,'C Report'!T$300:T$399),SUMIF('C Report'!$A$100:$A$199,'C Report Grouper'!$D12,'C Report'!T$100:T$199)) -> 133340386 | W12: =IF($D$4="MAP+ADM Waivers",SUMIF('C Report'!$A$100:$A$199,'C Report Grouper'!$D12,'C Report'!U$100:U$199)+SUMIF('C Report'!$A$300:$A$399,'C Report Grouper'!$D12,'C Report'!U$300:U$399),SUMIF('C Report'!$A$100:$A$199,'C Report Grouper'!$D12,'C Report'!U$100:U$199)) -> 47506980 | X12: =IF($D$4="MAP+ADM Waivers",SUMIF('C Report'!$A$100:$A$199,'C Report Grouper'!$D12,'C Report'!V$100:V$199)+SUMIF('C Report'!$A$300:$A$399,'C Report Grouper'!$D12,'C Report'!V$300:V$399),SUMIF('C Report'!$A$100:$A$199,'C Report Grouper'!$D12,'C Report'!V$100:V$199)) -> 18616528 | Y12: =IF($D$4="MAP+ADM Waivers",SUMIF('C Report'!$A$100:$A$199,'C Report Grouper'!$D12,'C Report'!W$100:W$199)+SUMIF('C Report'!$A$300:$A$399,'C Report Grouper'!$D12,'C Report'!W$300:W$399),SUMIF('C Report'!$A$100:$A$199,'C Report Grouper'!$D12,'C Report'!W$100:W$199)) -> 14084836 | Z12: =IF($D$4="MAP+ADM Waivers",SUMIF('C Report'!$A$100:$A$199,'C Report Grouper'!$D12,'C Report'!X$100:X$199)+SUMIF('C Report'!$A$300:$A$399,'C Report Grouper'!$D12,'C Report'!X$300:X$399),SUMIF('C Report'!$A$100:$A$199,'C Report Grouper'!$D12,'C Report'!X$100:X$199)) -> 14889403 | AA12: =IF($D$4="MAP+ADM Waivers",SUMIF('C Report'!$A$100:$A$199,'C Report Grouper'!$D12,'C Report'!Y$100:Y$199)+SUMIF('C Report'!$A$300:$A$399,'C Report Grouper'!$D12,'C Report'!Y$300:Y$399),SUMIF('C Report'!$A$100:$A$199,'C Report Grouper'!$D12,'C Report'!Y$100:Y$199)) -> 16059692 | AB12: =IF($D$4="MAP+ADM Waivers",SUMIF('C Report'!$A$100:$A$199,'C Report Grouper'!$D12,'C Report'!Z$100:Z$199)+SUMIF('C Report'!$A$300:$A$399,'C Report Grouper'!$D12,'C Report'!Z$300:Z$399),SUMIF('C Report'!$A$100:$A$199,'C Report Grouper'!$D12,'C Report'!Z$100:Z$199)) -> -261953966 | AC12: =IF($D$4="MAP+ADM Waivers",SUMIF('C Report'!$A$100:$A$199,'C Report Grouper'!$D12,'C Report'!AA$100:AA$199)+SUMIF('C Report'!$A$300:$A$399,'C Report Grouper'!$D12,'C Report'!AA$300:AA$399),SUMIF('C Report'!$A$100:$A$199,'C Report Grouper'!$D12,'C Report'!AA$100:AA$199)) -> 74661979 | AD12: =IF($D$4="MAP+ADM Waivers",SUMIF('C Report'!$A$100:$A$199,'C Report Grouper'!$D12,'C Report'!AB$100:AB$199)+SUMIF('C Report'!$A$300:$A$399,'C Report Grouper'!$D12,'C Report'!AB$300:AB$399),SUMIF('C Report'!$A$100:$A$199,'C Report Grouper'!$D12,'C Report'!AB$100:AB$199)) -> 7994871 | AE12: =IF($D$4="MAP+ADM Waivers",SUMIF('C Report'!$A$100:$A$199,'C Report Grouper'!$D12,'C Report'!AC$100:AC$199)+SUMIF('C Report'!$A$300:$A$399,'C Report Grouper'!$D12,'C Report'!AC$300:AC$399),SUMIF('C Report'!$A$100:$A$199,'C Report Grouper'!$D12,'C Report'!AC$100:AC$199)) -> 0 | AF12: =IF($D$4="MAP+ADM Waivers",SUMIF('C Report'!$A$100:$A$199,'C Report Grouper'!$D12,'C Report'!AD$100:AD$199)+SUMIF('C Report'!$A$300:$A$399,'C Report Grouper'!$D12,'C Report'!AD$300:AD$399),SUMIF('C Report'!$A$100:$A$199,'C Report Grouper'!$D12,'C Report'!AD$100:AD$199)) -> 0 | AG12: =IF($D$4="MAP+ADM Waivers",SUMIF('C Report'!$A$100:$A$199,'C Report Grouper'!$D12,'C Report'!AE$100:AE$199)+SUMIF('C Report'!$A$300:$A$399,'C Report Grouper'!$D12,'C Report'!AE$300:AE$399),SUMIF('C Report'!$A$100:$A$199,'C Report Grouper'!$D12,'C Report'!AE$100:AE$199)) -> 0 | AH12: =IF($D$4="MAP+ADM Waivers",SUMIF('C Report'!$A$100:$A$199,'C Report Grouper'!$D12,'C Report'!AF$100:AF$199)+SUMIF('C Report'!$A$300:$A$399,'C Report Grouper'!$D12,'C Report'!AF$300:AF$399),SUMIF('C Report'!$A$100:$A$199,'C Report Grouper'!$D12,'C Report'!AF$100:AF$199)) -> 0 | AI12: =IF($D$4="MAP+ADM Waivers",SUMIF('C Report'!$A$100:$A$199,'C Report Grouper'!$D12,'C Report'!AG$100:AG$199)+SUMIF('C Report'!$A$300:$A$399,'C Report Grouper'!$D12,'C Report'!AG$300:AG$399),SUMIF('C Report'!$A$100:$A$199,'C Report Grouper'!$D12,'C Report'!AG$100:AG$199)) -> 0
B13: =IFERROR(VLOOKUP(C13,'MEG Def'!$A$7:$B$13,2),"") -> Medically Needy Children | C13: 4 | D13: MN Chldrn | E13: =IF($D$4="MAP+ADM Waivers",SUMIF('C Report'!$A$100:$A$199,'C Report Grouper'!$D13,'C Report'!C$100:C$199)+SUMIF('C Report'!$A$300:$A$399,'C Report Grouper'!$D13,'C Report'!C$300:C$399),SUMIF('C Report'!$A$100:$A$199,'C Report Grouper'!$D13,'C Report'!C$100:C$199)) -> 0 | F13: =IF($D$4="MAP+ADM Waivers",SUMIF('C Report'!$A$100:$A$199,'C Report Grouper'!$D13,'C Report'!D$100:D$199)+SUMIF('C Report'!$A$300:$A$399,'C Report Grouper'!$D13,'C Report'!D$300:D$399),SUMIF('C Report'!$A$100:$A$199,'C Report Grouper'!$D13,'C Report'!D$100:D$199)) -> 0 | G13: =IF($D$4="MAP+ADM Waivers",SUMIF('C Report'!$A$100:$A$199,'C Report Grouper'!$D13,'C Report'!E$100:E$199)+SUMIF('C Report'!$A$300:$A$399,'C Report Grouper'!$D13,'C Report'!E$300:E$399),SUMIF('C Report'!$A$100:$A$199,'C Report Grouper'!$D13,'C Report'!E$100:E$199)) -> 0 | H13: =IF($D$4="MAP+ADM Waivers",SUMIF('C Report'!$A$100:$A$199,'C Report Grouper'!$D13,'C Report'!F$100:F$199)+SUMIF('C Report'!$A$300:$A$399,'C Report Grouper'!$D13,'C Report'!F$300:F$399),SUMIF('C Report'!$A$100:$A$199,'C Report Grouper'!$D13,'C Report'!F$100:F$199)) -> 0 | I13: =IF($D$4="MAP+ADM Waivers",SUMIF('C Report'!$A$100:$A$199,'C Report Grouper'!$D13,'C Report'!G$100:G$199)+SUMIF('C Report'!$A$300:$A$399,'C Report Grouper'!$D13,'C Report'!G$300:G$399),SUMIF('C Report'!$A$100:$A$199,'C Report Grouper'!$D13,'C Report'!G$100:G$199)) -> 0 | J13: =IF($D$4="MAP+ADM Waivers",SUMIF('C Report'!$A$100:$A$199,'C Report Grouper'!$D13,'C Report'!H$100:H$199)+SUMIF('C Report'!$A$300:$A$399,'C Report Grouper'!$D13,'C Report'!H$300:H$399),SUMIF('C Report'!$A$100:$A$199,'C Report Grouper'!$D13,'C Report'!H$100:H$199)) -> 0 | K13: =IF($D$4="MAP+ADM Waivers",SUMIF('C Report'!$A$100:$A$199,'C Report Grouper'!$D13,'C Report'!I$100:I$199)+SUMIF('C Report'!$A$300:$A$399,'C Report Grouper'!$D13,'C Report'!I$300:I$399),SUMIF('C Report'!$A$100:$A$199,'C Report Grouper'!$D13,'C Report'!I$100:I$199)) -> 0 | L13: =IF($D$4="MAP+ADM Waivers",SUMIF('C Report'!$A$100:$A$199,'C Report Grouper'!$D13,'C Report'!J$100:J$199)+SUMIF('C Report'!$A$300:$A$399,'C Report Grouper'!$D13,'C Report'!J$300:J$399),SUMIF('C Report'!$A$100:$A$199,'C Report Grouper'!$D13,'C Report'!J$100:J$199)) -> 0 | M13: =IF($D$4="MAP+ADM Waivers",SUMIF('C Report'!$A$100:$A$199,'C Report Grouper'!$D13,'C Report'!K$100:K$199)+SUMIF('C Report'!$A$300:$A$399,'C Report Grouper'!$D13,'C Report'!K$300:K$399),SUMIF('C Report'!$A$100:$A$199,'C Report Grouper'!$D13,'C Report'!K$100:K$199)) -> 0 | N13: =IF($D$4="MAP+ADM Waivers",SUMIF('C Report'!$A$100:$A$199,'C Report Grouper'!$D13,'C Report'!L$100:L$199)+SUMIF('C Report'!$A$300:$A$399,'C Report Grouper'!$D13,'C Report'!L$300:L$399),SUMIF('C Report'!$A$100:$A$199,'C Report Grouper'!$D13,'C Report'!L$100:L$199)) -> 0 | O13: =IF($D$4="MAP+ADM Waivers",SUMIF('C Report'!$A$100:$A$199,'C Report Grouper'!$D13,'C Report'!M$100:M$199)+SUMIF('C Report'!$A$300:$A$399,'C Report Grouper'!$D13,'C Report'!M$300:M$399),SUMIF('C Report'!$A$100:$A$199,'C Report Grouper'!$D13,'C Report'!M$100:M$199)) -> 0 | P13: =IF($D$4="MAP+ADM Waivers",SUMIF('C Report'!$A$100:$A$199,'C Report Grouper'!$D13,'C Report'!N$100:N$199)+SUMIF('C Report'!$A$300:$A$399,'C Report Grouper'!$D13,'C Report'!N$300:N$399),SUMIF('C Report'!$A$100:$A$199,'C Report Grouper'!$D13,'C Report'!N$100:N$199)) -> 16994126 | Q13: =IF($D$4="MAP+ADM Waivers",SUMIF('C Report'!$A$100:$A$199,'C Report Grouper'!$D13,'C Report'!O$100:O$199)+SUMIF('C Report'!$A$300:$A$399,'C Report Grouper'!$D13,'C Report'!O$300:O$399),SUMIF('C Report'!$A$100:$A$199,'C Report Grouper'!$D13,'C Report'!O$100:O$199)) -> 470769 | R13: =IF($D$4="MAP+ADM Waivers",SUMIF('C Report'!$A$100:$A$199,'C Report Grouper'!$D13,'C Report'!P$100:P$199)+SUMIF('C Report'!$A$300:$A$399,'C Report Grouper'!$D13,'C Report'!P$300:P$399),SUMIF('C Report'!$A$100:$A$199,'C Report Grouper'!$D13,'C Report'!P$100:P$199)) -> 1031770 | S13: =IF($D$4="MAP+ADM Waivers",SUMIF('C Report'!$A$100:$A$199,'C Report Grouper'!$D13,'C Report'!Q$100:Q$199)+SUMIF('C Report'!$A$300:$A$399,'C Report Grouper'!$D13,'C Report'!Q$300:Q$399),SUMIF('C Report'!$A$100:$A$199,'C Report Grouper'!$D13,'C Report'!Q$100:Q$199)) -> 776153 | T13: =IF($D$4="MAP+ADM Waivers",SUMIF('C Report'!$A$100:$A$199,'C Report Grouper'!$D13,'C Report'!R$100:R$199)+SUMIF('C Report'!$A$300:$A$399,'C Report Grouper'!$D13,'C Report'!R$300:R$399),SUMIF('C Report'!$A$100:$A$199,'C Report Grouper'!$D13,'C Report'!R$100:R$199)) -> 955903 | U13: =IF($D$4="MAP+ADM Waivers",SUMIF('C Report'!$A$100:$A$199,'C Report Grouper'!$D13,'C Report'!S$100:S$199)+SUMIF('C Report'!$A$300:$A$399,'C Report Grouper'!$D13,'C Report'!S$300:S$399),SUMIF('C Report'!$A$100:$A$199,'C Report Grouper'!$D13,'C Report'!S$100:S$199)) -> 420527 | V13: =IF($D$4="MAP+ADM Waivers",SUMIF('C Report'!$A$100:$A$199,'C Report Grouper'!$D13,'C Report'!T$100:T$199)+SUMIF('C Report'!$A$300:$A$399,'C Report Grouper'!$D13,'C Report'!T$300:T$399),SUMIF('C Report'!$A$100:$A$199,'C Report Grouper'!$D13,'C Report'!T$100:T$199)) -> 837408 | W13: =IF($D$4="MAP+ADM Waivers",SUMIF('C Report'!$A$100:$A$199,'C Report Grouper'!$D13,'C Report'!U$100:U$199)+SUMIF('C Report'!$A$300:$A$399,'C Report Grouper'!$D13,'C Report'!U$300:U$399),SUMIF('C Report'!$A$100:$A$199,'C Report Grouper'!$D13,'C Report'!U$100:U$199)) -> 2598821 | X13: =IF($D$4="MAP+ADM Waivers",SUMIF('C Report'!$A$100:$A$199,'C Report Grouper'!$D13,'C Report'!V$100:V$199)+SUMIF('C Report'!$A$300:$A$399,'C Report Grouper'!$D13,'C Report'!V$300:V$399),SUMIF('C Report'!$A$100:$A$199,'C Report Grouper'!$D13,'C Report'!V$100:V$199)) -> 3464750 | Y13: =IF($D$4="MAP+ADM Waivers",SUMIF('C Report'!$A$100:$A$199,'C Report Grouper'!$D13,'C Report'!W$100:W$199)+SUMIF('C Report'!$A$300:$A$399,'C Report Grouper'!$D13,'C Report'!W$300:W$399),SUMIF('C Report'!$A$100:$A$199,'C Report Grouper'!$D13,'C Report'!W$100:W$199)) -> 6313752 | Z13: =IF($D$4="MAP+ADM Waivers",SUMIF('C Report'!$A$100:$A$199,'C Report Grouper'!$D13,'C Report'!X$100:X$199)+SUMIF('C Report'!$A$300:$A$399,'C Report Grouper'!$D13,'C Report'!X$300:X$399),SUMIF('C Report'!$A$100:$A$199,'C Report Grouper'!$D13,'C Report'!X$100:X$199)) -> 8471381 | AA13: =IF($D$4="MAP+ADM Waivers",SUMIF('C Report'!$A$100:$A$199,'C Report Grouper'!$D13,'C Report'!Y$100:Y$199)+SUMIF('C Report'!$A$300:$A$399,'C Report Grouper'!$D13,'C Report'!Y$300:Y$399),SUMIF('C Report'!$A$100:$A$199,'C Report Grouper'!$D13,'C Report'!Y$100:Y$199)) -> 8640304 | AB13: =IF($D$4="MAP+ADM Waivers",SUMIF('C Report'!$A$100:$A$199,'C Report Grouper'!$D13,'C Report'!Z$100:Z$199)+SUMIF('C Report'!$A$300:$A$399,'C Report Grouper'!$D13,'C Report'!Z$300:Z$399),SUMIF('C Report'!$A$100:$A$199,'C Report Grouper'!$D13,'C Report'!Z$100:Z$199)) -> 17944160 | AC13: =IF($D$4="MAP+ADM Waivers",SUMIF('C Report'!$A$100:$A$199,'C Report Grouper'!$D13,'C Report'!AA$100:AA$199)+SUMIF('C Report'!$A$300:$A$399,'C Report Grouper'!$D13,'C Report'!AA$300:AA$399),SUMIF('C Report'!$A$100:$A$199,'C Report Grouper'!$D13,'C Report'!AA$100:AA$199)) -> 13516171 | AD13: =IF($D$4="MAP+ADM Waivers",SUMIF('C Report'!$A$100:$A$199,'C Report Grouper'!$D13,'C Report'!AB$100:AB$199)+SUMIF('C Report'!$A$300:$A$399,'C Report Grouper'!$D13,'C Report'!AB$300:AB$399),SUMIF('C Report'!$A$100:$A$199,'C Report Grouper'!$D13,'C Report'!AB$100:AB$199)) -> 2764565 | AE13: =IF($D$4="MAP+ADM Waivers",SUMIF('C Report'!$A$100:$A$199,'C Report Grouper'!$D13,'C Report'!AC$100:AC$199)+SUMIF('C Report'!$A$300:$A$399,'C Report Grouper'!$D13,'C Report'!AC$300:AC$399),SUMIF('C Report'!$A$100:$A$199,'C Report Grouper'!$D13,'C Report'!AC$100:AC$199)) -> 0 | AF13: =IF($D$4="MAP+ADM Waivers",SUMIF('C Report'!$A$100:$A$199,'C Report Grouper'!$D13,'C Report'!AD$100:AD$199)+SUMIF('C Report'!$A$300:$A$399,'C Report Grouper'!$D13,'C Report'!AD$300:AD$399),SUMIF('C Report'!$A$100:$A$199,'C Report Grouper'!$D13,'C Report'!AD$100:AD$199)) -> 0 | AG13: =IF($D$4="MAP+ADM Waivers",SUMIF('C Report'!$A$100:$A$199,'C Report Grouper'!$D13,'C Report'!AE$100:AE$199)+SUMIF('C Report'!$A$300:$A$399,'C Report Grouper'!$D13,'C Report'!AE$300:AE$399),SUMIF('C Report'!$A$100:$A$199,'C Report Grouper'!$D13,'C Report'!AE$100:AE$199)) -> 0 | AH13: =IF($D$4="MAP+ADM Waivers",SUMIF('C Report'!$A$100:$A$199,'C Report Grouper'!$D13,'C Report'!AF$100:AF$199)+SUMIF('C Report'!$A$300:$A$399,'C Report Grouper'!$D13,'C Report'!AF$300:AF$399),SUMIF('C Report'!$A$100:$A$199,'C Report Grouper'!$D13,'C Report'!AF$100:AF$199)) -> 0 | AI13: =IF($D$4="MAP+ADM Waivers",SUMIF('C Report'!$A$100:$A$199,'C Report Grouper'!$D13,'C Report'!AG$100:AG$199)+SUMIF('C Report'!$A$300:$A$399,'C Report Grouper'!$D13,'C Report'!AG$300:AG$399),SUMIF('C Report'!$A$100:$A$199,'C Report Grouper'!$D13,'C Report'!AG$100:AG$199)) -> 0
B14: =IFERROR(VLOOKUP(C14,'MEG Def'!$A$7:$B$13,2),"") -> SOBRA Adults | C14: 5 | D14: SOBRA Adult | E14: =IF($D$4="MAP+ADM Waivers",SUMIF('C Report'!$A$100:$A$199,'C Report Grouper'!$D14,'C Report'!C$100:C$199)+SUMIF('C Report'!$A$300:$A$399,'C Report Grouper'!$D14,'C Report'!C$300:C$399),SUMIF('C Report'!$A$100:$A$199,'C Report Grouper'!$D14,'C Report'!C$100:C$199)) -> 0 | F14: =IF($D$4="MAP+ADM Waivers",SUMIF('C Report'!$A$100:$A$199,'C Report Grouper'!$D14,'C Report'!D$100:D$199)+SUMIF('C Report'!$A$300:$A$399,'C Report Grouper'!$D14,'C Report'!D$300:D$399),SUMIF('C Report'!$A$100:$A$199,'C Report Grouper'!$D14,'C Report'!D$100:D$199)) -> 0 | G14: =IF($D$4="MAP+ADM Waivers",SUMIF('C Report'!$A$100:$A$199,'C Report Grouper'!$D14,'C Report'!E$100:E$199)+SUMIF('C Report'!$A$300:$A$399,'C Report Grouper'!$D14,'C Report'!E$300:E$399),SUMIF('C Report'!$A$100:$A$199,'C Report Grouper'!$D14,'C Report'!E$100:E$199)) -> 0 | H14: =IF($D$4="MAP+ADM Waivers",SUMIF('C Report'!$A$100:$A$199,'C Report Grouper'!$D14,'C Report'!F$100:F$199)+SUMIF('C Report'!$A$300:$A$399,'C Report Grouper'!$D14,'C Report'!F$300:F$399),SUMIF('C Report'!$A$100:$A$199,'C Report Grouper'!$D14,'C Report'!F$100:F$199)) -> 0 | I14: =IF($D$4="MAP+ADM Waivers",SUMIF('C Report'!$A$100:$A$199,'C Report Grouper'!$D14,'C Report'!G$100:G$199)+SUMIF('C Report'!$A$300:$A$399,'C Report Grouper'!$D14,'C Report'!G$300:G$399),SUMIF('C Report'!$A$100:$A$199,'C Report Grouper'!$D14,'C Report'!G$100:G$199)) -> 0 | J14: =IF($D$4="MAP+ADM Waivers",SUMIF('C Report'!$A$100:$A$199,'C Report Grouper'!$D14,'C Report'!H$100:H$199)+SUMIF('C Report'!$A$300:$A$399,'C Report Grouper'!$D14,'C Report'!H$300:H$399),SUMIF('C Report'!$A$100:$A$199,'C Report Grouper'!$D14,'C Report'!H$100:H$199)) -> 0 | K14: =IF($D$4="MAP+ADM Waivers",SUMIF('C Report'!$A$100:$A$199,'C Report Grouper'!$D14,'C Report'!I$100:I$199)+SUMIF('C Report'!$A$300:$A$399,'C Report Grouper'!$D14,'C Report'!I$300:I$399),SUMIF('C Report'!$A$100:$A$199,'C Report Grouper'!$D14,'C Report'!I$100:I$199)) -> 0 | L14: =IF($D$4="MAP+ADM Waivers",SUMIF('C Report'!$A$100:$A$199,'C Report Grouper'!$D14,'C Report'!J$100:J$199)+SUMIF('C Report'!$A$300:$A$399,'C Report Grouper'!$D14,'C Report'!J$300:J$399),SUMIF('C Report'!$A$100:$A$199,'C Report Grouper'!$D14,'C Report'!J$100:J$199)) -> 0 | M14: =IF($D$4="MAP+ADM Waivers",SUMIF('C Report'!$A$100:$A$199,'C Report Grouper'!$D14,'C Report'!K$100:K$199)+SUMIF('C Report'!$A$300:$A$399,'C Report Grouper'!$D14,'C Report'!K$300:K$399),SUMIF('C Report'!$A$100:$A$199,'C Report Grouper'!$D14,'C Report'!K$100:K$199)) -> 0 | N14: =IF($D$4="MAP+ADM Waivers",SUMIF('C Report'!$A$100:$A$199,'C Report Grouper'!$D14,'C Report'!L$100:L$199)+SUMIF('C Report'!$A$300:$A$399,'C Report Grouper'!$D14,'C Report'!L$300:L$399),SUMIF('C Report'!$A$100:$A$199,'C Report Grouper'!$D14,'C Report'!L$100:L$199)) -> 0 | O14: =IF($D$4="MAP+ADM Waivers",SUMIF('C Report'!$A$100:$A$199,'C Report Grouper'!$D14,'C Report'!M$100:M$199)+SUMIF('C Report'!$A$300:$A$399,'C Report Grouper'!$D14,'C Report'!M$300:M$399),SUMIF('C Report'!$A$100:$A$199,'C Report Grouper'!$D14,'C Report'!M$100:M$199)) -> 0 | P14: =IF($D$4="MAP+ADM Waivers",SUMIF('C Report'!$A$100:$A$199,'C Report Grouper'!$D14,'C Report'!N$100:N$199)+SUMIF('C Report'!$A$300:$A$399,'C Report Grouper'!$D14,'C Report'!N$300:N$399),SUMIF('C Report'!$A$100:$A$199,'C Report Grouper'!$D14,'C Report'!N$100:N$199)) -> 258855828 | Q14: =IF($D$4="MAP+ADM Waivers",SUMIF('C Report'!$A$100:$A$199,'C Report Grouper'!$D14,'C Report'!O$100:O$199)+SUMIF('C Report'!$A$300:$A$399,'C Report Grouper'!$D14,'C Report'!O$300:O$399),SUMIF('C Report'!$A$100:$A$199,'C Report Grouper'!$D14,'C Report'!O$100:O$199)) -> 217791676 | R14: =IF($D$4="MAP+ADM Waivers",SUMIF('C Report'!$A$100:$A$199,'C Report Grouper'!$D14,'C Report'!P$100:P$199)+SUMIF('C Report'!$A$300:$A$399,'C Report Grouper'!$D14,'C Report'!P$300:P$399),SUMIF('C Report'!$A$100:$A$199,'C Report Grouper'!$D14,'C Report'!P$100:P$199)) -> 258824902 | S14: =IF($D$4="MAP+ADM Waivers",SUMIF('C Report'!$A$100:$A$199,'C Report Grouper'!$D14,'C Report'!Q$100:Q$199)+SUMIF('C Report'!$A$300:$A$399,'C Report Grouper'!$D14,'C Report'!Q$300:Q$399),SUMIF('C Report'!$A$100:$A$199,'C Report Grouper'!$D14,'C Report'!Q$100:Q$199)) -> 249413715 | T14: =IF($D$4="MAP+ADM Waivers",SUMIF('C Report'!$A$100:$A$199,'C Report Grouper'!$D14,'C Report'!R$100:R$199)+SUMIF('C Report'!$A$300:$A$399,'C Report Grouper'!$D14,'C Report'!R$300:R$399),SUMIF('C Report'!$A$100:$A$199,'C Report Grouper'!$D14,'C Report'!R$100:R$199)) -> 224693918 | U14: =IF($D$4="MAP+ADM Waivers",SUMIF('C Report'!$A$100:$A$199,'C Report Grouper'!$D14,'C Report'!S$100:S$199)+SUMIF('C Report'!$A$300:$A$399,'C Report Grouper'!$D14,'C Report'!S$300:S$399),SUMIF('C Report'!$A$100:$A$199,'C Report Grouper'!$D14,'C Report'!S$100:S$199)) -> 240396271 | V14: =IF($D$4="MAP+ADM Waivers",SUMIF('C Report'!$A$100:$A$199,'C Report Grouper'!$D14,'C Report'!T$100:T$199)+SUMIF('C Report'!$A$300:$A$399,'C Report Grouper'!$D14,'C Report'!T$300:T$399),SUMIF('C Report'!$A$100:$A$199,'C Report Grouper'!$D14,'C Report'!T$100:T$199)) -> 222269739 | W14: =IF($D$4="MAP+ADM Waivers",SUMIF('C Report'!$A$100:$A$199,'C Report Grouper'!$D14,'C Report'!U$100:U$199)+SUMIF('C Report'!$A$300:$A$399,'C Report Grouper'!$D14,'C Report'!U$300:U$399),SUMIF('C Report'!$A$100:$A$199,'C Report Grouper'!$D14,'C Report'!U$100:U$199)) -> 160236962 | X14: =IF($D$4="MAP+ADM Waivers",SUMIF('C Report'!$A$100:$A$199,'C Report Grouper'!$D14,'C Report'!V$100:V$199)+SUMIF('C Report'!$A$300:$A$399,'C Report Grouper'!$D14,'C Report'!V$300:V$399),SUMIF('C Report'!$A$100:$A$199,'C Report Grouper'!$D14,'C Report'!V$100:V$199)) -> 177085029 | Y14: =IF($D$4="MAP+ADM Waivers",SUMIF('C Report'!$A$100:$A$199,'C Report Grouper'!$D14,'C Report'!W$100:W$199)+SUMIF('C Report'!$A$300:$A$399,'C Report Grouper'!$D14,'C Report'!W$300:W$399),SUMIF('C Report'!$A$100:$A$199,'C Report Grouper'!$D14,'C Report'!W$100:W$199)) -> 201313767 | Z14: =IF($D$4="MAP+ADM Waivers",SUMIF('C Report'!$A$100:$A$199,'C Report Grouper'!$D14,'C Report'!X$100:X$199)+SUMIF('C Report'!$A$300:$A$399,'C Report Grouper'!$D14,'C Report'!X$300:X$399),SUMIF('C Report'!$A$100:$A$199,'C Report Grouper'!$D14,'C Report'!X$100:X$199)) -> 259611353 | AA14: =IF($D$4="MAP+ADM Waivers",SUMIF('C Report'!$A$100:$A$199,'C Report Grouper'!$D14,'C Report'!Y$100:Y$199)+SUMIF('C Report'!$A$300:$A$399,'C Report Grouper'!$D14,'C Report'!Y$300:Y$399),SUMIF('C Report'!$A$100:$A$199,'C Report Grouper'!$D14,'C Report'!Y$100:Y$199)) -> 297950924 | AB14: =IF($D$4="MAP+ADM Waivers",SUMIF('C Report'!$A$100:$A$199,'C Report Grouper'!$D14,'C Report'!Z$100:Z$199)+SUMIF('C Report'!$A$300:$A$399,'C Report Grouper'!$D14,'C Report'!Z$300:Z$399),SUMIF('C Report'!$A$100:$A$199,'C Report Grouper'!$D14,'C Report'!Z$100:Z$199)) -> 221956539 | AC14: =IF($D$4="MAP+ADM Waivers",SUMIF('C Report'!$A$100:$A$199,'C Report Grouper'!$D14,'C Report'!AA$100:AA$199)+SUMIF('C Report'!$A$300:$A$399,'C Report Grouper'!$D14,'C Report'!AA$300:AA$399),SUMIF('C Report'!$A$100:$A$199,'C Report Grouper'!$D14,'C Report'!AA$100:AA$199)) -> 250489318 | AD14: =IF($D$4="MAP+ADM Waivers",SUMIF('C Report'!$A$100:$A$199,'C Report Grouper'!$D14,'C Report'!AB$100:AB$199)+SUMIF('C Report'!$A$300:$A$399,'C Report Grouper'!$D14,'C Report'!AB$300:AB$399),SUMIF('C Report'!$A$100:$A$199,'C Report Grouper'!$D14,'C Report'!AB$100:AB$199)) -> 142217013 | AE14: =IF($D$4="MAP+ADM Waivers",SUMIF('C Report'!$A$100:$A$199,'C Report Grouper'!$D14,'C Report'!AC$100:AC$199)+SUMIF('C Report'!$A$300:$A$399,'C Report Grouper'!$D14,'C Report'!AC$300:AC$399),SUMIF('C Report'!$A$100:$A$199,'C Report Grouper'!$D14,'C Report'!AC$100:AC$199)) -> 0 | AF14: =IF($D$4="MAP+ADM Waivers",SUMIF('C Report'!$A$100:$A$199,'C Report Grouper'!$D14,'C Report'!AD$100:AD$199)+SUMIF('C Report'!$A$300:$A$399,'C Report Grouper'!$D14,'C Report'!AD$300:AD$399),SUMIF('C Report'!$A$100:$A$199,'C Report Grouper'!$D14,'C Report'!AD$100:AD$199)) -> 0 | AG14: =IF($D$4="MAP+ADM Waivers",SUMIF('C Report'!$A$100:$A$199,'C Report Grouper'!$D14,'C Report'!AE$100:AE$199)+SUMIF('C Report'!$A$300:$A$399,'C Report Grouper'!$D14,'C Report'!AE$300:AE$399),SUMIF('C Report'!$A$100:$A$199,'C Report Grouper'!$D14,'C Report'!AE$100:AE$199)) -> 0 | AH14: =IF($D$4="MAP+ADM Waivers",SUMIF('C Report'!$A$100:$A$199,'C Report Grouper'!$D14,'C Report'!AF$100:AF$199)+SUMIF('C Report'!$A$300:$A$399,'C Report Grouper'!$D14,'C Report'!AF$300:AF$399),SUMIF('C Report'!$A$100:$A$199,'C Report Grouper'!$D14,'C Report'!AF$100:AF$199)) -> 0 | AI14: =IF($D$4="MAP+ADM Waivers",SUMIF('C Report'!$A$100:$A$199,'C Report Grouper'!$D14,'C Report'!AG$100:AG$199)+SUMIF('C Report'!$A$300:$A$399,'C Report Grouper'!$D14,'C Report'!AG$300:AG$399),SUMIF('C Report'!$A$100:$A$199,'C Report Grouper'!$D14,'C Report'!AG$100:AG$199)) -> 0
B15: =IFERROR(VLOOKUP(C15,'MEG Def'!$A$7:$B$13,2),"") -> SSI/BD Adults | C15: 6 | D15: SSI/BD Adults | E15: =IF($D$4="MAP+ADM Waivers",SUMIF('C Report'!$A$100:$A$199,'C Report Grouper'!$D15,'C Report'!C$100:C$199)+SUMIF('C Report'!$A$300:$A$399,'C Report Grouper'!$D15,'C Report'!C$300:C$399),SUMIF('C Report'!$A$100:$A$199,'C Report Grouper'!$D15,'C Report'!C$100:C$199)) -> 0 | F15: =IF($D$4="MAP+ADM Waivers",SUMIF('C Report'!$A$100:$A$199,'C Report Grouper'!$D15,'C Report'!D$100:D$199)+SUMIF('C Report'!$A$300:$A$399,'C Report Grouper'!$D15,'C Report'!D$300:D$399),SUMIF('C Report'!$A$100:$A$199,'C Report Grouper'!$D15,'C Report'!D$100:D$199)) -> 0 | G15: =IF($D$4="MAP+ADM Waivers",SUMIF('C Report'!$A$100:$A$199,'C Report Grouper'!$D15,'C Report'!E$100:E$199)+SUMIF('C Report'!$A$300:$A$399,'C Report Grouper'!$D15,'C Report'!E$300:E$399),SUMIF('C Report'!$A$100:$A$199,'C Report Grouper'!$D15,'C Report'!E$100:E$199)) -> 0 | H15: =IF($D$4="MAP+ADM Waivers",SUMIF('C Report'!$A$100:$A$199,'C Report Grouper'!$D15,'C Report'!F$100:F$199)+SUMIF('C Report'!$A$300:$A$399,'C Report Grouper'!$D15,'C Report'!F$300:F$399),SUMIF('C Report'!$A$100:$A$199,'C Report Grouper'!$D15,'C Report'!F$100:F$199)) -> 0 | I15: =IF($D$4="MAP+ADM Waivers",SUMIF('C Report'!$A$100:$A$199,'C Report Grouper'!$D15,'C Report'!G$100:G$199)+SUMIF('C Report'!$A$300:$A$399,'C Report Grouper'!$D15,'C Report'!G$300:G$399),SUMIF('C Report'!$A$100:$A$199,'C Report Grouper'!$D15,'C Report'!G$100:G$199)) -> 0 | J15: =IF($D$4="MAP+ADM Waivers",SUMIF('C Report'!$A$100:$A$199,'C Report Grouper'!$D15,'C Report'!H$100:H$199)+SUMIF('C Report'!$A$300:$A$399,'C Report Grouper'!$D15,'C Report'!H$300:H$399),SUMIF('C Report'!$A$100:$A$199,'C Report Grouper'!$D15,'C Report'!H$100:H$199)) -> 0 | K15: =IF($D$4="MAP+ADM Waivers",SUMIF('C Report'!$A$100:$A$199,'C Report Grouper'!$D15,'C Report'!I$100:I$199)+SUMIF('C Report'!$A$300:$A$399,'C Report Grouper'!$D15,'C Report'!I$300:I$399),SUMIF('C Report'!$A$100:$A$199,'C Report Grouper'!$D15,'C Report'!I$100:I$199)) -> 0 | L15: =IF($D$4="MAP+ADM Waivers",SUMIF('C Report'!$A$100:$A$199,'C Report Grouper'!$D15,'C Report'!J$100:J$199)+SUMIF('C Report'!$A$300:$A$399,'C Report Grouper'!$D15,'C Report'!J$300:J$399),SUMIF('C Report'!$A$100:$A$199,'C Report Grouper'!$D15,'C Report'!J$100:J$199)) -> 0 | M15: =IF($D$4="MAP+ADM Waivers",SUMIF('C Report'!$A$100:$A$199,'C Report Grouper'!$D15,'C Report'!K$100:K$199)+SUMIF('C Report'!$A$300:$A$399,'C Report Grouper'!$D15,'C Report'!K$300:K$399),SUMIF('C Report'!$A$100:$A$199,'C Report Grouper'!$D15,'C Report'!K$100:K$199)) -> -62275 | N15: =IF($D$4="MAP+ADM Waivers",SUMIF('C Report'!$A$100:$A$199,'C Report Grouper'!$D15,'C Report'!L$100:L$199)+SUMIF('C Report'!$A$300:$A$399,'C Report Grouper'!$D15,'C Report'!L$300:L$399),SUMIF('C Report'!$A$100:$A$199,'C Report Grouper'!$D15,'C Report'!L$100:L$199)) -> -125272 | O15: =IF($D$4="MAP+ADM Waivers",SUMIF('C Report'!$A$100:$A$199,'C Report Grouper'!$D15,'C Report'!M$100:M$199)+SUMIF('C Report'!$A$300:$A$399,'C Report Grouper'!$D15,'C Report'!M$300:M$399),SUMIF('C Report'!$A$100:$A$199,'C Report Grouper'!$D15,'C Report'!M$100:M$199)) -> -114390 | P15: =IF($D$4="MAP+ADM Waivers",SUMIF('C Report'!$A$100:$A$199,'C Report Grouper'!$D15,'C Report'!N$100:N$199)+SUMIF('C Report'!$A$300:$A$399,'C Report Grouper'!$D15,'C Report'!N$300:N$399),SUMIF('C Report'!$A$100:$A$199,'C Report Grouper'!$D15,'C Report'!N$100:N$199)) -> 828765469 | Q15: =IF($D$4="MAP+ADM Waivers",SUMIF('C Report'!$A$100:$A$199,'C Report Grouper'!$D15,'C Report'!O$100:O$199)+SUMIF('C Report'!$A$300:$A$399,'C Report Grouper'!$D15,'C Report'!O$300:O$399),SUMIF('C Report'!$A$100:$A$199,'C Report Grouper'!$D15,'C Report'!O$100:O$199)) -> 860547469 | R15: =IF($D$4="MAP+ADM Waivers",SUMIF('C Report'!$A$100:$A$199,'C Report Grouper'!$D15,'C Report'!P$100:P$199)+SUMIF('C Report'!$A$300:$A$399,'C Report Grouper'!$D15,'C Report'!P$300:P$399),SUMIF('C Report'!$A$100:$A$199,'C Report Grouper'!$D15,'C Report'!P$100:P$199)) -> 954507205 | S15: =IF($D$4="MAP+ADM Waivers",SUMIF('C Report'!$A$100:$A$199,'C Report Grouper'!$D15,'C Report'!Q$100:Q$199)+SUMIF('C Report'!$A$300:$A$399,'C Report Grouper'!$D15,'C Report'!Q$300:Q$399),SUMIF('C Report'!$A$100:$A$199,'C Report Grouper'!$D15,'C Report'!Q$100:Q$199)) -> 1010291248 | T15: =IF($D$4="MAP+ADM Waivers",SUMIF('C Report'!$A$100:$A$199,'C Report Grouper'!$D15,'C Report'!R$100:R$199)+SUMIF('C Report'!$A$300:$A$399,'C Report Grouper'!$D15,'C Report'!R$300:R$399),SUMIF('C Report'!$A$100:$A$199,'C Report Grouper'!$D15,'C Report'!R$100:R$199)) -> 994296747 | U15: =IF($D$4="MAP+ADM Waivers",SUMIF('C Report'!$A$100:$A$199,'C Report Grouper'!$D15,'C Report'!S$100:S$199)+SUMIF('C Report'!$A$300:$A$399,'C Report Grouper'!$D15,'C Report'!S$300:S$399),SUMIF('C Report'!$A$100:$A$199,'C Report Grouper'!$D15,'C Report'!S$100:S$199)) -> 1088295074 | V15: =IF($D$4="MAP+ADM Waivers",SUMIF('C Report'!$A$100:$A$199,'C Report Grouper'!$D15,'C Report'!T$100:T$199)+SUMIF('C Report'!$A$300:$A$399,'C Report Grouper'!$D15,'C Report'!T$300:T$399),SUMIF('C Report'!$A$100:$A$199,'C Report Grouper'!$D15,'C Report'!T$100:T$199)) -> 1152277187 | W15: =IF($D$4="MAP+ADM Waivers",SUMIF('C Report'!$A$100:$A$199,'C Report Grouper'!$D15,'C Report'!U$100:U$199)+SUMIF('C Report'!$A$300:$A$399,'C Report Grouper'!$D15,'C Report'!U$300:U$399),SUMIF('C Report'!$A$100:$A$199,'C Report Grouper'!$D15,'C Report'!U$100:U$199)) -> 1165715465 | X15: =IF($D$4="MAP+ADM Waivers",SUMIF('C Report'!$A$100:$A$199,'C Report Grouper'!$D15,'C Report'!V$100:V$199)+SUMIF('C Report'!$A$300:$A$399,'C Report Grouper'!$D15,'C Report'!V$300:V$399),SUMIF('C Report'!$A$100:$A$199,'C Report Grouper'!$D15,'C Report'!V$100:V$199)) -> 1245584081 | Y15: =IF($D$4="MAP+ADM Waivers",SUMIF('C Report'!$A$100:$A$199,'C Report Grouper'!$D15,'C Report'!W$100:W$199)+SUMIF('C Report'!$A$300:$A$399,'C Report Grouper'!$D15,'C Report'!W$300:W$399),SUMIF('C Report'!$A$100:$A$199,'C Report Grouper'!$D15,'C Report'!W$100:W$199)) -> 1309271463 | Z15: =IF($D$4="MAP+ADM Waivers",SUMIF('C Report'!$A$100:$A$199,'C Report Grouper'!$D15,'C Report'!X$100:X$199)+SUMIF('C Report'!$A$300:$A$399,'C Report Grouper'!$D15,'C Report'!X$300:X$399),SUMIF('C Report'!$A$100:$A$199,'C Report Grouper'!$D15,'C Report'!X$100:X$199)) -> 1302024690 | AA15: =IF($D$4="MAP+ADM Waivers",SUMIF('C Report'!$A$100:$A$199,'C Report Grouper'!$D15,'C Report'!Y$100:Y$199)+SUMIF('C Report'!$A$300:$A$399,'C Report Grouper'!$D15,'C Report'!Y$300:Y$399),SUMIF('C Report'!$A$100:$A$199,'C Report Grouper'!$D15,'C Report'!Y$100:Y$199)) -> 1119453211 | AB15: =IF($D$4="MAP+ADM Waivers",SUMIF('C Report'!$A$100:$A$199,'C Report Grouper'!$D15,'C Report'!Z$100:Z$199)+SUMIF('C Report'!$A$300:$A$399,'C Report Grouper'!$D15,'C Report'!Z$300:Z$399),SUMIF('C Report'!$A$100:$A$199,'C Report Grouper'!$D15,'C Report'!Z$100:Z$199)) -> 1393253088 | AC15: =IF($D$4="MAP+ADM Waivers",SUMIF('C Report'!$A$100:$A$199,'C Report Grouper'!$D15,'C Report'!AA$100:AA$199)+SUMIF('C Report'!$A$300:$A$399,'C Report Grouper'!$D15,'C Report'!AA$300:AA$399),SUMIF('C Report'!$A$100:$A$199,'C Report Grouper'!$D15,'C Report'!AA$100:AA$199)) -> 1288546060 | AD15: =IF($D$4="MAP+ADM Waivers",SUMIF('C Report'!$A$100:$A$199,'C Report Grouper'!$D15,'C Report'!AB$100:AB$199)+SUMIF('C Report'!$A$300:$A$399,'C Report Grouper'!$D15,'C Report'!AB$300:AB$399),SUMIF('C Report'!$A$100:$A$199,'C Report Grouper'!$D15,'C Report'!AB$100:AB$199)) -> 762802335 | AE15: =IF($D$4="MAP+ADM Waivers",SUMIF('C Report'!$A$100:$A$199,'C Report Grouper'!$D15,'C Report'!AC$100:AC$199)+SUMIF('C Report'!$A$300:$A$399,'C Report Grouper'!$D15,'C Report'!AC$300:AC$399),SUMIF('C Report'!$A$100:$A$199,'C Report Grouper'!$D15,'C Report'!AC$100:AC$199)) -> 0 | AF15: =IF($D$4="MAP+ADM Waivers",SUMIF('C Report'!$A$100:$A$199,'C Report Grouper'!$D15,'C Report'!AD$100:AD$199)+SUMIF('C Report'!$A$300:$A$399,'C Report Grouper'!$D15,'C Report'!AD$300:AD$399),SUMIF('C Report'!$A$100:$A$199,'C Report Grouper'!$D15,'C Report'!AD$100:AD$199)) -> 0 | AG15: =IF($D$4="MAP+ADM Waivers",SUMIF('C Report'!$A$100:$A$199,'C Report Grouper'!$D15,'C Report'!AE$100:AE$199)+SUMIF('C Report'!$A$300:$A$399,'C Report Grouper'!$D15,'C Report'!AE$300:AE$399),SUMIF('C Report'!$A$100:$A$199,'C Report Grouper'!$D15,'C Report'!AE$100:AE$199)) -> 0 | AH15: =IF($D$4="MAP+ADM Waivers",SUMIF('C Report'!$A$100:$A$199,'C Report Grouper'!$D15,'C Report'!AF$100:AF$199)+SUMIF('C Report'!$A$300:$A$399,'C Report Grouper'!$D15,'C Report'!AF$300:AF$399),SUMIF('C Report'!$A$100:$A$199,'C Report Grouper'!$D15,'C Report'!AF$100:AF$199)) -> 0 | AI15: =IF($D$4="MAP+ADM Waivers",SUMIF('C Report'!$A$100:$A$199,'C Report Grouper'!$D15,'C Report'!AG$100:AG$199)+SUMIF('C Report'!$A$300:$A$399,'C Report Grouper'!$D15,'C Report'!AG$300:AG$399),SUMIF('C Report'!$A$100:$A$199,'C Report Grouper'!$D15,'C Report'!AG$100:AG$199)) -> 0
B16: =IFERROR(VLOOKUP(C16,'MEG Def'!$A$7:$B$13,2),"") -> SSI/BD Children | C16: 7 | D16: SSI/BD Chldrn | E16: =IF($D$4="MAP+ADM Waivers",SUMIF('C Report'!$A$100:$A$199,'C Report Grouper'!$D16,'C Report'!C$100:C$199)+SUMIF('C Report'!$A$300:$A$399,'C Report Grouper'!$D16,'C Report'!C$300:C$399),SUMIF('C Report'!$A$100:$A$199,'C Report Grouper'!$D16,'C Report'!C$100:C$199)) -> 0 | F16: =IF($D$4="MAP+ADM Waivers",SUMIF('C Report'!$A$100:$A$199,'C Report Grouper'!$D16,'C Report'!D$100:D$199)+SUMIF('C Report'!$A$300:$A$399,'C Report Grouper'!$D16,'C Report'!D$300:D$399),SUMIF('C Report'!$A$100:$A$199,'C Report Grouper'!$D16,'C Report'!D$100:D$199)) -> 0 | G16: =IF($D$4="MAP+ADM Waivers",SUMIF('C Report'!$A$100:$A$199,'C Report Grouper'!$D16,'C Report'!E$100:E$199)+SUMIF('C Report'!$A$300:$A$399,'C Report Grouper'!$D16,'C Report'!E$300:E$399),SUMIF('C Report'!$A$100:$A$199,'C Report Grouper'!$D16,'C Report'!E$100:E$199)) -> 0 | H16: =IF($D$4="MAP+ADM Waivers",SUMIF('C Report'!$A$100:$A$199,'C Report Grouper'!$D16,'C Report'!F$100:F$199)+SUMIF('C Report'!$A$300:$A$399,'C Report Grouper'!$D16,'C Report'!F$300:F$399),SUMIF('C Report'!$A$100:$A$199,'C Report Grouper'!$D16,'C Report'!F$100:F$199)) -> 0 | I16: =IF($D$4="MAP+ADM Waivers",SUMIF('C Report'!$A$100:$A$199,'C Report Grouper'!$D16,'C Report'!G$100:G$199)+SUMIF('C Report'!$A$300:$A$399,'C Report Grouper'!$D16,'C Report'!G$300:G$399),SUMIF('C Report'!$A$100:$A$199,'C Report Grouper'!$D16,'C Report'!G$100:G$199)) -> 0 | J16: =IF($D$4="MAP+ADM Waivers",SUMIF('C Report'!$A$100:$A$199,'C Report Grouper'!$D16,'C Report'!H$100:H$199)+SUMIF('C Report'!$A$300:$A$399,'C Report Grouper'!$D16,'C Report'!H$300:H$399),SUMIF('C Report'!$A$100:$A$199,'C Report Grouper'!$D16,'C Report'!H$100:H$199)) -> 0 | K16: =IF($D$4="MAP+ADM Waivers",SUMIF('C Report'!$A$100:$A$199,'C Report Grouper'!$D16,'C Report'!I$100:I$199)+SUMIF('C Report'!$A$300:$A$399,'C Report Grouper'!$D16,'C Report'!I$300:I$399),SUMIF('C Report'!$A$100:$A$199,'C Report Grouper'!$D16,'C Report'!I$100:I$199)) -> 0 | L16: =IF($D$4="MAP+ADM Waivers",SUMIF('C Report'!$A$100:$A$199,'C Report Grouper'!$D16,'C Report'!J$100:J$199)+SUMIF('C Report'!$A$300:$A$399,'C Report Grouper'!$D16,'C Report'!J$300:J$399),SUMIF('C Report'!$A$100:$A$199,'C Report Grouper'!$D16,'C Report'!J$100:J$199)) -> 0 | M16: =IF($D$4="MAP+ADM Waivers",SUMIF('C Report'!$A$100:$A$199,'C Report Grouper'!$D16,'C Report'!K$100:K$199)+SUMIF('C Report'!$A$300:$A$399,'C Report Grouper'!$D16,'C Report'!K$300:K$399),SUMIF('C Report'!$A$100:$A$199,'C Report Grouper'!$D16,'C Report'!K$100:K$199)) -> -16192 | N16: =IF($D$4="MAP+ADM Waivers",SUMIF('C Report'!$A$100:$A$199,'C Report Grouper'!$D16,'C Report'!L$100:L$199)+SUMIF('C Report'!$A$300:$A$399,'C Report Grouper'!$D16,'C Report'!L$300:L$399),SUMIF('C Report'!$A$100:$A$199,'C Report Grouper'!$D16,'C Report'!L$100:L$199)) -> -25537 | O16: =IF($D$4="MAP+ADM Waivers",SUMIF('C Report'!$A$100:$A$199,'C Report Grouper'!$D16,'C Report'!M$100:M$199)+SUMIF('C Report'!$A$300:$A$399,'C Report Grouper'!$D16,'C Report'!M$300:M$399),SUMIF('C Report'!$A$100:$A$199,'C Report Grouper'!$D16,'C Report'!M$100:M$199)) -> -24860 | P16: =IF($D$4="MAP+ADM Waivers",SUMIF('C Report'!$A$100:$A$199,'C Report Grouper'!$D16,'C Report'!N$100:N$199)+SUMIF('C Report'!$A$300:$A$399,'C Report Grouper'!$D16,'C Report'!N$300:N$399),SUMIF('C Report'!$A$100:$A$199,'C Report Grouper'!$D16,'C Report'!N$100:N$199)) -> 307065189 | Q16: =IF($D$4="MAP+ADM Waivers",SUMIF('C Report'!$A$100:$A$199,'C Report Grouper'!$D16,'C Report'!O$100:O$199)+SUMIF('C Report'!$A$300:$A$399,'C Report Grouper'!$D16,'C Report'!O$300:O$399),SUMIF('C Report'!$A$100:$A$199,'C Report Grouper'!$D16,'C Report'!O$100:O$199)) -> 311433085 | R16: =IF($D$4="MAP+ADM Waivers",SUMIF('C Report'!$A$100:$A$199,'C Report Grouper'!$D16,'C Report'!P$100:P$199)+SUMIF('C Report'!$A$300:$A$399,'C Report Grouper'!$D16,'C Report'!P$300:P$399),SUMIF('C Report'!$A$100:$A$199,'C Report Grouper'!$D16,'C Report'!P$100:P$199)) -> 332737686 | S16: =IF($D$4="MAP+ADM Waivers",SUMIF('C Report'!$A$100:$A$199,'C Report Grouper'!$D16,'C Report'!Q$100:Q$199)+SUMIF('C Report'!$A$300:$A$399,'C Report Grouper'!$D16,'C Report'!Q$300:Q$399),SUMIF('C Report'!$A$100:$A$199,'C Report Grouper'!$D16,'C Report'!Q$100:Q$199)) -> 342108927 | T16: =IF($D$4="MAP+ADM Waivers",SUMIF('C Report'!$A$100:$A$199,'C Report Grouper'!$D16,'C Report'!R$100:R$199)+SUMIF('C Report'!$A$300:$A$399,'C Report Grouper'!$D16,'C Report'!R$300:R$399),SUMIF('C Report'!$A$100:$A$199,'C Report Grouper'!$D16,'C Report'!R$100:R$199)) -> 339639498 | U16: =IF($D$4="MAP+ADM Waivers",SUMIF('C Report'!$A$100:$A$199,'C Report Grouper'!$D16,'C Report'!S$100:S$199)+SUMIF('C Report'!$A$300:$A$399,'C Report Grouper'!$D16,'C Report'!S$300:S$399),SUMIF('C Report'!$A$100:$A$199,'C Report Grouper'!$D16,'C Report'!S$100:S$199)) -> 365388025 | V16: =IF($D$4="MAP+ADM Waivers",SUMIF('C Report'!$A$100:$A$199,'C Report Grouper'!$D16,'C Report'!T$100:T$199)+SUMIF('C Report'!$A$300:$A$399,'C Report Grouper'!$D16,'C Report'!T$300:T$399),SUMIF('C Report'!$A$100:$A$199,'C Report Grouper'!$D16,'C Report'!T$100:T$199)) -> 389687077 | W16: =IF($D$4="MAP+ADM Waivers",SUMIF('C Report'!$A$100:$A$199,'C Report Grouper'!$D16,'C Report'!U$100:U$199)+SUMIF('C Report'!$A$300:$A$399,'C Report Grouper'!$D16,'C Report'!U$300:U$399),SUMIF('C Report'!$A$100:$A$199,'C Report Grouper'!$D16,'C Report'!U$100:U$199)) -> 405228449 | X16: =IF($D$4="MAP+ADM Waivers",SUMIF('C Report'!$A$100:$A$199,'C Report Grouper'!$D16,'C Report'!V$100:V$199)+SUMIF('C Report'!$A$300:$A$399,'C Report Grouper'!$D16,'C Report'!V$300:V$399),SUMIF('C Report'!$A$100:$A$199,'C Report Grouper'!$D16,'C Report'!V$100:V$199)) -> 429115801 | Y16: =IF($D$4="MAP+ADM Waivers",SUMIF('C Report'!$A$100:$A$199,'C Report Grouper'!$D16,'C Report'!W$100:W$199)+SUMIF('C Report'!$A$300:$A$399,'C Report Grouper'!$D16,'C Report'!W$300:W$399),SUMIF('C Report'!$A$100:$A$199,'C Report Grouper'!$D16,'C Report'!W$100:W$199)) -> 448239523 | Z16: =IF($D$4="MAP+ADM Waivers",SUMIF('C Report'!$A$100:$A$199,'C Report Grouper'!$D16,'C Report'!X$100:X$199)+SUMIF('C Report'!$A$300:$A$399,'C Report Grouper'!$D16,'C Report'!X$300:X$399),SUMIF('C Report'!$A$100:$A$199,'C Report Grouper'!$D16,'C Report'!X$100:X$199)) -> 426582361 | AA16: =IF($D$4="MAP+ADM Waivers",SUMIF('C Report'!$A$100:$A$199,'C Report Grouper'!$D16,'C Report'!Y$100:Y$199)+SUMIF('C Report'!$A$300:$A$399,'C Report Grouper'!$D16,'C Report'!Y$300:Y$399),SUMIF('C Report'!$A$100:$A$199,'C Report Grouper'!$D16,'C Report'!Y$100:Y$199)) -> 359252359 | AB16: =IF($D$4="MAP+ADM Waivers",SUMIF('C Report'!$A$100:$A$199,'C Report Grouper'!$D16,'C Report'!Z$100:Z$199)+SUMIF('C Report'!$A$300:$A$399,'C Report Grouper'!$D16,'C Report'!Z$300:Z$399),SUMIF('C Report'!$A$100:$A$199,'C Report Grouper'!$D16,'C Report'!Z$100:Z$199)) -> 433453672 | AC16: =IF($D$4="MAP+ADM Waivers",SUMIF('C Report'!$A$100:$A$199,'C Report Grouper'!$D16,'C Report'!AA$100:AA$199)+SUMIF('C Report'!$A$300:$A$399,'C Report Grouper'!$D16,'C Report'!AA$300:AA$399),SUMIF('C Report'!$A$100:$A$199,'C Report Grouper'!$D16,'C Report'!AA$100:AA$199)) -> 355499370 | AD16: =IF($D$4="MAP+ADM Waivers",SUMIF('C Report'!$A$100:$A$199,'C Report Grouper'!$D16,'C Report'!AB$100:AB$199)+SUMIF('C Report'!$A$300:$A$399,'C Report Grouper'!$D16,'C Report'!AB$300:AB$399),SUMIF('C Report'!$A$100:$A$199,'C Report Grouper'!$D16,'C Report'!AB$100:AB$199)) -> 178390520 | AE16: =IF($D$4="MAP+ADM Waivers",SUMIF('C Report'!$A$100:$A$199,'C Report Grouper'!$D16,'C Report'!AC$100:AC$199)+SUMIF('C Report'!$A$300:$A$399,'C Report Grouper'!$D16,'C Report'!AC$300:AC$399),SUMIF('C Report'!$A$100:$A$199,'C Report Grouper'!$D16,'C Report'!AC$100:AC$199)) -> 0 | AF16: =IF($D$4="MAP+ADM Waivers",SUMIF('C Report'!$A$100:$A$199,'C Report Grouper'!$D16,'C Report'!AD$100:AD$199)+SUMIF('C Report'!$A$300:$A$399,'C Report Grouper'!$D16,'C Report'!AD$300:AD$399),SUMIF('C Report'!$A$100:$A$199,'C Report Grouper'!$D16,'C Report'!AD$100:AD$199)) -> 0 | AG16: =IF($D$4="MAP+ADM Waivers",SUMIF('C Report'!$A$100:$A$199,'C Report Grouper'!$D16,'C Report'!AE$100:AE$199)+SUMIF('C Report'!$A$300:$A$399,'C Report Grouper'!$D16,'C Report'!AE$300:AE$399),SUMIF('C Report'!$A$100:$A$199,'C Report Grouper'!$D16,'C Report'!AE$100:AE$199)) -> 0 | AH16: =IF($D$4="MAP+ADM Waivers",SUMIF('C Report'!$A$100:$A$199,'C Report Grouper'!$D16,'C Report'!AF$100:AF$199)+SUMIF('C Report'!$A$300:$A$399,'C Report Grouper'!$D16,'C Report'!AF$300:AF$399),SUMIF('C Report'!$A$100:$A$199,'C Report Grouper'!$D16,'C Report'!AF$100:AF$199)) -> 0 | AI16: =IF($D$4="MAP+ADM Waivers",SUMIF('C Report'!$A$100:$A$199,'C Report Grouper'!$D16,'C Report'!AG$100:AG$199)+SUMIF('C Report'!$A$300:$A$399,'C Report Grouper'!$D16,'C Report'!AG$300:AG$399),SUMIF('C Report'!$A$100:$A$199,'C Report Grouper'!$D16,'C Report'!AG$100:AG$199)) -> 0
E17: =IF($D$4="MAP+ADM Waivers",SUMIF('C Report'!$A$100:$A$199,'C Report Grouper'!$D17,'C Report'!C$100:C$199)+SUMIF('C Report'!$A$300:$A$399,'C Report Grouper'!$D17,'C Report'!C$300:C$399),SUMIF('C Report'!$A$100:$A$199,'C Report Grouper'!$D17,'C Report'!C$100:C$199)) -> 0 | F17: =IF($D$4="MAP+ADM Waivers",SUMIF('C Report'!$A$100:$A$199,'C Report Grouper'!$D17,'C Report'!D$100:D$199)+SUMIF('C Report'!$A$300:$A$399,'C Report Grouper'!$D17,'C Report'!D$300:D$399),SUMIF('C Report'!$A$100:$A$199,'C Report Grouper'!$D17,'C Report'!D$100:D$199)) -> 0 | G17: =IF($D$4="MAP+ADM Waivers",SUMIF('C Report'!$A$100:$A$199,'C Report Grouper'!$D17,'C Report'!E$100:E$199)+SUMIF('C Report'!$A$300:$A$399,'C Report Grouper'!$D17,'C Report'!E$300:E$399),SUMIF('C Report'!$A$100:$A$199,'C Report Grouper'!$D17,'C Report'!E$100:E$199)) -> 0 | H17: =IF($D$4="MAP+ADM Waivers",SUMIF('C Report'!$A$100:$A$199,'C Report Grouper'!$D17,'C Report'!F$100:F$199)+SUMIF('C Report'!$A$300:$A$399,'C Report Grouper'!$D17,'C Report'!F$300:F$399),SUMIF('C Report'!$A$100:$A$199,'C Report Grouper'!$D17,'C Report'!F$100:F$199)) -> 0 | I17: =IF($D$4="MAP+ADM Waivers",SUMIF('C Report'!$A$100:$A$199,'C Report Grouper'!$D17,'C Report'!G$100:G$199)+SUMIF('C Report'!$A$300:$A$399,'C Report Grouper'!$D17,'C Report'!G$300:G$399),SUMIF('C Report'!$A$100:$A$199,'C Report Grouper'!$D17,'C Report'!G$100:G$199)) -> 0 | J17: =IF($D$4="MAP+ADM Waivers",SUMIF('C Report'!$A$100:$A$199,'C Report Grouper'!$D17,'C Report'!H$100:H$199)+SUMIF('C Report'!$A$300:$A$399,'C Report Grouper'!$D17,'C Report'!H$300:H$399),SUMIF('C Report'!$A$100:$A$199,'C Report Grouper'!$D17,'C Report'!H$100:H$199)) -> 0 | K17: =IF($D$4="MAP+ADM Waivers",SUMIF('C Report'!$A$100:$A$199,'C Report Grouper'!$D17,'C Report'!I$100:I$199)+SUMIF('C Report'!$A$300:$A$399,'C Report Grouper'!$D17,'C Report'!I$300:I$399),SUMIF('C Report'!$A$100:$A$199,'C Report Grouper'!$D17,'C Report'!I$100:I$199)) -> 0 | L17: =IF($D$4="MAP+ADM Waivers",SUMIF('C Report'!$A$100:$A$199,'C Report Grouper'!$D17,'C Report'!J$100:J$199)+SUMIF('C Report'!$A$300:$A$399,'C Report Grouper'!$D17,'C Report'!J$300:J$399),SUMIF('C Report'!$A$100:$A$199,'C Report Grouper'!$D17,'C Report'!J$100:J$199)) -> 0 | M17: =IF($D$4="MAP+ADM Waivers",SUMIF('C Report'!$A$100:$A$199,'C Report Grouper'!$D17,'C Report'!K$100:K$199)+SUMIF('C Report'!$A$300:$A$399,'C Report Grouper'!$D17,'C Report'!K$300:K$399),SUMIF('C Report'!$A$100:$A$199,'C Report Grouper'!$D17,'C Report'!K$100:K$199)) -> 0 | N17: =IF($D$4="MAP+ADM Waivers",SUMIF('C Report'!$A$100:$A$199,'C Report Grouper'!$D17,'C Report'!L$100:L$199)+SUMIF('C Report'!$A$300:$A$399,'C Report Grouper'!$D17,'C Report'!L$300:L$399),SUMIF('C Report'!$A$100:$A$199,'C Report Grouper'!$D17,'C Report'!L$100:L$199)) -> 0 | O17: =IF($D$4="MAP+ADM Waivers",SUMIF('C Report'!$A$100:$A$199,'C Report Grouper'!$D17,'C Report'!M$100:M$199)+SUMIF('C Report'!$A$300:$A$399,'C Report Grouper'!$D17,'C Report'!M$300:M$399),SUMIF('C Report'!$A$100:$A$199,'C Report Grouper'!$D17,'C Report'!M$100:M$199)) -> 0 | P17: =IF($D$4="MAP+ADM Waivers",SUMIF('C Report'!$A$100:$A$199,'C Report Grouper'!$D17,'C Report'!N$100:N$199)+SUMIF('C Report'!$A$300:$A$399,'C Report Grouper'!$D17,'C Report'!N$300:N$399),SUMIF('C Report'!$A$100:$A$199,'C Report Grouper'!$D17,'C Report'!N$100:N$199)) -> 0 | Q17: =IF($D$4="MAP+ADM Waivers",SUMIF('C Report'!$A$100:$A$199,'C Report Grouper'!$D17,'C Report'!O$100:O$199)+SUMIF('C Report'!$A$300:$A$399,'C Report Grouper'!$D17,'C Report'!O$300:O$399),SUMIF('C Report'!$A$100:$A$199,'C Report Grouper'!$D17,'C Report'!O$100:O$199)) -> 0 | R17: =IF($D$4="MAP+ADM Waivers",SUMIF('C Report'!$A$100:$A$199,'C Report Grouper'!$D17,'C Report'!P$100:P$199)+SUMIF('C Report'!$A$300:$A$399,'C Report Grouper'!$D17,'C Report'!P$300:P$399),SUMIF('C Report'!$A$100:$A$199,'C Report Grouper'!$D17,'C Report'!P$100:P$199)) -> 0 | S17: =IF($D$4="MAP+ADM Waivers",SUMIF('C Report'!$A$100:$A$199,'C Report Grouper'!$D17,'C Report'!Q$100:Q$199)+SUMIF('C Report'!$A$300:$A$399,'C Report Grouper'!$D17,'C Report'!Q$300:Q$399),SUMIF('C Report'!$A$100:$A$199,'C Report Grouper'!$D17,'C Report'!Q$100:Q$199)) -> 0 | T17: =IF($D$4="MAP+ADM Waivers",SUMIF('C Report'!$A$100:$A$199,'C Report Grouper'!$D17,'C Report'!R$100:R$199)+SUMIF('C Report'!$A$300:$A$399,'C Report Grouper'!$D17,'C Report'!R$300:R$399),SUMIF('C Report'!$A$100:$A$199,'C Report Grouper'!$D17,'C Report'!R$100:R$199)) -> 0 | U17: =IF($D$4="MAP+ADM Waivers",SUMIF('C Report'!$A$100:$A$199,'C Report Grouper'!$D17,'C Report'!S$100:S$199)+SUMIF('C Report'!$A$300:$A$399,'C Report Grouper'!$D17,'C Report'!S$300:S$399),SUMIF('C Report'!$A$100:$A$199,'C Report Grouper'!$D17,'C Report'!S$100:S$199)) -> 0 | V17: =IF($D$4="MAP+ADM Waivers",SUMIF('C Report'!$A$100:$A$199,'C Report Grouper'!$D17,'C Report'!T$100:T$199)+SUMIF('C Report'!$A$300:$A$399,'C Report Grouper'!$D17,'C Report'!T$300:T$399),SUMIF('C Report'!$A$100:$A$199,'C Report Grouper'!$D17,'C Report'!T$100:T$199)) -> 0 | W17: =IF($D$4="MAP+ADM Waivers",SUMIF('C Report'!$A$100:$A$199,'C Report Grouper'!$D17,'C Report'!U$100:U$199)+SUMIF('C Report'!$A$300:$A$399,'C Report Grouper'!$D17,'C Report'!U$300:U$399),SUMIF('C Report'!$A$100:$A$199,'C Report Grouper'!$D17,'C Report'!U$100:U$199)) -> 0 | X17: =IF($D$4="MAP+ADM Waivers",SUMIF('C Report'!$A$100:$A$199,'C Report Grouper'!$D17,'C Report'!V$100:V$199)+SUMIF('C Report'!$A$300:$A$399,'C Report Grouper'!$D17,'C Report'!V$300:V$399),SUMIF('C Report'!$A$100:$A$199,'C Report Grouper'!$D17,'C Report'!V$100:V$199)) -> 0 | Y17: =IF($D$4="MAP+ADM Waivers",SUMIF('C Report'!$A$100:$A$199,'C Report Grouper'!$D17,'C Report'!W$100:W$199)+SUMIF('C Report'!$A$300:$A$399,'C Report Grouper'!$D17,'C Report'!W$300:W$399),SUMIF('C Report'!$A$100:$A$199,'C Report Grouper'!$D17,'C Report'!W$100:W$199)) -> 0 | Z17: =IF($D$4="MAP+ADM Waivers",SUMIF('C Report'!$A$100:$A$199,'C Report Grouper'!$D17,'C Report'!X$100:X$199)+SUMIF('C Report'!$A$300:$A$399,'C Report Grouper'!$D17,'C Report'!X$300:X$399),SUMIF('C Report'!$A$100:$A$199,'C Report Grouper'!$D17,'C Report'!X$100:X$199)) -> 0 | AA17: =IF($D$4="MAP+ADM Waivers",SUMIF('C Report'!$A$100:$A$199,'C Report Grouper'!$D17,'C Report'!Y$100:Y$199)+SUMIF('C Report'!$A$300:$A$399,'C Report Grouper'!$D17,'C Report'!Y$300:Y$399),SUMIF('C Report'!$A$100:$A$199,'C Report Grouper'!$D17,'C Report'!Y$100:Y$199)) -> 0 | AB17: =IF($D$4="MAP+ADM Waivers",SUMIF('C Report'!$A$100:$A$199,'C Report Grouper'!$D17,'C Report'!Z$100:Z$199)+SUMIF('C Report'!$A$300:$A$399,'C Report Grouper'!$D17,'C Report'!Z$300:Z$399),SUMIF('C Report'!$A$100:$A$199,'C Report Grouper'!$D17,'C Report'!Z$100:Z$199)) -> 0 | AC17: =IF($D$4="MAP+ADM Waivers",SUMIF('C Report'!$A$100:$A$199,'C Report Grouper'!$D17,'C Report'!AA$100:AA$199)+SUMIF('C Report'!$A$300:$A$399,'C Report Grouper'!$D17,'C Report'!AA$300:AA$399),SUMIF('C Report'!$A$100:$A$199,'C Report Grouper'!$D17,'C Report'!AA$100:AA$199)) -> 0 | AD17: =IF($D$4="MAP+ADM Waivers",SUMIF('C Report'!$A$100:$A$199,'C Report Grouper'!$D17,'C Report'!AB$100:AB$199)+SUMIF('C Report'!$A$300:$A$399,'C Report Grouper'!$D17,'C Report'!AB$300:AB$399),SUMIF('C Report'!$A$100:$A$199,'C Report Grouper'!$D17,'C Report'!AB$100:AB$199)) -> 0 | AE17: =IF($D$4="MAP+ADM Waivers",SUMIF('C Report'!$A$100:$A$199,'C Report Grouper'!$D17,'C Report'!AC$100:AC$199)+SUMIF('C Report'!$A$300:$A$399,'C Report Grouper'!$D17,'C Report'!AC$300:AC$399),SUMIF('C Report'!$A$100:$A$199,'C Report Grouper'!$D17,'C Report'!AC$100:AC$199)) -> 0 | AF17: =IF($D$4="MAP+ADM Waivers",SUMIF('C Report'!$A$100:$A$199,'C Report Grouper'!$D17,'C Report'!AD$100:AD$199)+SUMIF('C Report'!$A$300:$A$399,'C Report Grouper'!$D17,'C Report'!AD$300:AD$399),SUMIF('C Report'!$A$100:$A$199,'C Report Grouper'!$D17,'C Report'!AD$100:AD$199)) -> 0 | AG17: =IF($D$4="MAP+ADM Waivers",SUMIF('C Report'!$A$100:$A$199,'C Report Grouper'!$D17,'C Report'!AE$100:AE$199)+SUMIF('C Report'!$A$300:$A$399,'C Report Grouper'!$D17,'C Report'!AE$300:AE$399),SUMIF('C Report'!$A$100:$A$199,'C Report Grouper'!$D17,'C Report'!AE$100:AE$199)) -> 0 | AH17: =IF($D$4="MAP+ADM Waivers",SUMIF('C Report'!$A$100:$A$199,'C Report Grouper'!$D17,'C Report'!AF$100:AF$199)+SUMIF('C Report'!$A$300:$A$399,'C Report Grouper'!$D17,'C Report'!AF$300:AF$399),SUMIF('C Report'!$A$100:$A$199,'C Report Grouper'!$D17,'C Report'!AF$100:AF$199)) -> 0 | AI17: =IF($D$4="MAP+ADM Waivers",SUMIF('C Report'!$A$100:$A$199,'C Report Grouper'!$D17,'C Report'!AG$100:AG$199)+SUMIF('C Report'!$A$300:$A$399,'C Report Grouper'!$D17,'C Report'!AG$300:AG$399),SUMIF('C Report'!$A$100:$A$199,'C Report Grouper'!$D17,'C Report'!AG$100:AG$199)) -> 0
B18: Medicaid Aggregate | E18: =IF($D$4="MAP+ADM Waivers",SUMIF('C Report'!$A$100:$A$199,'C Report Grouper'!$D18,'C Report'!C$100:C$199)+SUMIF('C Report'!$A$300:$A$399,'C Report Grouper'!$D18,'C Report'!C$300:C$399),SUMIF('C Report'!$A$100:$A$199,'C Report Grouper'!$D18,'C Report'!C$100:C$199)) -> 0 | F18: =IF($D$4="MAP+ADM Waivers",SUMIF('C Report'!$A$100:$A$199,'C Report Grouper'!$D18,'C Report'!D$100:D$199)+SUMIF('C Report'!$A$300:$A$399,'C Report Grouper'!$D18,'C Report'!D$300:D$399),SUMIF('C Report'!$A$100:$A$199,'C Report Grouper'!$D18,'C Report'!D$100:D$199)) -> 0 | G18: =IF($D$4="MAP+ADM Waivers",SUMIF('C Report'!$A$100:$A$199,'C Report Grouper'!$D18,'C Report'!E$100:E$199)+SUMIF('C Report'!$A$300:$A$399,'C Report Grouper'!$D18,'C Report'!E$300:E$399),SUMIF('C Report'!$A$100:$A$199,'C Report Grouper'!$D18,'C Report'!E$100:E$199)) -> 0 | H18: =IF($D$4="MAP+ADM Waivers",SUMIF('C Report'!$A$100:$A$199,'C Report Grouper'!$D18,'C Report'!F$100:F$199)+SUMIF('C Report'!$A$300:$A$399,'C Report Grouper'!$D18,'C Report'!F$300:F$399),SUMIF('C Report'!$A$100:$A$199,'C Report Grouper'!$D18,'C Report'!F$100:F$199)) -> 0 | I18: =IF($D$4="MAP+ADM Waivers",SUMIF('C Report'!$A$100:$A$199,'C Report Grouper'!$D18,'C Report'!G$100:G$199)+SUMIF('C Report'!$A$300:$A$399,'C Report Grouper'!$D18,'C Report'!G$300:G$399),SUMIF('C Report'!$A$100:$A$199,'C Report Grouper'!$D18,'C Report'!G$100:G$199)) -> 0 | J18: =IF($D$4="MAP+ADM Waivers",SUMIF('C Report'!$A$100:$A$199,'C Report Grouper'!$D18,'C Report'!H$100:H$199)+SUMIF('C Report'!$A$300:$A$399,'C Report Grouper'!$D18,'C Report'!H$300:H$399),SUMIF('C Report'!$A$100:$A$199,'C Report Grouper'!$D18,'C Report'!H$100:H$199)) -> 0 | K18: =IF($D$4="MAP+ADM Waivers",SUMIF('C Report'!$A$100:$A$199,'C Report Grouper'!$D18,'C Report'!I$100:I$199)+SUMIF('C Report'!$A$300:$A$399,'C Report Grouper'!$D18,'C Report'!I$300:I$399),SUMIF('C Report'!$A$100:$A$199,'C Report Grouper'!$D18,'C Report'!I$100:I$199)) -> 0 | L18: =IF($D$4="MAP+ADM Waivers",SUMIF('C Report'!$A$100:$A$199,'C Report Grouper'!$D18,'C Report'!J$100:J$199)+SUMIF('C Report'!$A$300:$A$399,'C Report Grouper'!$D18,'C Report'!J$300:J$399),SUMIF('C Report'!$A$100:$A$199,'C Report Grouper'!$D18,'C Report'!J$100:J$199)) -> 0 | M18: =IF($D$4="MAP+ADM Waivers",SUMIF('C Report'!$A$100:$A$199,'C Report Grouper'!$D18,'C Report'!K$100:K$199)+SUMIF('C Report'!$A$300:$A$399,'C Report Grouper'!$D18,'C Report'!K$300:K$399),SUMIF('C Report'!$A$100:$A$199,'C Report Grouper'!$D18,'C Report'!K$100:K$199)) -> 0 | N18: =IF($D$4="MAP+ADM Waivers",SUMIF('C Report'!$A$100:$A$199,'C Report Grouper'!$D18,'C Report'!L$100:L$199)+SUMIF('C Report'!$A$300:$A$399,'C Report Grouper'!$D18,'C Report'!L$300:L$399),SUMIF('C Report'!$A$100:$A$199,'C Report Grouper'!$D18,'C Report'!L$100:L$199)) -> 0 | O18: =IF($D$4="MAP+ADM Waivers",SUMIF('C Report'!$A$100:$A$199,'C Report Grouper'!$D18,'C Report'!M$100:M$199)+SUMIF('C Report'!$A$300:$A$399,'C Report Grouper'!$D18,'C Report'!M$300:M$399),SUMIF('C Report'!$A$100:$A$199,'C Report Grouper'!$D18,'C Report'!M$100:M$199)) -> 0 | P18: =IF($D$4="MAP+ADM Waivers",SUMIF('C Report'!$A$100:$A$199,'C Report Grouper'!$D18,'C Report'!N$100:N$199)+SUMIF('C Report'!$A$300:$A$399,'C Report Grouper'!$D18,'C Report'!N$300:N$399),SUMIF('C Report'!$A$100:$A$199,'C Report Grouper'!$D18,'C Report'!N$100:N$199)) -> 0 | Q18: =IF($D$4="MAP+ADM Waivers",SUMIF('C Report'!$A$100:$A$199,'C Report Grouper'!$D18,'C Report'!O$100:O$199)+SUMIF('C Report'!$A$300:$A$399,'C Report Grouper'!$D18,'C Report'!O$300:O$399),SUMIF('C Report'!$A$100:$A$199,'C Report Grouper'!$D18,'C Report'!O$100:O$199)) -> 0 | R18: =IF($D$4="MAP+ADM Waivers",SUMIF('C Report'!$A$100:$A$199,'C Report Grouper'!$D18,'C Report'!P$100:P$199)+SUMIF('C Report'!$A$300:$A$399,'C Report Grouper'!$D18,'C Report'!P$300:P$399),SUMIF('C Report'!$A$100:$A$199,'C Report Grouper'!$D18,'C Report'!P$100:P$199)) -> 0 | S18: =IF($D$4="MAP+ADM Waivers",SUMIF('C Report'!$A$100:$A$199,'C Report Grouper'!$D18,'C Report'!Q$100:Q$199)+SUMIF('C Report'!$A$300:$A$399,'C Report Grouper'!$D18,'C Report'!Q$300:Q$399),SUMIF('C Report'!$A$100:$A$199,'C Report Grouper'!$D18,'C Report'!Q$100:Q$199)) -> 0 | T18: =IF($D$4="MAP+ADM Waivers",SUMIF('C Report'!$A$100:$A$199,'C Report Grouper'!$D18,'C Report'!R$100:R$199)+SUMIF('C Report'!$A$300:$A$399,'C Report Grouper'!$D18,'C Report'!R$300:R$399),SUMIF('C Report'!$A$100:$A$199,'C Report Grouper'!$D18,'C Report'!R$100:R$199)) -> 0 | U18: =IF($D$4="MAP+ADM Waivers",SUMIF('C Report'!$A$100:$A$199,'C Report Grouper'!$D18,'C Report'!S$100:S$199)+SUMIF('C Report'!$A$300:$A$399,'C Report Grouper'!$D18,'C Report'!S$300:S$399),SUMIF('C Report'!$A$100:$A$199,'C Report Grouper'!$D18,'C Report'!S$100:S$199)) -> 0 | V18: =IF($D$4="MAP+ADM Waivers",SUMIF('C Report'!$A$100:$A$199,'C Report Grouper'!$D18,'C Report'!T$100:T$199)+SUMIF('C Report'!$A$300:$A$399,'C Report Grouper'!$D18,'C Report'!T$300:T$399),SUMIF('C Report'!$A$100:$A$199,'C Report Grouper'!$D18,'C Report'!T$100:T$199)) -> 0 | W18: =IF($D$4="MAP+ADM Waivers",SUMIF('C Report'!$A$100:$A$199,'C Report Grouper'!$D18,'C Report'!U$100:U$199)+SUMIF('C Report'!$A$300:$A$399,'C Report Grouper'!$D18,'C Report'!U$300:U$399),SUMIF('C Report'!$A$100:$A$199,'C Report Grouper'!$D18,'C Report'!U$100:U$199)) -> 0 | X18: =IF($D$4="MAP+ADM Waivers",SUMIF('C Report'!$A$100:$A$199,'C Report Grouper'!$D18,'C Report'!V$100:V$199)+SUMIF('C Report'!$A$300:$A$399,'C Report Grouper'!$D18,'C Report'!V$300:V$399),SUMIF('C Report'!$A$100:$A$199,'C Report Grouper'!$D18,'C Report'!V$100:V$199)) -> 0 | Y18: =IF($D$4="MAP+ADM Waivers",SUMIF('C Report'!$A$100:$A$199,'C Report Grouper'!$D18,'C Report'!W$100:W$199)+SUMIF('C Report'!$A$300:$A$399,'C Report Grouper'!$D18,'C Report'!W$300:W$399),SUMIF('C Report'!$A$100:$A$199,'C Report Grouper'!$D18,'C Report'!W$100:W$199)) -> 0 | Z18: =IF($D$4="MAP+ADM Waivers",SUMIF('C Report'!$A$100:$A$199,'C Report Grouper'!$D18,'C Report'!X$100:X$199)+SUMIF('C Report'!$A$300:$A$399,'C Report Grouper'!$D18,'C Report'!X$300:X$399),SUMIF('C Report'!$A$100:$A$199,'C Report Grouper'!$D18,'C Report'!X$100:X$199)) -> 0 | AA18: =IF($D$4="MAP+ADM Waivers",SUMIF('C Report'!$A$100:$A$199,'C Report Grouper'!$D18,'C Report'!Y$100:Y$199)+SUMIF('C Report'!$A$300:$A$399,'C Report Grouper'!$D18,'C Report'!Y$300:Y$399),SUMIF('C Report'!$A$100:$A$199,'C Report Grouper'!$D18,'C Report'!Y$100:Y$199)) -> 0 | AB18: =IF($D$4="MAP+ADM Waivers",SUMIF('C Report'!$A$100:$A$199,'C Report Grouper'!$D18,'C Report'!Z$100:Z$199)+SUMIF('C Report'!$A$300:$A$399,'C Report Grouper'!$D18,'C Report'!Z$300:Z$399),SUMIF('C Report'!$A$100:$A$199,'C Report Grouper'!$D18,'C Report'!Z$100:Z$199)) -> 0 | AC18: =IF($D$4="MAP+ADM Waivers",SUMIF('C Report'!$A$100:$A$199,'C Report Grouper'!$D18,'C Report'!AA$100:AA$199)+SUMIF('C Report'!$A$300:$A$399,'C Report Grouper'!$D18,'C Report'!AA$300:AA$399),SUMIF('C Report'!$A$100:$A$199,'C Report Grouper'!$D18,'C Report'!AA$100:AA$199)) -> 0 | AD18: =IF($D$4="MAP+ADM Waivers",SUMIF('C Report'!$A$100:$A$199,'C Report Grouper'!$D18,'C Report'!AB$100:AB$199)+SUMIF('C Report'!$A$300:$A$399,'C Report Grouper'!$D18,'C Report'!AB$300:AB$399),SUMIF('C Report'!$A$100:$A$199,'C Report Grouper'!$D18,'C Report'!AB$100:AB$199)) -> 0 | AE18: =IF($D$4="MAP+ADM Waivers",SUMIF('C Report'!$A$100:$A$199,'C Report Grouper'!$D18,'C Report'!AC$100:AC$199)+SUMIF('C Report'!$A$300:$A$399,'C Report Grouper'!$D18,'C Report'!AC$300:AC$399),SUMIF('C Report'!$A$100:$A$199,'C Report Grouper'!$D18,'C Report'!AC$100:AC$199)) -> 0 | AF18: =IF($D$4="MAP+ADM Waivers",SUMIF('C Report'!$A$100:$A$199,'C Report Grouper'!$D18,'C Report'!AD$100:AD$199)+SUMIF('C Report'!$A$300:$A$399,'C Report Grouper'!$D18,'C Report'!AD$300:AD$399),SUMIF('C Report'!$A$100:$A$199,'C Report Grouper'!$D18,'C Report'!AD$100:AD$199)) -> 0 | AG18: =IF($D$4="MAP+ADM Waivers",SUMIF('C Report'!$A$100:$A$199,'C Report Grouper'!$D18,'C Report'!AE$100:AE$199)+SUMIF('C Report'!$A$300:$A$399,'C Report Grouper'!$D18,'C Report'!AE$300:AE$399),SUMIF('C Report'!$A$100:$A$199,'C Report Grouper'!$D18,'C Report'!AE$100:AE$199)) -> 0 | AH18: =IF($D$4="MAP+ADM Waivers",SUMIF('C Report'!$A$100:$A$199,'C Report Grouper'!$D18,'C Report'!AF$100:AF$199)+SUMIF('C Report'!$A$300:$A$399,'C Report Grouper'!$D18,'C Report'!AF$300:AF$399),SUMIF('C Report'!$A$100:$A$199,'C Report Grouper'!$D18,'C Report'!AF$100:AF$199)) -> 0 | AI18: =IF($D$4="MAP+ADM Waivers",SUMIF('C Report'!$A$100:$A$199,'C Report Grouper'!$D18,'C Report'!AG$100:AG$199)+SUMIF('C Report'!$A$300:$A$399,'C Report Grouper'!$D18,'C Report'!AG$300:AG$399),SUMIF('C Report'!$A$100:$A$199,'C Report Grouper'!$D18,'C Report'!AG$100:AG$199)) -> 0
B19: =IFERROR(VLOOKUP(C19,'MEG Def'!$A$23:$B$28,2),"") ->  | E19: =IF($D$4="MAP+ADM Waivers",SUMIF('C Report'!$A$100:$A$199,'C Report Grouper'!$D19,'C Report'!C$100:C$199)+SUMIF('C Report'!$A$300:$A$399,'C Report Grouper'!$D19,'C Report'!C$300:C$399),SUMIF('C Report'!$A$100:$A$199,'C Report Grouper'!$D19,'C Report'!C$100:C$199)) -> 0 | F19: =IF($D$4="MAP+ADM Waivers",SUMIF('C Report'!$A$100:$A$199,'C Report Grouper'!$D19,'C Report'!D$100:D$199)+SUMIF('C Report'!$A$300:$A$399,'C Report Grouper'!$D19,'C Report'!D$300:D$399),SUMIF('C Report'!$A$100:$A$199,'C Report Grouper'!$D19,'C Report'!D$100:D$199)) -> 0 | G19: =IF($D$4="MAP+ADM Waivers",SUMIF('C Report'!$A$100:$A$199,'C Report Grouper'!$D19,'C Report'!E$100:E$199)+SUMIF('C Report'!$A$300:$A$399,'C Report Grouper'!$D19,'C Report'!E$300:E$399),SUMIF('C Report'!$A$100:$A$199,'C Report Grouper'!$D19,'C Report'!E$100:E$199)) -> 0 | H19: =IF($D$4="MAP+ADM Waivers",SUMIF('C Report'!$A$100:$A$199,'C Report Grouper'!$D19,'C Report'!F$100:F$199)+SUMIF('C Report'!$A$300:$A$399,'C Report Grouper'!$D19,'C Report'!F$300:F$399),SUMIF('C Report'!$A$100:$A$199,'C Report Grouper'!$D19,'C Report'!F$100:F$199)) -> 0 | I19: =IF($D$4="MAP+ADM Waivers",SUMIF('C Report'!$A$100:$A$199,'C Report Grouper'!$D19,'C Report'!G$100:G$199)+SUMIF('C Report'!$A$300:$A$399,'C Report Grouper'!$D19,'C Report'!G$300:G$399),SUMIF('C Report'!$A$100:$A$199,'C Report Grouper'!$D19,'C Report'!G$100:G$199)) -> 0 | J19: =IF($D$4="MAP+ADM Waivers",SUMIF('C Report'!$A$100:$A$199,'C Report Grouper'!$D19,'C Report'!H$100:H$199)+SUMIF('C Report'!$A$300:$A$399,'C Report Grouper'!$D19,'C Report'!H$300:H$399),SUMIF('C Report'!$A$100:$A$199,'C Report Grouper'!$D19,'C Report'!H$100:H$199)) -> 0 | K19: =IF($D$4="MAP+ADM Waivers",SUMIF('C Report'!$A$100:$A$199,'C Report Grouper'!$D19,'C Report'!I$100:I$199)+SUMIF('C Report'!$A$300:$A$399,'C Report Grouper'!$D19,'C Report'!I$300:I$399),SUMIF('C Report'!$A$100:$A$199,'C Report Grouper'!$D19,'C Report'!I$100:I$199)) -> 0 | L19: =IF($D$4="MAP+ADM Waivers",SUMIF('C Report'!$A$100:$A$199,'C Report Grouper'!$D19,'C Report'!J$100:J$199)+SUMIF('C Report'!$A$300:$A$399,'C Report Grouper'!$D19,'C Report'!J$300:J$399),SUMIF('C Report'!$A$100:$A$199,'C Report Grouper'!$D19,'C Report'!J$100:J$199)) -> 0 | M19: =IF($D$4="MAP+ADM Waivers",SUMIF('C Report'!$A$100:$A$199,'C Report Grouper'!$D19,'C Report'!K$100:K$199)+SUMIF('C Report'!$A$300:$A$399,'C Report Grouper'!$D19,'C Report'!K$300:K$399),SUMIF('C Report'!$A$100:$A$199,'C Report Grouper'!$D19,'C Report'!K$100:K$199)) -> 0 | N19: =IF($D$4="MAP+ADM Waivers",SUMIF('C Report'!$A$100:$A$199,'C Report Grouper'!$D19,'C Report'!L$100:L$199)+SUMIF('C Report'!$A$300:$A$399,'C Report Grouper'!$D19,'C Report'!L$300:L$399),SUMIF('C Report'!$A$100:$A$199,'C Report Grouper'!$D19,'C Report'!L$100:L$199)) -> 0 | O19: =IF($D$4="MAP+ADM Waivers",SUMIF('C Report'!$A$100:$A$199,'C Report Grouper'!$D19,'C Report'!M$100:M$199)+SUMIF('C Report'!$A$300:$A$399,'C Report Grouper'!$D19,'C Report'!M$300:M$399),SUMIF('C Report'!$A$100:$A$199,'C Report Grouper'!$D19,'C Report'!M$100:M$199)) -> 0 | P19: =IF($D$4="MAP+ADM Waivers",SUMIF('C Report'!$A$100:$A$199,'C Report Grouper'!$D19,'C Report'!N$100:N$199)+SUMIF('C Report'!$A$300:$A$399,'C Report Grouper'!$D19,'C Report'!N$300:N$399),SUMIF('C Report'!$A$100:$A$199,'C Report Grouper'!$D19,'C Report'!N$100:N$199)) -> 0 | Q19: =IF($D$4="MAP+ADM Waivers",SUMIF('C Report'!$A$100:$A$199,'C Report Grouper'!$D19,'C Report'!O$100:O$199)+SUMIF('C Report'!$A$300:$A$399,'C Report Grouper'!$D19,'C Report'!O$300:O$399),SUMIF('C Report'!$A$100:$A$199,'C Report Grouper'!$D19,'C Report'!O$100:O$199)) -> 0 | R19: =IF($D$4="MAP+ADM Waivers",SUMIF('C Report'!$A$100:$A$199,'C Report Grouper'!$D19,'C Report'!P$100:P$199)+SUMIF('C Report'!$A$300:$A$399,'C Report Grouper'!$D19,'C Report'!P$300:P$399),SUMIF('C Report'!$A$100:$A$199,'C Report Grouper'!$D19,'C Report'!P$100:P$199)) -> 0 | S19: =IF($D$4="MAP+ADM Waivers",SUMIF('C Report'!$A$100:$A$199,'C Report Grouper'!$D19,'C Report'!Q$100:Q$199)+SUMIF('C Report'!$A$300:$A$399,'C Report Grouper'!$D19,'C Report'!Q$300:Q$399),SUMIF('C Report'!$A$100:$A$199,'C Report Grouper'!$D19,'C Report'!Q$100:Q$199)) -> 0 | T19: =IF($D$4="MAP+ADM Waivers",SUMIF('C Report'!$A$100:$A$199,'C Report Grouper'!$D19,'C Report'!R$100:R$199)+SUMIF('C Report'!$A$300:$A$399,'C Report Grouper'!$D19,'C Report'!R$300:R$399),SUMIF('C Report'!$A$100:$A$199,'C Report Grouper'!$D19,'C Report'!R$100:R$199)) -> 0 | U19: =IF($D$4="MAP+ADM Waivers",SUMIF('C Report'!$A$100:$A$199,'C Report Grouper'!$D19,'C Report'!S$100:S$199)+SUMIF('C Report'!$A$300:$A$399,'C Report Grouper'!$D19,'C Report'!S$300:S$399),SUMIF('C Report'!$A$100:$A$199,'C Report Grouper'!$D19,'C Report'!S$100:S$199)) -> 0 | V19: =IF($D$4="MAP+ADM Waivers",SUMIF('C Report'!$A$100:$A$199,'C Report Grouper'!$D19,'C Report'!T$100:T$199)+SUMIF('C Report'!$A$300:$A$399,'C Report Grouper'!$D19,'C Report'!T$300:T$399),SUMIF('C Report'!$A$100:$A$199,'C Report Grouper'!$D19,'C Report'!T$100:T$199)) -> 0 | W19: =IF($D$4="MAP+ADM Waivers",SUMIF('C Report'!$A$100:$A$199,'C Report Grouper'!$D19,'C Report'!U$100:U$199)+SUMIF('C Report'!$A$300:$A$399,'C Report Grouper'!$D19,'C Report'!U$300:U$399),SUMIF('C Report'!$A$100:$A$199,'C Report Grouper'!$D19,'C Report'!U$100:U$199)) -> 0 | X19: =IF($D$4="MAP+ADM Waivers",SUMIF('C Report'!$A$100:$A$199,'C Report Grouper'!$D19,'C Report'!V$100:V$199)+SUMIF('C Report'!$A$300:$A$399,'C Report Grouper'!$D19,'C Report'!V$300:V$399),SUMIF('C Report'!$A$100:$A$199,'C Report Grouper'!$D19,'C Report'!V$100:V$199)) -> 0 | Y19: =IF($D$4="MAP+ADM Waivers",SUMIF('C Report'!$A$100:$A$199,'C Report Grouper'!$D19,'C Report'!W$100:W$199)+SUMIF('C Report'!$A$300:$A$399,'C Report Grouper'!$D19,'C Report'!W$300:W$399),SUMIF('C Report'!$A$100:$A$199,'C Report Grouper'!$D19,'C Report'!W$100:W$199)) -> 0 | Z19: =IF($D$4="MAP+ADM Waivers",SUMIF('C Report'!$A$100:$A$199,'C Report Grouper'!$D19,'C Report'!X$100:X$199)+SUMIF('C Report'!$A$300:$A$399,'C Report Grouper'!$D19,'C Report'!X$300:X$399),SUMIF('C Report'!$A$100:$A$199,'C Report Grouper'!$D19,'C Report'!X$100:X$199)) -> 0 | AA19: =IF($D$4="MAP+ADM Waivers",SUMIF('C Report'!$A$100:$A$199,'C Report Grouper'!$D19,'C Report'!Y$100:Y$199)+SUMIF('C Report'!$A$300:$A$399,'C Report Grouper'!$D19,'C Report'!Y$300:Y$399),SUMIF('C Report'!$A$100:$A$199,'C Report Grouper'!$D19,'C Report'!Y$100:Y$199)) -> 0 | AB19: =IF($D$4="MAP+ADM Waivers",SUMIF('C Report'!$A$100:$A$199,'C Report Grouper'!$D19,'C Report'!Z$100:Z$199)+SUMIF('C Report'!$A$300:$A$399,'C Report Grouper'!$D19,'C Report'!Z$300:Z$399),SUMIF('C Report'!$A$100:$A$199,'C Report Grouper'!$D19,'C Report'!Z$100:Z$199)) -> 0 | AC19: =IF($D$4="MAP+ADM Waivers",SUMIF('C Report'!$A$100:$A$199,'C Report Grouper'!$D19,'C Report'!AA$100:AA$199)+SUMIF('C Report'!$A$300:$A$399,'C Report Grouper'!$D19,'C Report'!AA$300:AA$399),SUMIF('C Report'!$A$100:$A$199,'C Report Grouper'!$D19,'C Report'!AA$100:AA$199)) -> 0 | AD19: =IF($D$4="MAP+ADM Waivers",SUMIF('C Report'!$A$100:$A$199,'C Report Grouper'!$D19,'C Report'!AB$100:AB$199)+SUMIF('C Report'!$A$300:$A$399,'C Report Grouper'!$D19,'C Report'!AB$300:AB$399),SUMIF('C Report'!$A$100:$A$199,'C Report Grouper'!$D19,'C Report'!AB$100:AB$199)) -> 0 | AE19: =IF($D$4="MAP+ADM Waivers",SUMIF('C Report'!$A$100:$A$199,'C Report Grouper'!$D19,'C Report'!AC$100:AC$199)+SUMIF('C Report'!$A$300:$A$399,'C Report Grouper'!$D19,'C Report'!AC$300:AC$399),SUMIF('C Report'!$A$100:$A$199,'C Report Grouper'!$D19,'C Report'!AC$100:AC$199)) -> 0 | AF19: =IF($D$4="MAP+ADM Waivers",SUMIF('C Report'!$A$100:$A$199,'C Report Grouper'!$D19,'C Report'!AD$100:AD$199)+SUMIF('C Report'!$A$300:$A$399,'C Report Grouper'!$D19,'C Report'!AD$300:AD$399),SUMIF('C Report'!$A$100:$A$199,'C Report Grouper'!$D19,'C Report'!AD$100:AD$199)) -> 0 | AG19: =IF($D$4="MAP+ADM Waivers",SUMIF('C Report'!$A$100:$A$199,'C Report Grouper'!$D19,'C Report'!AE$100:AE$199)+SUMIF('C Report'!$A$300:$A$399,'C Report Grouper'!$D19,'C Report'!AE$300:AE$399),SUMIF('C Report'!$A$100:$A$199,'C Report Grouper'!$D19,'C Report'!AE$100:AE$199)) -> 0 | AH19: =IF($D$4="MAP+ADM Waivers",SUMIF('C Report'!$A$100:$A$199,'C Report Grouper'!$D19,'C Report'!AF$100:AF$199)+SUMIF('C Report'!$A$300:$A$399,'C Report Grouper'!$D19,'C Report'!AF$300:AF$399),SUMIF('C Report'!$A$100:$A$199,'C Report Grouper'!$D19,'C Report'!AF$100:AF$199)) -> 0 | AI19: =IF($D$4="MAP+ADM Waivers",SUMIF('C Report'!$A$100:$A$199,'C Report Grouper'!$D19,'C Report'!AG$100:AG$199)+SUMIF('C Report'!$A$300:$A$399,'C Report Grouper'!$D19,'C Report'!AG$300:AG$399),SUMIF('C Report'!$A$100:$A$199,'C Report Grouper'!$D19,'C Report'!AG$100:AG$199)) -> 0
B20: =IFERROR(VLOOKUP(C20,'MEG Def'!$A$23:$B$28,2),"") ->  | E20: =IF($D$4="MAP+ADM Waivers",SUMIF('C Report'!$A$100:$A$199,'C Report Grouper'!$D20,'C Report'!C$100:C$199)+SUMIF('C Report'!$A$300:$A$399,'C Report Grouper'!$D20,'C Report'!C$300:C$399),SUMIF('C Report'!$A$100:$A$199,'C Report Grouper'!$D20,'C Report'!C$100:C$199)) -> 0 | F20: =IF($D$4="MAP+ADM Waivers",SUMIF('C Report'!$A$100:$A$199,'C Report Grouper'!$D20,'C Report'!D$100:D$199)+SUMIF('C Report'!$A$300:$A$399,'C Report Grouper'!$D20,'C Report'!D$300:D$399),SUMIF('C Report'!$A$100:$A$199,'C Report Grouper'!$D20,'C Report'!D$100:D$199)) -> 0 | G20: =IF($D$4="MAP+ADM Waivers",SUMIF('C Report'!$A$100:$A$199,'C Report Grouper'!$D20,'C Report'!E$100:E$199)+SUMIF('C Report'!$A$300:$A$399,'C Report Grouper'!$D20,'C Report'!E$300:E$399),SUMIF('C Report'!$A$100:$A$199,'C Report Grouper'!$D20,'C Report'!E$100:E$199)) -> 0 | H20: =IF($D$4="MAP+ADM Waivers",SUMIF('C Report'!$A$100:$A$199,'C Report Grouper'!$D20,'C Report'!F$100:F$199)+SUMIF('C Report'!$A$300:$A$399,'C Report Grouper'!$D20,'C Report'!F$300:F$399),SUMIF('C Report'!$A$100:$A$199,'C Report Grouper'!$D20,'C Report'!F$100:F$199)) -> 0 | I20: =IF($D$4="MAP+ADM Waivers",SUMIF('C Report'!$A$100:$A$199,'C Report Grouper'!$D20,'C Report'!G$100:G$199)+SUMIF('C Report'!$A$300:$A$399,'C Report Grouper'!$D20,'C Report'!G$300:G$399),SUMIF('C Report'!$A$100:$A$199,'C Report Grouper'!$D20,'C Report'!G$100:G$199)) -> 0 | J20: =IF($D$4="MAP+ADM Waivers",SUMIF('C Report'!$A$100:$A$199,'C Report Grouper'!$D20,'C Report'!H$100:H$199)+SUMIF('C Report'!$A$300:$A$399,'C Report Grouper'!$D20,'C Report'!H$300:H$399),SUMIF('C Report'!$A$100:$A$199,'C Report Grouper'!$D20,'C Report'!H$100:H$199)) -> 0 | K20: =IF($D$4="MAP+ADM Waivers",SUMIF('C Report'!$A$100:$A$199,'C Report Grouper'!$D20,'C Report'!I$100:I$199)+SUMIF('C Report'!$A$300:$A$399,'C Report Grouper'!$D20,'C Report'!I$300:I$399),SUMIF('C Report'!$A$100:$A$199,'C Report Grouper'!$D20,'C Report'!I$100:I$199)) -> 0 | L20: =IF($D$4="MAP+ADM Waivers",SUMIF('C Report'!$A$100:$A$199,'C Report Grouper'!$D20,'C Report'!J$100:J$199)+SUMIF('C Report'!$A$300:$A$399,'C Report Grouper'!$D20,'C Report'!J$300:J$399),SUMIF('C Report'!$A$100:$A$199,'C Report Grouper'!$D20,'C Report'!J$100:J$199)) -> 0 | M20: =IF($D$4="MAP+ADM Waivers",SUMIF('C Report'!$A$100:$A$199,'C Report Grouper'!$D20,'C Report'!K$100:K$199)+SUMIF('C Report'!$A$300:$A$399,'C Report Grouper'!$D20,'C Report'!K$300:K$399),SUMIF('C Report'!$A$100:$A$199,'C Report Grouper'!$D20,'C Report'!K$100:K$199)) -> 0 | N20: =IF($D$4="MAP+ADM Waivers",SUMIF('C Report'!$A$100:$A$199,'C Report Grouper'!$D20,'C Report'!L$100:L$199)+SUMIF('C Report'!$A$300:$A$399,'C Report Grouper'!$D20,'C Report'!L$300:L$399),SUMIF('C Report'!$A$100:$A$199,'C Report Grouper'!$D20,'C Report'!L$100:L$199)) -> 0 | O20: =IF($D$4="MAP+ADM Waivers",SUMIF('C Report'!$A$100:$A$199,'C Report Grouper'!$D20,'C Report'!M$100:M$199)+SUMIF('C Report'!$A$300:$A$399,'C Report Grouper'!$D20,'C Report'!M$300:M$399),SUMIF('C Report'!$A$100:$A$199,'C Report Grouper'!$D20,'C Report'!M$100:M$199)) -> 0 | P20: =IF($D$4="MAP+ADM Waivers",SUMIF('C Report'!$A$100:$A$199,'C Report Grouper'!$D20,'C Report'!N$100:N$199)+SUMIF('C Report'!$A$300:$A$399,'C Report Grouper'!$D20,'C Report'!N$300:N$399),SUMIF('C Report'!$A$100:$A$199,'C Report Grouper'!$D20,'C Report'!N$100:N$199)) -> 0 | Q20: =IF($D$4="MAP+ADM Waivers",SUMIF('C Report'!$A$100:$A$199,'C Report Grouper'!$D20,'C Report'!O$100:O$199)+SUMIF('C Report'!$A$300:$A$399,'C Report Grouper'!$D20,'C Report'!O$300:O$399),SUMIF('C Report'!$A$100:$A$199,'C Report Grouper'!$D20,'C Report'!O$100:O$199)) -> 0 | R20: =IF($D$4="MAP+ADM Waivers",SUMIF('C Report'!$A$100:$A$199,'C Report Grouper'!$D20,'C Report'!P$100:P$199)+SUMIF('C Report'!$A$300:$A$399,'C Report Grouper'!$D20,'C Report'!P$300:P$399),SUMIF('C Report'!$A$100:$A$199,'C Report Grouper'!$D20,'C Report'!P$100:P$199)) -> 0 | S20: =IF($D$4="MAP+ADM Waivers",SUMIF('C Report'!$A$100:$A$199,'C Report Grouper'!$D20,'C Report'!Q$100:Q$199)+SUMIF('C Report'!$A$300:$A$399,'C Report Grouper'!$D20,'C Report'!Q$300:Q$399),SUMIF('C Report'!$A$100:$A$199,'C Report Grouper'!$D20,'C Report'!Q$100:Q$199)) -> 0 | T20: =IF($D$4="MAP+ADM Waivers",SUMIF('C Report'!$A$100:$A$199,'C Report Grouper'!$D20,'C Report'!R$100:R$199)+SUMIF('C Report'!$A$300:$A$399,'C Report Grouper'!$D20,'C Report'!R$300:R$399),SUMIF('C Report'!$A$100:$A$199,'C Report Grouper'!$D20,'C Report'!R$100:R$199)) -> 0 | U20: =IF($D$4="MAP+ADM Waivers",SUMIF('C Report'!$A$100:$A$199,'C Report Grouper'!$D20,'C Report'!S$100:S$199)+SUMIF('C Report'!$A$300:$A$399,'C Report Grouper'!$D20,'C Report'!S$300:S$399),SUMIF('C Report'!$A$100:$A$199,'C Report Grouper'!$D20,'C Report'!S$100:S$199)) -> 0 | V20: =IF($D$4="MAP+ADM Waivers",SUMIF('C Report'!$A$100:$A$199,'C Report Grouper'!$D20,'C Report'!T$100:T$199)+SUMIF('C Report'!$A$300:$A$399,'C Report Grouper'!$D20,'C Report'!T$300:T$399),SUMIF('C Report'!$A$100:$A$199,'C Report Grouper'!$D20,'C Report'!T$100:T$199)) -> 0 | W20: =IF($D$4="MAP+ADM Waivers",SUMIF('C Report'!$A$100:$A$199,'C Report Grouper'!$D20,'C Report'!U$100:U$199)+SUMIF('C Report'!$A$300:$A$399,'C Report Grouper'!$D20,'C Report'!U$300:U$399),SUMIF('C Report'!$A$100:$A$199,'C Report Grouper'!$D20,'C Report'!U$100:U$199)) -> 0 | X20: =IF($D$4="MAP+ADM Waivers",SUMIF('C Report'!$A$100:$A$199,'C Report Grouper'!$D20,'C Report'!V$100:V$199)+SUMIF('C Report'!$A$300:$A$399,'C Report Grouper'!$D20,'C Report'!V$300:V$399),SUMIF('C Report'!$A$100:$A$199,'C Report Grouper'!$D20,'C Report'!V$100:V$199)) -> 0 | Y20: =IF($D$4="MAP+ADM Waivers",SUMIF('C Report'!$A$100:$A$199,'C Report Grouper'!$D20,'C Report'!W$100:W$199)+SUMIF('C Report'!$A$300:$A$399,'C Report Grouper'!$D20,'C Report'!W$300:W$399),SUMIF('C Report'!$A$100:$A$199,'C Report Grouper'!$D20,'C Report'!W$100:W$199)) -> 0 | Z20: =IF($D$4="MAP+ADM Waivers",SUMIF('C Report'!$A$100:$A$199,'C Report Grouper'!$D20,'C Report'!X$100:X$199)+SUMIF('C Report'!$A$300:$A$399,'C Report Grouper'!$D20,'C Report'!X$300:X$399),SUMIF('C Report'!$A$100:$A$199,'C Report Grouper'!$D20,'C Report'!X$100:X$199)) -> 0 | AA20: =IF($D$4="MAP+ADM Waivers",SUMIF('C Report'!$A$100:$A$199,'C Report Grouper'!$D20,'C Report'!Y$100:Y$199)+SUMIF('C Report'!$A$300:$A$399,'C Report Grouper'!$D20,'C Report'!Y$300:Y$399),SUMIF('C Report'!$A$100:$A$199,'C Report Grouper'!$D20,'C Report'!Y$100:Y$199)) -> 0 | AB20: =IF($D$4="MAP+ADM Waivers",SUMIF('C Report'!$A$100:$A$199,'C Report Grouper'!$D20,'C Report'!Z$100:Z$199)+SUMIF('C Report'!$A$300:$A$399,'C Report Grouper'!$D20,'C Report'!Z$300:Z$399),SUMIF('C Report'!$A$100:$A$199,'C Report Grouper'!$D20,'C Report'!Z$100:Z$199)) -> 0 | AC20: =IF($D$4="MAP+ADM Waivers",SUMIF('C Report'!$A$100:$A$199,'C Report Grouper'!$D20,'C Report'!AA$100:AA$199)+SUMIF('C Report'!$A$300:$A$399,'C Report Grouper'!$D20,'C Report'!AA$300:AA$399),SUMIF('C Report'!$A$100:$A$199,'C Report Grouper'!$D20,'C Report'!AA$100:AA$199)) -> 0 | AD20: =IF($D$4="MAP+ADM Waivers",SUMIF('C Report'!$A$100:$A$199,'C Report Grouper'!$D20,'C Report'!AB$100:AB$199)+SUMIF('C Report'!$A$300:$A$399,'C Report Grouper'!$D20,'C Report'!AB$300:AB$399),SUMIF('C Report'!$A$100:$A$199,'C Report Grouper'!$D20,'C Report'!AB$100:AB$199)) -> 0 | AE20: =IF($D$4="MAP+ADM Waivers",SUMIF('C Report'!$A$100:$A$199,'C Report Grouper'!$D20,'C Report'!AC$100:AC$199)+SUMIF('C Report'!$A$300:$A$399,'C Report Grouper'!$D20,'C Report'!AC$300:AC$399),SUMIF('C Report'!$A$100:$A$199,'C Report Grouper'!$D20,'C Report'!AC$100:AC$199)) -> 0 | AF20: =IF($D$4="MAP+ADM Waivers",SUMIF('C Report'!$A$100:$A$199,'C Report Grouper'!$D20,'C Report'!AD$100:AD$199)+SUMIF('C Report'!$A$300:$A$399,'C Report Grouper'!$D20,'C Report'!AD$300:AD$399),SUMIF('C Report'!$A$100:$A$199,'C Report Grouper'!$D20,'C Report'!AD$100:AD$199)) -> 0 | AG20: =IF($D$4="MAP+ADM Waivers",SUMIF('C Report'!$A$100:$A$199,'C Report Grouper'!$D20,'C Report'!AE$100:AE$199)+SUMIF('C Report'!$A$300:$A$399,'C Report Grouper'!$D20,'C Report'!AE$300:AE$399),SUMIF('C Report'!$A$100:$A$199,'C Report Grouper'!$D20,'C Report'!AE$100:AE$199)) -> 0 | AH20: =IF($D$4="MAP+ADM Waivers",SUMIF('C Report'!$A$100:$A$199,'C Report Grouper'!$D20,'C Report'!AF$100:AF$199)+SUMIF('C Report'!$A$300:$A$399,'C Report Grouper'!$D20,'C Report'!AF$300:AF$399),SUMIF('C Report'!$A$100:$A$199,'C Report Grouper'!$D20,'C Report'!AF$100:AF$199)) -> 0 | AI20: =IF($D$4="MAP+ADM Waivers",SUMIF('C Report'!$A$100:$A$199,'C Report Grouper'!$D20,'C Report'!AG$100:AG$199)+SUMIF('C Report'!$A$300:$A$399,'C Report Grouper'!$D20,'C Report'!AG$300:AG$399),SUMIF('C Report'!$A$100:$A$199,'C Report Grouper'!$D20,'C Report'!AG$100:AG$199)) -> 0
B21: =IFERROR(VLOOKUP(C21,'MEG Def'!$A$23:$B$28,2),"") ->  | E21: =IF($D$4="MAP+ADM Waivers",SUMIF('C Report'!$A$100:$A$199,'C Report Grouper'!$D21,'C Report'!C$100:C$199)+SUMIF('C Report'!$A$300:$A$399,'C Report Grouper'!$D21,'C Report'!C$300:C$399),SUMIF('C Report'!$A$100:$A$199,'C Report Grouper'!$D21,'C Report'!C$100:C$199)) -> 0 | F21: =IF($D$4="MAP+ADM Waivers",SUMIF('C Report'!$A$100:$A$199,'C Report Grouper'!$D21,'C Report'!D$100:D$199)+SUMIF('C Report'!$A$300:$A$399,'C Report Grouper'!$D21,'C Report'!D$300:D$399),SUMIF('C Report'!$A$100:$A$199,'C Report Grouper'!$D21,'C Report'!D$100:D$199)) -> 0 | G21: =IF($D$4="MAP+ADM Waivers",SUMIF('C Report'!$A$100:$A$199,'C Report Grouper'!$D21,'C Report'!E$100:E$199)+SUMIF('C Report'!$A$300:$A$399,'C Report Grouper'!$D21,'C Report'!E$300:E$399),SUMIF('C Report'!$A$100:$A$199,'C Report Grouper'!$D21,'C Report'!E$100:E$199)) -> 0 | H21: =IF($D$4="MAP+ADM Waivers",SUMIF('C Report'!$A$100:$A$199,'C Report Grouper'!$D21,'C Report'!F$100:F$199)+SUMIF('C Report'!$A$300:$A$399,'C Report Grouper'!$D21,'C Report'!F$300:F$399),SUMIF('C Report'!$A$100:$A$199,'C Report Grouper'!$D21,'C Report'!F$100:F$199)) -> 0 | I21: =IF($D$4="MAP+ADM Waivers",SUMIF('C Report'!$A$100:$A$199,'C Report Grouper'!$D21,'C Report'!G$100:G$199)+SUMIF('C Report'!$A$300:$A$399,'C Report Grouper'!$D21,'C Report'!G$300:G$399),SUMIF('C Report'!$A$100:$A$199,'C Report Grouper'!$D21,'C Report'!G$100:G$199)) -> 0 | J21: =IF($D$4="MAP+ADM Waivers",SUMIF('C Report'!$A$100:$A$199,'C Report Grouper'!$D21,'C Report'!H$100:H$199)+SUMIF('C Report'!$A$300:$A$399,'C Report Grouper'!$D21,'C Report'!H$300:H$399),SUMIF('C Report'!$A$100:$A$199,'C Report Grouper'!$D21,'C Report'!H$100:H$199)) -> 0 | K21: =IF($D$4="MAP+ADM Waivers",SUMIF('C Report'!$A$100:$A$199,'C Report Grouper'!$D21,'C Report'!I$100:I$199)+SUMIF('C Report'!$A$300:$A$399,'C Report Grouper'!$D21,'C Report'!I$300:I$399),SUMIF('C Report'!$A$100:$A$199,'C Report Grouper'!$D21,'C Report'!I$100:I$199)) -> 0 | L21: =IF($D$4="MAP+ADM Waivers",SUMIF('C Report'!$A$100:$A$199,'C Report Grouper'!$D21,'C Report'!J$100:J$199)+SUMIF('C Report'!$A$300:$A$399,'C Report Grouper'!$D21,'C Report'!J$300:J$399),SUMIF('C Report'!$A$100:$A$199,'C Report Grouper'!$D21,'C Report'!J$100:J$199)) -> 0 | M21: =IF($D$4="MAP+ADM Waivers",SUMIF('C Report'!$A$100:$A$199,'C Report Grouper'!$D21,'C Report'!K$100:K$199)+SUMIF('C Report'!$A$300:$A$399,'C Report Grouper'!$D21,'C Report'!K$300:K$399),SUMIF('C Report'!$A$100:$A$199,'C Report Grouper'!$D21,'C Report'!K$100:K$199)) -> 0 | N21: =IF($D$4="MAP+ADM Waivers",SUMIF('C Report'!$A$100:$A$199,'C Report Grouper'!$D21,'C Report'!L$100:L$199)+SUMIF('C Report'!$A$300:$A$399,'C Report Grouper'!$D21,'C Report'!L$300:L$399),SUMIF('C Report'!$A$100:$A$199,'C Report Grouper'!$D21,'C Report'!L$100:L$199)) -> 0 | O21: =IF($D$4="MAP+ADM Waivers",SUMIF('C Report'!$A$100:$A$199,'C Report Grouper'!$D21,'C Report'!M$100:M$199)+SUMIF('C Report'!$A$300:$A$399,'C Report Grouper'!$D21,'C Report'!M$300:M$399),SUMIF('C Report'!$A$100:$A$199,'C Report Grouper'!$D21,'C Report'!M$100:M$199)) -> 0 | P21: =IF($D$4="MAP+ADM Waivers",SUMIF('C Report'!$A$100:$A$199,'C Report Grouper'!$D21,'C Report'!N$100:N$199)+SUMIF('C Report'!$A$300:$A$399,'C Report Grouper'!$D21,'C Report'!N$300:N$399),SUMIF('C Report'!$A$100:$A$199,'C Report Grouper'!$D21,'C Report'!N$100:N$199)) -> 0 | Q21: =IF($D$4="MAP+ADM Waivers",SUMIF('C Report'!$A$100:$A$199,'C Report Grouper'!$D21,'C Report'!O$100:O$199)+SUMIF('C Report'!$A$300:$A$399,'C Report Grouper'!$D21,'C Report'!O$300:O$399),SUMIF('C Report'!$A$100:$A$199,'C Report Grouper'!$D21,'C Report'!O$100:O$199)) -> 0 | R21: =IF($D$4="MAP+ADM Waivers",SUMIF('C Report'!$A$100:$A$199,'C Report Grouper'!$D21,'C Report'!P$100:P$199)+SUMIF('C Report'!$A$300:$A$399,'C Report Grouper'!$D21,'C Report'!P$300:P$399),SUMIF('C Report'!$A$100:$A$199,'C Report Grouper'!$D21,'C Report'!P$100:P$199)) -> 0 | S21: =IF($D$4="MAP+ADM Waivers",SUMIF('C Report'!$A$100:$A$199,'C Report Grouper'!$D21,'C Report'!Q$100:Q$199)+SUMIF('C Report'!$A$300:$A$399,'C Report Grouper'!$D21,'C Report'!Q$300:Q$399),SUMIF('C Report'!$A$100:$A$199,'C Report Grouper'!$D21,'C Report'!Q$100:Q$199)) -> 0 | T21: =IF($D$4="MAP+ADM Waivers",SUMIF('C Report'!$A$100:$A$199,'C Report Grouper'!$D21,'C Report'!R$100:R$199)+SUMIF('C Report'!$A$300:$A$399,'C Report Grouper'!$D21,'C Report'!R$300:R$399),SUMIF('C Report'!$A$100:$A$199,'C Report Grouper'!$D21,'C Report'!R$100:R$199)) -> 0 | U21: =IF($D$4="MAP+ADM Waivers",SUMIF('C Report'!$A$100:$A$199,'C Report Grouper'!$D21,'C Report'!S$100:S$199)+SUMIF('C Report'!$A$300:$A$399,'C Report Grouper'!$D21,'C Report'!S$300:S$399),SUMIF('C Report'!$A$100:$A$199,'C Report Grouper'!$D21,'C Report'!S$100:S$199)) -> 0 | V21: =IF($D$4="MAP+ADM Waivers",SUMIF('C Report'!$A$100:$A$199,'C Report Grouper'!$D21,'C Report'!T$100:T$199)+SUMIF('C Report'!$A$300:$A$399,'C Report Grouper'!$D21,'C Report'!T$300:T$399),SUMIF('C Report'!$A$100:$A$199,'C Report Grouper'!$D21,'C Report'!T$100:T$199)) -> 0 | W21: =IF($D$4="MAP+ADM Waivers",SUMIF('C Report'!$A$100:$A$199,'C Report Grouper'!$D21,'C Report'!U$100:U$199)+SUMIF('C Report'!$A$300:$A$399,'C Report Grouper'!$D21,'C Report'!U$300:U$399),SUMIF('C Report'!$A$100:$A$199,'C Report Grouper'!$D21,'C Report'!U$100:U$199)) -> 0 | X21: =IF($D$4="MAP+ADM Waivers",SUMIF('C Report'!$A$100:$A$199,'C Report Grouper'!$D21,'C Report'!V$100:V$199)+SUMIF('C Report'!$A$300:$A$399,'C Report Grouper'!$D21,'C Report'!V$300:V$399),SUMIF('C Report'!$A$100:$A$199,'C Report Grouper'!$D21,'C Report'!V$100:V$199)) -> 0 | Y21: =IF($D$4="MAP+ADM Waivers",SUMIF('C Report'!$A$100:$A$199,'C Report Grouper'!$D21,'C Report'!W$100:W$199)+SUMIF('C Report'!$A$300:$A$399,'C Report Grouper'!$D21,'C Report'!W$300:W$399),SUMIF('C Report'!$A$100:$A$199,'C Report Grouper'!$D21,'C Report'!W$100:W$199)) -> 0 | Z21: =IF($D$4="MAP+ADM Waivers",SUMIF('C Report'!$A$100:$A$199,'C Report Grouper'!$D21,'C Report'!X$100:X$199)+SUMIF('C Report'!$A$300:$A$399,'C Report Grouper'!$D21,'C Report'!X$300:X$399),SUMIF('C Report'!$A$100:$A$199,'C Report Grouper'!$D21,'C Report'!X$100:X$199)) -> 0 | AA21: =IF($D$4="MAP+ADM Waivers",SUMIF('C Report'!$A$100:$A$199,'C Report Grouper'!$D21,'C Report'!Y$100:Y$199)+SUMIF('C Report'!$A$300:$A$399,'C Report Grouper'!$D21,'C Report'!Y$300:Y$399),SUMIF('C Report'!$A$100:$A$199,'C Report Grouper'!$D21,'C Report'!Y$100:Y$199)) -> 0 | AB21: =IF($D$4="MAP+ADM Waivers",SUMIF('C Report'!$A$100:$A$199,'C Report Grouper'!$D21,'C Report'!Z$100:Z$199)+SUMIF('C Report'!$A$300:$A$399,'C Report Grouper'!$D21,'C Report'!Z$300:Z$399),SUMIF('C Report'!$A$100:$A$199,'C Report Grouper'!$D21,'C Report'!Z$100:Z$199)) -> 0 | AC21: =IF($D$4="MAP+ADM Waivers",SUMIF('C Report'!$A$100:$A$199,'C Report Grouper'!$D21,'C Report'!AA$100:AA$199)+SUMIF('C Report'!$A$300:$A$399,'C Report Grouper'!$D21,'C Report'!AA$300:AA$399),SUMIF('C Report'!$A$100:$A$199,'C Report Grouper'!$D21,'C Report'!AA$100:AA$199)) -> 0 | AD21: =IF($D$4="MAP+ADM Waivers",SUMIF('C Report'!$A$100:$A$199,'C Report Grouper'!$D21,'C Report'!AB$100:AB$199)+SUMIF('C Report'!$A$300:$A$399,'C Report Grouper'!$D21,'C Report'!AB$300:AB$399),SUMIF('C Report'!$A$100:$A$199,'C Report Grouper'!$D21,'C Report'!AB$100:AB$199)) -> 0 | AE21: =IF($D$4="MAP+ADM Waivers",SUMIF('C Report'!$A$100:$A$199,'C Report Grouper'!$D21,'C Report'!AC$100:AC$199)+SUMIF('C Report'!$A$300:$A$399,'C Report Grouper'!$D21,'C Report'!AC$300:AC$399),SUMIF('C Report'!$A$100:$A$199,'C Report Grouper'!$D21,'C Report'!AC$100:AC$199)) -> 0 | AF21: =IF($D$4="MAP+ADM Waivers",SUMIF('C Report'!$A$100:$A$199,'C Report Grouper'!$D21,'C Report'!AD$100:AD$199)+SUMIF('C Report'!$A$300:$A$399,'C Report Grouper'!$D21,'C Report'!AD$300:AD$399),SUMIF('C Report'!$A$100:$A$199,'C Report Grouper'!$D21,'C Report'!AD$100:AD$199)) -> 0 | AG21: =IF($D$4="MAP+ADM Waivers",SUMIF('C Report'!$A$100:$A$199,'C Report Grouper'!$D21,'C Report'!AE$100:AE$199)+SUMIF('C Report'!$A$300:$A$399,'C Report Grouper'!$D21,'C Report'!AE$300:AE$399),SUMIF('C Report'!$A$100:$A$199,'C Report Grouper'!$D21,'C Report'!AE$100:AE$199)) -> 0 | AH21: =IF($D$4="MAP+ADM Waivers",SUMIF('C Report'!$A$100:$A$199,'C Report Grouper'!$D21,'C Report'!AF$100:AF$199)+SUMIF('C Report'!$A$300:$A$399,'C Report Grouper'!$D21,'C Report'!AF$300:AF$399),SUMIF('C Report'!$A$100:$A$199,'C Report Grouper'!$D21,'C Report'!AF$100:AF$199)) -> 0 | AI21: =IF($D$4="MAP+ADM Waivers",SUMIF('C Report'!$A$100:$A$199,'C Report Grouper'!$D21,'C Report'!AG$100:AG$199)+SUMIF('C Report'!$A$300:$A$399,'C Report Grouper'!$D21,'C Report'!AG$300:AG$399),SUMIF('C Report'!$A$100:$A$199,'C Report Grouper'!$D21,'C Report'!AG$100:AG$199)) -> 0
B22: =IFERROR(VLOOKUP(C22,'MEG Def'!$A$23:$B$28,2),"") ->  | E22: =IF($D$4="MAP+ADM Waivers",SUMIF('C Report'!$A$100:$A$199,'C Report Grouper'!$D22,'C Report'!C$100:C$199)+SUMIF('C Report'!$A$300:$A$399,'C Report Grouper'!$D22,'C Report'!C$300:C$399),SUMIF('C Report'!$A$100:$A$199,'C Report Grouper'!$D22,'C Report'!C$100:C$199)) -> 0 | F22: =IF($D$4="MAP+ADM Waivers",SUMIF('C Report'!$A$100:$A$199,'C Report Grouper'!$D22,'C Report'!D$100:D$199)+SUMIF('C Report'!$A$300:$A$399,'C Report Grouper'!$D22,'C Report'!D$300:D$399),SUMIF('C Report'!$A$100:$A$199,'C Report Grouper'!$D22,'C Report'!D$100:D$199)) -> 0 | G22: =IF($D$4="MAP+ADM Waivers",SUMIF('C Report'!$A$100:$A$199,'C Report Grouper'!$D22,'C Report'!E$100:E$199)+SUMIF('C Report'!$A$300:$A$399,'C Report Grouper'!$D22,'C Report'!E$300:E$399),SUMIF('C Report'!$A$100:$A$199,'C Report Grouper'!$D22,'C Report'!E$100:E$199)) -> 0 | H22: =IF($D$4="MAP+ADM Waivers",SUMIF('C Report'!$A$100:$A$199,'C Report Grouper'!$D22,'C Report'!F$100:F$199)+SUMIF('C Report'!$A$300:$A$399,'C Report Grouper'!$D22,'C Report'!F$300:F$399),SUMIF('C Report'!$A$100:$A$199,'C Report Grouper'!$D22,'C Report'!F$100:F$199)) -> 0 | I22: =IF($D$4="MAP+ADM Waivers",SUMIF('C Report'!$A$100:$A$199,'C Report Grouper'!$D22,'C Report'!G$100:G$199)+SUMIF('C Report'!$A$300:$A$399,'C Report Grouper'!$D22,'C Report'!G$300:G$399),SUMIF('C Report'!$A$100:$A$199,'C Report Grouper'!$D22,'C Report'!G$100:G$199)) -> 0 | J22: =IF($D$4="MAP+ADM Waivers",SUMIF('C Report'!$A$100:$A$199,'C Report Grouper'!$D22,'C Report'!H$100:H$199)+SUMIF('C Report'!$A$300:$A$399,'C Report Grouper'!$D22,'C Report'!H$300:H$399),SUMIF('C Report'!$A$100:$A$199,'C Report Grouper'!$D22,'C Report'!H$100:H$199)) -> 0 | K22: =IF($D$4="MAP+ADM Waivers",SUMIF('C Report'!$A$100:$A$199,'C Report Grouper'!$D22,'C Report'!I$100:I$199)+SUMIF('C Report'!$A$300:$A$399,'C Report Grouper'!$D22,'C Report'!I$300:I$399),SUMIF('C Report'!$A$100:$A$199,'C Report Grouper'!$D22,'C Report'!I$100:I$199)) -> 0 | L22: =IF($D$4="MAP+ADM Waivers",SUMIF('C Report'!$A$100:$A$199,'C Report Grouper'!$D22,'C Report'!J$100:J$199)+SUMIF('C Report'!$A$300:$A$399,'C Report Grouper'!$D22,'C Report'!J$300:J$399),SUMIF('C Report'!$A$100:$A$199,'C Report Grouper'!$D22,'C Report'!J$100:J$199)) -> 0 | M22: =IF($D$4="MAP+ADM Waivers",SUMIF('C Report'!$A$100:$A$199,'C Report Grouper'!$D22,'C Report'!K$100:K$199)+SUMIF('C Report'!$A$300:$A$399,'C Report Grouper'!$D22,'C Report'!K$300:K$399),SUMIF('C Report'!$A$100:$A$199,'C Report Grouper'!$D22,'C Report'!K$100:K$199)) -> 0 | N22: =IF($D$4="MAP+ADM Waivers",SUMIF('C Report'!$A$100:$A$199,'C Report Grouper'!$D22,'C Report'!L$100:L$199)+SUMIF('C Report'!$A$300:$A$399,'C Report Grouper'!$D22,'C Report'!L$300:L$399),SUMIF('C Report'!$A$100:$A$199,'C Report Grouper'!$D22,'C Report'!L$100:L$199)) -> 0 | O22: =IF($D$4="MAP+ADM Waivers",SUMIF('C Report'!$A$100:$A$199,'C Report Grouper'!$D22,'C Report'!M$100:M$199)+SUMIF('C Report'!$A$300:$A$399,'C Report Grouper'!$D22,'C Report'!M$300:M$399),SUMIF('C Report'!$A$100:$A$199,'C Report Grouper'!$D22,'C Report'!M$100:M$199)) -> 0 | P22: =IF($D$4="MAP+ADM Waivers",SUMIF('C Report'!$A$100:$A$199,'C Report Grouper'!$D22,'C Report'!N$100:N$199)+SUMIF('C Report'!$A$300:$A$399,'C Report Grouper'!$D22,'C Report'!N$300:N$399),SUMIF('C Report'!$A$100:$A$199,'C Report Grouper'!$D22,'C Report'!N$100:N$199)) -> 0 | Q22: =IF($D$4="MAP+ADM Waivers",SUMIF('C Report'!$A$100:$A$199,'C Report Grouper'!$D22,'C Report'!O$100:O$199)+SUMIF('C Report'!$A$300:$A$399,'C Report Grouper'!$D22,'C Report'!O$300:O$399),SUMIF('C Report'!$A$100:$A$199,'C Report Grouper'!$D22,'C Report'!O$100:O$199)) -> 0 | R22: =IF($D$4="MAP+ADM Waivers",SUMIF('C Report'!$A$100:$A$199,'C Report Grouper'!$D22,'C Report'!P$100:P$199)+SUMIF('C Report'!$A$300:$A$399,'C Report Grouper'!$D22,'C Report'!P$300:P$399),SUMIF('C Report'!$A$100:$A$199,'C Report Grouper'!$D22,'C Report'!P$100:P$199)) -> 0 | S22: =IF($D$4="MAP+ADM Waivers",SUMIF('C Report'!$A$100:$A$199,'C Report Grouper'!$D22,'C Report'!Q$100:Q$199)+SUMIF('C Report'!$A$300:$A$399,'C Report Grouper'!$D22,'C Report'!Q$300:Q$399),SUMIF('C Report'!$A$100:$A$199,'C Report Grouper'!$D22,'C Report'!Q$100:Q$199)) -> 0 | T22: =IF($D$4="MAP+ADM Waivers",SUMIF('C Report'!$A$100:$A$199,'C Report Grouper'!$D22,'C Report'!R$100:R$199)+SUMIF('C Report'!$A$300:$A$399,'C Report Grouper'!$D22,'C Report'!R$300:R$399),SUMIF('C Report'!$A$100:$A$199,'C Report Grouper'!$D22,'C Report'!R$100:R$199)) -> 0 | U22: =IF($D$4="MAP+ADM Waivers",SUMIF('C Report'!$A$100:$A$199,'C Report Grouper'!$D22,'C Report'!S$100:S$199)+SUMIF('C Report'!$A$300:$A$399,'C Report Grouper'!$D22,'C Report'!S$300:S$399),SUMIF('C Report'!$A$100:$A$199,'C Report Grouper'!$D22,'C Report'!S$100:S$199)) -> 0 | V22: =IF($D$4="MAP+ADM Waivers",SUMIF('C Report'!$A$100:$A$199,'C Report Grouper'!$D22,'C Report'!T$100:T$199)+SUMIF('C Report'!$A$300:$A$399,'C Report Grouper'!$D22,'C Report'!T$300:T$399),SUMIF('C Report'!$A$100:$A$199,'C Report Grouper'!$D22,'C Report'!T$100:T$199)) -> 0 | W22: =IF($D$4="MAP+ADM Waivers",SUMIF('C Report'!$A$100:$A$199,'C Report Grouper'!$D22,'C Report'!U$100:U$199)+SUMIF('C Report'!$A$300:$A$399,'C Report Grouper'!$D22,'C Report'!U$300:U$399),SUMIF('C Report'!$A$100:$A$199,'C Report Grouper'!$D22,'C Report'!U$100:U$199)) -> 0 | X22: =IF($D$4="MAP+ADM Waivers",SUMIF('C Report'!$A$100:$A$199,'C Report Grouper'!$D22,'C Report'!V$100:V$199)+SUMIF('C Report'!$A$300:$A$399,'C Report Grouper'!$D22,'C Report'!V$300:V$399),SUMIF('C Report'!$A$100:$A$199,'C Report Grouper'!$D22,'C Report'!V$100:V$199)) -> 0 | Y22: =IF($D$4="MAP+ADM Waivers",SUMIF('C Report'!$A$100:$A$199,'C Report Grouper'!$D22,'C Report'!W$100:W$199)+SUMIF('C Report'!$A$300:$A$399,'C Report Grouper'!$D22,'C Report'!W$300:W$399),SUMIF('C Report'!$A$100:$A$199,'C Report Grouper'!$D22,'C Report'!W$100:W$199)) -> 0 | Z22: =IF($D$4="MAP+ADM Waivers",SUMIF('C Report'!$A$100:$A$199,'C Report Grouper'!$D22,'C Report'!X$100:X$199)+SUMIF('C Report'!$A$300:$A$399,'C Report Grouper'!$D22,'C Report'!X$300:X$399),SUMIF('C Report'!$A$100:$A$199,'C Report Grouper'!$D22,'C Report'!X$100:X$199)) -> 0 | AA22: =IF($D$4="MAP+ADM Waivers",SUMIF('C Report'!$A$100:$A$199,'C Report Grouper'!$D22,'C Report'!Y$100:Y$199)+SUMIF('C Report'!$A$300:$A$399,'C Report Grouper'!$D22,'C Report'!Y$300:Y$399),SUMIF('C Report'!$A$100:$A$199,'C Report Grouper'!$D22,'C Report'!Y$100:Y$199)) -> 0 | AB22: =IF($D$4="MAP+ADM Waivers",SUMIF('C Report'!$A$100:$A$199,'C Report Grouper'!$D22,'C Report'!Z$100:Z$199)+SUMIF('C Report'!$A$300:$A$399,'C Report Grouper'!$D22,'C Report'!Z$300:Z$399),SUMIF('C Report'!$A$100:$A$199,'C Report Grouper'!$D22,'C Report'!Z$100:Z$199)) -> 0 | AC22: =IF($D$4="MAP+ADM Waivers",SUMIF('C Report'!$A$100:$A$199,'C Report Grouper'!$D22,'C Report'!AA$100:AA$199)+SUMIF('C Report'!$A$300:$A$399,'C Report Grouper'!$D22,'C Report'!AA$300:AA$399),SUMIF('C Report'!$A$100:$A$199,'C Report Grouper'!$D22,'C Report'!AA$100:AA$199)) -> 0 | AD22: =IF($D$4="MAP+ADM Waivers",SUMIF('C Report'!$A$100:$A$199,'C Report Grouper'!$D22,'C Report'!AB$100:AB$199)+SUMIF('C Report'!$A$300:$A$399,'C Report Grouper'!$D22,'C Report'!AB$300:AB$399),SUMIF('C Report'!$A$100:$A$199,'C Report Grouper'!$D22,'C Report'!AB$100:AB$199)) -> 0 | AE22: =IF($D$4="MAP+ADM Waivers",SUMIF('C Report'!$A$100:$A$199,'C Report Grouper'!$D22,'C Report'!AC$100:AC$199)+SUMIF('C Report'!$A$300:$A$399,'C Report Grouper'!$D22,'C Report'!AC$300:AC$399),SUMIF('C Report'!$A$100:$A$199,'C Report Grouper'!$D22,'C Report'!AC$100:AC$199)) -> 0 | AF22: =IF($D$4="MAP+ADM Waivers",SUMIF('C Report'!$A$100:$A$199,'C Report Grouper'!$D22,'C Report'!AD$100:AD$199)+SUMIF('C Report'!$A$300:$A$399,'C Report Grouper'!$D22,'C Report'!AD$300:AD$399),SUMIF('C Report'!$A$100:$A$199,'C Report Grouper'!$D22,'C Report'!AD$100:AD$199)) -> 0 | AG22: =IF($D$4="MAP+ADM Waivers",SUMIF('C Report'!$A$100:$A$199,'C Report Grouper'!$D22,'C Report'!AE$100:AE$199)+SUMIF('C Report'!$A$300:$A$399,'C Report Grouper'!$D22,'C Report'!AE$300:AE$399),SUMIF('C Report'!$A$100:$A$199,'C Report Grouper'!$D22,'C Report'!AE$100:AE$199)) -> 0 | AH22: =IF($D$4="MAP+ADM Waivers",SUMIF('C Report'!$A$100:$A$199,'C Report Grouper'!$D22,'C Report'!AF$100:AF$199)+SUMIF('C Report'!$A$300:$A$399,'C Report Grouper'!$D22,'C Report'!AF$300:AF$399),SUMIF('C Report'!$A$100:$A$199,'C Report Grouper'!$D22,'C Report'!AF$100:AF$199)) -> 0 | AI22: =IF($D$4="MAP+ADM Waivers",SUMIF('C Report'!$A$100:$A$199,'C Report Grouper'!$D22,'C Report'!AG$100:AG$199)+SUMIF('C Report'!$A$300:$A$399,'C Report Grouper'!$D22,'C Report'!AG$300:AG$399),SUMIF('C Report'!$A$100:$A$199,'C Report Grouper'!$D22,'C Report'!AG$100:AG$199)) -> 0
B23: =IFERROR(VLOOKUP(C23,'MEG Def'!$A$23:$B$28,2),"") ->  | E23: =IF($D$4="MAP+ADM Waivers",SUMIF('C Report'!$A$100:$A$199,'C Report Grouper'!$D23,'C Report'!C$100:C$199)+SUMIF('C Report'!$A$300:$A$399,'C Report Grouper'!$D23,'C Report'!C$300:C$399),SUMIF('C Report'!$A$100:$A$199,'C Report Grouper'!$D23,'C Report'!C$100:C$199)) -> 0 | F23: =IF($D$4="MAP+ADM Waivers",SUMIF('C Report'!$A$100:$A$199,'C Report Grouper'!$D23,'C Report'!D$100:D$199)+SUMIF('C Report'!$A$300:$A$399,'C Report Grouper'!$D23,'C Report'!D$300:D$399),SUMIF('C Report'!$A$100:$A$199,'C Report Grouper'!$D23,'C Report'!D$100:D$199)) -> 0 | G23: =IF($D$4="MAP+ADM Waivers",SUMIF('C Report'!$A$100:$A$199,'C Report Grouper'!$D23,'C Report'!E$100:E$199)+SUMIF('C Report'!$A$300:$A$399,'C Report Grouper'!$D23,'C Report'!E$300:E$399),SUMIF('C Report'!$A$100:$A$199,'C Report Grouper'!$D23,'C Report'!E$100:E$199)) -> 0 | H23: =IF($D$4="MAP+ADM Waivers",SUMIF('C Report'!$A$100:$A$199,'C Report Grouper'!$D23,'C Report'!F$100:F$199)+SUMIF('C Report'!$A$300:$A$399,'C Report Grouper'!$D23,'C Report'!F$300:F$399),SUMIF('C Report'!$A$100:$A$199,'C Report Grouper'!$D23,'C Report'!F$100:F$199)) -> 0 | I23: =IF($D$4="MAP+ADM Waivers",SUMIF('C Report'!$A$100:$A$199,'C Report Grouper'!$D23,'C Report'!G$100:G$199)+SUMIF('C Report'!$A$300:$A$399,'C Report Grouper'!$D23,'C Report'!G$300:G$399),SUMIF('C Report'!$A$100:$A$199,'C Report Grouper'!$D23,'C Report'!G$100:G$199)) -> 0 | J23: =IF($D$4="MAP+ADM Waivers",SUMIF('C Report'!$A$100:$A$199,'C Report Grouper'!$D23,'C Report'!H$100:H$199)+SUMIF('C Report'!$A$300:$A$399,'C Report Grouper'!$D23,'C Report'!H$300:H$399),SUMIF('C Report'!$A$100:$A$199,'C Report Grouper'!$D23,'C Report'!H$100:H$199)) -> 0 | K23: =IF($D$4="MAP+ADM Waivers",SUMIF('C Report'!$A$100:$A$199,'C Report Grouper'!$D23,'C Report'!I$100:I$199)+SUMIF('C Report'!$A$300:$A$399,'C Report Grouper'!$D23,'C Report'!I$300:I$399),SUMIF('C Report'!$A$100:$A$199,'C Report Grouper'!$D23,'C Report'!I$100:I$199)) -> 0 | L23: =IF($D$4="MAP+ADM Waivers",SUMIF('C Report'!$A$100:$A$199,'C Report Grouper'!$D23,'C Report'!J$100:J$199)+SUMIF('C Report'!$A$300:$A$399,'C Report Grouper'!$D23,'C Report'!J$300:J$399),SUMIF('C Report'!$A$100:$A$199,'C Report Grouper'!$D23,'C Report'!J$100:J$199)) -> 0 | M23: =IF($D$4="MAP+ADM Waivers",SUMIF('C Report'!$A$100:$A$199,'C Report Grouper'!$D23,'C Report'!K$100:K$199)+SUMIF('C Report'!$A$300:$A$399,'C Report Grouper'!$D23,'C Report'!K$300:K$399),SUMIF('C Report'!$A$100:$A$199,'C Report Grouper'!$D23,'C Report'!K$100:K$199)) -> 0 | N23: =IF($D$4="MAP+ADM Waivers",SUMIF('C Report'!$A$100:$A$199,'C Report Grouper'!$D23,'C Report'!L$100:L$199)+SUMIF('C Report'!$A$300:$A$399,'C Report Grouper'!$D23,'C Report'!L$300:L$399),SUMIF('C Report'!$A$100:$A$199,'C Report Grouper'!$D23,'C Report'!L$100:L$199)) -> 0 | O23: =IF($D$4="MAP+ADM Waivers",SUMIF('C Report'!$A$100:$A$199,'C Report Grouper'!$D23,'C Report'!M$100:M$199)+SUMIF('C Report'!$A$300:$A$399,'C Report Grouper'!$D23,'C Report'!M$300:M$399),SUMIF('C Report'!$A$100:$A$199,'C Report Grouper'!$D23,'C Report'!M$100:M$199)) -> 0 | P23: =IF($D$4="MAP+ADM Waivers",SUMIF('C Report'!$A$100:$A$199,'C Report Grouper'!$D23,'C Report'!N$100:N$199)+SUMIF('C Report'!$A$300:$A$399,'C Report Grouper'!$D23,'C Report'!N$300:N$399),SUMIF('C Report'!$A$100:$A$199,'C Report Grouper'!$D23,'C Report'!N$100:N$199)) -> 0 | Q23: =IF($D$4="MAP+ADM Waivers",SUMIF('C Report'!$A$100:$A$199,'C Report Grouper'!$D23,'C Report'!O$100:O$199)+SUMIF('C Report'!$A$300:$A$399,'C Report Grouper'!$D23,'C Report'!O$300:O$399),SUMIF('C Report'!$A$100:$A$199,'C Report Grouper'!$D23,'C Report'!O$100:O$199)) -> 0 | R23: =IF($D$4="MAP+ADM Waivers",SUMIF('C Report'!$A$100:$A$199,'C Report Grouper'!$D23,'C Report'!P$100:P$199)+SUMIF('C Report'!$A$300:$A$399,'C Report Grouper'!$D23,'C Report'!P$300:P$399),SUMIF('C Report'!$A$100:$A$199,'C Report Grouper'!$D23,'C Report'!P$100:P$199)) -> 0 | S23: =IF($D$4="MAP+ADM Waivers",SUMIF('C Report'!$A$100:$A$199,'C Report Grouper'!$D23,'C Report'!Q$100:Q$199)+SUMIF('C Report'!$A$300:$A$399,'C Report Grouper'!$D23,'C Report'!Q$300:Q$399),SUMIF('C Report'!$A$100:$A$199,'C Report Grouper'!$D23,'C Report'!Q$100:Q$199)) -> 0 | T23: =IF($D$4="MAP+ADM Waivers",SUMIF('C Report'!$A$100:$A$199,'C Report Grouper'!$D23,'C Report'!R$100:R$199)+SUMIF('C Report'!$A$300:$A$399,'C Report Grouper'!$D23,'C Report'!R$300:R$399),SUMIF('C Report'!$A$100:$A$199,'C Report Grouper'!$D23,'C Report'!R$100:R$199)) -> 0 | U23: =IF($D$4="MAP+ADM Waivers",SUMIF('C Report'!$A$100:$A$199,'C Report Grouper'!$D23,'C Report'!S$100:S$199)+SUMIF('C Report'!$A$300:$A$399,'C Report Grouper'!$D23,'C Report'!S$300:S$399),SUMIF('C Report'!$A$100:$A$199,'C Report Grouper'!$D23,'C Report'!S$100:S$199)) -> 0 | V23: =IF($D$4="MAP+ADM Waivers",SUMIF('C Report'!$A$100:$A$199,'C Report Grouper'!$D23,'C Report'!T$100:T$199)+SUMIF('C Report'!$A$300:$A$399,'C Report Grouper'!$D23,'C Report'!T$300:T$399),SUMIF('C Report'!$A$100:$A$199,'C Report Grouper'!$D23,'C Report'!T$100:T$199)) -> 0 | W23: =IF($D$4="MAP+ADM Waivers",SUMIF('C Report'!$A$100:$A$199,'C Report Grouper'!$D23,'C Report'!U$100:U$199)+SUMIF('C Report'!$A$300:$A$399,'C Report Grouper'!$D23,'C Report'!U$300:U$399),SUMIF('C Report'!$A$100:$A$199,'C Report Grouper'!$D23,'C Report'!U$100:U$199)) -> 0 | X23: =IF($D$4="MAP+ADM Waivers",SUMIF('C Report'!$A$100:$A$199,'C Report Grouper'!$D23,'C Report'!V$100:V$199)+SUMIF('C Report'!$A$300:$A$399,'C Report Grouper'!$D23,'C Report'!V$300:V$399),SUMIF('C Report'!$A$100:$A$199,'C Report Grouper'!$D23,'C Report'!V$100:V$199)) -> 0 | Y23: =IF($D$4="MAP+ADM Waivers",SUMIF('C Report'!$A$100:$A$199,'C Report Grouper'!$D23,'C Report'!W$100:W$199)+SUMIF('C Report'!$A$300:$A$399,'C Report Grouper'!$D23,'C Report'!W$300:W$399),SUMIF('C Report'!$A$100:$A$199,'C Report Grouper'!$D23,'C Report'!W$100:W$199)) -> 0 | Z23: =IF($D$4="MAP+ADM Waivers",SUMIF('C Report'!$A$100:$A$199,'C Report Grouper'!$D23,'C Report'!X$100:X$199)+SUMIF('C Report'!$A$300:$A$399,'C Report Grouper'!$D23,'C Report'!X$300:X$399),SUMIF('C Report'!$A$100:$A$199,'C Report Grouper'!$D23,'C Report'!X$100:X$199)) -> 0 | AA23: =IF($D$4="MAP+ADM Waivers",SUMIF('C Report'!$A$100:$A$199,'C Report Grouper'!$D23,'C Report'!Y$100:Y$199)+SUMIF('C Report'!$A$300:$A$399,'C Report Grouper'!$D23,'C Report'!Y$300:Y$399),SUMIF('C Report'!$A$100:$A$199,'C Report Grouper'!$D23,'C Report'!Y$100:Y$199)) -> 0 | AB23: =IF($D$4="MAP+ADM Waivers",SUMIF('C Report'!$A$100:$A$199,'C Report Grouper'!$D23,'C Report'!Z$100:Z$199)+SUMIF('C Report'!$A$300:$A$399,'C Report Grouper'!$D23,'C Report'!Z$300:Z$399),SUMIF('C Report'!$A$100:$A$199,'C Report Grouper'!$D23,'C Report'!Z$100:Z$199)) -> 0 | AC23: =IF($D$4="MAP+ADM Waivers",SUMIF('C Report'!$A$100:$A$199,'C Report Grouper'!$D23,'C Report'!AA$100:AA$199)+SUMIF('C Report'!$A$300:$A$399,'C Report Grouper'!$D23,'C Report'!AA$300:AA$399),SUMIF('C Report'!$A$100:$A$199,'C Report Grouper'!$D23,'C Report'!AA$100:AA$199)) -> 0 | AD23: =IF($D$4="MAP+ADM Waivers",SUMIF('C Report'!$A$100:$A$199,'C Report Grouper'!$D23,'C Report'!AB$100:AB$199)+SUMIF('C Report'!$A$300:$A$399,'C Report Grouper'!$D23,'C Report'!AB$300:AB$399),SUMIF('C Report'!$A$100:$A$199,'C Report Grouper'!$D23,'C Report'!AB$100:AB$199)) -> 0 | AE23: =IF($D$4="MAP+ADM Waivers",SUMIF('C Report'!$A$100:$A$199,'C Report Grouper'!$D23,'C Report'!AC$100:AC$199)+SUMIF('C Report'!$A$300:$A$399,'C Report Grouper'!$D23,'C Report'!AC$300:AC$399),SUMIF('C Report'!$A$100:$A$199,'C Report Grouper'!$D23,'C Report'!AC$100:AC$199)) -> 0 | AF23: =IF($D$4="MAP+ADM Waivers",SUMIF('C Report'!$A$100:$A$199,'C Report Grouper'!$D23,'C Report'!AD$100:AD$199)+SUMIF('C Report'!$A$300:$A$399,'C Report Grouper'!$D23,'C Report'!AD$300:AD$399),SUMIF('C Report'!$A$100:$A$199,'C Report Grouper'!$D23,'C Report'!AD$100:AD$199)) -> 0 | AG23: =IF($D$4="MAP+ADM Waivers",SUMIF('C Report'!$A$100:$A$199,'C Report Grouper'!$D23,'C Report'!AE$100:AE$199)+SUMIF('C Report'!$A$300:$A$399,'C Report Grouper'!$D23,'C Report'!AE$300:AE$399),SUMIF('C Report'!$A$100:$A$199,'C Report Grouper'!$D23,'C Report'!AE$100:AE$199)) -> 0 | AH23: =IF($D$4="MAP+ADM Waivers",SUMIF('C Report'!$A$100:$A$199,'C Report Grouper'!$D23,'C Report'!AF$100:AF$199)+SUMIF('C Report'!$A$300:$A$399,'C Report Grouper'!$D23,'C Report'!AF$300:AF$399),SUMIF('C Report'!$A$100:$A$199,'C Report Grouper'!$D23,'C Report'!AF$100:AF$199)) -> 0 | AI23: =IF($D$4="MAP+ADM Waivers",SUMIF('C Report'!$A$100:$A$199,'C Report Grouper'!$D23,'C Report'!AG$100:AG$199)+SUMIF('C Report'!$A$300:$A$399,'C Report Grouper'!$D23,'C Report'!AG$300:AG$399),SUMIF('C Report'!$A$100:$A$199,'C Report Grouper'!$D23,'C Report'!AG$100:AG$199)) -> 0
E24: =IF($D$4="MAP+ADM Waivers",SUMIF('C Report'!$A$100:$A$199,'C Report Grouper'!$D24,'C Report'!C$100:C$199)+SUMIF('C Report'!$A$300:$A$399,'C Report Grouper'!$D24,'C Report'!C$300:C$399),SUMIF('C Report'!$A$100:$A$199,'C Report Grouper'!$D24,'C Report'!C$100:C$199)) -> 0 | F24: =IF($D$4="MAP+ADM Waivers",SUMIF('C Report'!$A$100:$A$199,'C Report Grouper'!$D24,'C Report'!D$100:D$199)+SUMIF('C Report'!$A$300:$A$399,'C Report Grouper'!$D24,'C Report'!D$300:D$399),SUMIF('C Report'!$A$100:$A$199,'C Report Grouper'!$D24,'C Report'!D$100:D$199)) -> 0 | G24: =IF($D$4="MAP+ADM Waivers",SUMIF('C Report'!$A$100:$A$199,'C Report Grouper'!$D24,'C Report'!E$100:E$199)+SUMIF('C Report'!$A$300:$A$399,'C Report Grouper'!$D24,'C Report'!E$300:E$399),SUMIF('C Report'!$A$100:$A$199,'C Report Grouper'!$D24,'C Report'!E$100:E$199)) -> 0 | H24: =IF($D$4="MAP+ADM Waivers",SUMIF('C Report'!$A$100:$A$199,'C Report Grouper'!$D24,'C Report'!F$100:F$199)+SUMIF('C Report'!$A$300:$A$399,'C Report Grouper'!$D24,'C Report'!F$300:F$399),SUMIF('C Report'!$A$100:$A$199,'C Report Grouper'!$D24,'C Report'!F$100:F$199)) -> 0 | I24: =IF($D$4="MAP+ADM Waivers",SUMIF('C Report'!$A$100:$A$199,'C Report Grouper'!$D24,'C Report'!G$100:G$199)+SUMIF('C Report'!$A$300:$A$399,'C Report Grouper'!$D24,'C Report'!G$300:G$399),SUMIF('C Report'!$A$100:$A$199,'C Report Grouper'!$D24,'C Report'!G$100:G$199)) -> 0 | J24: =IF($D$4="MAP+ADM Waivers",SUMIF('C Report'!$A$100:$A$199,'C Report Grouper'!$D24,'C Report'!H$100:H$199)+SUMIF('C Report'!$A$300:$A$399,'C Report Grouper'!$D24,'C Report'!H$300:H$399),SUMIF('C Report'!$A$100:$A$199,'C Report Grouper'!$D24,'C Report'!H$100:H$199)) -> 0 | K24: =IF($D$4="MAP+ADM Waivers",SUMIF('C Report'!$A$100:$A$199,'C Report Grouper'!$D24,'C Report'!I$100:I$199)+SUMIF('C Report'!$A$300:$A$399,'C Report Grouper'!$D24,'C Report'!I$300:I$399),SUMIF('C Report'!$A$100:$A$199,'C Report Grouper'!$D24,'C Report'!I$100:I$199)) -> 0 | L24: =IF($D$4="MAP+ADM Waivers",SUMIF('C Report'!$A$100:$A$199,'C Report Grouper'!$D24,'C Report'!J$100:J$199)+SUMIF('C Report'!$A$300:$A$399,'C Report Grouper'!$D24,'C Report'!J$300:J$399),SUMIF('C Report'!$A$100:$A$199,'C Report Grouper'!$D24,'C Report'!J$100:J$199)) -> 0 | M24: =IF($D$4="MAP+ADM Waivers",SUMIF('C Report'!$A$100:$A$199,'C Report Grouper'!$D24,'C Report'!K$100:K$199)+SUMIF('C Report'!$A$300:$A$399,'C Report Grouper'!$D24,'C Report'!K$300:K$399),SUMIF('C Report'!$A$100:$A$199,'C Report Grouper'!$D24,'C Report'!K$100:K$199)) -> 0 | N24: =IF($D$4="MAP+ADM Waivers",SUMIF('C Report'!$A$100:$A$199,'C Report Grouper'!$D24,'C Report'!L$100:L$199)+SUMIF('C Report'!$A$300:$A$399,'C Report Grouper'!$D24,'C Report'!L$300:L$399),SUMIF('C Report'!$A$100:$A$199,'C Report Grouper'!$D24,'C Report'!L$100:L$199)) -> 0 | O24: =IF($D$4="MAP+ADM Waivers",SUMIF('C Report'!$A$100:$A$199,'C Report Grouper'!$D24,'C Report'!M$100:M$199)+SUMIF('C Report'!$A$300:$A$399,'C Report Grouper'!$D24,'C Report'!M$300:M$399),SUMIF('C Report'!$A$100:$A$199,'C Report Grouper'!$D24,'C Report'!M$100:M$199)) -> 0 | P24: =IF($D$4="MAP+ADM Waivers",SUMIF('C Report'!$A$100:$A$199,'C Report Grouper'!$D24,'C Report'!N$100:N$199)+SUMIF('C Report'!$A$300:$A$399,'C Report Grouper'!$D24,'C Report'!N$300:N$399),SUMIF('C Report'!$A$100:$A$199,'C Report Grouper'!$D24,'C Report'!N$100:N$199)) -> 0 | Q24: =IF($D$4="MAP+ADM Waivers",SUMIF('C Report'!$A$100:$A$199,'C Report Grouper'!$D24,'C Report'!O$100:O$199)+SUMIF('C Report'!$A$300:$A$399,'C Report Grouper'!$D24,'C Report'!O$300:O$399),SUMIF('C Report'!$A$100:$A$199,'C Report Grouper'!$D24,'C Report'!O$100:O$199)) -> 0 | R24: =IF($D$4="MAP+ADM Waivers",SUMIF('C Report'!$A$100:$A$199,'C Report Grouper'!$D24,'C Report'!P$100:P$199)+SUMIF('C Report'!$A$300:$A$399,'C Report Grouper'!$D24,'C Report'!P$300:P$399),SUMIF('C Report'!$A$100:$A$199,'C Report Grouper'!$D24,'C Report'!P$100:P$199)) -> 0 | S24: =IF($D$4="MAP+ADM Waivers",SUMIF('C Report'!$A$100:$A$199,'C Report Grouper'!$D24,'C Report'!Q$100:Q$199)+SUMIF('C Report'!$A$300:$A$399,'C Report Grouper'!$D24,'C Report'!Q$300:Q$399),SUMIF('C Report'!$A$100:$A$199,'C Report Grouper'!$D24,'C Report'!Q$100:Q$199)) -> 0 | T24: =IF($D$4="MAP+ADM Waivers",SUMIF('C Report'!$A$100:$A$199,'C Report Grouper'!$D24,'C Report'!R$100:R$199)+SUMIF('C Report'!$A$300:$A$399,'C Report Grouper'!$D24,'C Report'!R$300:R$399),SUMIF('C Report'!$A$100:$A$199,'C Report Grouper'!$D24,'C Report'!R$100:R$199)) -> 0 | U24: =IF($D$4="MAP+ADM Waivers",SUMIF('C Report'!$A$100:$A$199,'C Report Grouper'!$D24,'C Report'!S$100:S$199)+SUMIF('C Report'!$A$300:$A$399,'C Report Grouper'!$D24,'C Report'!S$300:S$399),SUMIF('C Report'!$A$100:$A$199,'C Report Grouper'!$D24,'C Report'!S$100:S$199)) -> 0 | V24: =IF($D$4="MAP+ADM Waivers",SUMIF('C Report'!$A$100:$A$199,'C Report Grouper'!$D24,'C Report'!T$100:T$199)+SUMIF('C Report'!$A$300:$A$399,'C Report Grouper'!$D24,'C Report'!T$300:T$399),SUMIF('C Report'!$A$100:$A$199,'C Report Grouper'!$D24,'C Report'!T$100:T$199)) -> 0 | W24: =IF($D$4="MAP+ADM Waivers",SUMIF('C Report'!$A$100:$A$199,'C Report Grouper'!$D24,'C Report'!U$100:U$199)+SUMIF('C Report'!$A$300:$A$399,'C Report Grouper'!$D24,'C Report'!U$300:U$399),SUMIF('C Report'!$A$100:$A$199,'C Report Grouper'!$D24,'C Report'!U$100:U$199)) -> 0 | X24: =IF($D$4="MAP+ADM Waivers",SUMIF('C Report'!$A$100:$A$199,'C Report Grouper'!$D24,'C Report'!V$100:V$199)+SUMIF('C Report'!$A$300:$A$399,'C Report Grouper'!$D24,'C Report'!V$300:V$399),SUMIF('C Report'!$A$100:$A$199,'C Report Grouper'!$D24,'C Report'!V$100:V$199)) -> 0 | Y24: =IF($D$4="MAP+ADM Waivers",SUMIF('C Report'!$A$100:$A$199,'C Report Grouper'!$D24,'C Report'!W$100:W$199)+SUMIF('C Report'!$A$300:$A$399,'C Report Grouper'!$D24,'C Report'!W$300:W$399),SUMIF('C Report'!$A$100:$A$199,'C Report Grouper'!$D24,'C Report'!W$100:W$199)) -> 0 | Z24: =IF($D$4="MAP+ADM Waivers",SUMIF('C Report'!$A$100:$A$199,'C Report Grouper'!$D24,'C Report'!X$100:X$199)+SUMIF('C Report'!$A$300:$A$399,'C Report Grouper'!$D24,'C Report'!X$300:X$399),SUMIF('C Report'!$A$100:$A$199,'C Report Grouper'!$D24,'C Report'!X$100:X$199)) -> 0 | AA24: =IF($D$4="MAP+ADM Waivers",SUMIF('C Report'!$A$100:$A$199,'C Report Grouper'!$D24,'C Report'!Y$100:Y$199)+SUMIF('C Report'!$A$300:$A$399,'C Report Grouper'!$D24,'C Report'!Y$300:Y$399),SUMIF('C Report'!$A$100:$A$199,'C Report Grouper'!$D24,'C Report'!Y$100:Y$199)) -> 0 | AB24: =IF($D$4="MAP+ADM Waivers",SUMIF('C Report'!$A$100:$A$199,'C Report Grouper'!$D24,'C Report'!Z$100:Z$199)+SUMIF('C Report'!$A$300:$A$399,'C Report Grouper'!$D24,'C Report'!Z$300:Z$399),SUMIF('C Report'!$A$100:$A$199,'C Report Grouper'!$D24,'C Report'!Z$100:Z$199)) -> 0 | AC24: =IF($D$4="MAP+ADM Waivers",SUMIF('C Report'!$A$100:$A$199,'C Report Grouper'!$D24,'C Report'!AA$100:AA$199)+SUMIF('C Report'!$A$300:$A$399,'C Report Grouper'!$D24,'C Report'!AA$300:AA$399),SUMIF('C Report'!$A$100:$A$199,'C Report Grouper'!$D24,'C Report'!AA$100:AA$199)) -> 0 | AD24: =IF($D$4="MAP+ADM Waivers",SUMIF('C Report'!$A$100:$A$199,'C Report Grouper'!$D24,'C Report'!AB$100:AB$199)+SUMIF('C Report'!$A$300:$A$399,'C Report Grouper'!$D24,'C Report'!AB$300:AB$399),SUMIF('C Report'!$A$100:$A$199,'C Report Grouper'!$D24,'C Report'!AB$100:AB$199)) -> 0 | AE24: =IF($D$4="MAP+ADM Waivers",SUMIF('C Report'!$A$100:$A$199,'C Report Grouper'!$D24,'C Report'!AC$100:AC$199)+SUMIF('C Report'!$A$300:$A$399,'C Report Grouper'!$D24,'C Report'!AC$300:AC$399),SUMIF('C Report'!$A$100:$A$199,'C Report Grouper'!$D24,'C Report'!AC$100:AC$199)) -> 0 | AF24: =IF($D$4="MAP+ADM Waivers",SUMIF('C Report'!$A$100:$A$199,'C Report Grouper'!$D24,'C Report'!AD$100:AD$199)+SUMIF('C Report'!$A$300:$A$399,'C Report Grouper'!$D24,'C Report'!AD$300:AD$399),SUMIF('C Report'!$A$100:$A$199,'C Report Grouper'!$D24,'C Report'!AD$100:AD$199)) -> 0 | AG24: =IF($D$4="MAP+ADM Waivers",SUMIF('C Report'!$A$100:$A$199,'C Report Grouper'!$D24,'C Report'!AE$100:AE$199)+SUMIF('C Report'!$A$300:$A$399,'C Report Grouper'!$D24,'C Report'!AE$300:AE$399),SUMIF('C Report'!$A$100:$A$199,'C Report Grouper'!$D24,'C Report'!AE$100:AE$199)) -> 0 | AH24: =IF($D$4="MAP+ADM Waivers",SUMIF('C Report'!$A$100:$A$199,'C Report Grouper'!$D24,'C Report'!AF$100:AF$199)+SUMIF('C Report'!$A$300:$A$399,'C Report Grouper'!$D24,'C Report'!AF$300:AF$399),SUMIF('C Report'!$A$100:$A$199,'C Report Grouper'!$D24,'C Report'!AF$100:AF$199)) -> 0 | AI24: =IF($D$4="MAP+ADM Waivers",SUMIF('C Report'!$A$100:$A$199,'C Report Grouper'!$D24,'C Report'!AG$100:AG$199)+SUMIF('C Report'!$A$300:$A$399,'C Report Grouper'!$D24,'C Report'!AG$300:AG$399),SUMIF('C Report'!$A$100:$A$199,'C Report Grouper'!$D24,'C Report'!AG$100:AG$199)) -> 0
B25: Medicaid Aggregate - WW only | E25: =IF($D$4="MAP+ADM Waivers",SUMIF('C Report'!$A$100:$A$199,'C Report Grouper'!$D25,'C Report'!C$100:C$199)+SUMIF('C Report'!$A$300:$A$399,'C Report Grouper'!$D25,'C Report'!C$300:C$399),SUMIF('C Report'!$A$100:$A$199,'C Report Grouper'!$D25,'C Report'!C$100:C$199)) -> 0 | F25: =IF($D$4="MAP+ADM Waivers",SUMIF('C Report'!$A$100:$A$199,'C Report Grouper'!$D25,'C Report'!D$100:D$199)+SUMIF('C Report'!$A$300:$A$399,'C Report Grouper'!$D25,'C Report'!D$300:D$399),SUMIF('C Report'!$A$100:$A$199,'C Report Grouper'!$D25,'C Report'!D$100:D$199)) -> 0 | G25: =IF($D$4="MAP+ADM Waivers",SUMIF('C Report'!$A$100:$A$199,'C Report Grouper'!$D25,'C Report'!E$100:E$199)+SUMIF('C Report'!$A$300:$A$399,'C Report Grouper'!$D25,'C Report'!E$300:E$399),SUMIF('C Report'!$A$100:$A$199,'C Report Grouper'!$D25,'C Report'!E$100:E$199)) -> 0 | H25: =IF($D$4="MAP+ADM Waivers",SUMIF('C Report'!$A$100:$A$199,'C Report Grouper'!$D25,'C Report'!F$100:F$199)+SUMIF('C Report'!$A$300:$A$399,'C Report Grouper'!$D25,'C Report'!F$300:F$399),SUMIF('C Report'!$A$100:$A$199,'C Report Grouper'!$D25,'C Report'!F$100:F$199)) -> 0 | I25: =IF($D$4="MAP+ADM Waivers",SUMIF('C Report'!$A$100:$A$199,'C Report Grouper'!$D25,'C Report'!G$100:G$199)+SUMIF('C Report'!$A$300:$A$399,'C Report Grouper'!$D25,'C Report'!G$300:G$399),SUMIF('C Report'!$A$100:$A$199,'C Report Grouper'!$D25,'C Report'!G$100:G$199)) -> 0 | J25: =IF($D$4="MAP+ADM Waivers",SUMIF('C Report'!$A$100:$A$199,'C Report Grouper'!$D25,'C Report'!H$100:H$199)+SUMIF('C Report'!$A$300:$A$399,'C Report Grouper'!$D25,'C Report'!H$300:H$399),SUMIF('C Report'!$A$100:$A$199,'C Report Grouper'!$D25,'C Report'!H$100:H$199)) -> 0 | K25: =IF($D$4="MAP+ADM Waivers",SUMIF('C Report'!$A$100:$A$199,'C Report Grouper'!$D25,'C Report'!I$100:I$199)+SUMIF('C Report'!$A$300:$A$399,'C Report Grouper'!$D25,'C Report'!I$300:I$399),SUMIF('C Report'!$A$100:$A$199,'C Report Grouper'!$D25,'C Report'!I$100:I$199)) -> 0 | L25: =IF($D$4="MAP+ADM Waivers",SUMIF('C Report'!$A$100:$A$199,'C Report Grouper'!$D25,'C Report'!J$100:J$199)+SUMIF('C Report'!$A$300:$A$399,'C Report Grouper'!$D25,'C Report'!J$300:J$399),SUMIF('C Report'!$A$100:$A$199,'C Report Grouper'!$D25,'C Report'!J$100:J$199)) -> 0 | M25: =IF($D$4="MAP+ADM Waivers",SUMIF('C Report'!$A$100:$A$199,'C Report Grouper'!$D25,'C Report'!K$100:K$199)+SUMIF('C Report'!$A$300:$A$399,'C Report Grouper'!$D25,'C Report'!K$300:K$399),SUMIF('C Report'!$A$100:$A$199,'C Report Grouper'!$D25,'C Report'!K$100:K$199)) -> 0 | N25: =IF($D$4="MAP+ADM Waivers",SUMIF('C Report'!$A$100:$A$199,'C Report Grouper'!$D25,'C Report'!L$100:L$199)+SUMIF('C Report'!$A$300:$A$399,'C Report Grouper'!$D25,'C Report'!L$300:L$399),SUMIF('C Report'!$A$100:$A$199,'C Report Grouper'!$D25,'C Report'!L$100:L$199)) -> 0 | O25: =IF($D$4="MAP+ADM Waivers",SUMIF('C Report'!$A$100:$A$199,'C Report Grouper'!$D25,'C Report'!M$100:M$199)+SUMIF('C Report'!$A$300:$A$399,'C Report Grouper'!$D25,'C Report'!M$300:M$399),SUMIF('C Report'!$A$100:$A$199,'C Report Grouper'!$D25,'C Report'!M$100:M$199)) -> 0 | P25: =IF($D$4="MAP+ADM Waivers",SUMIF('C Report'!$A$100:$A$199,'C Report Grouper'!$D25,'C Report'!N$100:N$199)+SUMIF('C Report'!$A$300:$A$399,'C Report Grouper'!$D25,'C Report'!N$300:N$399),SUMIF('C Report'!$A$100:$A$199,'C Report Grouper'!$D25,'C Report'!N$100:N$199)) -> 0 | Q25: =IF($D$4="MAP+ADM Waivers",SUMIF('C Report'!$A$100:$A$199,'C Report Grouper'!$D25,'C Report'!O$100:O$199)+SUMIF('C Report'!$A$300:$A$399,'C Report Grouper'!$D25,'C Report'!O$300:O$399),SUMIF('C Report'!$A$100:$A$199,'C Report Grouper'!$D25,'C Report'!O$100:O$199)) -> 0 | R25: =IF($D$4="MAP+ADM Waivers",SUMIF('C Report'!$A$100:$A$199,'C Report Grouper'!$D25,'C Report'!P$100:P$199)+SUMIF('C Report'!$A$300:$A$399,'C Report Grouper'!$D25,'C Report'!P$300:P$399),SUMIF('C Report'!$A$100:$A$199,'C Report Grouper'!$D25,'C Report'!P$100:P$199)) -> 0 | S25: =IF($D$4="MAP+ADM Waivers",SUMIF('C Report'!$A$100:$A$199,'C Report Grouper'!$D25,'C Report'!Q$100:Q$199)+SUMIF('C Report'!$A$300:$A$399,'C Report Grouper'!$D25,'C Report'!Q$300:Q$399),SUMIF('C Report'!$A$100:$A$199,'C Report Grouper'!$D25,'C Report'!Q$100:Q$199)) -> 0 | T25: =IF($D$4="MAP+ADM Waivers",SUMIF('C Report'!$A$100:$A$199,'C Report Grouper'!$D25,'C Report'!R$100:R$199)+SUMIF('C Report'!$A$300:$A$399,'C Report Grouper'!$D25,'C Report'!R$300:R$399),SUMIF('C Report'!$A$100:$A$199,'C Report Grouper'!$D25,'C Report'!R$100:R$199)) -> 0 | U25: =IF($D$4="MAP+ADM Waivers",SUMIF('C Report'!$A$100:$A$199,'C Report Grouper'!$D25,'C Report'!S$100:S$199)+SUMIF('C Report'!$A$300:$A$399,'C Report Grouper'!$D25,'C Report'!S$300:S$399),SUMIF('C Report'!$A$100:$A$199,'C Report Grouper'!$D25,'C Report'!S$100:S$199)) -> 0 | V25: =IF($D$4="MAP+ADM Waivers",SUMIF('C Report'!$A$100:$A$199,'C Report Grouper'!$D25,'C Report'!T$100:T$199)+SUMIF('C Report'!$A$300:$A$399,'C Report Grouper'!$D25,'C Report'!T$300:T$399),SUMIF('C Report'!$A$100:$A$199,'C Report Grouper'!$D25,'C Report'!T$100:T$199)) -> 0 | W25: =IF($D$4="MAP+ADM Waivers",SUMIF('C Report'!$A$100:$A$199,'C Report Grouper'!$D25,'C Report'!U$100:U$199)+SUMIF('C Report'!$A$300:$A$399,'C Report Grouper'!$D25,'C Report'!U$300:U$399),SUMIF('C Report'!$A$100:$A$199,'C Report Grouper'!$D25,'C Report'!U$100:U$199)) -> 0 | X25: =IF($D$4="MAP+ADM Waivers",SUMIF('C Report'!$A$100:$A$199,'C Report Grouper'!$D25,'C Report'!V$100:V$199)+SUMIF('C Report'!$A$300:$A$399,'C Report Grouper'!$D25,'C Report'!V$300:V$399),SUMIF('C Report'!$A$100:$A$199,'C Report Grouper'!$D25,'C Report'!V$100:V$199)) -> 0 | Y25: =IF($D$4="MAP+ADM Waivers",SUMIF('C Report'!$A$100:$A$199,'C Report Grouper'!$D25,'C Report'!W$100:W$199)+SUMIF('C Report'!$A$300:$A$399,'C Report Grouper'!$D25,'C Report'!W$300:W$399),SUMIF('C Report'!$A$100:$A$199,'C Report Grouper'!$D25,'C Report'!W$100:W$199)) -> 0 | Z25: =IF($D$4="MAP+ADM Waivers",SUMIF('C Report'!$A$100:$A$199,'C Report Grouper'!$D25,'C Report'!X$100:X$199)+SUMIF('C Report'!$A$300:$A$399,'C Report Grouper'!$D25,'C Report'!X$300:X$399),SUMIF('C Report'!$A$100:$A$199,'C Report Grouper'!$D25,'C Report'!X$100:X$199)) -> 0 | AA25: =IF($D$4="MAP+ADM Waivers",SUMIF('C Report'!$A$100:$A$199,'C Report Grouper'!$D25,'C Report'!Y$100:Y$199)+SUMIF('C Report'!$A$300:$A$399,'C Report Grouper'!$D25,'C Report'!Y$300:Y$399),SUMIF('C Report'!$A$100:$A$199,'C Report Grouper'!$D25,'C Report'!Y$100:Y$199)) -> 0 | AB25: =IF($D$4="MAP+ADM Waivers",SUMIF('C Report'!$A$100:$A$199,'C Report Grouper'!$D25,'C Report'!Z$100:Z$199)+SUMIF('C Report'!$A$300:$A$399,'C Report Grouper'!$D25,'C Report'!Z$300:Z$399),SUMIF('C Report'!$A$100:$A$199,'C Report Grouper'!$D25,'C Report'!Z$100:Z$199)) -> 0 | AC25: =IF($D$4="MAP+ADM Waivers",SUMIF('C Report'!$A$100:$A$199,'C Report Grouper'!$D25,'C Report'!AA$100:AA$199)+SUMIF('C Report'!$A$300:$A$399,'C Report Grouper'!$D25,'C Report'!AA$300:AA$399),SUMIF('C Report'!$A$100:$A$199,'C Report Grouper'!$D25,'C Report'!AA$100:AA$199)) -> 0 | AD25: =IF($D$4="MAP+ADM Waivers",SUMIF('C Report'!$A$100:$A$199,'C Report Grouper'!$D25,'C Report'!AB$100:AB$199)+SUMIF('C Report'!$A$300:$A$399,'C Report Grouper'!$D25,'C Report'!AB$300:AB$399),SUMIF('C Report'!$A$100:$A$199,'C Report Grouper'!$D25,'C Report'!AB$100:AB$199)) -> 0 | AE25: =IF($D$4="MAP+ADM Waivers",SUMIF('C Report'!$A$100:$A$199,'C Report Grouper'!$D25,'C Report'!AC$100:AC$199)+SUMIF('C Report'!$A$300:$A$399,'C Report Grouper'!$D25,'C Report'!AC$300:AC$399),SUMIF('C Report'!$A$100:$A$199,'C Report Grouper'!$D25,'C Report'!AC$100:AC$199)) -> 0 | AF25: =IF($D$4="MAP+ADM Waivers",SUMIF('C Report'!$A$100:$A$199,'C Report Grouper'!$D25,'C Report'!AD$100:AD$199)+SUMIF('C Report'!$A$300:$A$399,'C Report Grouper'!$D25,'C Report'!AD$300:AD$399),SUMIF('C Report'!$A$100:$A$199,'C Report Grouper'!$D25,'C Report'!AD$100:AD$199)) -> 0 | AG25: =IF($D$4="MAP+ADM Waivers",SUMIF('C Report'!$A$100:$A$199,'C Report Grouper'!$D25,'C Report'!AE$100:AE$199)+SUMIF('C Report'!$A$300:$A$399,'C Report Grouper'!$D25,'C Report'!AE$300:AE$399),SUMIF('C Report'!$A$100:$A$199,'C Report Grouper'!$D25,'C Report'!AE$100:AE$199)) -> 0 | AH25: =IF($D$4="MAP+ADM Waivers",SUMIF('C Report'!$A$100:$A$199,'C Report Grouper'!$D25,'C Report'!AF$100:AF$199)+SUMIF('C Report'!$A$300:$A$399,'C Report Grouper'!$D25,'C Report'!AF$300:AF$399),SUMIF('C Report'!$A$100:$A$199,'C Report Grouper'!$D25,'C Report'!AF$100:AF$199)) -> 0 | AI25: =IF($D$4="MAP+ADM Waivers",SUMIF('C Report'!$A$100:$A$199,'C Report Grouper'!$D25,'C Report'!AG$100:AG$199)+SUMIF('C Report'!$A$300:$A$399,'C Report Grouper'!$D25,'C Report'!AG$300:AG$399),SUMIF('C Report'!$A$100:$A$199,'C Report Grouper'!$D25,'C Report'!AG$100:AG$199)) -> 0
B26: =IFERROR(VLOOKUP(C26,'MEG Def'!$A$37:$B$46,2),"") -> HealthChoice Diabetes Prevention Program (DPP) Pilot Program | C26: 1 | D26: HealthChoice Diabetes Prevention Program (DPP) | E26: =IF($D$4="MAP+ADM Waivers",SUMIF('C Report'!$A$100:$A$199,'C Report Grouper'!$D26,'C Report'!C$100:C$199)+SUMIF('C Report'!$A$300:$A$399,'C Report Grouper'!$D26,'C Report'!C$300:C$399),SUMIF('C Report'!$A$100:$A$199,'C Report Grouper'!$D26,'C Report'!C$100:C$199)) -> 0 | F26: =IF($D$4="MAP+ADM Waivers",SUMIF('C Report'!$A$100:$A$199,'C Report Grouper'!$D26,'C Report'!D$100:D$199)+SUMIF('C Report'!$A$300:$A$399,'C Report Grouper'!$D26,'C Report'!D$300:D$399),SUMIF('C Report'!$A$100:$A$199,'C Report Grouper'!$D26,'C Report'!D$100:D$199)) -> 0 | G26: =IF($D$4="MAP+ADM Waivers",SUMIF('C Report'!$A$100:$A$199,'C Report Grouper'!$D26,'C Report'!E$100:E$199)+SUMIF('C Report'!$A$300:$A$399,'C Report Grouper'!$D26,'C Report'!E$300:E$399),SUMIF('C Report'!$A$100:$A$199,'C Report Grouper'!$D26,'C Report'!E$100:E$199)) -> 0 | H26: =IF($D$4="MAP+ADM Waivers",SUMIF('C Report'!$A$100:$A$199,'C Report Grouper'!$D26,'C Report'!F$100:F$199)+SUMIF('C Report'!$A$300:$A$399,'C Report Grouper'!$D26,'C Report'!F$300:F$399),SUMIF('C Report'!$A$100:$A$199,'C Report Grouper'!$D26,'C Report'!F$100:F$199)) -> 0 | I26: =IF($D$4="MAP+ADM Waivers",SUMIF('C Report'!$A$100:$A$199,'C Report Grouper'!$D26,'C Report'!G$100:G$199)+SUMIF('C Report'!$A$300:$A$399,'C Report Grouper'!$D26,'C Report'!G$300:G$399),SUMIF('C Report'!$A$100:$A$199,'C Report Grouper'!$D26,'C Report'!G$100:G$199)) -> 0 | J26: =IF($D$4="MAP+ADM Waivers",SUMIF('C Report'!$A$100:$A$199,'C Report Grouper'!$D26,'C Report'!H$100:H$199)+SUMIF('C Report'!$A$300:$A$399,'C Report Grouper'!$D26,'C Report'!H$300:H$399),SUMIF('C Report'!$A$100:$A$199,'C Report Grouper'!$D26,'C Report'!H$100:H$199)) -> 0 | K26: =IF($D$4="MAP+ADM Waivers",SUMIF('C Report'!$A$100:$A$199,'C Report Grouper'!$D26,'C Report'!I$100:I$199)+SUMIF('C Report'!$A$300:$A$399,'C Report Grouper'!$D26,'C Report'!I$300:I$399),SUMIF('C Report'!$A$100:$A$199,'C Report Grouper'!$D26,'C Report'!I$100:I$199)) -> 0 | L26: =IF($D$4="MAP+ADM Waivers",SUMIF('C Report'!$A$100:$A$199,'C Report Grouper'!$D26,'C Report'!J$100:J$199)+SUMIF('C Report'!$A$300:$A$399,'C Report Grouper'!$D26,'C Report'!J$300:J$399),SUMIF('C Report'!$A$100:$A$199,'C Report Grouper'!$D26,'C Report'!J$100:J$199)) -> 0 | M26: =IF($D$4="MAP+ADM Waivers",SUMIF('C Report'!$A$100:$A$199,'C Report Grouper'!$D26,'C Report'!K$100:K$199)+SUMIF('C Report'!$A$300:$A$399,'C Report Grouper'!$D26,'C Report'!K$300:K$399),SUMIF('C Report'!$A$100:$A$199,'C Report Grouper'!$D26,'C Report'!K$100:K$199)) -> 0 | N26: =IF($D$4="MAP+ADM Waivers",SUMIF('C Report'!$A$100:$A$199,'C Report Grouper'!$D26,'C Report'!L$100:L$199)+SUMIF('C Report'!$A$300:$A$399,'C Report Grouper'!$D26,'C Report'!L$300:L$399),SUMIF('C Report'!$A$100:$A$199,'C Report Grouper'!$D26,'C Report'!L$100:L$199)) -> 0 | O26: =IF($D$4="MAP+ADM Waivers",SUMIF('C Report'!$A$100:$A$199,'C Report Grouper'!$D26,'C Report'!M$100:M$199)+SUMIF('C Report'!$A$300:$A$399,'C Report Grouper'!$D26,'C Report'!M$300:M$399),SUMIF('C Report'!$A$100:$A$199,'C Report Grouper'!$D26,'C Report'!M$100:M$199)) -> 0 | P26: =IF($D$4="MAP+ADM Waivers",SUMIF('C Report'!$A$100:$A$199,'C Report Grouper'!$D26,'C Report'!N$100:N$199)+SUMIF('C Report'!$A$300:$A$399,'C Report Grouper'!$D26,'C Report'!N$300:N$399),SUMIF('C Report'!$A$100:$A$199,'C Report Grouper'!$D26,'C Report'!N$100:N$199)) -> 0 | Q26: =IF($D$4="MAP+ADM Waivers",SUMIF('C Report'!$A$100:$A$199,'C Report Grouper'!$D26,'C Report'!O$100:O$199)+SUMIF('C Report'!$A$300:$A$399,'C Report Grouper'!$D26,'C Report'!O$300:O$399),SUMIF('C Report'!$A$100:$A$199,'C Report Grouper'!$D26,'C Report'!O$100:O$199)) -> 0 | R26: =IF($D$4="MAP+ADM Waivers",SUMIF('C Report'!$A$100:$A$199,'C Report Grouper'!$D26,'C Report'!P$100:P$199)+SUMIF('C Report'!$A$300:$A$399,'C Report Grouper'!$D26,'C Report'!P$300:P$399),SUMIF('C Report'!$A$100:$A$199,'C Report Grouper'!$D26,'C Report'!P$100:P$199)) -> 0 | S26: =IF($D$4="MAP+ADM Waivers",SUMIF('C Report'!$A$100:$A$199,'C Report Grouper'!$D26,'C Report'!Q$100:Q$199)+SUMIF('C Report'!$A$300:$A$399,'C Report Grouper'!$D26,'C Report'!Q$300:Q$399),SUMIF('C Report'!$A$100:$A$199,'C Report Grouper'!$D26,'C Report'!Q$100:Q$199)) -> 0 | T26: =IF($D$4="MAP+ADM Waivers",SUMIF('C Report'!$A$100:$A$199,'C Report Grouper'!$D26,'C Report'!R$100:R$199)+SUMIF('C Report'!$A$300:$A$399,'C Report Grouper'!$D26,'C Report'!R$300:R$399),SUMIF('C Report'!$A$100:$A$199,'C Report Grouper'!$D26,'C Report'!R$100:R$199)) -> 0 | U26: =IF($D$4="MAP+ADM Waivers",SUMIF('C Report'!$A$100:$A$199,'C Report Grouper'!$D26,'C Report'!S$100:S$199)+SUMIF('C Report'!$A$300:$A$399,'C Report Grouper'!$D26,'C Report'!S$300:S$399),SUMIF('C Report'!$A$100:$A$199,'C Report Grouper'!$D26,'C Report'!S$100:S$199)) -> 0 | V26: =IF($D$4="MAP+ADM Waivers",SUMIF('C Report'!$A$100:$A$199,'C Report Grouper'!$D26,'C Report'!T$100:T$199)+SUMIF('C Report'!$A$300:$A$399,'C Report Grouper'!$D26,'C Report'!T$300:T$399),SUMIF('C Report'!$A$100:$A$199,'C Report Grouper'!$D26,'C Report'!T$100:T$199)) -> 0 | W26: =IF($D$4="MAP+ADM Waivers",SUMIF('C Report'!$A$100:$A$199,'C Report Grouper'!$D26,'C Report'!U$100:U$199)+SUMIF('C Report'!$A$300:$A$399,'C Report Grouper'!$D26,'C Report'!U$300:U$399),SUMIF('C Report'!$A$100:$A$199,'C Report Grouper'!$D26,'C Report'!U$100:U$199)) -> 0 | X26: =IF($D$4="MAP+ADM Waivers",SUMIF('C Report'!$A$100:$A$199,'C Report Grouper'!$D26,'C Report'!V$100:V$199)+SUMIF('C Report'!$A$300:$A$399,'C Report Grouper'!$D26,'C Report'!V$300:V$399),SUMIF('C Report'!$A$100:$A$199,'C Report Grouper'!$D26,'C Report'!V$100:V$199)) -> 0 | Y26: =IF($D$4="MAP+ADM Waivers",SUMIF('C Report'!$A$100:$A$199,'C Report Grouper'!$D26,'C Report'!W$100:W$199)+SUMIF('C Report'!$A$300:$A$399,'C Report Grouper'!$D26,'C Report'!W$300:W$399),SUMIF('C Report'!$A$100:$A$199,'C Report Grouper'!$D26,'C Report'!W$100:W$199)) -> 0 | Z26: =IF($D$4="MAP+ADM Waivers",SUMIF('C Report'!$A$100:$A$199,'C Report Grouper'!$D26,'C Report'!X$100:X$199)+SUMIF('C Report'!$A$300:$A$399,'C Report Grouper'!$D26,'C Report'!X$300:X$399),SUMIF('C Report'!$A$100:$A$199,'C Report Grouper'!$D26,'C Report'!X$100:X$199)) -> 0 | AA26: =IF($D$4="MAP+ADM Waivers",SUMIF('C Report'!$A$100:$A$199,'C Report Grouper'!$D26,'C Report'!Y$100:Y$199)+SUMIF('C Report'!$A$300:$A$399,'C Report Grouper'!$D26,'C Report'!Y$300:Y$399),SUMIF('C Report'!$A$100:$A$199,'C Report Grouper'!$D26,'C Report'!Y$100:Y$199)) -> 0 | AB26: =IF($D$4="MAP+ADM Waivers",SUMIF('C Report'!$A$100:$A$199,'C Report Grouper'!$D26,'C Report'!Z$100:Z$199)+SUMIF('C Report'!$A$300:$A$399,'C Report Grouper'!$D26,'C Report'!Z$300:Z$399),SUMIF('C Report'!$A$100:$A$199,'C Report Grouper'!$D26,'C Report'!Z$100:Z$199)) -> 0 | AC26: =IF($D$4="MAP+ADM Waivers",SUMIF('C Report'!$A$100:$A$199,'C Report Grouper'!$D26,'C Report'!AA$100:AA$199)+SUMIF('C Report'!$A$300:$A$399,'C Report Grouper'!$D26,'C Report'!AA$300:AA$399),SUMIF('C Report'!$A$100:$A$199,'C Report Grouper'!$D26,'C Report'!AA$100:AA$199)) -> 0 | AD26: =IF($D$4="MAP+ADM Waivers",SUMIF('C Report'!$A$100:$A$199,'C Report Grouper'!$D26,'C Report'!AB$100:AB$199)+SUMIF('C Report'!$A$300:$A$399,'C Report Grouper'!$D26,'C Report'!AB$300:AB$399),SUMIF('C Report'!$A$100:$A$199,'C Report Grouper'!$D26,'C Report'!AB$100:AB$199)) -> 0 | AE26: =IF($D$4="MAP+ADM Waivers",SUMIF('C Report'!$A$100:$A$199,'C Report Grouper'!$D26,'C Report'!AC$100:AC$199)+SUMIF('C Report'!$A$300:$A$399,'C Report Grouper'!$D26,'C Report'!AC$300:AC$399),SUMIF('C Report'!$A$100:$A$199,'C Report Grouper'!$D26,'C Report'!AC$100:AC$199)) -> 0 | AF26: =IF($D$4="MAP+ADM Waivers",SUMIF('C Report'!$A$100:$A$199,'C Report Grouper'!$D26,'C Report'!AD$100:AD$199)+SUMIF('C Report'!$A$300:$A$399,'C Report Grouper'!$D26,'C Report'!AD$300:AD$399),SUMIF('C Report'!$A$100:$A$199,'C Report Grouper'!$D26,'C Report'!AD$100:AD$199)) -> 0 | AG26: =IF($D$4="MAP+ADM Waivers",SUMIF('C Report'!$A$100:$A$199,'C Report Grouper'!$D26,'C Report'!AE$100:AE$199)+SUMIF('C Report'!$A$300:$A$399,'C Report Grouper'!$D26,'C Report'!AE$300:AE$399),SUMIF('C Report'!$A$100:$A$199,'C Report Grouper'!$D26,'C Report'!AE$100:AE$199)) -> 0 | AH26: =IF($D$4="MAP+ADM Waivers",SUMIF('C Report'!$A$100:$A$199,'C Report Grouper'!$D26,'C Report'!AF$100:AF$199)+SUMIF('C Report'!$A$300:$A$399,'C Report Grouper'!$D26,'C Report'!AF$300:AF$399),SUMIF('C Report'!$A$100:$A$199,'C Report Grouper'!$D26,'C Report'!AF$100:AF$199)) -> 0 | AI26: =IF($D$4="MAP+ADM Waivers",SUMIF('C Report'!$A$100:$A$199,'C Report Grouper'!$D26,'C Report'!AG$100:AG$199)+SUMIF('C Report'!$A$300:$A$399,'C Report Grouper'!$D26,'C Report'!AG$300:AG$399),SUMIF('C Report'!$A$100:$A$199,'C Report Grouper'!$D26,'C Report'!AG$100:AG$199)) -> 0
B27: =IFERROR(VLOOKUP(C27,'MEG Def'!$A$37:$B$46,2),"") -> Adult Dental Program | C27: 2 | D27: Adult Dental Pilot Program | E27: =IF($D$4="MAP+ADM Waivers",SUMIF('C Report'!$A$100:$A$199,'C Report Grouper'!$D27,'C Report'!C$100:C$199)+SUMIF('C Report'!$A$300:$A$399,'C Report Grouper'!$D27,'C Report'!C$300:C$399),SUMIF('C Report'!$A$100:$A$199,'C Report Grouper'!$D27,'C Report'!C$100:C$199)) -> 0 | F27: =IF($D$4="MAP+ADM Waivers",SUMIF('C Report'!$A$100:$A$199,'C Report Grouper'!$D27,'C Report'!D$100:D$199)+SUMIF('C Report'!$A$300:$A$399,'C Report Grouper'!$D27,'C Report'!D$300:D$399),SUMIF('C Report'!$A$100:$A$199,'C Report Grouper'!$D27,'C Report'!D$100:D$199)) -> 0 | G27: =IF($D$4="MAP+ADM Waivers",SUMIF('C Report'!$A$100:$A$199,'C Report Grouper'!$D27,'C Report'!E$100:E$199)+SUMIF('C Report'!$A$300:$A$399,'C Report Grouper'!$D27,'C Report'!E$300:E$399),SUMIF('C Report'!$A$100:$A$199,'C Report Grouper'!$D27,'C Report'!E$100:E$199)) -> 0 | H27: =IF($D$4="MAP+ADM Waivers",SUMIF('C Report'!$A$100:$A$199,'C Report Grouper'!$D27,'C Report'!F$100:F$199)+SUMIF('C Report'!$A$300:$A$399,'C Report Grouper'!$D27,'C Report'!F$300:F$399),SUMIF('C Report'!$A$100:$A$199,'C Report Grouper'!$D27,'C Report'!F$100:F$199)) -> 0 | I27: =IF($D$4="MAP+ADM Waivers",SUMIF('C Report'!$A$100:$A$199,'C Report Grouper'!$D27,'C Report'!G$100:G$199)+SUMIF('C Report'!$A$300:$A$399,'C Report Grouper'!$D27,'C Report'!G$300:G$399),SUMIF('C Report'!$A$100:$A$199,'C Report Grouper'!$D27,'C Report'!G$100:G$199)) -> 0 | J27: =IF($D$4="MAP+ADM Waivers",SUMIF('C Report'!$A$100:$A$199,'C Report Grouper'!$D27,'C Report'!H$100:H$199)+SUMIF('C Report'!$A$300:$A$399,'C Report Grouper'!$D27,'C Report'!H$300:H$399),SUMIF('C Report'!$A$100:$A$199,'C Report Grouper'!$D27,'C Report'!H$100:H$199)) -> 0 | K27: =IF($D$4="MAP+ADM Waivers",SUMIF('C Report'!$A$100:$A$199,'C Report Grouper'!$D27,'C Report'!I$100:I$199)+SUMIF('C Report'!$A$300:$A$399,'C Report Grouper'!$D27,'C Report'!I$300:I$399),SUMIF('C Report'!$A$100:$A$199,'C Report Grouper'!$D27,'C Report'!I$100:I$199)) -> 0 | L27: =IF($D$4="MAP+ADM Waivers",SUMIF('C Report'!$A$100:$A$199,'C Report Grouper'!$D27,'C Report'!J$100:J$199)+SUMIF('C Report'!$A$300:$A$399,'C Report Grouper'!$D27,'C Report'!J$300:J$399),SUMIF('C Report'!$A$100:$A$199,'C Report Grouper'!$D27,'C Report'!J$100:J$199)) -> 0 | M27: =IF($D$4="MAP+ADM Waivers",SUMIF('C Report'!$A$100:$A$199,'C Report Grouper'!$D27,'C Report'!K$100:K$199)+SUMIF('C Report'!$A$300:$A$399,'C Report Grouper'!$D27,'C Report'!K$300:K$399),SUMIF('C Report'!$A$100:$A$199,'C Report Grouper'!$D27,'C Report'!K$100:K$199)) -> 0 | N27: =IF($D$4="MAP+ADM Waivers",SUMIF('C Report'!$A$100:$A$199,'C Report Grouper'!$D27,'C Report'!L$100:L$199)+SUMIF('C Report'!$A$300:$A$399,'C Report Grouper'!$D27,'C Report'!L$300:L$399),SUMIF('C Report'!$A$100:$A$199,'C Report Grouper'!$D27,'C Report'!L$100:L$199)) -> 0 | O27: =IF($D$4="MAP+ADM Waivers",SUMIF('C Report'!$A$100:$A$199,'C Report Grouper'!$D27,'C Report'!M$100:M$199)+SUMIF('C Report'!$A$300:$A$399,'C Report Grouper'!$D27,'C Report'!M$300:M$399),SUMIF('C Report'!$A$100:$A$199,'C Report Grouper'!$D27,'C Report'!M$100:M$199)) -> 0 | P27: =IF($D$4="MAP+ADM Waivers",SUMIF('C Report'!$A$100:$A$199,'C Report Grouper'!$D27,'C Report'!N$100:N$199)+SUMIF('C Report'!$A$300:$A$399,'C Report Grouper'!$D27,'C Report'!N$300:N$399),SUMIF('C Report'!$A$100:$A$199,'C Report Grouper'!$D27,'C Report'!N$100:N$199)) -> 0 | Q27: =IF($D$4="MAP+ADM Waivers",SUMIF('C Report'!$A$100:$A$199,'C Report Grouper'!$D27,'C Report'!O$100:O$199)+SUMIF('C Report'!$A$300:$A$399,'C Report Grouper'!$D27,'C Report'!O$300:O$399),SUMIF('C Report'!$A$100:$A$199,'C Report Grouper'!$D27,'C Report'!O$100:O$199)) -> 0 | R27: =IF($D$4="MAP+ADM Waivers",SUMIF('C Report'!$A$100:$A$199,'C Report Grouper'!$D27,'C Report'!P$100:P$199)+SUMIF('C Report'!$A$300:$A$399,'C Report Grouper'!$D27,'C Report'!P$300:P$399),SUMIF('C Report'!$A$100:$A$199,'C Report Grouper'!$D27,'C Report'!P$100:P$199)) -> 0 | S27: =IF($D$4="MAP+ADM Waivers",SUMIF('C Report'!$A$100:$A$199,'C Report Grouper'!$D27,'C Report'!Q$100:Q$199)+SUMIF('C Report'!$A$300:$A$399,'C Report Grouper'!$D27,'C Report'!Q$300:Q$399),SUMIF('C Report'!$A$100:$A$199,'C Report Grouper'!$D27,'C Report'!Q$100:Q$199)) -> 0 | T27: =IF($D$4="MAP+ADM Waivers",SUMIF('C Report'!$A$100:$A$199,'C Report Grouper'!$D27,'C Report'!R$100:R$199)+SUMIF('C Report'!$A$300:$A$399,'C Report Grouper'!$D27,'C Report'!R$300:R$399),SUMIF('C Report'!$A$100:$A$199,'C Report Grouper'!$D27,'C Report'!R$100:R$199)) -> 0 | U27: =IF($D$4="MAP+ADM Waivers",SUMIF('C Report'!$A$100:$A$199,'C Report Grouper'!$D27,'C Report'!S$100:S$199)+SUMIF('C Report'!$A$300:$A$399,'C Report Grouper'!$D27,'C Report'!S$300:S$399),SUMIF('C Report'!$A$100:$A$199,'C Report Grouper'!$D27,'C Report'!S$100:S$199)) -> 0 | V27: =IF($D$4="MAP+ADM Waivers",SUMIF('C Report'!$A$100:$A$199,'C Report Grouper'!$D27,'C Report'!T$100:T$199)+SUMIF('C Report'!$A$300:$A$399,'C Report Grouper'!$D27,'C Report'!T$300:T$399),SUMIF('C Report'!$A$100:$A$199,'C Report Grouper'!$D27,'C Report'!T$100:T$199)) -> 0 | W27: =IF($D$4="MAP+ADM Waivers",SUMIF('C Report'!$A$100:$A$199,'C Report Grouper'!$D27,'C Report'!U$100:U$199)+SUMIF('C Report'!$A$300:$A$399,'C Report Grouper'!$D27,'C Report'!U$300:U$399),SUMIF('C Report'!$A$100:$A$199,'C Report Grouper'!$D27,'C Report'!U$100:U$199)) -> 0 | X27: =IF($D$4="MAP+ADM Waivers",SUMIF('C Report'!$A$100:$A$199,'C Report Grouper'!$D27,'C Report'!V$100:V$199)+SUMIF('C Report'!$A$300:$A$399,'C Report Grouper'!$D27,'C Report'!V$300:V$399),SUMIF('C Report'!$A$100:$A$199,'C Report Grouper'!$D27,'C Report'!V$100:V$199)) -> 0 | Y27: =IF($D$4="MAP+ADM Waivers",SUMIF('C Report'!$A$100:$A$199,'C Report Grouper'!$D27,'C Report'!W$100:W$199)+SUMIF('C Report'!$A$300:$A$399,'C Report Grouper'!$D27,'C Report'!W$300:W$399),SUMIF('C Report'!$A$100:$A$199,'C Report Grouper'!$D27,'C Report'!W$100:W$199)) -> 0 | Z27: =IF($D$4="MAP+ADM Waivers",SUMIF('C Report'!$A$100:$A$199,'C Report Grouper'!$D27,'C Report'!X$100:X$199)+SUMIF('C Report'!$A$300:$A$399,'C Report Grouper'!$D27,'C Report'!X$300:X$399),SUMIF('C Report'!$A$100:$A$199,'C Report Grouper'!$D27,'C Report'!X$100:X$199)) -> 1340 | AA27: =IF($D$4="MAP+ADM Waivers",SUMIF('C Report'!$A$100:$A$199,'C Report Grouper'!$D27,'C Report'!Y$100:Y$199)+SUMIF('C Report'!$A$300:$A$399,'C Report Grouper'!$D27,'C Report'!Y$300:Y$399),SUMIF('C Report'!$A$100:$A$199,'C Report Grouper'!$D27,'C Report'!Y$100:Y$199)) -> 696692 | AB27: =IF($D$4="MAP+ADM Waivers",SUMIF('C Report'!$A$100:$A$199,'C Report Grouper'!$D27,'C Report'!Z$100:Z$199)+SUMIF('C Report'!$A$300:$A$399,'C Report Grouper'!$D27,'C Report'!Z$300:Z$399),SUMIF('C Report'!$A$100:$A$199,'C Report Grouper'!$D27,'C Report'!Z$100:Z$199)) -> 1407811 | AC27: =IF($D$4="MAP+ADM Waivers",SUMIF('C Report'!$A$100:$A$199,'C Report Grouper'!$D27,'C Report'!AA$100:AA$199)+SUMIF('C Report'!$A$300:$A$399,'C Report Grouper'!$D27,'C Report'!AA$300:AA$399),SUMIF('C Report'!$A$100:$A$199,'C Report Grouper'!$D27,'C Report'!AA$100:AA$199)) -> 1397324 | AD27: =IF($D$4="MAP+ADM Waivers",SUMIF('C Report'!$A$100:$A$199,'C Report Grouper'!$D27,'C Report'!AB$100:AB$199)+SUMIF('C Report'!$A$300:$A$399,'C Report Grouper'!$D27,'C Report'!AB$300:AB$399),SUMIF('C Report'!$A$100:$A$199,'C Report Grouper'!$D27,'C Report'!AB$100:AB$199)) -> 574002 | AE27: =IF($D$4="MAP+ADM Waivers",SUMIF('C Report'!$A$100:$A$199,'C Report Grouper'!$D27,'C Report'!AC$100:AC$199)+SUMIF('C Report'!$A$300:$A$399,'C Report Grouper'!$D27,'C Report'!AC$300:AC$399),SUMIF('C Report'!$A$100:$A$199,'C Report Grouper'!$D27,'C Report'!AC$100:AC$199)) -> 0 | AF27: =IF($D$4="MAP+ADM Waivers",SUMIF('C Report'!$A$100:$A$199,'C Report Grouper'!$D27,'C Report'!AD$100:AD$199)+SUMIF('C Report'!$A$300:$A$399,'C Report Grouper'!$D27,'C Report'!AD$300:AD$399),SUMIF('C Report'!$A$100:$A$199,'C Report Grouper'!$D27,'C Report'!AD$100:AD$199)) -> 0 | AG27: =IF($D$4="MAP+ADM Waivers",SUMIF('C Report'!$A$100:$A$199,'C Report Grouper'!$D27,'C Report'!AE$100:AE$199)+SUMIF('C Report'!$A$300:$A$399,'C Report Grouper'!$D27,'C Report'!AE$300:AE$399),SUMIF('C Report'!$A$100:$A$199,'C Report Grouper'!$D27,'C Report'!AE$100:AE$199)) -> 0 | AH27: =IF($D$4="MAP+ADM Waivers",SUMIF('C Report'!$A$100:$A$199,'C Report Grouper'!$D27,'C Report'!AF$100:AF$199)+SUMIF('C Report'!$A$300:$A$399,'C Report Grouper'!$D27,'C Report'!AF$300:AF$399),SUMIF('C Report'!$A$100:$A$199,'C Report Grouper'!$D27,'C Report'!AF$100:AF$199)) -> 0 | AI27: =IF($D$4="MAP+ADM Waivers",SUMIF('C Report'!$A$100:$A$199,'C Report Grouper'!$D27,'C Report'!AG$100:AG$199)+SUMIF('C Report'!$A$300:$A$399,'C Report Grouper'!$D27,'C Report'!AG$300:AG$399),SUMIF('C Report'!$A$100:$A$199,'C Report Grouper'!$D27,'C Report'!AG$100:AG$199)) -> 0
B28: =IFERROR(VLOOKUP(C28,'MEG Def'!$A$37:$B$46,2),"") -> Increased Community Services (ICS) | C28: 3 | D28: ICS | E28: =IF($D$4="MAP+ADM Waivers",SUMIF('C Report'!$A$100:$A$199,'C Report Grouper'!$D28,'C Report'!C$100:C$199)+SUMIF('C Report'!$A$300:$A$399,'C Report Grouper'!$D28,'C Report'!C$300:C$399),SUMIF('C Report'!$A$100:$A$199,'C Report Grouper'!$D28,'C Report'!C$100:C$199)) -> 0 | F28: =IF($D$4="MAP+ADM Waivers",SUMIF('C Report'!$A$100:$A$199,'C Report Grouper'!$D28,'C Report'!D$100:D$199)+SUMIF('C Report'!$A$300:$A$399,'C Report Grouper'!$D28,'C Report'!D$300:D$399),SUMIF('C Report'!$A$100:$A$199,'C Report Grouper'!$D28,'C Report'!D$100:D$199)) -> 0 | G28: =IF($D$4="MAP+ADM Waivers",SUMIF('C Report'!$A$100:$A$199,'C Report Grouper'!$D28,'C Report'!E$100:E$199)+SUMIF('C Report'!$A$300:$A$399,'C Report Grouper'!$D28,'C Report'!E$300:E$399),SUMIF('C Report'!$A$100:$A$199,'C Report Grouper'!$D28,'C Report'!E$100:E$199)) -> 0 | H28: =IF($D$4="MAP+ADM Waivers",SUMIF('C Report'!$A$100:$A$199,'C Report Grouper'!$D28,'C Report'!F$100:F$199)+SUMIF('C Report'!$A$300:$A$399,'C Report Grouper'!$D28,'C Report'!F$300:F$399),SUMIF('C Report'!$A$100:$A$199,'C Report Grouper'!$D28,'C Report'!F$100:F$199)) -> 0 | I28: =IF($D$4="MAP+ADM Waivers",SUMIF('C Report'!$A$100:$A$199,'C Report Grouper'!$D28,'C Report'!G$100:G$199)+SUMIF('C Report'!$A$300:$A$399,'C Report Grouper'!$D28,'C Report'!G$300:G$399),SUMIF('C Report'!$A$100:$A$199,'C Report Grouper'!$D28,'C Report'!G$100:G$199)) -> 0 | J28: =IF($D$4="MAP+ADM Waivers",SUMIF('C Report'!$A$100:$A$199,'C Report Grouper'!$D28,'C Report'!H$100:H$199)+SUMIF('C Report'!$A$300:$A$399,'C Report Grouper'!$D28,'C Report'!H$300:H$399),SUMIF('C Report'!$A$100:$A$199,'C Report Grouper'!$D28,'C Report'!H$100:H$199)) -> 0 | K28: =IF($D$4="MAP+ADM Waivers",SUMIF('C Report'!$A$100:$A$199,'C Report Grouper'!$D28,'C Report'!I$100:I$199)+SUMIF('C Report'!$A$300:$A$399,'C Report Grouper'!$D28,'C Report'!I$300:I$399),SUMIF('C Report'!$A$100:$A$199,'C Report Grouper'!$D28,'C Report'!I$100:I$199)) -> 0 | L28: =IF($D$4="MAP+ADM Waivers",SUMIF('C Report'!$A$100:$A$199,'C Report Grouper'!$D28,'C Report'!J$100:J$199)+SUMIF('C Report'!$A$300:$A$399,'C Report Grouper'!$D28,'C Report'!J$300:J$399),SUMIF('C Report'!$A$100:$A$199,'C Report Grouper'!$D28,'C Report'!J$100:J$199)) -> 0 | M28: =IF($D$4="MAP+ADM Waivers",SUMIF('C Report'!$A$100:$A$199,'C Report Grouper'!$D28,'C Report'!K$100:K$199)+SUMIF('C Report'!$A$300:$A$399,'C Report Grouper'!$D28,'C Report'!K$300:K$399),SUMIF('C Report'!$A$100:$A$199,'C Report Grouper'!$D28,'C Report'!K$100:K$199)) -> 0 | N28: =IF($D$4="MAP+ADM Waivers",SUMIF('C Report'!$A$100:$A$199,'C Report Grouper'!$D28,'C Report'!L$100:L$199)+SUMIF('C Report'!$A$300:$A$399,'C Report Grouper'!$D28,'C Report'!L$300:L$399),SUMIF('C Report'!$A$100:$A$199,'C Report Grouper'!$D28,'C Report'!L$100:L$199)) -> 0 | O28: =IF($D$4="MAP+ADM Waivers",SUMIF('C Report'!$A$100:$A$199,'C Report Grouper'!$D28,'C Report'!M$100:M$199)+SUMIF('C Report'!$A$300:$A$399,'C Report Grouper'!$D28,'C Report'!M$300:M$399),SUMIF('C Report'!$A$100:$A$199,'C Report Grouper'!$D28,'C Report'!M$100:M$199)) -> 0 | P28: =IF($D$4="MAP+ADM Waivers",SUMIF('C Report'!$A$100:$A$199,'C Report Grouper'!$D28,'C Report'!N$100:N$199)+SUMIF('C Report'!$A$300:$A$399,'C Report Grouper'!$D28,'C Report'!N$300:N$399),SUMIF('C Report'!$A$100:$A$199,'C Report Grouper'!$D28,'C Report'!N$100:N$199)) -> 0 | Q28: =IF($D$4="MAP+ADM Waivers",SUMIF('C Report'!$A$100:$A$199,'C Report Grouper'!$D28,'C Report'!O$100:O$199)+SUMIF('C Report'!$A$300:$A$399,'C Report Grouper'!$D28,'C Report'!O$300:O$399),SUMIF('C Report'!$A$100:$A$199,'C Report Grouper'!$D28,'C Report'!O$100:O$199)) -> 0 | R28: =IF($D$4="MAP+ADM Waivers",SUMIF('C Report'!$A$100:$A$199,'C Report Grouper'!$D28,'C Report'!P$100:P$199)+SUMIF('C Report'!$A$300:$A$399,'C Report Grouper'!$D28,'C Report'!P$300:P$399),SUMIF('C Report'!$A$100:$A$199,'C Report Grouper'!$D28,'C Report'!P$100:P$199)) -> 0 | S28: =IF($D$4="MAP+ADM Waivers",SUMIF('C Report'!$A$100:$A$199,'C Report Grouper'!$D28,'C Report'!Q$100:Q$199)+SUMIF('C Report'!$A$300:$A$399,'C Report Grouper'!$D28,'C Report'!Q$300:Q$399),SUMIF('C Report'!$A$100:$A$199,'C Report Grouper'!$D28,'C Report'!Q$100:Q$199)) -> 0 | T28: =IF($D$4="MAP+ADM Waivers",SUMIF('C Report'!$A$100:$A$199,'C Report Grouper'!$D28,'C Report'!R$100:R$199)+SUMIF('C Report'!$A$300:$A$399,'C Report Grouper'!$D28,'C Report'!R$300:R$399),SUMIF('C Report'!$A$100:$A$199,'C Report Grouper'!$D28,'C Report'!R$100:R$199)) -> 0 | U28: =IF($D$4="MAP+ADM Waivers",SUMIF('C Report'!$A$100:$A$199,'C Report Grouper'!$D28,'C Report'!S$100:S$199)+SUMIF('C Report'!$A$300:$A$399,'C Report Grouper'!$D28,'C Report'!S$300:S$399),SUMIF('C Report'!$A$100:$A$199,'C Report Grouper'!$D28,'C Report'!S$100:S$199)) -> 24 | V28: =IF($D$4="MAP+ADM Waivers",SUMIF('C Report'!$A$100:$A$199,'C Report Grouper'!$D28,'C Report'!T$100:T$199)+SUMIF('C Report'!$A$300:$A$399,'C Report Grouper'!$D28,'C Report'!T$300:T$399),SUMIF('C Report'!$A$100:$A$199,'C Report Grouper'!$D28,'C Report'!T$100:T$199)) -> 0 | W28: =IF($D$4="MAP+ADM Waivers",SUMIF('C Report'!$A$100:$A$199,'C Report Grouper'!$D28,'C Report'!U$100:U$199)+SUMIF('C Report'!$A$300:$A$399,'C Report Grouper'!$D28,'C Report'!U$300:U$399),SUMIF('C Report'!$A$100:$A$199,'C Report Grouper'!$D28,'C Report'!U$100:U$199)) -> 0 | X28: =IF($D$4="MAP+ADM Waivers",SUMIF('C Report'!$A$100:$A$199,'C Report Grouper'!$D28,'C Report'!V$100:V$199)+SUMIF('C Report'!$A$300:$A$399,'C Report Grouper'!$D28,'C Report'!V$300:V$399),SUMIF('C Report'!$A$100:$A$199,'C Report Grouper'!$D28,'C Report'!V$100:V$199)) -> 0 | Y28: =IF($D$4="MAP+ADM Waivers",SUMIF('C Report'!$A$100:$A$199,'C Report Grouper'!$D28,'C Report'!W$100:W$199)+SUMIF('C Report'!$A$300:$A$399,'C Report Grouper'!$D28,'C Report'!W$300:W$399),SUMIF('C Report'!$A$100:$A$199,'C Report Grouper'!$D28,'C Report'!W$100:W$199)) -> 0 | Z28: =IF($D$4="MAP+ADM Waivers",SUMIF('C Report'!$A$100:$A$199,'C Report Grouper'!$D28,'C Report'!X$100:X$199)+SUMIF('C Report'!$A$300:$A$399,'C Report Grouper'!$D28,'C Report'!X$300:X$399),SUMIF('C Report'!$A$100:$A$199,'C Report Grouper'!$D28,'C Report'!X$100:X$199)) -> 0 | AA28: =IF($D$4="MAP+ADM Waivers",SUMIF('C Report'!$A$100:$A$199,'C Report Grouper'!$D28,'C Report'!Y$100:Y$199)+SUMIF('C Report'!$A$300:$A$399,'C Report Grouper'!$D28,'C Report'!Y$300:Y$399),SUMIF('C Report'!$A$100:$A$199,'C Report Grouper'!$D28,'C Report'!Y$100:Y$199)) -> 0 | AB28: =IF($D$4="MAP+ADM Waivers",SUMIF('C Report'!$A$100:$A$199,'C Report Grouper'!$D28,'C Report'!Z$100:Z$199)+SUMIF('C Report'!$A$300:$A$399,'C Report Grouper'!$D28,'C Report'!Z$300:Z$399),SUMIF('C Report'!$A$100:$A$199,'C Report Grouper'!$D28,'C Report'!Z$100:Z$199)) -> 0 | AC28: =IF($D$4="MAP+ADM Waivers",SUMIF('C Report'!$A$100:$A$199,'C Report Grouper'!$D28,'C Report'!AA$100:AA$199)+SUMIF('C Report'!$A$300:$A$399,'C Report Grouper'!$D28,'C Report'!AA$300:AA$399),SUMIF('C Report'!$A$100:$A$199,'C Report Grouper'!$D28,'C Report'!AA$100:AA$199)) -> 0 | AD28: =IF($D$4="MAP+ADM Waivers",SUMIF('C Report'!$A$100:$A$199,'C Report Grouper'!$D28,'C Report'!AB$100:AB$199)+SUMIF('C Report'!$A$300:$A$399,'C Report Grouper'!$D28,'C Report'!AB$300:AB$399),SUMIF('C Report'!$A$100:$A$199,'C Report Grouper'!$D28,'C Report'!AB$100:AB$199)) -> 0 | AE28: =IF($D$4="MAP+ADM Waivers",SUMIF('C Report'!$A$100:$A$199,'C Report Grouper'!$D28,'C Report'!AC$100:AC$199)+SUMIF('C Report'!$A$300:$A$399,'C Report Grouper'!$D28,'C Report'!AC$300:AC$399),SUMIF('C Report'!$A$100:$A$199,'C Report Grouper'!$D28,'C Report'!AC$100:AC$199)) -> 0 | AF28: =IF($D$4="MAP+ADM Waivers",SUMIF('C Report'!$A$100:$A$199,'C Report Grouper'!$D28,'C Report'!AD$100:AD$199)+SUMIF('C Report'!$A$300:$A$399,'C Report Grouper'!$D28,'C Report'!AD$300:AD$399),SUMIF('C Report'!$A$100:$A$199,'C Report Grouper'!$D28,'C Report'!AD$100:AD$199)) -> 0 | AG28: =IF($D$4="MAP+ADM Waivers",SUMIF('C Report'!$A$100:$A$199,'C Report Grouper'!$D28,'C Report'!AE$100:AE$199)+SUMIF('C Report'!$A$300:$A$399,'C Report Grouper'!$D28,'C Report'!AE$300:AE$399),SUMIF('C Report'!$A$100:$A$199,'C Report Grouper'!$D28,'C Report'!AE$100:AE$199)) -> 0 | AH28: =IF($D$4="MAP+ADM Waivers",SUMIF('C Report'!$A$100:$A$199,'C Report Grouper'!$D28,'C Report'!AF$100:AF$199)+SUMIF('C Report'!$A$300:$A$399,'C Report Grouper'!$D28,'C Report'!AF$300:AF$399),SUMIF('C Report'!$A$100:$A$199,'C Report Grouper'!$D28,'C Report'!AF$100:AF$199)) -> 0 | AI28: =IF($D$4="MAP+ADM Waivers",SUMIF('C Report'!$A$100:$A$199,'C Report Grouper'!$D28,'C Report'!AG$100:AG$199)+SUMIF('C Report'!$A$300:$A$399,'C Report Grouper'!$D28,'C Report'!AG$300:AG$399),SUMIF('C Report'!$A$100:$A$199,'C Report Grouper'!$D28,'C Report'!AG$100:AG$199)) -> 0
B29: =IFERROR(VLOOKUP(C29,'MEG Def'!$A$37:$B$46,2),"") -> Breast and Cervical Cancer Treatment Program (BCCTP) | C29: 4 | D29: Womens Breast Cancer | E29: =IF($D$4="MAP+ADM Waivers",SUMIF('C Report'!$A$100:$A$199,'C Report Grouper'!$D29,'C Report'!C$100:C$199)+SUMIF('C Report'!$A$300:$A$399,'C Report Grouper'!$D29,'C Report'!C$300:C$399),SUMIF('C Report'!$A$100:$A$199,'C Report Grouper'!$D29,'C Report'!C$100:C$199)) -> 0 | F29: =IF($D$4="MAP+ADM Waivers",SUMIF('C Report'!$A$100:$A$199,'C Report Grouper'!$D29,'C Report'!D$100:D$199)+SUMIF('C Report'!$A$300:$A$399,'C Report Grouper'!$D29,'C Report'!D$300:D$399),SUMIF('C Report'!$A$100:$A$199,'C Report Grouper'!$D29,'C Report'!D$100:D$199)) -> 0 | G29: =IF($D$4="MAP+ADM Waivers",SUMIF('C Report'!$A$100:$A$199,'C Report Grouper'!$D29,'C Report'!E$100:E$199)+SUMIF('C Report'!$A$300:$A$399,'C Report Grouper'!$D29,'C Report'!E$300:E$399),SUMIF('C Report'!$A$100:$A$199,'C Report Grouper'!$D29,'C Report'!E$100:E$199)) -> 0 | H29: =IF($D$4="MAP+ADM Waivers",SUMIF('C Report'!$A$100:$A$199,'C Report Grouper'!$D29,'C Report'!F$100:F$199)+SUMIF('C Report'!$A$300:$A$399,'C Report Grouper'!$D29,'C Report'!F$300:F$399),SUMIF('C Report'!$A$100:$A$199,'C Report Grouper'!$D29,'C Report'!F$100:F$199)) -> 0 | I29: =IF($D$4="MAP+ADM Waivers",SUMIF('C Report'!$A$100:$A$199,'C Report Grouper'!$D29,'C Report'!G$100:G$199)+SUMIF('C Report'!$A$300:$A$399,'C Report Grouper'!$D29,'C Report'!G$300:G$399),SUMIF('C Report'!$A$100:$A$199,'C Report Grouper'!$D29,'C Report'!G$100:G$199)) -> 0 | J29: =IF($D$4="MAP+ADM Waivers",SUMIF('C Report'!$A$100:$A$199,'C Report Grouper'!$D29,'C Report'!H$100:H$199)+SUMIF('C Report'!$A$300:$A$399,'C Report Grouper'!$D29,'C Report'!H$300:H$399),SUMIF('C Report'!$A$100:$A$199,'C Report Grouper'!$D29,'C Report'!H$100:H$199)) -> 0 | K29: =IF($D$4="MAP+ADM Waivers",SUMIF('C Report'!$A$100:$A$199,'C Report Grouper'!$D29,'C Report'!I$100:I$199)+SUMIF('C Report'!$A$300:$A$399,'C Report Grouper'!$D29,'C Report'!I$300:I$399),SUMIF('C Report'!$A$100:$A$199,'C Report Grouper'!$D29,'C Report'!I$100:I$199)) -> 0 | L29: =IF($D$4="MAP+ADM Waivers",SUMIF('C Report'!$A$100:$A$199,'C Report Grouper'!$D29,'C Report'!J$100:J$199)+SUMIF('C Report'!$A$300:$A$399,'C Report Grouper'!$D29,'C Report'!J$300:J$399),SUMIF('C Report'!$A$100:$A$199,'C Report Grouper'!$D29,'C Report'!J$100:J$199)) -> 0 | M29: =IF($D$4="MAP+ADM Waivers",SUMIF('C Report'!$A$100:$A$199,'C Report Grouper'!$D29,'C Report'!K$100:K$199)+SUMIF('C Report'!$A$300:$A$399,'C Report Grouper'!$D29,'C Report'!K$300:K$399),SUMIF('C Report'!$A$100:$A$199,'C Report Grouper'!$D29,'C Report'!K$100:K$199)) -> 0 | N29: =IF($D$4="MAP+ADM Waivers",SUMIF('C Report'!$A$100:$A$199,'C Report Grouper'!$D29,'C Report'!L$100:L$199)+SUMIF('C Report'!$A$300:$A$399,'C Report Grouper'!$D29,'C Report'!L$300:L$399),SUMIF('C Report'!$A$100:$A$199,'C Report Grouper'!$D29,'C Report'!L$100:L$199)) -> 0 | O29: =IF($D$4="MAP+ADM Waivers",SUMIF('C Report'!$A$100:$A$199,'C Report Grouper'!$D29,'C Report'!M$100:M$199)+SUMIF('C Report'!$A$300:$A$399,'C Report Grouper'!$D29,'C Report'!M$300:M$399),SUMIF('C Report'!$A$100:$A$199,'C Report Grouper'!$D29,'C Report'!M$100:M$199)) -> 0 | P29: =IF($D$4="MAP+ADM Waivers",SUMIF('C Report'!$A$100:$A$199,'C Report Grouper'!$D29,'C Report'!N$100:N$199)+SUMIF('C Report'!$A$300:$A$399,'C Report Grouper'!$D29,'C Report'!N$300:N$399),SUMIF('C Report'!$A$100:$A$199,'C Report Grouper'!$D29,'C Report'!N$100:N$199)) -> 0 | Q29: =IF($D$4="MAP+ADM Waivers",SUMIF('C Report'!$A$100:$A$199,'C Report Grouper'!$D29,'C Report'!O$100:O$199)+SUMIF('C Report'!$A$300:$A$399,'C Report Grouper'!$D29,'C Report'!O$300:O$399),SUMIF('C Report'!$A$100:$A$199,'C Report Grouper'!$D29,'C Report'!O$100:O$199)) -> 0 | R29: =IF($D$4="MAP+ADM Waivers",SUMIF('C Report'!$A$100:$A$199,'C Report Grouper'!$D29,'C Report'!P$100:P$199)+SUMIF('C Report'!$A$300:$A$399,'C Report Grouper'!$D29,'C Report'!P$300:P$399),SUMIF('C Report'!$A$100:$A$199,'C Report Grouper'!$D29,'C Report'!P$100:P$199)) -> 0 | S29: =IF($D$4="MAP+ADM Waivers",SUMIF('C Report'!$A$100:$A$199,'C Report Grouper'!$D29,'C Report'!Q$100:Q$199)+SUMIF('C Report'!$A$300:$A$399,'C Report Grouper'!$D29,'C Report'!Q$300:Q$399),SUMIF('C Report'!$A$100:$A$199,'C Report Grouper'!$D29,'C Report'!Q$100:Q$199)) -> 0 | T29: =IF($D$4="MAP+ADM Waivers",SUMIF('C Report'!$A$100:$A$199,'C Report Grouper'!$D29,'C Report'!R$100:R$199)+SUMIF('C Report'!$A$300:$A$399,'C Report Grouper'!$D29,'C Report'!R$300:R$399),SUMIF('C Report'!$A$100:$A$199,'C Report Grouper'!$D29,'C Report'!R$100:R$199)) -> 0 | U29: =IF($D$4="MAP+ADM Waivers",SUMIF('C Report'!$A$100:$A$199,'C Report Grouper'!$D29,'C Report'!S$100:S$199)+SUMIF('C Report'!$A$300:$A$399,'C Report Grouper'!$D29,'C Report'!S$300:S$399),SUMIF('C Report'!$A$100:$A$199,'C Report Grouper'!$D29,'C Report'!S$100:S$199)) -> 72828 | V29: =IF($D$4="MAP+ADM Waivers",SUMIF('C Report'!$A$100:$A$199,'C Report Grouper'!$D29,'C Report'!T$100:T$199)+SUMIF('C Report'!$A$300:$A$399,'C Report Grouper'!$D29,'C Report'!T$300:T$399),SUMIF('C Report'!$A$100:$A$199,'C Report Grouper'!$D29,'C Report'!T$100:T$199)) -> 4887633 | W29: =IF($D$4="MAP+ADM Waivers",SUMIF('C Report'!$A$100:$A$199,'C Report Grouper'!$D29,'C Report'!U$100:U$199)+SUMIF('C Report'!$A$300:$A$399,'C Report Grouper'!$D29,'C Report'!U$300:U$399),SUMIF('C Report'!$A$100:$A$199,'C Report Grouper'!$D29,'C Report'!U$100:U$199)) -> 3865053 | X29: =IF($D$4="MAP+ADM Waivers",SUMIF('C Report'!$A$100:$A$199,'C Report Grouper'!$D29,'C Report'!V$100:V$199)+SUMIF('C Report'!$A$300:$A$399,'C Report Grouper'!$D29,'C Report'!V$300:V$399),SUMIF('C Report'!$A$100:$A$199,'C Report Grouper'!$D29,'C Report'!V$100:V$199)) -> 1167165 | Y29: =IF($D$4="MAP+ADM Waivers",SUMIF('C Report'!$A$100:$A$199,'C Report Grouper'!$D29,'C Report'!W$100:W$199)+SUMIF('C Report'!$A$300:$A$399,'C Report Grouper'!$D29,'C Report'!W$300:W$399),SUMIF('C Report'!$A$100:$A$199,'C Report Grouper'!$D29,'C Report'!W$100:W$199)) -> 167667 | Z29: =IF($D$4="MAP+ADM Waivers",SUMIF('C Report'!$A$100:$A$199,'C Report Grouper'!$D29,'C Report'!X$100:X$199)+SUMIF('C Report'!$A$300:$A$399,'C Report Grouper'!$D29,'C Report'!X$300:X$399),SUMIF('C Report'!$A$100:$A$199,'C Report Grouper'!$D29,'C Report'!X$100:X$199)) -> 1196039 | AA29: =IF($D$4="MAP+ADM Waivers",SUMIF('C Report'!$A$100:$A$199,'C Report Grouper'!$D29,'C Report'!Y$100:Y$199)+SUMIF('C Report'!$A$300:$A$399,'C Report Grouper'!$D29,'C Report'!Y$300:Y$399),SUMIF('C Report'!$A$100:$A$199,'C Report Grouper'!$D29,'C Report'!Y$100:Y$199)) -> 1090905 | AB29: =IF($D$4="MAP+ADM Waivers",SUMIF('C Report'!$A$100:$A$199,'C Report Grouper'!$D29,'C Report'!Z$100:Z$199)+SUMIF('C Report'!$A$300:$A$399,'C Report Grouper'!$D29,'C Report'!Z$300:Z$399),SUMIF('C Report'!$A$100:$A$199,'C Report Grouper'!$D29,'C Report'!Z$100:Z$199)) -> 441692 | AC29: =IF($D$4="MAP+ADM Waivers",SUMIF('C Report'!$A$100:$A$199,'C Report Grouper'!$D29,'C Report'!AA$100:AA$199)+SUMIF('C Report'!$A$300:$A$399,'C Report Grouper'!$D29,'C Report'!AA$300:AA$399),SUMIF('C Report'!$A$100:$A$199,'C Report Grouper'!$D29,'C Report'!AA$100:AA$199)) -> 386960 | AD29: =IF($D$4="MAP+ADM Waivers",SUMIF('C Report'!$A$100:$A$199,'C Report Grouper'!$D29,'C Report'!AB$100:AB$199)+SUMIF('C Report'!$A$300:$A$399,'C Report Grouper'!$D29,'C Report'!AB$300:AB$399),SUMIF('C Report'!$A$100:$A$199,'C Report Grouper'!$D29,'C Report'!AB$100:AB$199)) -> 195425 | AE29: =IF($D$4="MAP+ADM Waivers",SUMIF('C Report'!$A$100:$A$199,'C Report Grouper'!$D29,'C Report'!AC$100:AC$199)+SUMIF('C Report'!$A$300:$A$399,'C Report Grouper'!$D29,'C Report'!AC$300:AC$399),SUMIF('C Report'!$A$100:$A$199,'C Report Grouper'!$D29,'C Report'!AC$100:AC$199)) -> 0 | AF29: =IF($D$4="MAP+ADM Waivers",SUMIF('C Report'!$A$100:$A$199,'C Report Grouper'!$D29,'C Report'!AD$100:AD$199)+SUMIF('C Report'!$A$300:$A$399,'C Report Grouper'!$D29,'C Report'!AD$300:AD$399),SUMIF('C Report'!$A$100:$A$199,'C Report Grouper'!$D29,'C Report'!AD$100:AD$199)) -> 0 | AG29: =IF($D$4="MAP+ADM Waivers",SUMIF('C Report'!$A$100:$A$199,'C Report Grouper'!$D29,'C Report'!AE$100:AE$199)+SUMIF('C Report'!$A$300:$A$399,'C Report Grouper'!$D29,'C Report'!AE$300:AE$399),SUMIF('C Report'!$A$100:$A$199,'C Report Grouper'!$D29,'C Report'!AE$100:AE$199)) -> 0 | AH29: =IF($D$4="MAP+ADM Waivers",SUMIF('C Report'!$A$100:$A$199,'C Report Grouper'!$D29,'C Report'!AF$100:AF$199)+SUMIF('C Report'!$A$300:$A$399,'C Report Grouper'!$D29,'C Report'!AF$300:AF$399),SUMIF('C Report'!$A$100:$A$199,'C Report Grouper'!$D29,'C Report'!AF$100:AF$199)) -> 0 | AI29: =IF($D$4="MAP+ADM Waivers",SUMIF('C Report'!$A$100:$A$199,'C Report Grouper'!$D29,'C Report'!AG$100:AG$199)+SUMIF('C Report'!$A$300:$A$399,'C Report Grouper'!$D29,'C Report'!AG$300:AG$399),SUMIF('C Report'!$A$100:$A$199,'C Report Grouper'!$D29,'C Report'!AG$100:AG$199)) -> 0
